{"text_format":"1","workbook":"xlsx","n_sheets":35,"sheets":["Green Star SA","Introduction","How to use","Disclaimer","Change Log","R1 Pre-Submission Checklist","R2 Pre-Submission Checklist","Applicant Declaration","Building Input","Management","IEQ","Energy","Energy Calculator","Lighting Energy Calculator","RET_ENE_DataExtract","Transport","Transport Calculator","Trip Reduction Calculator","RET_TRA_DataExtract","Water","Potable Water Calculator","RET_WAT_DataExtract","Materials","Land Use & Ecology","Ecology Calculator","RET_ECO_DataExtract","Emissions","Sewage Calculator","RET_EMI_DataExtract","Innovation","Credit Summary","Graphical Summary","Rainfall data","Calculation","Calculation1"],"not_rendered":{"charts":12,"images":14,"macros":1,"external_links":13,"defined_names":561,"comments":15,"pivot_tables":0},"unopened":[],"bounds":{"document_bytes":16777216,"sheet_cells":100000,"rows_first":2000,"rows_last":500,"rows_between":2000,"halvings":0,"cell_chars":16384,"cell_head_chars":4096},"cells_cut":0,"cells_raw":0,"read":"whole","date_system":"1900"}

{"sheet":"Green Star SA","index":0,"n_rows":20,"n_cols":2,"rows_kept":20,"cut":false,"hidden":false,"merged":[]}
[]
[]
[]
[]
[]
[]
[]
[]
[]
[]
[]
[]
[null,"Green Star SA - Retail Centre v1 validates the environmental initiatives of new retail centre buildings or retail centre base building refurbishments.  "]
[]
[null,"You are invited to use Green Star SA - Retail Centre v1 to predict a Green Star SA rating.  The Green Building Council of South Africa (GBCSA) does not endorse any self-assessed rating and you are prohibited from presenting self-assessment results in the public domain.  The GBCSA offers a formal certification process for ratings of Four Stars and above.  This service provides for independent third party review of points claimed to ensure all points can be demonstrated to be achieved by the provision of the necessary documentary evidence.  The use of Green Star SA - Retail Centre without formal certification by the GBCSA does not entitle the user or any other party to promote a Green Star SA rating publicly.  "]
[]
[null,"Use the tabs at the bottom of the pages to navigate."]
[]
[null,"© Green Building Council of South Africa "]
[null,"Last Modified: 22 March 2016"]

{"sheet":"Introduction","index":1,"n_rows":81,"n_cols":2,"rows_kept":81,"cut":false,"hidden":false,"merged":[]}
[]
[]
[null,"Green Star SA - Retail Centre v1"]
[]
[]
[]
[null,"Introduction to Green Star SA - Retail Centre v1"]
[]
[]
[]
[null,"What is Green Star SA?"]
[]
[null,"What does Green Star SA - Retail Centre v1 do?"]
[]
[null,"Who can use Green Star SA - Retail Centre v1?"]
[]
[null,"What do Green Star SA ratings mean?"]
[]
[null,"Acknowledgements"]
[]
[]
[]
[]
[]
[]
[]
[null,{"$f":"$B$11","v":"What is Green Star SA?"}]
[null,"The Green Star SA environmental rating system for buildings was developed by the Green Building Council of South Africa (GBCSA).  Green Star SA is a comprehensive rating system for evaluating the environmental design and performance of South African buildings based on a number of criteria, including energy and water efficiency, indoor environment quality and resource conservation. "]
[]
[null,"The Green Star SA environmental rating system is based upon the Australian Green Star system and has been customised for the South African environment by the GBCSA, under licence from the Green Building Council of Australia."]
[null,"Green Star SA has built on existing systems and tools in overseas markets, primarily the Australian Green Star system, but also including the British Building Research Establishment Environmental Assessment Method (BREEAM) system and the North American Leadership in Energy and Environmental Design (LEED) system.  Environmental measurement criteria relevant to the South African marketplace and environmental context have been created."]
[]
[null,"The Green Star rating system was created to:"]
[]
[null,"•  establish a common language and standard of measurement for green buildings; "]
[null,"•  promote integrated, whole-building design; "]
[null,"•  raise awareness of green building benefits;"]
[null,"•  recognise and reward environmental leadership; and "]
[null,"•  reduce the environmental impact of development. "]
[]
[]
[]
[]
[null,{"$f":"$B$13","v":"What does Green Star SA - Retail Centre v1 do?"}]
[]
[null,"Green Star SA - Retail Centre v1 validates the environmental initiatives of new retail centre buildings or retail centre base building refurbishments.  "]
[]
[]
[]
[]
[null,{"$f":"$B$15","v":"Who can use Green Star SA - Retail Centre v1?"}]
[null,"The GBCSA encourages all interested parties to use Green Star SA - Retail Centre v1 to validate the environmental initiatives of new retail centre buildings or retail centre base building refurbishments. The use of Green Star SA - Retail Centre v1 is encouraged on all such projects to assess and improve their environmental design attributes.  "]
[]
[null,"The use of Green Star SA - Retail Centre v1 without formal certification by the GBCSA does not entitle the user or any other party to promote the Green Star rating achieved.  No fee is payable to the GBCSA for such use, however formal recognition of the Green Star SA rating - and the right to promote the same - requires undertaking the formal certification process offered by the GBCSA."]
[]
[]
[]
[]
[null,{"$f":"$B$17","v":"What do Green Star SA ratings mean?"}]
[null,"Green Star SA rating tools use six stars to measure performance.  Projects that obtain a predicted rating of one, two or three stars are not eligible for formal certification.  Projects that obtain a predicted 4 Star rating or above are eligible to apply for formal certification, whereby a:"]
[null,"•  4 Star Green Star Certified Rating recognises and rewards \"Best Practice\";  "]
[null,"•  5 Star Green Star Certified Rating recognises and rewards \"South African Excellence\"; and "]
[null,"•  6 Star Green Star Certified Rating recognises and rewards \"World Leadership\".  "]
[]
[null,"The Green Star SA – Retail Centre v1 provides for both Green Star SA – Retail Centre Design v1 and Green Star SA – Retail Centre As Built v1 certification criteria.  All credits are the same for both ratings; only the documentation differs."]
[]
[null,"Again, the use of Green Star SA - Retail Centre v1 without formal certification by the GBCSA does not entitle the user or any other party to promote a Green Star SA rating publicly."]
[]
[]
[]
[]
[null,{"$f":"$B$19","v":"Acknowledgements"}]
[null,"The Green Building Council would like to acknowledge all parties that worked on and supported the development of the Green Star SA – Retail Centre v1 rating tool. "]
[]
[null,"The GBCSA thanks all those individuals and organisations who provided feedback and expertise to the technical development of the Green Star SA – Retail Centre v1 rating tool.  In particular, the GBCSA would like to thank all Technical Steering Committee and Technical Working Group members, as well as technical consultant WSP.  The GBCSA also acknowledges the tremendous support of the Green Building Council of Australia."]
[]
[null,"The GBCSA’s founding members, along with Green Star SA - Retail Centre v1 tool sponsors South African Cities Network, Swiss Agency for Development and Cooperation, Liberty Properties and Pareto Limited provided much-needed financial support to develop the rating tool.  "]
[]
[null,"Green Star SA – Retail Centre v1 is based on national and international guidelines, including primarily the Australian Green Star system, as well as the US LEED Green Building Rating System and UK's BREEAM Environmental Assessment Method."]
[]
[null,"Green Star SA - Retail Centre v1 Tool Sponsors:"]

{"sheet":"How to use","index":2,"n_rows":22,"n_cols":2,"rows_kept":22,"cut":false,"hidden":false,"merged":[[5,0,5,2]]}
[]
[]
[null,"Green Star SA - Retail Centre v1"]
[]
[]
[]
[null,"How to use this tool"]
[]
["1.","Complete the Building Input worksheet as the building's type and location may affect the predicted rating. "]
[]
["2.","Complete the remaining worksheets by reviewing each credit in each category and entering the number of points you predict the building will achieve in the 'No. of Points Achieved' column.  Calculators are provided for a number of the tool's credits."]
[]
["3.","Enter any points that may be achieved but need to be confirmed in the 'Points to be Confirmed' column."]
[]
["4.","Enter any comments required in the 'Comments' column. Note these comments are for internal design team purposes only. Do NOT include ANY comments within the workbook submitted as a part of a submission for a certified rating."]
[]
["5.","The predicted rating is shown in the Summary worksheet.  More detail on point scores (both achieved and those to be confirmed) are shown in the Credit Summary and Graphical Summary worksheets at the end of the tool.  "]
[]
[null,"Limitations"]
[null,"The GBCSA does not endorse any self-assessed rating achieved by the use of Green Star - SA Retail Centre v1.  The GBCSA offers a formal certification process for ratings of Four Stars and above; this service provides for independent third party review of points claimed to ensure all points can be demonstrated to be achieved by the provision of the necessary documentary evidence.  The use of Green Star SA - Retail Centre v1 without formal certification does not entitle the user or any other party to promote the Green Star SA rating achieved."]
[]
[null,"The application of Green Star SA - Retail Centre v1 to all retail centre projects is encouraged to assess and improve their environmental design attributes.  No fee is payable to the GBCSA for such use, however formal recognition of the Green Star SA rating - and the right to promote the same - requires undertaking the formal certification process offered by the GBCSA."]

{"sheet":"Disclaimer","index":3,"n_rows":29,"n_cols":2,"rows_kept":29,"cut":false,"hidden":false,"merged":[]}
[]
[]
[null,"Green Star SA - Retail Centre v1"]
[]
[]
[]
[null,"Disclaimer"]
[]
[]
[null,"Authorisation, Acknowledgement and Disclaimer"]
[null,"The Green Star SA environmental rating system for buildings (“Green Star SA”) and the Green Star SA – Retail Centre rating tool (“Green Star SA – Retail Centre”) have been developed by the Green Building Council of South Africa (“GBCSA”).  Green Star SA – Retail Centre v1 is intended for use by project teams, contractors and other interested parties to validate the environmental initiatives of the design phase of new retail centre construction or base building refurbishment; construction and procurement phase of a retail centre building; and/or to validate that environmental initiatives proposed in the design phase have been implemented by the building contractor.  As with all Green Star SA rating tools, Green Star SA - Retail Centre v1 may be subject to further development in the future."]
[]
[null,"Green Star SA and Green Star SA - Retail Centre v1 have been developed with the assistance and participation of representatives from many organisations. The views and opinions expressed have been determined upon by the GBCSA and its Committees."]
[]
[null,"The GBCSA authorises you to view and use Green Star SA - Retail Centre v1 for information purposes only.  In exchange for this authorisation, you agree that the GBCSA retains all copyright and other proprietary rights contained in and in relation to Green Star SA - Retail Centre v1 and agree not to sell, let, distribute, modify, or use for another purpose the tool or to reproduce, display or distribute the tool in any way for any public or commercial purpose, including display on a website or in a networked environment. Unauthorised use of Green Star SA and/or Green Star SA - Retail Centre v1 will violate copyright and other laws, and is prohibited.  All text, graphics, layout and other elements of content contained in Green Star SA and its rating tools are owned by the GBCSA and are protected by copyright, trade mark and other laws."]
[]
[null,"The GBCSA does not accept responsibility, including for negligence, for any inaccuracy, error or omission within Green Star SA and/or its rating tools and makes no warranty, expressed or implied, including the warranties of merchantability and fitness for a particular purpose, nor assumes any legal liability or responsibility to you or any third parties for the accuracy, completeness, use of or reliance on any information contained in Green Star SA and/or Green Star SA – Retail Centre v1, or for any injuries, losses or damages (including, without limitation, equitable relief and economic loss) arising out of such use or reliance."]
[]
[null,"Green Star SA and Green Star SA - Retail Centre v1 are not substitutes for professional advice, nor do they purport to be a professional service.  You should seek your own professional and other appropriate advice on the matters addressed by them."]
[]
[null,"As a condition of use, you undertake not to institute legal proceedings in whatever form against the trade mark and copyright proprietor, and agree to waive and release the GBCSA, its officers, agents, employees and its members from any and all claims, demands and causes of action for any injury, loss, destruction or damage (including, without limitation, equitable relief and economic loss) that you may now or hereafter have a right to assert against such parties as a result of your use of, or reliance on, Green Star SA and/or Green Star SA – Retail Centre v1."]
[]
[null,"The GBCSA does not endorse or otherwise acknowledge the Green Star SA rating achieved by the use of Green Star SA – Retail Centre v1. The GBCSA offers a formal certification process for ratings of Four Stars and above.  The service provides for independent third party review of points claimed to ensure all credits can be demonstrated to be achieved by the provision of the necessary documentary evidence.  The use of Green Star SA - Retail Centre v1 without formal certification by the GBCSA does not entitle the user or any other party to promote the achieved Green Star SA rating or make use of the Green Star trade marks in whatever manner or form. "]
[]
[null,"The application of Green Star SA - Retail Centre v1 to all retail centre projects is encouraged to assess and improve their environmental attributes.  No fee is payable to the GBCSA for such use; however, formal recognition of the Green Star SA rating - and the right to promote the same - requires undertaking the formal certification process offered by the GBCSA, and use of this service shall not constitute such a certification process."]
[]
[null,"You are only authorised to proceed to use Green Star SA and Green Star SA – Retail Centre v1 on this basis."]
[]
[null,"© 2010 Green Building Council of South Africa.  All rights reserved."]

{"sheet":"Change Log","index":4,"n_rows":30,"n_cols":3,"rows_kept":30,"cut":false,"hidden":false,"merged":[[15,1,15,2]]}
[]
[]
[null,"Green Star SA - Retail Centre v1"]
[]
[]
[]
[null,"Change Log"]
[]
[null,"Green Star SA Retail Centre v1 Tool Release Date"]
[null,"15th April 2010"]
[]
[]
[]
[null,"Changes & Amendments"]
[]
[null,"The GBCSA  reserves the right to correct errors and omissions in the Green Star SA - Retail Centre v1 rating tool as necessary. The changes noted in this change log do not reflect Technical Clarifications or Credit Interpretation Request rulings. Project teams are advised to check the GBCSA website for the latest TC and CIR rulings. The changes noted in this change log also do not represent changes to points awarded for credits, or changes to credit critera. The changes noted below are those of minor nature related to the operation of the rating tool and associated calculators.  "]
[]
[null,"Reissue Date","Changes"]
[null,"2010-05-04","Modified Ene- Conditional Requirement format of 'Energy' and 'Energy Calculator' sheets; Corrected errors in Lighting Energy Calculator; Inserted additional area schedules into 'Building Input' page for use in 'Energy Calculator' and 'Lighting Energy Calculator'; Introduced option buttons in Ene-CR and Eco-CR in substitution of drop-down menus; Corrected calculation error in 'IEQ' sheet."]
[null,"2010-06-02","Corrected errors in Potable Water Calculator and improved flexibility (now in line with Office v1 tool); Corrected errors in the Lighting Energy Calculator (reference areas)."]
[null,"2010-06-04","Corrected error in Lighting Energy Calculator not pulling correct areas from Building Input Page.  Changed allocation of external parking lighting from being included with internal parking lighting to being included with external area lighting."]
[null,"2010-07-01","Corrected error in Energy Calculator process."]
[null,"2010-07-01","Minor change to hot water energy use calculation in 'Energy Calculator' to match Energy Calculator and Modelling Protocol Guide."]
[null,"2010-07-26","Corrected error in 'Energy Calculator' caused by missing calculation cells."]
[null,"2011-01-17","Split Man-6 credit to allow for a divide in achievable points."]
[null,"2012-09-01","R1 & R2 Pre-Submission checklists added. Applicant Declaration added."]
[null,"2013-03-13","Added in R1 and R2 Pre-Submission Checklist that all documents (each page) is labelled to indicate which Documentation Requirement it is submitted towards. \nAdded several dates under Building Input.\nAdded in R2 Pre-Submission Checklist that project team must submit 2 x images/renderings of project in the general section\nAdded extra space for additional descriptions of sanitary fittings in Potable Water Calculator. "]
[null,"2016-03-22","WAT-1 Potable Water Calculator & EMI-5 Sewage Calculator, changed how the calculator accounts for other Greywater Collection sources and other Blackwater Collection sources."]
[null,"2017-06-13","Update of the R1 and R2 Pre-Submission Checklists"]
[null,"2018-01-16","Updated DataExtract sheets for ENE/WAT/TRA/ECO/SEW calculators"]

{"sheet":"R1 Pre-Submission Checklist","index":5,"n_rows":144,"n_cols":4,"rows_kept":144,"cut":false,"hidden":false,"merged":[[61,1,61,4],[7,1,7,4],[9,1,9,3],[50,1,50,4],[52,1,52,4],[54,1,54,4]]}
[]
[]
[null,"Green Star SA - New Buildings"]
[]
[]
[]
[null,"Round 1 Pre-Submission Checklist "]
[null,"Please complete the white cells only below, and submit the completed submission only if all aspects have been addressed."]
[]
[null,"Pre-submission checklist is included to provide an overview of the project and ensure all relevant documentations have been submitted.  "]
[null," ","General Submission Requirements"]
[null,null,"The followingmust be uploaded to the 'General' section to ensure the Assessor and/or/moderator understands your project"]
[null,"i","The building's general description provided is in line with GEN00-T-OB1-1384 -Base Building Scope definition","Please Confirm"]
[null,"ii","Site Drawing (Architectural drawings, elevations) showing extent of the building and project site","Please Confirm"]
[null,"iii","Area schedule showing full GFA and UA of building seeking certification","Please Confirm"]
[null,"iv","Completed Scoresheet","Please Confirm"]
[null,"v","AP Declaration ","Please Confirm"]
[null,"vi","Any relevant GBCSA correspondence, clarifications or approved alternatives (TC's and CIR's)","Please Confirm"]
[null,null,"Administration"]
[null,1,"Signed Certification Agreement has been received by the GBCSA","Please Confirm"]
[null,2,"The correct and full assessment fee has been received by the GBCSA","Please Confirm"]
[null,3,"No Credit Interpretation Requests or Technical Clarifications are outstanding","Please Confirm"]
[null,4,"The latest version of the GSSA rating tool and calculators have been used","Please Confirm"]
[null,5,"Is this submission for a Multiple Building","Please Confirm"]
[null,null,"Eligibility"]
[null,6,"Eligibility Criteria 1: Spatial differentiation","Please Confirm"]
[null,7,"Eligibility Criteria 2: Space use","Please Confirm"]
[null,8,"Eligibility Criteria 3: Conditional requirements (project meets Ene-0 and Eco-0 conditional requirements)","Please Confirm"]
[null,9,"Eligibility Criteria 4: Timing of Certification (project must be certified within 24 months of practical completion)","Please Confirm"]
[null," ","Submission content and presentation"]
[null,10,"All files are in PDF format only and unlocked, in one layer. Calculators are in excel format","Please Confirm"]
[null,11,"All PDF documents are to be bookmarked.","Please Confirm"]
[null,12,"All documents are orientated in the same direction.","Please Confirm"]
[null,13,"A PDF or calculator as required by the TM & the CE should be uploaded onto the CE for each category and credit being targeted.","Please Confirm"]
[null,14,"Each page of all documents must be marked by use of a label indicating what Documentation Requirement it is supporting ","Please Confirm"]
[null,15,"Relevant sections of the documentation and drawings have been highlighted to draw the assessors attention to relevant information","Please Confirm"]
[null,16,"A completed Green Star SA Excel spreadsheet (for the relevant tool) is included","Please Confirm"]
[null,17,"Projects are to provide credit cover sheets for each credit. Cover sheets are to include the following information:","Please Confirm"]
[null,null,"i)  Project identification -Name, number, rating tool\nii)  Assessment details-Assessment type i.e. multiple building, submission round, credit name, points avaiable, points claimed\niii) Report checklist of all relevant documentations per credit as required by the Technical Manual.\niv) CIRs and TCs submitted and/or used\nv) Credit criteria summary\nvi) Compliance with credit criteria\nvii)General notes/discussion that could be useful"]
[null,18,"All reports, letters and drawings referring to the project are on a letterhead and signed where stipulated or where they confirm a commitment","Please Confirm"]
[null,19,"Drawings or Pictures are not in draft form and where applicable carry the \"Tender\" or  \"As Built\" stamp/status","Please Confirm"]
[null,20,"Specifications are not in draft format","Please Confirm"]
[null,21,"All relevant information is included and linked as evidence to the credit it supports. (Appendices for each credit can be included as additional documunts within the credit , but must be clearly referenced within the documentation and have relevant sections highlighted.) ","Please Confirm"]
[null,22,"All drawings are still legible after scaling (especially small stamps, monitors/sensors etc.)","Please Confirm"]
[null,23,"All inputs are consistent throughout the submission.","Please Confirm"]
[null,24,"All credits claiming “na” have the required supporting documentation","Please Confirm"]
[null,25,"The AP declaration has been signed and submitted with the submission","Please Confirm"]
[]
[]
[]
[null,"Name: ___________________________________      Company: ___________________________________    "]
[]
[null,"Signature of Applicant: ___________________________________                        "]
[]
[null,"Note: If any of the above have not been complied with, the GBCSA reserves the right to return submission documentation to the project for re-submission and compliance with the above."]
[]
[]
[]
[]
[]
[]
[]
[]
[]
[]
[]
[]
[]
[]
[]
[]
[]
[]
[]
[]
[]
[]
[]
[]
[]
[]
[]
[]
[]
[]
[]
[]
[]
[]
[]
[]
[]
[]
[]
[]
[]
[]
[]
[]
[]
[]
[]
[]
[]
[]
[]
[]
[]
[]
[]
[]
[]
[]
[]
[]
[]
[]
[]
[]
[]
[]
[]
[]
[]
[]
[]
[]
[]
[]
[]
[]
[]
[]
[]
[]
[]
[]
[]
[]
[]
[]
[null,"Yes"]
[null,"No"]
[null,"Not Applicable"]

{"sheet":"R2 Pre-Submission Checklist","index":6,"n_rows":145,"n_cols":4,"rows_kept":145,"cut":false,"hidden":false,"merged":[[60,1,60,4],[7,1,7,4],[9,1,9,3],[50,1,50,4],[52,1,52,4],[54,1,54,4]]}
[]
[]
[null,"Green Star SA - New Buildings"]
[]
[]
[]
[null,"Round 2 Pre-Submission Checklist "]
[null,"Please complete the white cells only below, and submit the completed submission only if all aspects have been addressed."]
[]
[null,"Pre-submission checklist is included to provide an overview of the project and ensure all relevant documentations have been submitted.  "]
[null," ","General Submission Requirements"]
[null,null,"The followingmust be uploaded to the 'General' section to ensure the Assessor and/or/moderator understands your project"]
[null,"i","The building's general description provided is in line with GEN00-T-OB1-1384 -Base Building Scope definition","Please Confirm"]
[null,"ii","Site Drawing (Architectural drawings, elevations) showing extent of the building and project site","Please Confirm"]
[null,"iii","Area schedule showing full GFA and UA of building seeking certification","Please Confirm"]
[null,"iv","Completed Scoresheet","Please Confirm"]
[null,"v","AP Declaration ","Please Confirm"]
[null,"vi","Any relevant GBCSA correspondence, clarifications or approved alternatives (TC's and CIR's)","Please Confirm"]
[null,null,"Administration"]
[null,1,"Number of TCs submitted by the project team."]
[null,2,"Number of CIRs submitted by the project team."]
[null,3,"There are no Credit Interpretation Requests or Technical Clarifications are outstanding","Please Confirm"]
[null,4,"The project team has paid  fees related to TCEs if any","Please Confirm"]
[null,null,"Eligibility"]
[null,5,"Eligibility has been established and all conditional requirements have been met OR any eligibility issues raised in Round 1 have been addressed","Please Confirm"]
[null," ","Submission content and presentation"]
[null,6,"All files are in PDF format only and unlocked, in one layer. Calculators are in excel format","Please Confirm"]
[null,7,"All PDF documents are to be bookmarked.","Please Confirm"]
[null,8,"All documents are orientated in the same direction.","Please Confirm"]
[null,9,"Relevant sections  of the documentation and drawings have been highlighted to draw the assessors attention to relevant information. ","Please Confirm"]
[null,10,"All changes in the documentation as a result of Assessors' R1 comments have been highlighted","Please Confirm"]
[null,11,"A completed Green Star SA Excel spreadsheet (for the relevant tool) is included","Please Confirm"]
[null,12,"Projects are to provide credit cover sheets for each credit. Cover sheets are to include the following information:","Please Confirm"]
[null,null,"i)  Project identification -Name, number, rating tool\nii)  Assessment details-Assessment type i.e. multiple building, submission round, credit name, points avaiable, points claimed\niii) Report checklist of all relevant documentations per credit as required by the Technical Manual.\niv) CIRs and TCs submitted and/or used\nv) Credit criteria summary\nvi) Compliance with credit criteria\nvii)General notes/discussion that could be useful"]
[null,13,"All reports, letters and drawings referring to the project are on a letterhead and signed where stipulated or where they confirm a commitment","Please Confirm"]
[null,14,"Drawings or Pictures are not in draft form and where applicable carry the \"Tender\" or \"As Built\" stamp/status","Please Confirm"]
[null,15,"All relevant information is included and linked as evidence to the credit it supports. (Appendices for each credit can be included as additional documunts within the credit , but must be clearly referenced within the documentation and have relevant sections highlighted.) ","Please Confirm"]
[null,16,"All drawings are still legible after scaling (especially small stamps, monitors/sensors etc.)","Please Confirm"]
[null,17,"All inputs are consistent throughout the submission.","Please Confirm"]
[null,18,"Submission for each credit includes all documentation stipulated in the technical manual, and the TC/CIR portal on the GBCSA website","Please Confirm"]
[null,19,"All credits claiming “na” have the required supporting documentation","Please Confirm"]
[null,20,"The AP declaration has been signed and submitted with the submission","Please Confirm"]
[null,21,"The Project team has uploaded case study information for final submission round with the following:","Please Confirm"]
[null,null,"i)  Project information confirmation form","Please Confirm"]
[null,null,"ii) Case study document form","Please Confirm"]
[null,null,"iii) 2x High Res Images (min 300 DPI) of the building","Please Confirm"]
[]
[]
[]
[]
[null,"Name: ___________________________________      Company: ___________________________________    "]
[]
[null,"Signature of Applicant: ___________________________________                        "]
[]
[null,"Note: If any of the above have not been complied with, the GBCSA reserves the right to return submission documentation to the project for re-submission and compliance with the above."]
[]
[]
[]
[]
[]
[]
[]
[]
[]
[]
[]
[]
[]
[]
[]
[]
[]
[]
[]
[]
[]
[]
[]
[]
[]
[]
[]
[]
[]
[]
[]
[]
[]
[]
[]
[]
[]
[]
[]
[]
[]
[]
[]
[]
[]
[]
[]
[]
[]
[]
[]
[]
[]
[]
[]
[]
[]
[]
[]
[]
[]
[]
[]
[]
[]
[]
[]
[]
[]
[]
[]
[]
[]
[]
[]
[]
[]
[]
[]
[]
[]
[]
[]
[]
[]
[]
[]
[null,"Yes"]
[null,"No"]
[null,"Not Applicable"]

{"sheet":"Applicant Declaration","index":7,"n_rows":11,"n_cols":2,"rows_kept":11,"cut":false,"hidden":false,"merged":[[10,1,22,1]]}
[]
[]
[null,"Green Star SA - Retail Centre v1"]
[]
[]
[]
[null,"Green Star SA Project Submission - Applicant Declaration"]
[null,"*This page must be printed and signed by the project applicant, and included in the general section of the project submission for Round 1 and Round 2."]
[]
[]
[null,"The Green Building Council of South Africa (GBCSA) aims to ensure that every Green Star SA submission is of a good quality and reflects the appropriate correct and true contractual documents on the project (whether they are Design or As Built project contractual documents). In this regard, the GBCSA requires that all Green Star SA project applicants sign this acknowledgement and declaration letter. \n\nAcknowledgement and declaration by the Green Star SA project applicant:\n\nI/We,___________________________________________________, the person/s responsible for compiling the Green Star SA submission on behalf of ________________________________________________ (the Applicant), confirm that I/we have taken due care, and acknowledge and declare that (to the best of my/our knowledge):\n\n1. I/We have read and understood the relevant technical manual, the conditions of certification and any relevant Technical Clarifications, Errata and Credit Interpretation Requests. \n2. All documentation submitted by me/us on behalf of the Applicant towards this Green Star SA submission has been verified by the appropriate professional/s as being true, correct and accurate.\n3. All documentation submitted by me/us on behalf of the Applicant complies with all applicable legislation.\n4. All documents and reports submitted to me/us by the Applicant's project team are true and correct and accurately reflect the project’s contractual documentation (whether for a Design or As Built submission).\n5. All documents and reports which I/we have prepared for the submission are true and correct and accurately reflect the project’s contractual documentation (whether for a Design or As Built submission).\n6. I/We have disclosed all applicable information relevant to the Application and undertake to disclose any further information that may influence the Application.\n\nWhere the GBCSA identifies any serious or systematic non-conformances on project documentation in a submission from the Applicant, the GBCSA has the right to query such non-conformance/s with the Applicant, at which point the Applicant is required to investigate this further with its project team, and provide a written response to the GBCSA by no later than 7 (seven) business days from the date on which the query was made to the Applicant by the GBCSA. If the response from the Applicant confirms that the information provided was incorrect, the Applicant's project team can:\n\na) For a Round 1 submission re-submit the correct information in Round 2 (as per assessor comments) or clarify that the information is not available and concede the point in Round 2\nb) For a Round 2 submission, confirm to the GBCSA the incorrect nature of the information submitted, in which event the incorrect information will be excluded from the submission documents counted in the Round 2 results.\n\nIf the response from the Applicant confirms that the information provided was correct, the Applicant's project team can, on behalf of the Applicant:\n\nc) In a Round 1 submission re-submit the correct information in Round 2.\nd) In a Round 2 submission, notify the GBCSA that such information was in fact correct, in which event the GBCSA will run this by the assessors for a final review before the results are published. \n\nWhere these processes are not followed and the relevant submission documents remain under question, the GBCSA will notify the Applicant, and the credit/s to which this information relates will be unobtainable. Where this incomplete process occurs more than once, with the Applicant, the GBCSA reserves the right not to accept any further submissions from this Applicant in future. At the first instance where this incomplete process occurs, the Applicant will be placed on twelve (12) months’ probation, during which time any similar infringement would allow the GBCSA to exercise its right to not accept any further submissions from the Applicant. Further to this, where the Applicant is a Green Star SA Accredited Professional (GSSA AP), the GBCSA reserves the right to remove the Applicant’s GSSA AP qualification and remove them from the GSSA AP registry on the GBCSA’s website. \n\nSignature: ___________________________________    Date: ___________________________________     \n\nName: ___________________________________      Company: ___________________________________    \n\nSignature of Applicant’s line manager warranting that s/he is duly authorised: ___________________________________                        \n\nName of Applicant’s line manager warranting that s/he is duly authorised: ___________________________________       \n"]

{"sheet":"Building Input","index":8,"n_rows":56,"n_cols":5,"rows_kept":56,"cut":false,"hidden":false,"merged":[[5,1,7,1],[55,1,55,2]]}
[null,"Green Star SA - Retail Centre v1","Building Input Worksheet"]
[null,"New or Refurbished Building:"]
[null,"Type of Rating"]
[]
[null,"Name of Building:"]
[null,"Address of Building:",null,null,"New Building"]
[null,null,null,null,"Refurbishment"]
[null,null,null,null,1]
[null,"Postcode:"]
[null,"Province:",null,null,"Design Rating"]
[null,null,null,null,"As Built Rating"]
[null,"Applicant:",null,null,1]
[null,"Contact Person:"]
[]
[null,"Green Star SA Accredited Professional(s):"]
[null,"Project Manager:"]
[null,"Architect:"]
[null,"Structural/Civil Engineer:"]
[null,"Mechanical Engineer:"]
[null,"Electrical Engineer:"]
[null,"Wet Services Engineer:"]
[null,"Fire Systems Engineer:"]
[null,"Quantity Surveyor:"]
[null,"Acoustic Consultant:"]
[null,"Landscaping Consultant:"]
[null,"Other consultant:"]
[null,"Other consultant:"]
[null,"Building Surveyor:"]
[null,"Main Contractor:"]
[null,"Local Planning Authority:"]
[]
[null,"Total Building Gross Floor Area (GFA) in m²: (i)"]
[null,"Total Retail GFA (area dedicated to Commercial Retail) in m²: (ii)"]
[null,"Total Tenant Usable Area (TUA) in m²:"]
[null,"Nominated Area (HVAC) related to certain IEQ credits in m² (including common areas):"]
[null,"Nominated Area (Lighting) related to certain Ene-1 in m² (excludes common areas):"]
[null,"Non Tenant Area Lighting (mall & public common spaces)"]
[null,"Non Tenant Area Lighting (non-public spaces - 'back of house')"]
[null,"Internal Covered Vehicle Parking Area (B1, ground and above ground) in m²:"]
[null,"Sub-basement Vehicle Parking Area (B2 and below) in m²:"]
[null,"External Area (including external Car Parking) in m²:"]
[null,"% Commercial Retail Space (equal to (ii)/(i)):",{"$f":"IF(C33>0,C33/C32,)","v":0}]
[null,"Eligibility for Assessment",{"$f":"IF(C42>=80%,\"The project meets area compliance for Green Star SA assessment.\",\"Area compliance not met. To be eligible for Green Star SA assessment, Retail GFA must account for at least 80% of the total GFA.\")","v":"Area compliance not met. To be eligible for Green Star SA assessment, Retail GFA must account for at least 80% of the total GFA."}]
[]
[null,"Building Description:\n(Orientation, Form, Structure, Façade, etc.)"]
[]
[null,"Building Services:\n(Heating, Cooling, Ventilation, Lighting, Lifts, Domestic Hot Water)"]
[]
[null,"Todays Date:"]
[null,"Current Project Phase:"]
[null,"Fully Registered Date:"]
[null,"Site Handover Date:"]
[null,"Construction Commencement Date:"]
[null,"Practical Completion Date:"]
[]
[null,"NOTE: Use of Green Star SA - Retail Centre v1 may predict a rating that differs from that achieved via formal Green Star SA certification."]

{"sheet":"Management","index":9,"n_rows":28,"n_cols":9,"rows_kept":28,"cut":false,"hidden":false,"merged":[[5,7,6,7],[5,0,6,0],[5,1,6,1],[5,2,6,2],[10,0,11,0],[10,1,11,1],[10,2,11,2],[10,7,11,7]]}
[{"$f":"'Building Input'!B1","v":"Green Star SA - Retail Centre v1"},null,null,null,null,"Category Weighting:",{"$f":"'Credit Summary'!J18","v":0.1},"Category Weighted Score"]
["Management",null,null,"Category Summary:  ",{"$f":"E18","v":17},{"$f":"F18","v":0},{"$f":"G18","v":0},{"$f":"'Credit Summary'!K18","v":0}]
["Credit Summary for:",null,{"$f":"IF('Building Input'!$C$5=0,\"\",'Building Input'!$C$5)","v":""},null,null,{"$f":"IF(OR((I3=Calculation1!$B$84),(I3=Calculation1!$B$85),((F2+G2)>E2)),Calculation1!$B$86,\"\")","v":""},null,null,{"$f":"T(I5:I17)","v":""}]
["Ref No.","Title","Aim of Credit","Credit Criteria Summary","No. of Points Available","No. of Points Achieved","Points to be Confirmed","Comments"]
["Man-1","Green Star SA Accredited Professional","To encourage and recognise the engagement of professionals who can assist the project team with the integration of Green Star SA aims and processes throughout design and construction phases.","Two points are awarded where:\nA principal participant in the design team is a Green Star SA Accredited Professional and has been engaged by the building owner to provide green building advice from the schematic design phase through to construction completion.\n\nIf the schematic design phase of the project was begun prior to 1 June, 2009, this credit may be marked ‘Not Applicable’ and be excluded from the points available, used to calculate the Management Category Score. Type 'na' in the No. of Points Achieved column.",{"$f":"IF(F5=\"na\",0,2)","v":2},null,null,null,{"$f":"IF(ISBLANK(F5),IF(G5>E5,Calculation1!$B$84,\"\"),IF(F5=\"na\",\"\",IF(OR(F5=\"na\",ISNUMBER(F5)),IF(F5+G5>E5,Calculation1!$B$84,\"\"),Calculation1!$B$85)))","v":""}]
["Man-2","Commissioning  Clauses","To encourage and recognise commissioning and handover initiatives that ensure that all building services can operate to optimal design potential.","Up to two points are awarded as follows:\nOne point is awarded where it is demonstrated that:\n- Comprehensive pre-commissioning, commissioning, and quality monitoring are contractually required to be performed for all building services (BMS, mechanical, electrical, hydraulic and fire protection); AND\n- The works outlined above are done in exact accordance with CIBSE Commissioning Codes. Alternatively, ASHRAE Commissioning Guideline 1-1996  - The HVAC  Commissioning Process can be used for the mechanical services.",1,null,null,null,{"$f":"IF(OR(ISTEXT(F6)=TRUE,ISTEXT(G6)=TRUE),Calculation1!$B$87,IF(F6+G6>E6,Calculation1!$B$84,\"\"))","v":""}]
[null,null,null,"An additional point is awarded where it is demonstrated that:\n- The point above is achieved; AND\n- The design team and contractor are in a position to transfer project knowledge to the building owner/manager through all of the following:\n      > Documented design intent;\n      > As-built drawings;\n      > Operations and Maintenance Manual;\n      > Commissioning Report; and\n      > Training of building management staff.",1,null,null,null,{"$f":"IF(OR(ISTEXT(F7)=TRUE,ISTEXT(G7)=TRUE),Calculation1!$B$87,IF(F7+G7>E7,Calculation1!$B$84,\"\"))","v":""}]
["Man-3","Building Tuning","To encourage and recognise commissioning initiatives that ensure optimum occupant comfort and energy efficient services performance throughout the year.","Two points are awarded where:\n- After handover, the building owner implements tuning of all building systems; \n- A relevant member of the design team is involved in the tuning process; \n- Monthly monitoring is undertaken and the outcomes are reported to the building owner quarterly to allow corrective action to be taken; \n- Full re-commissioning is undertaken 12 months after practical completion; AND\n- A Building Tuning Report on the outcomes of the tuning process will be provided to the building owner and made available to the design team.",2,null,null,null,{"$f":"IF(OR(ISTEXT(F8)=TRUE,ISTEXT(G8)=TRUE),Calculation1!$B$87,IF(F8+G8>E8,Calculation1!$B$84,\"\"))","v":""}]
["Man-4","Independent Commissioning Agent","To ensure buildings are designed with regard to future maintenance and are correctly commissioned before handover.","One point is awarded where an experienced person not part of the normal design team has been appointed to:\n- Provide independent advice on commissioning & maintenance issues to the building owner and the design team; \n- Produce input at preliminary design stage covering commissioning, maintenance and replacement of building services; \n- Produce a short guide to commissioning/maintenance at detailed design stage, highlighting access issues and replacement of plant; AND\n- Monitor and verify the commissioning of all building systems.",1,null,null,null,{"$f":"IF(OR(ISTEXT(F9)=TRUE,ISTEXT(G9)=TRUE),Calculation1!$B$87,IF(F9+G9>E9,Calculation1!$B$84,\"\"))","v":""}]
["Man-5","Building Guides","To encourage and recognise information management that enables building users to optimise the building’s environmental performance.","Up to two points are awarded as follows:\nOne point is awarded where:\n- A simple and easy-to-use Building Users’ Guide, which includes information relevant for the building users, occupants and tenants’ representatives, is developed and made available to the building owner.\nOne point is awarded where:\n- A Tenancy Fitout Guide is developed which, through practical recommendations, encourages the use of environmetal design principles in tenancy design, fitout and operations.\n",2,null,null,null,{"$f":"IF(OR(ISTEXT(F10)=TRUE,ISTEXT(G10)=TRUE),Calculation1!$B$87,IF(F10+G10>E10,Calculation1!$B$84,\"\"))","v":""}]
["Man-6","Environmental Management","To encourage and recognise the adoption of a formal environmental management system in line with established guidelines during construction.","Up to two points are awarded independently of each other and as follows:\n- One point is awarded where it is demonstrated that:\nThe contractor implements a comprehensive, project-specific Environmental Management Plan (EMP) for the works in accordance with Section 3 of the New South Wales (Australia) Environmental Management System guidelines 2007.\n",1,null,null,null,{"$f":"IF(OR(ISTEXT(F11)=TRUE,ISTEXT(G11)=TRUE),Calculation1!$B$87,IF(F11+G11>E11,Calculation1!$B$84,\"\"))","v":""}]
[null,null,null,"- One point is awarded where it is demonstrated that:\nThe Contractor has valid ISO14001 Environmental Management System (EMS) accreditation prior to and throughout The project.",1,null,null,null,{"$f":"IF(OR(ISTEXT(F12)=TRUE,ISTEXT(G12)=TRUE),Calculation1!$B$87,IF(F12+G12>E12,Calculation1!$B$84,\"\"))","v":""}]
["Man-7","Waste Management","To encourage and recognise management practices that minimise the amount of construction waste going to disposal.","Up to three points are awarded where:\nThe contractor implements a Waste Management Plan (WMP), retains waste records and issues quarterly reports to the building owner; AND\nA percentage (by mass or volume) of all demolition and construction waste is reused or recycled as follows:  \n- One point for 30% of the waste; \n- Two points for 50% of waste; and                                                                                                                                                                                                         - Three points for 70% of waste. ",3,null,null,null,{"$f":"IF(OR(ISTEXT(F13)=TRUE,ISTEXT(G13)=TRUE),Calculation1!$B$87,IF(F13+G13>E13,Calculation1!$B$84,\"\"))","v":""}]
["Man-8","Air tightness testing",null,"This credit is not relevant to the Green Star SA Retail Centre v1 tool","X","X","X"]
["Man-9","Waste and Recycling Management Plan","To encourage and recognise management systems and building infrastructure that facilitate the reduction of the overall operational waste generation and disposal.\n","One point is awarded where:\n– There is a comprehensive Waste and Recycling Management Plan for the reduction in the amount, by weight, of the retail centre’s overall operational waste. \n",1,null,null,null,{"$f":"IF(OR(ISTEXT(F15)=TRUE,ISTEXT(G15)=TRUE),Calculation1!$B$87,IF(F15+G15>E15,Calculation1!$B$84,\"\"))","v":""}]
["Man-10 ","Building Management Systems","To encourage and recognise the incorporation of Building Management Systems to actively control and maximise the effectiveness of building services.\n","One point is awarded where it is demonstrated that: \n\n• An electronic Building Management System (BMS) is integrated with the building to: \n– Monitor and report on energy and water consumption; and \n– Monitor and control building services systems.",1,null,null,null,{"$f":"IF(OR(ISTEXT(F16)=TRUE,ISTEXT(G16)=TRUE),Calculation1!$B$87,IF(F16+G16>E16,Calculation1!$B$84,\"\"))","v":""}]
["Man-11 ","Green Lease","To encourage and recognise initiatives taken by the building owner to encourage improved environmental behaviour by tenants of the retail centre","One point is awarded where the building owner/manager demonstrates that no less than 80% of the tenant usable area (per SAPOA)  is committed to a tenancy lease agreement that requires the tenants to participate in the following environmental initiatives:\n\n• Electrical energy monitoring & reporting (minimum quarterly) and have submitted an energy management plan at the beginning of each year;\n• Water monitoring & reporting (minimum quarterly) and have submitted a water management plan at the beginning of each year;\n• Waste reduction/recycling monitoring & reporting (minimum quarterly) and have submitted  a waste management plan at the beginning of each year;\n• The preparation of a procurement policy at the beginning of each year regarding the use of environmentally friendly consumables (cleaning products, toiletry products, paper and plastic consumable products).\n\nAND\n\n• The building owner is required to report back to the tenants on the buildings’ performance relating to energy, water, waste and procurement policies on an annual basis.\n\n",1,null,null,null,{"$f":"IF(OR(ISTEXT(F17)=TRUE,ISTEXT(G17)=TRUE),Calculation1!$B$87,IF(F17+G17>E17,Calculation1!$B$84,\"\"))","v":""}]
[null,null,null,"Total Points:",{"$f":"SUM(E5:E17)","v":17},{"$f":"SUM(F5:F17)","v":0},{"$f":"SUM(G5:G17)","v":0}]
[]
[]
[]
[{"$f":"Calculation1!$B$93","v":"Project Teams are to refer to the Green Star SA Retail Centre v1 Technical Manual for explicit credit criteria and documentation requirements."}]
[{"$f":"Calculation1!$B$94","v":"The Green Star Technical Clarifications (TC) and Credit Interpretation Request (CIR) rulings provide an essential source of information to all"}]
[{"$f":"Calculation1!$B$95","v":"projects undertaking Green Star assessment. They are available on the GBCSA website http://www.gbcsa.org.za . Technical Clarifications"}]
[{"$f":"Calculation1!$B$96","v":"often represent the GBCSA answers to technical queries and complement Green Star SA Technical Manuals. They do not amend but clarify "}]
[{"$f":"Calculation1!$B$97","v":"Credit Criteria or Compliance Requirements. They are an extension of the Technical Manual; it is the responsibility of the project teams to stay "}]
[{"$f":"Calculation1!$B$98","v":"up-to-date with this section of the GBCSA website. The CIR rulings offer alternative compliance options whenever those have been deemed "}]
[{"$f":"Calculation1!$B$99","v":"equivalent in meeting the Aim of Credit."}]

{"sheet":"IEQ","index":10,"n_rows":38,"n_cols":9,"rows_kept":38,"cut":false,"hidden":false,"merged":[[6,0,7,0],[6,1,7,1],[6,2,7,2],[4,5,5,5],[8,0,9,0],[8,1,9,1],[8,5,9,5],[8,2,9,2],[4,0,5,0],[4,1,5,1],[4,2,5,2],[4,4,5,4],[6,5,7,5],[6,4,7,4],[20,0,21,0],[20,1,21,1],[20,2,21,2],[15,1,16,1],[15,0,16,0],[15,2,16,2],[4,7,5,7],[8,6,9,6],[8,4,9,4],[4,8,5,8],[8,8,9,8],[6,8,7,8],[8,7,9,7],[6,7,7,7],[6,6,7,6],[4,6,5,6]]}
[{"$f":"'Building Input'!B1","v":"Green Star SA - Retail Centre v1"},null,null,null,null,"Category Weighting:",{"$f":"'Credit Summary'!J32","v":0.1},"Category Weighted Score"]
["Indoor Environment Quality",null,null,"Category Summary:  ",{"$f":"E28","v":17},{"$f":"F28","v":0},{"$f":"G28","v":0},{"$f":"'Credit Summary'!K32","v":0}]
["Credit Summary for:",null,{"$f":"IF('Building Input'!$C$5=0,\"\",'Building Input'!$C$5)","v":""},null,null,{"$f":"IF(OR((I3=Calculation1!$B$84),(I3=Calculation1!$B$85),((F2+G2)>E2)),Calculation1!$B$86,\"\")","v":""},null,null,{"$f":"T(I5:I27)","v":""}]
["Ref No.","Title","Aim of Credit","Credit Criteria Summary","No. of Points Available","No. of Points Achieved","Points to be Confirmed","Comments"]
["IEQ-1","Ventilation Rates","To encourage and recognise designs that provide ample amounts of outside air to counteract build-up of indoor pollutants.","Three points are available as follows:\n\nNaturally ventilated spaces\nThree points are awarded where it is demonstrated that 95% of the nominated area is naturally ventilated in accordance with SANS 10400-O (minimum 5% openable area).\n\nMechanically ventilated spaces \nUp to three points are awarded where for 95% of the nominated area, outside air is provided at rates greater than the requirements of SANS 10400-O (5 litres/second/person for retail centres), as follows: \n- One point for 50% improvement; \n- Two points for 100% improvement; or\n- Three points for 150% improvement.\n\nMixed-mode ventilated spaces\nBoth modes of operation must individually satisfy the relevant mechanical and natural ventilation criteria. The points awarded will be limited to the maximum points awarded under the mechanical ventilation criteria.",{"$f":"IF(F5=\"na\",0,3)","v":3},null,null,null,{"$f":"IF(ISBLANK(F5),IF(G5>E5,Calculation1!$B$84,\"\"),IF(F5=\"na\",\"\",IF(OR(F5=\"na\",ISNUMBER(F5)),IF(F5+G5>E5,Calculation1!$B$84,\"\"),Calculation1!$B$85)))","v":""}]
[null,null,null,"For the purposes of this credit ‘nominated area’ is GLA and common areas (excluding open air mall areas, car parks and tenancies that provide their own air). If ‘open air mall’ areas make up more than 95% of the project’s total common areas, this credit is ‘Not Applicable’ and is excluded from the points available used to calculate the Indoor Environment Quality Category Score. Type 'na' in the No. of Points Achieved column."]
["IEQ - 2","Air Change Effectiveness","To encourage and recognise systems that effectively deliver optimum air quality to any occupant throughout the occupied area.","Two points are awarded where it is demonstrated that the Air Change Effectiveness (ACE) for at least 95% of the nominated area meets the following criteria:\n\nNaturally Ventilated Spaces\n• A distribution and laminar flow pattern for at least 95% of the nominated area of each space in the direction of air flow for not less than 95% of standard hours of occupancy is demonstrated.\n \nMechanically Air-Conditioned and Mechanically Assisted Naturally Ventilated Spaces \n• The ventilation systems are designed to achieve an Air Change Effectiveness (ACE) of >0.95 for at least 95% of the nominated area when measured in accordance with ASHRAE 129 1997: ‘Measuring Air Change Effectiveness’; and\n• ACE must be measured 1.6m above finished floor level.\n\nMixed-Mode Ventilated Spaces\nBoth the above requirements for Naturally Ventilated and Mechanically Air-conditioned Spaces are achieved",{"$f":"IF(F7=\"na\",0,2)","v":2},null,null,null,{"$f":"IF(ISBLANK(F7),IF(G7>E7,Calculation1!$B$84,\"\"),IF(F7=\"na\",\"\",IF(OR(F7=\"na\",ISNUMBER(F7)),IF(F7+G7>E7,Calculation1!$B$84,\"\"),Calculation1!$B$85)))","v":""}]
[null,null,null,"For the purposes of this credit ‘nominated area’ is GLA and common areas (excluding open air mall areas, car parks and tenancies that provide their own air). If ‘open air mall’ areas make up more than 95% of the project’s total common areas, this credit is ‘Not Applicable’ and is excluded from the points available used to calculate the Indoor Environment Quality Category Score. Type 'na' in the No. of Points Achieved column."]
["IEQ-3","Carbon Dioxide Monitoring and Control","To encourage and recognise the provision of response monitoring of Carbon Dioxide levels to ensure delivery of optimum quantities of outside air.","One point is awarded where it is demonstrated that:\nNaturally Ventilated Spaces\n• 95% of the nominated area is naturally ventilated in accordance with SANS 10400-O; AND\n• Carbon Dioxide monitoring is provided for every 1000m2 to provide an alarm on the building facility staff’s control system if CO2 levels rise above 1,000ppm; AND\n• In back of house areas ventilation rates are directly controlled by occupants.\n\nMechanically Air-conditioned and Mechanically Assisted Naturally Ventilated Spaces \n• A carbon dioxide (CO2) monitoring and control system with a minimum of one CO2 sensor per zone, to a maximum of 1000m2, in 95% of the nominated area, is provided to facilitate continuous monitoring and adjustment of outside air ventilation rates to each level, to ensure independent control of ventilation rates to achieve outside air requirements;\nOR \n• HVAC systems provide 100% outside air with no recirculated component.\n\nMixed-Mode Ventilated Spaces\nBoth modes of operation must satisfy the relevant mechanical and natural ventilation criteria.",{"$f":"IF(F9=\"na\",0,1)","v":1},null,null,null,{"$f":"IF(ISBLANK(F9),IF(G9>E9,Calculation1!$B$84,\"\"),IF(F9=\"na\",\"\",IF(OR(F9=\"na\",ISNUMBER(F9)),IF(F9+G9>E9,Calculation1!$B$84,\"\"),Calculation1!$B$85)))","v":""}]
[null,null,null,"For the purposes of this credit ‘nominated area’ is GLA and common areas (excluding open air mall areas, car parks and tenancies that provide their own air). If ‘open air mall’ areas make up more than 95% of the project’s total common areas, this credit is ‘Not Applicable’ and is excluded from the points available used to calculate the Indoor Environment Quality Category Score. Type 'na' in the No. of Points Achieved column."]
["IEQ-4","Daylight","To encourage and recognise designs that provide good levels of daylight for building users.","Up to two points are awarded:\nOne point is awarded where it is demonstrated that:\n• 30% of the nominated area has a Daylight Factor of at least 2.5% or Daylight Illuminance of at least 300 lux as measured at the floor level under a uniform design sky. \nTwo points are awarded where it is demonstrated that:\n• 60% of the nominated area has a Daylight Factor of at least 2.5% or Daylight Illuminance of at least 300 lux as measured at the floor level under a uniform design sky. \n\nFor the purposes of this credit ‘nominated area’ is defined as internal public common area where there are tenants on two sides of common space, uncovered or covered, and the area is considered a mall area (excluding car parks).",2,null,null,null,{"$f":"IF(OR(ISTEXT(F11)=TRUE,ISTEXT(G11)=TRUE),Calculation1!$B$87,IF(F11+G11>E11,Calculation1!$B$84,\"\"))","v":""}]
["IEQ-5","Daylight Glare Control",null,"This credit is not relevant to the Green Star SA Retail Centre v1 tool","X","X","X"]
["IEQ-6","High Frequency Ballasts",null,"This credit is not relevant to the Green Star SA Retail Centre v1 tool","X","X","X"]
["IEQ-7","Electric Lighting Levels",null,"This credit is not relevant to the Green Star SA Retail Centre v1 tool","X","X","X"]
["IEQ-8","External Views",null,"This credit is not relevant to the Green Star SA Retail Centre v1 tool","X","X","X"]
["IEQ-9","Thermal Comfort","To encourage and recognise buildings that achieve a high level of thermal comfort.","A total of two points are available as follows:\n\nOne point is awarded where:\nA high level of thermal comfort is achieved for 95% of the tenant areas within the nominated area through any combination of the following:\n\nNaturally Ventilated and Mechanically Assisted Naturally Ventilated Spaces:\nWhere the Acceptability Limits of ASHRAE Standard 55 2004 are achieved during Standard Operating Hours of Occupancy for 98% of the year: \n• One point is awarded for internal temperatures within 80% of Acceptability Limit 1.\n\nMechanically Air-Conditioned Spaces:\nWhere Predicted Mean Vote (PMV) levels, calculated in accordance with ISO7730, are achieved during Standard Operating Hours of Occupancy for 98% of the year using standard clothing and metabolic rate values: \n• One point is awarded for PMV levels between -1.5 and +1.5, inclusive.\n\nMixed-Mode Ventilated Spaces: \nFor mixed-mode buildings, the above mechanical and natural ventilation thermal comfort criteria must be met.\n\n",{"$f":"IF(F16=\"na\",0,1)","v":1},null,null,null,{"$f":"IF(ISBLANK(F16),IF(G16>E16,Calculation1!$B$84,\"\"),IF(F16=\"na\",\"\",IF(OR(F16=\"na\",ISNUMBER(F16)),IF(F16+G16>E16,Calculation1!$B$84,\"\"),Calculation1!$B$85)))","v":""}]
[null,null,null,"A second point is awarded where the first point has been achieved; AND\n• The credit criteria above for the first point are met for all mall spaces within the nominated area.\n\nFor the purposes of this credit ‘nominated area’ is GLA and common areas (excluding open air mall areas, car parks and tenancies that provide their own air). If no conditioning is provided to any tenant spaces within the nominated area, the first point is 'Not Applicable' and is excluded from the points available used to calculate the Indoor Environment Quality Category Score. Type 'na' in the No. of Points Achieved column. If ‘open air mall’ areas make up more than 95% of the project’s total common areas, the second point is ‘Not Applicable’ and is excluded from the points available used to calculate the Indoor Environment Quality Category Score. Type 'na' in the No. of Points Achieved column. If conditioning is provided, and the first point is not met, the second point in mall spaces cannot be targeted (i.e. the first point is a prerequisite to meeting the second point of this credit).",{"$f":"IF(OR(F17=\"na\",F16=\"na\"),0,1)","v":1},null,null,null,{"$f":"IF(ISBLANK(F17),IF(G17>E17,Calculation1!$B$84,\"\"),IF(F17=\"na\",\"\",IF(OR(F17=\"na\",ISNUMBER(F17)),IF(F17+G17>E17,Calculation1!$B$84,\"\"),Calculation1!$B$85)))","v":""}]
["IEQ-10","Individual Comfort Control",null,"This credit is not relevant to the Green Star SA Retail Centre v1 tool","X","X","X"]
["IEQ-11","Hazardous Materials","To encourage and recognise actions taken to reduce health risks to occupants from the presence of hazardous materials.","One point is awarded where:\n\nA comprehensive hazardous material survey has been carried out on the project site, as defined by the South African Occupational Health and Safety Act (OH&S)  and/or other relevant legislation; AND\nWhenever asbestos, lead or polychlorinated biphenyls (PCBs) were found, they have been removed in accordance with the standards listed under Table IEQ-11.1.\n\nFor new developments or developments in which none of the above hazardous materials were found in the survey, this credit is ‘Not Applicable’ and is excluded from the points available, used to calculate the Indoor Environment Quality category score. Type 'na' in the No. of Points Achieved column.\n",{"$f":"IF(F19=\"na\",0,1)","v":1},null,null,null,{"$f":"IF(ISBLANK(F19),IF(G19>E19,Calculation1!$B$84,\"\"),IF(F19=\"na\",\"\",IF(OR(F19=\"na\",ISNUMBER(F19)),IF(F19+G19>E19,Calculation1!$B$84,\"\"),Calculation1!$B$85)))","v":""}]
["IEQ-12","Internal Noise Levels","To encourage and recognise buildings that are designed to maintain internal noise levels at an appropriate level.","One point is awarded where it is demonstrated that:\n\n• For 95% of the project's nominated area, noise from the building services does not exceed 55dB(A)eq. \n\nFor the purposes of this credit ‘nominated area’ is GLA and common areas (excluding open air mall areas, car parks and tenancies that provide their own air).\nIf ‘open air mall’ areas make up more than 95% of the project’s total common areas, this credit is ‘Not Applicable’ and is excluded from the points available used to calculate the Indoor Environment Quality Category Score. Type 'na' in the No. of Points Achieved column.",{"$f":"IF(F20=\"na\",0,1)","v":1},null,null,null,{"$f":"IF(ISBLANK(F20),IF(G20>E20,Calculation1!$B$84,\"\"),IF(F20=\"na\",\"\",IF(OR(F20=\"na\",ISNUMBER(F20)),IF(F20+G20>E20,Calculation1!$B$84,\"\"),Calculation1!$B$85)))","v":""}]
["IEQ-13","Volatile Organic Compounds ","To encourage and recognise specification of interior finishes that minimise the contribution and levels of Volatile Organic Compounds in buildings.","Up to two points are awarded where the various finishes used in the project meet the benchmarks as follows: \n\nPaints\nOne point where:\n- at least 95% of all painted surfaces meet the TVOC Content Limits outlined in Table IEQ-13.1 and must not contain any added lead in the form of driers or pigments; OR \n- where no paint is used in the project.",1,null,null,null,{"$f":"IF(OR(ISTEXT(F21)=TRUE,ISTEXT(G21)=TRUE),Calculation1!$B$87,IF(F21+G21>E21,Calculation1!$B$84,\"\"))","v":""}]
[null,null,null,"Adhesives and Sealants\nOne point where:\n- at least 95% of all adhesives and sealants meet the TVOC Content Limits outlined in Table IEQ-13.2 OR \n- where no adhesives or sealants are used.",1,null,null,null,{"$f":"IF(OR(ISTEXT(F22)=TRUE,ISTEXT(G22)=TRUE),Calculation1!$B$87,IF(F22+G22>E22,Calculation1!$B$84,\"\"))","v":""}]
["IEQ-14","Formaldehyde Minimisation","To encourage and recognise the specification of products with low formaldehyde emission levels.","One point is awarded where all composite wood products (including exposed and concealed applications) and any other formaldehyde containing products either:\nHave low formaldehyde emissions;\nOR \nContain no formaldehyde. \n\nIf no composite wood products are used within the project, this credit is ‘Not Applicable’ and is excluded from the points available, used to calculate the Indoor Environment Quality category score. Type 'na' in the No. of Points Achieved column.",{"$f":"IF(F23=\"na\",0,1)","v":1},null,null,null,{"$f":"IF(ISBLANK(F23),IF(G23>E23,Calculation1!$B$84,\"\"),IF(F23=\"na\",\"\",IF(OR(F23=\"na\",ISNUMBER(F23)),IF(F23+G23>E23,Calculation1!$B$84,\"\"),Calculation1!$B$85)))","v":""}]
["IEQ-15","Mould Prevention","To encourage and recognise the design of services that eliminate the risk of mould growth and its associated detrimental impact on occupant health.","One point is awarded where it is demonstrated that for 95% of the nominated area:\nThe mechanically air-conditioned ventilation system maintains humidity levels at no more than 60% relative humidity in the space and no more than 80% relative humidity in the supply ductwork; OR\n\nThe building is fully naturally ventilated.\n\nFor the purposes of this credit ‘nominated area’ is GLA and common areas (excluding open air mall areas, car parks and tenancies that provide their own air). If ‘open air mall’ areas make up more than 95% of the project’s total common areas, this credit is ‘Not Applicable’ and is excluded from the points available used to calculate the Indoor Environment Quality Category Score. Type 'na' in the No. of Points Achieved column.",{"$f":"IF(F24=\"na\",0,1)","v":1},null,null,null,{"$f":"IF(ISBLANK(F24),IF(G24>E24,Calculation1!$B$84,\"\"),IF(F24=\"na\",\"\",IF(OR(F24=\"na\",ISNUMBER(F24)),IF(F24+G24>E24,Calculation1!$B$84,\"\"),Calculation1!$B$85)))","v":""}]
["IEQ-16","Tenant Exhaust Riser",null,"This credit is not relevant to the Green Star SA Retail Centre v1 tool","X","X","X"]
["IEQ-17 ","Environmental Tobacco Smoke Avoidance",null,"This credit is not relevant to the Green Star SA Retail Centre v1 tool","X","X","X"]
["IEQ-18","Places of Respite and Connection to Nature","To encourage and recognise developments tha create appropriately designed areas where retail centre staff and visitors can relax in a place of respite which has a connection to nature.","One point is awarded where it is demonstrated that at least one designated place of respite with direct physical and visual connection to the natural environment is provided for staff and visitors in accordance with all of the following criteria: \n\n• The combined area of all places of respite is equivalent to no less than 0.1% of the Retail GFA, or a minimum of 50m2;\n• Each place of respite is designed to be a universally accessible, well lit, well ventilated, and is located to avoid noise, odour and air pollution;\n• The places of respite are located in a walkable distance to any part of the centre, and should either be central or spread across the centre for ease of access. \n• A minimum of 20% of the area of the place of respite is soft landscaping – horizontal or vertical or a combination;\n• Seating areas are provided to a minimum of two seating space per 7.5m2;\nAmbient sound levels of the place of respite will be maintained at a maximum of 55dbA.\nAND\n• Where the place of respite is outdoors it must be shown that, in addition, the space:\n- Has a low noise exposure (from traffic and building services).\n- Has shading to at least 35% of its area; and\n- Is screened from significant prevailing winds \nAND\n• Where the place of respite is indoors it must be shown that, in addition, the space:\n- Has a Daylight Factor (DF) of at least 2.5% \n- Achieves at least 1 point under IEQ-1 for fresh air ventilation rates (if it is not an open air \nspace or naturally ventilated).\n",1,null,null,null,{"$f":"IF(OR(ISTEXT(F27)=TRUE,ISTEXT(G27)=TRUE),Calculation1!$B$87,IF(F27+G27>E27,Calculation1!$B$84,\"\"))","v":""}]
[null,null,null,"Total Points:",{"$f":"SUM(E5:E27)","v":17},{"$f":"SUM(F5:F27)","v":0},{"$f":"SUM(G5:G27)","v":0}]
[]
[]
[]
[{"$f":"Calculation1!$B$93","v":"Project Teams are to refer to the Green Star SA Retail Centre v1 Technical Manual for explicit credit criteria and documentation requirements."}]
[{"$f":"Calculation1!$B$94","v":"The Green Star Technical Clarifications (TC) and Credit Interpretation Request (CIR) rulings provide an essential source of information to all"}]
[{"$f":"Calculation1!$B$95","v":"projects undertaking Green Star assessment. They are available on the GBCSA website http://www.gbcsa.org.za . Technical Clarifications"}]
[{"$f":"Calculation1!$B$96","v":"often represent the GBCSA answers to technical queries and complement Green Star SA Technical Manuals. They do not amend but clarify "}]
[{"$f":"Calculation1!$B$97","v":"Credit Criteria or Compliance Requirements. They are an extension of the Technical Manual; it is the responsibility of the project teams to stay "}]
[{"$f":"Calculation1!$B$98","v":"up-to-date with this section of the GBCSA website. The CIR rulings offer alternative compliance options whenever those have been deemed "}]
[{"$f":"Calculation1!$B$99","v":"equivalent in meeting the Aim of Credit."}]

{"sheet":"Energy","index":11,"n_rows":22,"n_cols":9,"rows_kept":22,"cut":false,"hidden":false,"merged":[[4,5,4,6]]}
[{"$f":"'Building Input'!B1","v":"Green Star SA - Retail Centre v1"},null,null,null,null,"Category Weighting:",{"$f":"'Credit Summary'!J40","v":0.25},"Category Weighted Score"]
["Energy",null,null,"Category Summary:  ",{"$f":"E12","v":26},{"$f":"F12","v":0},{"$f":"G12","v":0},{"$f":"'Credit Summary'!K40","v":0}]
["Credit Summary for:",null,{"$f":"IF('Building Input'!$C$5=0,\"\",'Building Input'!$C$5)","v":""},null,null,{"$f":"IF(OR((I3=Calculation1!$B$84),(I3=Calculation1!$B$85),((F2+G2)>E2)),Calculation1!$B$86,\"\")","v":""},null,null,{"$f":"T(I6:I11)","v":""}]
["Ref No.","Title","Aim of Credit","Credit Criteria Summary","No. of Points Available","No. of Points Achieved","Points to be Confirmed","Comments"]
["Ene- ","Conditional Requirement","To encourage and recognise designs that minimise the greenhouse gas emissions associated with operational energy consumption, and maximise potential operational energy efficiency of the base building.","Compliance Route 1 - Energy modelling route\nPredicted carbon emissions of the actual building are less than or equal to the predicted carbon emissions of the notional building in the same location, based on the requirements of the Green Star SA - Retail Centre v1 Energy Calculator and Modelling Protocol Guide.\n\nCompliance Route 2 - ASHRAE deemed to satisfy route\nThe design must fully comply with ASHRAE Advanced Energy Design Guide for Small Retail Buildings. This route is only available for retail centres with GFA < 2,200m².","Conditional Requirement Achieved?",{"$f":"IF('Energy Calculator'!I5:I7=\"Achieved\",'Energy Calculator'!S105,'Energy Calculator'!S106)","v":"NO; Ene- Conditional Requirement NOT achieved"},null,{"$f":"IF('Energy Calculator'!I5:I7=\"Achieved\",'Energy Calculator'!S109,IF('Energy Calculator'!U121='Energy Calculator'!S116,'Energy Calculator'!S111,'Energy Calculator'!S110))","v":"Compliance is determined from information entered into the Energy Calculator.  The project team acknowledges that the design does NOT meet the minimum energy efficiency requirements as stipulated in the Green Star SA Retail Centre v1 Technical Manual. This Green Star SA project is therefore NOT eligible for formal certification by the GBCSA. Please refer to the Technical Manual for further information."}]
["Ene-1","Greenhouse Gas Emissions","To encourage and recognise designs that minimise greenhouse gas emissions associated with operational energy consumption.","Up to twenty points are awarded where it is demonstrated that the building’s predicted greenhouse gas emissions have been reduced according to either of the two options: \n\nCompliance Route 1 - Energy modelling route (maximum 20 points available)\nThe building is to be modelled using the criteria in the Green Star SA - Retail Centre v1 Energy Calculator and Modelling Protocol Guide, and the predicted carbon emissions compared with those of the notional building in the same location constructed to the requirements of the same Retail Centre Energy Calculator and Modelling Protocol Guide. Points are then awarded on a linear scale with 0 points for the notional building and 20 points for a net zero operating emissions building. One point is awarded for every 5% saving below the notional building level.\n\nCompliance Route 2 - ASHRAE deemed to satisfy route (2 points available)\nIf the project has a Retail GFA of less than 2200m2, then the project may prove compliance by fully complying with the ASHRAE Advanced Energy Design Guide for Small Retail Buildings.\n\nThe points in both cases are determined by the Green Star SA - Retail Centre v1 \nEnergy Calculator.",20,{"$f":"IF('Energy Calculator'!I2=\"Error\",0,'Energy Calculator'!I2)","v":0},null,null,{"$f":"IF(OR(ISTEXT(F6)=TRUE,ISTEXT(G6)=TRUE),Calculation1!$B$87,IF(F6+G6>E6,Calculation1!$B$84,\"\"))","v":""}]
["Ene-2","Electrical Energy Sub-metering","To encourage and recognise the installation of electrical energy sub-metering to facilitate ongoing management of electrical energy consumption.","Two points are awarded where:\n\n- It is demonstrated that sub-metering is provided for substantive energy uses within the building (i.e. all electrical energy uses of 100kVa or greater) including separate meters for all tenancies; AND\n- There is an effective automated mechanism for monitoring electrical energy consumption data; AND\n- A metering and verification strategy is developed for the project.",2,null,null,null,{"$f":"IF(OR(ISTEXT(F7)=TRUE,ISTEXT(G7)=TRUE),Calculation1!$B$87,IF(F7+G7>E7,Calculation1!$B$84,\"\"))","v":""}]
["Ene-3","Lighting Power Density",null,"This credit is not relevant to the Green Star SA Retail Centre v1 tool","X","X","X"]
["Ene-4","Lighting Zoning",null,"This credit is not relevant to the Green Star SA Retail Centre v1 tool","X","X","X"]
["Ene-5","Maximum Electrical Demand Reduction ","To encourage and recognise designs that reduce maximum demand on electrical supply infrastructure.","Up to three points are awarded where it is demonstrated that the building has reduced its peak electrical demand on the utility's electricity infrastructure as follows:\n\nOne point where:\n- peak electrical demand is actively reduced by 10%; \nOR \n- The difference between the peak and average demand does not exceed 40%\n\nTwo points where:\n- peak electrical demand is actively reduced by 20%; \nOR \n- The difference between the peak and average demand does not exceed 30%\n\nThree points where:\n- peak electrical demand is actively reduced by 30%; \nOR \n- The difference between the peak and average demand does not exceed 20%\n",3,null,null,null,{"$f":"IF(OR(ISTEXT(F10)=TRUE,ISTEXT(G10)=TRUE),Calculation1!$B$87,IF(F10+G10>E10,Calculation1!$B$84,\"\"))","v":""}]
["Ene-6","Thermal Energy Sub-metering","To encourage and recognise the installation of thermal energy sub-metering to facilitate ongoing management of thermal energy consumption.","One point is awarded where:\n- For landlord centralised space heating or cooling reticulation systems, it is demonstrated that sub-metering is provided for all substantive thermal energy uses  where flow and return temperatures, and mass flow rate are measured AND;\n- There is an effective automated mechanism for measurement and verification of thermal energy consumption data AND;\n- A measurement & verification strategy is developed for the project.\n\nIf centralised space heating or cooling reticulation systems are not under the landlord/developer's control and not included within the base-build, this credit is ‘Not Applicable’ and is excluded from the points available used to calculate the Energy category score. Type 'na' in the No. of Points Achieved column.\n",{"$f":"IF(F11=\"na\",0,1)","v":1},null,null,null,{"$f":"IF(ISBLANK(F11),IF(G11>E11,Calculation1!$B$84,\"\"),IF(F11=\"na\",\"\",IF(OR(F11=\"na\",ISNUMBER(F11)),IF(F11+G11>E11,Calculation1!$B$84,\"\"),Calculation1!$B$85)))","v":""}]
[null,null,null,"Total Points:",{"$f":"SUM(E6:E11)","v":26},{"$f":"SUM(F5:F11)","v":0},{"$f":"SUM(G5:G11)","v":0}]
[]
[]
[]
[{"$f":"Calculation1!$B$93","v":"Project Teams are to refer to the Green Star SA Retail Centre v1 Technical Manual for explicit credit criteria and documentation requirements."}]
[{"$f":"Calculation1!$B$94","v":"The Green Star Technical Clarifications (TC) and Credit Interpretation Request (CIR) rulings provide an essential source of information to all"}]
[{"$f":"Calculation1!$B$95","v":"projects undertaking Green Star assessment. They are available on the GBCSA website http://www.gbcsa.org.za . Technical Clarifications"}]
[{"$f":"Calculation1!$B$96","v":"often represent the GBCSA answers to technical queries and complement Green Star SA Technical Manuals. They do not amend but clarify "}]
[{"$f":"Calculation1!$B$97","v":"Credit Criteria or Compliance Requirements. They are an extension of the Technical Manual; it is the responsibility of the project teams to stay "}]
[{"$f":"Calculation1!$B$98","v":"up-to-date with this section of the GBCSA website. The CIR rulings offer alternative compliance options whenever those have been deemed "}]
[{"$f":"Calculation1!$B$99","v":"equivalent in meeting the Aim of Credit."}]

{"sheet":"Energy Calculator","index":12,"n_rows":123,"n_cols":26,"rows_kept":123,"cut":false,"hidden":false,"merged":[[89,2,89,5],[48,1,48,3],[57,1,57,4],[61,1,61,4],[62,1,62,4],[2,1,2,7],[31,1,31,3],[32,7,34,7],[7,1,7,8],[10,8,15,10],[32,4,34,4],[32,5,34,5],[30,1,30,3],[30,5,30,6],[31,5,31,6],[72,8,74,8],[63,1,63,4],[72,1,74,7],[50,1,50,3],[52,1,52,3],[51,1,51,3],[47,13,47,15],[45,1,45,3],[46,1,46,3],[47,1,47,3],[32,1,34,3],[36,1,36,3],[44,1,44,3],[43,1,43,3],[32,8,34,8],[32,6,34,6],[37,1,37,3],[42,1,42,3],[38,1,38,3],[40,1,40,3],[39,1,39,3],[41,1,41,3],[21,20,21,22],[27,20,28,20],[4,8,6,8],[13,1,15,5],[17,1,19,5],[17,6,19,6],[13,6,15,7],[9,4,11,5],[4,6,6,7],[9,1,11,3]]}
[null,{"$f":"'Building Input'!B1","v":"Green Star SA - Retail Centre v1"}]
[null,"Energy Calculator",null,null,null,null,null,"Points Achieved:",{"$f":"O2","v":0},null,null,null,null,null,{"$f":"IF(I5=\"Not Achieved\",0,IF(OR(U121=S123,U121=S116),0,IF($G$18=\"Yes\",$P$10,IF(AND($O$30=\"No\",SUM($F$37:$F$41)=0),\"Error\",$I$73))))","v":0}]
[]
[null,"Notes & Instructions:"]
[null,"1. User must enter values into or select options in white cells ONLY",null,null,null,null,"Ene-0  Conditional Requirement Result:",null,{"$f":"IF(OR(U121=S117,U121=S116),\"Not Achieved\",IF(G18=\"Yes\",\"Achieved\",IF(AND(H70<H69,OR(G14=\"Yes\",G14=\"n/a (no Nat. Vent.)\"),SUM(E37:E41)>0,SUM(F37:F41)>0),\"Achieved\",\"Not Achieved\")))","v":"Not Achieved"}]
[null,"2. Refer to Green Star SA - Retail Centre v1 Energy Calculator & Modelling "]
[null,"    Protocol Guide for detailed information and assistance in using this calculator."]
[]
[]
[null,"Please select Compliance Route adopted:",null,null,"None",null,null,null,null,null,null,null,null,null,"ASHRAE AEDG Small Retail:",2,"points awarded"]
[null,null,null,null,null,null,null,null,{"$f":"IF(O30=\"no\",\"Energy modelling of actual building must include a cooling system (refer Energy Modelling Protocol for more information). Please enter modelling data.\",\"\")","v":""}]
[]
[null,null,null,null,null,null,null,null,null,null,null,null,null,null,"FUEL CO2 FACTORS kgCO2/kWh"]
[null,"Route 1 - If Building is Naturally Ventilated: Is thermal comfort criteria met? (Thermal comfort requirements need to be met to accept this as an option - refer to the Technical Manual for details)",null,null,null,null,"No",null,null,null,null,null,null,null,"Biogas",2.5000000000000001E-2]
[null,null,null,null,null,null,null,null,null,null,null,null,null,null,"Coal",0.35399999999999998]
[null,null,null,null,null,null,null,null,null,null,null,null,null,null,"Diesel",0.26700000000000002]
[null,null,null,null,null,null,null,null,null,null,null,null,null,null,"LPG",0.22700000000000001]
[null,"Route 2 - ASHRAE Advanced Energy Design Guide for Small Retail Buildings: 'deemed to satisfy' route has been met? (non modelling compliance route available for retail centres smaller than 2200m2)",null,null,null,null,{"$f":"IF(F22>=2200,\"Not Available\",IF('Energy Calculator'!U121='Energy Calculator'!S114,\"No (Route 1 used)\",IF('Energy Calculator'!U121='Energy Calculator'!S115,\"Yes\",IF('Energy Calculator'!U121='Energy Calculator'!S116,\"Not Available\",IF('Energy Calculator'!U121='Energy Calculator'!S117,\"No\",\"\")))))","v":"No"},null,null,null,null,null,null,null,"Mains electricity",1.2]
["`",null,null,null,null,null,null,{"$f":"IF(F22>=2200,\" (Retail GFA limit exceeded)\",\"\")","v":""},null,null,null,null,null,null,"Natural gas",0.20200000000000001]
[null,null,null,null,null,null,null,null,null,null,null,null,null,null,"Town gas (coal) ",0.16]
[]
[null,"Total Retail GFA",null,null,null,{"$f":"'Building Input'!C33","v":0},"m²",{"$f":"IF(F22=0,\"\",IF(F22<2200,\"Compliance Route 2 permitted (Retail GFA requirement satisfied)\",\"\"))","v":""}]
[null,"Total Tenant Usable Area (TUA)",null,null,null,{"$f":"'Building Input'!C34","v":0},"m²"]
[null,{"$f":"'Building Input'!B35","v":"Nominated Area (HVAC) related to certain IEQ credits in m² (including common areas):"},null,null,null,{"$f":"'Building Input'!C35","v":0},"m²"]
[null,{"$f":"'Building Input'!B36","v":"Nominated Area (Lighting) related to certain Ene-1 in m² (excludes common areas):"},null,null,null,{"$f":"'Building Input'!C36","v":0},"m²"]
[null,"Non Tenant Area Lighting (mall & public common spaces)",null,null,null,{"$f":"'Building Input'!C37","v":0},"m²"]
[null,"Non Tenant Area Lighting (non-public spaces - 'back of house')",null,null,null,{"$f":"'Building Input'!C38","v":0},"m²"]
[null,"Total Internal Covered Car Parking Area",null,null,null,{"$f":"'Building Input'!C39+'Building Input'!C40","v":0},"m²"]
[null,"External Area (including external Car Parking)",null,null,null,{"$f":"'Building Input'!C41","v":0},"m²"]
[null,null,null,null,null,null,null,null,null,null,null,null,null,null,"-","Link"]
[null,"ENERGY USE",null,null,null,null,null,null,null,null,null,null,null,null,null,"ListFills"]
[null,null,null,null,"Notional Building","Actual Building",null,null,null,null,null,null,null,null,"choose from drop down"]
[null,null,null,null,"Electrical use kWh/year","Electrical use kWh/year","Gas use \nkWh/year",null,null,null,null,null,null,null,{"$f":"IF(U121=S123,\"-\",IF(G18=\"Yes\",\"- n/a\",\"No\"))","v":"-"}]
[null,null,null,null,null,null,null,null,null,null,null,null,null,null,{"$f":"IF(U121=S123,\"-\",IF(G18=\"Yes\",\"- n/a\",\"Yes\"))","v":"-"}]
[null,null,null,null,null,null,null,null,null,null,null,null,null,null,{"$f":"IF(U121=S123,\"-\",IF(G18=\"Yes\",\"- n/a\",\"n/a (no Nat. Vent.)\"))","v":"-"}]
[null,null,null,"fuel CO2 factor",{"$f":"P18","v":1.2},{"$f":"P18","v":1.2},{"$f":"P19","v":0.20200000000000001}]
[null,"Heating (nominated area)",null,null,null,null,null,"modelling data for nom. area (notional & actual buildings)"]
[null,"Cooling & Heat Rejection (nominated area)",null,null,null,null,null,"modelling data for nom. area (notional & actual buildings)"]
[null,"Pumps (nominated area)",null,null,null,null,null,"modelling data for nom. area (notional & actual buildings)"]
[null,"Fans (nominated area)",null,null,null,null,null,"modelling data for nom. area (notional & actual buildings)"]
[null,"Extract and Miscellaneous Fans (nominated area)",null,null,null,null,null,"modelling data for nom. area (notional & actual buildings)"]
[null,"Tenant Area Lighting (included within the 'Nominated Area (Lighting)')",null,null,{"$f":"'Lighting Energy Calculator'!F21","v":0},{"$f":"'Lighting Energy Calculator'!K21","v":0},null,"refer to 'Lighting Energy Calculator'"]
[null,"Non Tenant Area Lighting (mall & public common spaces)",null,null,{"$f":"'Lighting Energy Calculator'!F22","v":0},{"$f":"'Lighting Energy Calculator'!K22","v":0},null,"refer to 'Lighting Energy Calculator'"]
[null,"Non Tenant Area Lighting (non-public spaces - 'back of house')",null,null,{"$f":"'Lighting Energy Calculator'!F23","v":0},{"$f":"'Lighting Energy Calculator'!K23","v":0},null,"refer to 'Lighting Energy Calculator'",null,null,null,null,null,null,null,{"$f":"P46/1000*365*5","v":10.95}]
[null,"Internal Covered Car Park Lighting",null,null,{"$f":"'Lighting Energy Calculator'!F24","v":0},{"$f":"'Lighting Energy Calculator'!K24","v":0},null,"refer to 'Lighting Energy Calculator'",null,null,null,null,null,null,"Notional car park lighting at",9,"kWh/m2"]
[null,"External Lighting (including parking, and not covered by any of the above)",null,null,{"$f":"'Lighting Energy Calculator'!F25","v":0},{"$f":"'Lighting Energy Calculator'!K25","v":0},null,"refer to 'Lighting Energy Calculator'",null,null,null,null,null,null,"Notional external lighting at",6,"kWh/m2 "]
[null,"Vertical transportation",null,null,null,null,null,"calculate for Retail GFA (notional & actual building)"]
[null,"Domestic Hot Water",null,null,{"$f":"IF(SUM(E37:E41)=0,0,IF(G18=\"Yes\",\"-\",E91))","v":0},null,null,"calculate for Retail GFA (notional & actual building)"]
[null,"SUB TOTALS for NOMINATED AREA & ANCILLARY (kWh/year)",null,null,{"$f":"SUM(E37:E48)","v":0},{"$f":"SUM(F37:F48)","v":0},{"$f":"SUM(G37:G48)","v":0}]
[]
[null,"Lighting for non-nominated area tenant area",null,null,{"$f":"(F23-F25)*Q51","v":0},{"$f":"E51","v":0},null,null,null,null,null,null,null,null,null,null,{"$f":"S51*U51","v":73.839500000000001},"kW/m2/annum",1.7000000000000001E-2,"kW/m2",{"$f":"365*14*0.85","v":4343.5},"hours of operation per annum"]
[null,"HVAC for non-nominated area tenant area",null,null,{"$f":"(F23-F24)*Q52","v":0},{"$f":"E52","v":0},null,"calculated to give the user an overall comparison",null,null,null,null,null,null,{"$f":"B52","v":"HVAC for non-nominated area tenant area"},null,{"$f":"S52*U52","v":201.05295000000001},"kW/m2/annum",4.2999999999999997E-2,"kW/m2",{"$f":"365*14*0.915","v":4675.6500000000005},"hours of operation per annum"]
[null,"SUB TOTALS for BASE BUILDING (kWh/year)",null,null,{"$f":"E52+E49","v":0},{"$f":"F52+F49","v":0},{"$f":"G52+G49","v":0}]
[]
[]
[null,"ON SITE RENEWABLE ELECTRICITY GENERATION (actual building only)"]
[null,null,null,null,null,"kWh/year","fuel factor \nkgCO2/kWh","net saving kgCO2/year","net saving kgCO2/m²/year"]
[null,"Renewable Electricity generated on site including photovoltaics, wind turbines etc.",null,null,null,null,0,{"$f":"F58*F36-F58*G58","v":0},{"$f":"H58/$F$22","v":{"$error":"#DIV/0!"}}]
[]
[null,"OTHER ON SITE GENERATION (actual building only)"]
[null,null,null,null,null,"kWh/year","fuel factor \nkgCO2/kWh","net saving kgCO2/year","net saving kgCO2/m²/year"]
[null,"Onsite Electricity Generation (e.g. electricity from a co-generation system)"]
[null,"Type of fuel used ",null,null,null,"Natural gas",{"$f":"VLOOKUP(F63,fueltype,2)","v":0.20200000000000001}]
[null,"Amount of fuel used (calorific value in kWh)",null,null,null,null,null,{"$f":"F62*F36-F64*G63","v":0},{"$f":"H64/$F$22","v":{"$error":"#DIV/0!"}}]
[]
[null,"TOTALS"]
[null,null,"Energy usage (notional building) - including nominated, non-nominated, parking & external areas",null,null,null,null,{"$f":"IF(F22=0,0,E53/$F$22)","v":0},"kWh/m²/year"]
[null,null,"Energy usage (actual building) - including nominated, non-nominated, parking & external areas",null,null,null,null,{"$f":"IF(F22=0,0,(F53+G53-F58)/F22)","v":0},"kWh/m²/year"]
[null,null,"Carbon emissions (notional building) ",null,null,null,null,{"$f":"IF(F22=0,0,(E53*E36)/$F$22)","v":0},"kgCO2/m²/year",null,null,null,null,null,"Number modelling points achieved without checks"]
[null,null,"Carbon emissions (actual building)",null,null,null,null,{"$f":"IF(F22=0,0,((F53*F36)+(G53*G36)-H58-H64)/$F$22)","v":0},"kgCO2/m²/year",null,null,null,null,null,{"$f":"IF(F49=0,0,IF(H70>0,20-(20*(H70/H69)),20))","v":0}]
[null,"PERCENTAGE IMPROVEMENT OVER NOTIONAL BUILDING",null,null,null,null,null,{"$f":"IF(H69=0,0,((H69-H70)/H69))","v":0},null,null,null,null,null,null,"Number modelling points achieved within performance band"]
[null,null,null,null,null,null,null,null,null,null,null,null,null,null,{"$f":"VLOOKUP(1,R75:S95,2,FALSE)","v":0}]
[null,"Energy Calculator Results (Compliance Route 1 only):",null,null,null,null,null,null,{"$f":"IF(G18=\"Yes\",\"-\",IF(AND(SUM(E37:E41)>0,SUM(F37:F41)>0),O72,\"-\"))","v":"-"}]
[null,null,null,null,null,null,null,null,null,null,null,null,null,null,"% Reduction from Notional ( R )","Lower Limit","Upper Limit","Band Check","Point Awarded"]
[null,null,null,null,null,null,null,null,null,null,null,null,null,null,"0 ≤ R < 5",0,5,{"$f":"IF((AND(($H$71*100)>=P75,($H$71*100)<Q75)),1,0)","v":1},0]
[null,null,null,null,null,null,null,null,null,null,null,null,null,null,"5 ≤ R < 10",5,10,0,1]
[null,null,null,null,null,null,null,null,null,null,null,null,null,null,"10 ≤ R < 15",10,15,0,2]
[null,null,null,null,null,null,null,null,null,null,null,null,null,null,"15 ≤ R < 20",15,20,0,3]
[null,null,null,null,null,null,null,null,null,null,null,null,null,null,"20 ≤ R < 25",20,25,0,4]
[null,null,null,null,null,null,null,null,null,null,null,null,null,null,"25 ≤ R < 30",25,30,0,5]
[null,null,null,null,null,null,null,null,null,null,null,null,null,null,"30 ≤ R < 35",30,35,0,6]
[null,"DOMESTIC HOT WATER ENERGY USAGE (notional building only)",null,null,null,null,null,null,null,null,null,null,null,null,"35 ≤ R < 40",35,40,0,7]
[null,"Note: water saving devices currently not rewarded for reducing energy use associated with hot water production",null,null,null,null,null,null,null,null,null,null,null,null,"40 ≤ R < 45",40,45,0,8]
[null,null,null,null,null,null,null,null,null,null,null,null,null,null,"45 ≤ R < 50",45,50,0,9]
[null,null,"Retail Gross Floor Area",null,{"$f":"F22","v":0},"m2",null,null,null,null,null,null,null,null,"50 ≤ R < 55",50,55,0,10]
[null,null,"Hot water consumption per day per m2",null,0.95,"L/m2/day",null,null,null,null,null,null,null,null,"55 ≤ R < 60",55,60,0,11]
[null,null,"Hot water usage per day for usable area",null,{"$f":"E85*E86","v":0},"litres/day",null,null,null,null,null,null,null,null,"60 ≤ R < 65",60,65,0,12]
[null,null,"Hot water usage per day for usable area (m3)",null,{"$f":"E87/1000","v":0},"m3/day",null,null,null,null,null,null,null,null,"65 ≤ R < 70",65,70,0,13]
[null,null,"Efficiency factor to account for distribution losses",null,0.9,null,null,null,null,null,null,null,null,null,"70 ≤ R < 75",70,75,0,14]
[null,null,null,null,null,null,null,null,null,null,null,null,null,null,"75 ≤ R < 80",75,80,0,15]
[null,null,"Notional building energy use (assuming 365 days)",null,{"$f":"(E88*1000*4200*55)/(3600*1000)*365/E89","v":0},"kWh/year",null,null,null,null,null,null,null,null,"80 ≤ R < 85",80,85,0,16]
[null,null,null,null,null,null,null,null,null,null,null,null,null,null,"85 ≤ R < 90",85,90,0,17]
[null,null,"Hot water usage in Joules is:",null,null,null,null,null,null,null,null,null,null,null,"90 ≤ R < 95",90,95,0,18]
[null,null,"m3 of water x (1 m3 = 1000kg) x specific heat capacity (=4200J/kg/K) x temp difference (=55 degrees) x 365 days / 0.9 efficiency factor",null,null,null,null,null,null,null,null,null,null,null,"95 ≤ R < 100",95,100,0,19]
[null,null,"Joules are then converted to kWh by dividing by (1 kWh = 3 600 000 joules).",null,null,null,null,null,null,null,null,null,null,null,"100 ≤ R",100,500,0,20]
[]
[]
[]
[null,null,null,null,null,null,null,null,null,null,null,null,null,null,null,null,null,null,"Ene-0 Conditional Requirement"]
[null,null,null,null,null,null,null,null,null,null,null,null,null,null,null,null,null,null,{"$f":"IF('Building Input'!$C$33>=0,\"Yes (Route 1)\",\"-\")","v":"Yes (Route 1)"},null,null,null,"This is referenced to Retail GFA (area check >=2,200m2)"]
[null,null,null,null,null,null,null,null,null,null,null,null,null,null,null,null,null,null,{"$f":"IF('Building Input'!$C$33<2200,\"Yes (Route 2)\",\"-\")","v":"Yes (Route 2)"},null,null,null,"This is referenced to Retail GFA (area check < 2,200m2)"]
[null,null,null,null,null,null,null,null,null,null,null,null,null,null,null,null,null,null,"No"]
[]
[null,null,null,null,null,null,null,null,null,null,null,null,null,null,null,null,null,null,"Outcomes"]
[null,null,null,null,null,null,null,null,null,null,null,null,null,null,null,null,null,null,"YES; Ene- Conditional Requirement achieved"]
[null,null,null,null,null,null,null,null,null,null,null,null,null,null,null,null,null,null,"NO; Ene- Conditional Requirement NOT achieved"]
[]
[null,null,null,null,null,null,null,null,null,null,null,null,null,null,null,null,null,null,"Comments"]
[null,null,null,null,null,null,null,null,null,null,null,null,null,null,null,null,null,null,"Compliance is determined from information entered into the Energy Calculator.  The project team acknowledges that the design meets the minimum energy efficiency requirements as stipulated in the Green Star SA Retail Centre v1 Technical Manual. Green Star SA projects are only eligible for formal certification by the GBCSA when ALL Eligibility Criteria (and Conditional Requirements) are met. Please refer to the Technical Manual for further information. "]
[null,null,null,null,null,null,null,null,null,null,null,null,null,null,null,null,null,null,"Compliance is determined from information entered into the Energy Calculator.  The project team acknowledges that the design does NOT meet the minimum energy efficiency requirements as stipulated in the Green Star SA Retail Centre v1 Technical Manual. This Green Star SA project is therefore NOT eligible for formal certification by the GBCSA. Please refer to the Technical Manual for further information."]
[null,null,null,null,null,null,null,null,null,null,null,null,null,null,null,null,null,null,"As the Retail GFA of the project entered in the 'Building Input' page is greater or equal to 2,200m, Compliance Route 2 is not available to this project. Please select an alternative option."]
[]
[null,null,null,null,null,null,null,null,null,null,null,null,null,null,null,null,null,null,"Error Message"]
[null,null,null,null,null,null,null,null,null,null,null,null,null,null,null,null,{"$f":"HLOOKUP(Energy!F5,S114:U117,3)","v":"-"},1,"Compliance Route 1",null,{"$f":"S105","v":"YES; Ene- Conditional Requirement achieved"},null,null,null,true,{"$f":"IF(Y114=FALSE,0,1)","v":1}]
[null,null,null,null,null,null,null,null,null,null,null,null,null,null,null,null,null,2,"Compliance Route 2",null,{"$f":"S105","v":"YES; Ene- Conditional Requirement achieved"},null,null,null,false,{"$f":"IF(Y115=FALSE,0,1)","v":0}]
[null,null,null,null,null,null,null,null,null,null,null,null,null,null,null,null,null,3,"-",null,"Compliance route NOT available.",null,null,null,false,{"$f":"IF(Y116=FALSE,0,1)","v":0}]
[null,null,null,null,null,null,null,null,null,null,null,null,null,null,null,null,null,4,"None",null,{"$f":"S106","v":"NO; Ene- Conditional Requirement NOT achieved"}]
[]
[]
[null,null,null,null,null,null,null,null,null,null,null,null,null,null,null,null,null,null,"Options",null,"Output"]
[null,null,null,null,null,null,null,null,null,null,null,null,null,null,"Retail GFA",{"$f":"'Building Input'!C33","v":0},null,null,"Compliance Route 1",null,{"$f":"E10","v":"None"}]
[null,null,null,null,null,null,null,null,null,null,null,null,null,null,"ASHRAE Limit",2200,null,null,{"$f":"IF(P121<P122,\"Compliance Route 2\",\"-\")","v":"Compliance Route 2"},null,"If Retail GFA < 2200 then available or not."]
[null,null,null,null,null,null,null,null,null,null,null,null,null,null,null,null,null,null,"None"]

{"sheet":"Lighting Energy Calculator","index":13,"n_rows":125,"n_cols":22,"rows_kept":125,"cut":false,"hidden":false,"merged":[[17,21,19,21],[15,3,15,10],[16,6,16,10],[17,20,19,20],[16,1,16,3],[17,1,19,3],[17,4,19,4],[16,4,16,5],[16,14,16,21],[17,6,19,6],[24,1,24,3],[21,1,21,3],[17,19,19,19],[17,16,19,16],[17,18,19,18],[20,1,20,3],[17,15,19,15],[17,17,19,17],[17,14,19,14],[17,10,19,10],[23,1,23,3],[22,1,22,3],[7,1,7,10],[8,1,8,10],[17,9,19,9],[17,7,19,7],[17,8,19,8],[17,5,19,5]]}
[null,{"$f":"'Building Input'!B1","v":"Green Star SA - Retail Centre v1"}]
[null,"Lighting Energy Calculator"]
[]
[null,"Notes & Instructions:"]
[null,"1.If the user wishes to use daylight harvesting to prove energy reductions, this can only be obtained from energy model results incorporating such a system, "]
[null,"   which applies weather data appropriate for the site, and not via this calculator."]
[null,"2. The user must enter the W/m2 of the lighting system connected load (as appropriate for the particular area in the actual building)."]
[null,"3. Where the results are not modelled, select a schedule in the drop down menu. Please refer to the Green Star SA - Retail Centre v1 Energy Calculator &"]
[null,"    Modelling Protocol Guide for details."]
[null,"4. Where results are modelled, 'Modelled' must be selected from the drop down menu, and the results must be entered into the 'modelled numbers' column."]
[null,"5. The user must only make entries into the white cells."]
[null,"6. Results will automatically be exported into the Energy Calculator."]
[]
[]
[]
[null,"LIGHTING ENERGY USE"]
[null,null,null,null,"Notional Building",null,"Actual Building",null,null,null,null,null,null,null,"Actual Building"]
[null,null,null,null,"W/m2","Electrical use kWh/year using schedule A","W/m2","Select a Schedule or are results modelled?","Electrical use kWh/year \n(calculated using schedules herein)","Electrical use kWh/year \n(modelled numbers)","Electrical use kWh/year \n(overall)",null,null,null,"W/m2","Electrical use kWh/year using schedule A","schedule A","Electrical use kWh/year using schedule B","schedule B","Electrical use kWh/year using schedule C","schedule C","Electrical use kWh/year"]
[]
[]
[null,{"$f":"'Energy Calculator'!B42","v":"Tenant Area Lighting (included within the 'Nominated Area (Lighting)')"},null,null,17,{"$f":"C61*E21*'Energy Calculator'!F25/1000","v":0},null,null,{"$f":"IF(I28=3,T21,IF(I28=2,R21,IF(I28=1,P21,IF(I28=4,0,0))))","v":0},null,{"$f":"IF(I28=4,J21,I21)","v":0},null,null,null,{"$f":"G21","v":0},{"$f":"$C$61*$O$21*'Energy Calculator'!$F$25/1000*Q21","v":0},1,{"$f":"$C93*$O$21*'Energy Calculator'!$F$25/1000*S21","v":0},1,{"$f":"$C125*$O$21*'Energy Calculator'!$F$25/1000*U21","v":0},1,{"$f":"IF((Q21+S21+U21)>1,\"error\",T21+R21+P21)","v":"error"}]
[null,{"$f":"'Energy Calculator'!B43","v":"Non Tenant Area Lighting (mall & public common spaces)"},null,null,12,{"$f":"D61*E22*'Energy Calculator'!F26/1000","v":0},null,null,{"$f":"IF(I29=3,T22,IF(I29=2,R22,IF(I29=1,P22,IF(I29=4,0,0))))","v":0},null,{"$f":"IF(I29=4,J22,I22)","v":0},null,null,null,{"$f":"G22","v":0},{"$f":"$D$61*$O$22*'Energy Calculator'!$F$26/1000*Q22","v":0},1,{"$f":"$D$93*$O$22*'Energy Calculator'!$F$26/1000*S22","v":0},1,{"$f":"$D$125*$O$22*'Energy Calculator'!$F$26/1000*U22","v":0},1,{"$f":"IF((Q22+S22+U22)>1,\"error\",T22+R22+P22)","v":"error"}]
[null,{"$f":"'Energy Calculator'!B44","v":"Non Tenant Area Lighting (non-public spaces - 'back of house')"},null,null,5,{"$f":"E61*E23*'Energy Calculator'!F27/1000","v":0},null,null,{"$f":"IF(I30=3,T23,IF(I30=2,R23,IF(I30=1,P23,IF(I30=4,0,0))))","v":0},null,{"$f":"IF(I30=4,J23,I23)","v":0},null,null,null,{"$f":"G23","v":0},{"$f":"$E$61*$O$23*'Energy Calculator'!$F$27/1000*Q23","v":0},1,{"$f":"$E$93*$O$23*'Energy Calculator'!$F$27/1000*S23","v":0},1,{"$f":"$E$125*$O$23*'Energy Calculator'!$F$27/1000*U23","v":0},1,{"$f":"IF((Q23+S23+U23)>1,\"error\",T23+R23+P23)","v":"error"}]
[null,"Total Internal Covered Car Park Lighting",null,null,5,{"$f":"F61*E24*'Energy Calculator'!F28/1000","v":0},null,null,{"$f":"IF(I31=3,T24,IF(I31=2,R24,IF(I31=1,P24,IF(I31=4,0,0))))","v":0},null,{"$f":"IF(I31=4,J24,I24)","v":0},null,null,null,{"$f":"G24","v":0},{"$f":"$F$61*$O$24*'Energy Calculator'!$F$28/1000*Q24","v":0},1,{"$f":"$F$93*$O$24*'Energy Calculator'!$F$28/1000*S24","v":0},1,{"$f":"$F$125*$O$24*'Energy Calculator'!$F$28/1000*U24","v":0},1,{"$f":"IF((Q24+S24+U24)>1,\"error\",T24+R24+P24)","v":"error"}]
[null,{"$f":"'Energy Calculator'!B46","v":"External Lighting (including parking, and not covered by any of the above)"},null,null,3,{"$f":"G61*E25*'Energy Calculator'!F29/1000","v":0},null,null,{"$f":"IF(I32=3,T25,IF(I32=2,R25,IF(I32=1,P25,IF(I32=4,0,0))))","v":0},null,{"$f":"IF(I32=4,J25,I25)","v":0},null,null,null,{"$f":"G25","v":0},{"$f":"$G$61*$O$25*'Energy Calculator'!$F$29/1000*Q25","v":0},1,{"$f":"$G$93*$O$25*'Energy Calculator'!$F$29/1000*S25","v":0},1,{"$f":"$G$125*$O$25*'Energy Calculator'!$F$29/1000*U25","v":0},1,{"$f":"IF((Q25+S25+U25)>1,\"error\",T25+R25+P25)","v":"error"}]
[null,"* The notional building W/m2 values are to some extent an improvement from SANS 204-2:2008 Table 14"]
[]
[null,null,null,null,null,null,null,"A",1]
[null,"Lighting Schedules (not to be edited by user)",null,null,null,null,null,"B",1]
[null,"Schedule A",null,null,null,null,null,"C",1]
[null,"no or very basic lighting controls",null,null,null,null,null,"Modelled",1]
[null,null,null,null,null,null,null,null,1]
[null,null,"Tenant areas","Non tenant area lighting (malls, public space)","Non tenant area lighting (boh)","Car Park Lighting","External lighting"]
[null,"h of day","% on","% on","% on","% on","% on"]
[null,0,0.5,1,1,1,1]
[null,1,0.5,1,1,1,1]
[null,2,0.5,1,1,1,1]
[null,3,0.5,1,1,1,1]
[null,4,0.5,1,1,1,1]
[null,5,0.5,1,1,1,1]
[null,6,1,1,1,1,1]
[null,7,1,1,1,1,1]
[null,8,1,1,1,1,0]
[null,9,1,1,1,1,0]
[null,10,1,1,1,1,0]
[null,11,1,1,1,1,0]
[null,12,1,1,1,1,0]
[null,13,1,1,1,1,0]
[null,14,1,1,1,1,0]
[null,15,1,1,1,1,0]
[null,16,1,1,1,1,0]
[null,17,1,1,1,1,0]
[null,18,1,1,1,1,0]
[null,19,0.5,1,1,1,1]
[null,20,0.5,1,1,1,1]
[null,21,0.5,1,1,1,1]
[null,22,0.5,1,1,1,1]
[null,23,0.5,1,1,1,1]
[null,"total h/day",{"$f":"SUM(C35:C58)*1","v":18.5},{"$f":"SUM(D35:D58)*1","v":24},{"$f":"SUM(E35:E58)*1","v":24},{"$f":"SUM(F35:F58)*1","v":24},{"$f":"SUM(G35:G58)*1","v":13}]
[null,"days/week",7,7,7,7,7]
[null,"total h/year",{"$f":"52*C60*C59","v":6734},{"$f":"52*D60*D59","v":8736},{"$f":"52*E60*E59","v":8736},{"$f":"52*F60*F59","v":8736},{"$f":"52*G60*G59","v":4732}]
[]
[null,"Schedule B"]
[null,"lighting controls"]
[null,null,"Tenant areas","Non tenant area lighting (malls, public space)","Non tenant area lighting (boh)","Car Park Lighting","External lighting"]
[null,"h of day","% on","% on","% on","% on","% on"]
[null,0,0.15,0.5,0.25,0.75,0.75]
[null,1,0.15,0.5,0.25,0.5,0.5]
[null,2,0.15,0.5,0.25,0.5,0.5]
[null,3,0.15,0.5,0.25,0.5,0.5]
[null,4,0.15,0.5,0.25,0.5,0.5]
[null,5,0.15,0.5,0.25,0.5,0.5]
[null,6,0.15,1,1,1,1]
[null,7,0.4,1,1,1,1]
[null,8,0.9,1,1,1,0]
[null,9,1,1,1,1,0]
[null,10,1,1,1,1,0]
[null,11,1,1,1,1,0]
[null,12,1,1,1,1,0]
[null,13,1,1,1,1,0]
[null,14,1,1,1,1,0]
[null,15,1,1,1,1,0]
[null,16,1,1,1,1,0]
[null,17,0.8,1,1,1,0]
[null,18,0.6,1,1,1,0]
[null,19,0.6,0.5,0.25,1,1]
[null,20,0.5,0.5,0.25,1,1]
[null,21,0.15,0.5,0.25,1,1]
[null,22,0.15,0.5,0.25,1,1]
[null,23,0.15,0.5,0.25,0.75,0.75]
[null,"total h/day",{"$f":"SUM(C67:C90)*1","v":13.3},{"$f":"SUM(D67:D90)*1","v":18.5},{"$f":"SUM(E67:E90)*1","v":15.75},{"$f":"SUM(F67:F90)*1","v":21},{"$f":"SUM(G67:G90)*1","v":10}]
[null,"days/week",7,7,7,7,7]
[null,"total h/year",{"$f":"52*C92*C91","v":4841.2},{"$f":"52*D92*D91","v":6734},{"$f":"52*E92*E91","v":5733},{"$f":"52*F92*F91","v":7644},{"$f":"52*G92*G91","v":3640}]
[]
[null,"Schedule C"]
[null,"lighting controls & occupancy sensors"]
[null,null,"Tenant areas","Non tenant area lighting (malls, public space)","Non tenant area lighting (boh)","Car Park Lighting","External lighting"]
[null,"h of day","% on","% on","% on","% on","% on"]
[null,0,0.05,0.5,0.05,0.25,0.25]
[null,1,0.05,0.25,0.05,0.15,0.1]
[null,2,0.05,0.25,0.05,0.05,0.1]
[null,3,0.05,0.25,0.05,0.05,0.1]
[null,4,0.05,0.25,0.05,0.05,0.1]
[null,5,0.05,0.25,0.05,0.05,0.1]
[null,6,0.05,0.25,0.65,0.65,1]
[null,7,0.3,0.5,0.85,0.9,1]
[null,8,0.75,0.95,0.85,0.9,0]
[null,9,1,0.95,0.85,0.9,0]
[null,10,1,0.95,0.85,0.9,0]
[null,11,1,0.95,0.85,0.9,0]
[null,12,1,0.95,0.85,0.9,0]
[null,13,1,0.95,0.85,0.9,0]
[null,14,1,0.95,0.85,0.9,0]
[null,15,1,0.95,0.85,0.9,0]
[null,16,1,0.95,0.85,0.9,0]
[null,17,1,0.95,0.85,0.9,0]
[null,18,1,0.95,0.85,0.9,0]
[null,19,0.75,0.85,0.15,0.9,1]
[null,20,0.25,0.85,0.15,0.9,1]
[null,21,0.15,0.75,0.05,0.75,1]
[null,22,0.05,0.75,0.05,0.5,0.75]
[null,23,0.05,0.75,0.05,0.5,0.5]
[null,"total h/day",{"$f":"SUM(C99:C122)*1","v":12.650000000000002},{"$f":"SUM(D99:D122)*1","v":16.899999999999999},{"$f":"SUM(E99:E122)*1","v":11.6},{"$f":"SUM(F99:F122)*1","v":15.600000000000003},{"$f":"SUM(G99:G122)*1","v":7}]
[null,"days/week",7,7,7,7,7]
[null,"total h/year",{"$f":"52*C124*C123","v":4604.6000000000004},{"$f":"52*D124*D123","v":6151.5999999999995},{"$f":"52*E124*E123","v":4222.3999999999996},{"$f":"52*F124*F123","v":5678.4000000000015},{"$f":"52*G124*G123","v":2548}]

{"sheet":"RET_ENE_DataExtract","index":14,"n_rows":31,"n_cols":4,"rows_kept":31,"cut":false,"hidden":true,"merged":[]}
["Dictionary","Value","Key","Note: "]
["Retail_ENE_1_Points",{"$f":"'Energy Calculator'!I2","v":0},"REP"]
[]
["Retail_Lighting_Tenant",{"$f":"'Lighting Energy Calculator'!J21","v":0},"REnLT","kWh/yr"]
["Retail_Lighting_Non_Tenant",{"$f":"'Lighting Energy Calculator'!J22","v":0},"REnLNT","kWh/yr"]
["Retail_Lighting_Back_Of_House",{"$f":"'Lighting Energy Calculator'!J23","v":0},"REnLBH","kWh/yr"]
["Retail_Lighting_Internal_Parking",{"$f":"'Lighting Energy Calculator'!J24","v":0},"REnLIP","kWh/yr"]
["Retail_Lighting_External_Parking",{"$f":"'Lighting Energy Calculator'!J25","v":0},"REnLEP","kWh/yr"]
["Retail_Lighting_Tenant_watts",{"$f":"'Lighting Energy Calculator'!G21","v":0},"REnLTw","W/m2"]
["Retail_Lighting_Non_Tenant_watts",{"$f":"'Lighting Energy Calculator'!G22","v":0},"REnLNTw","W/m2"]
["Retail_Lighting_Back_Of_House_watts",{"$f":"'Lighting Energy Calculator'!G23","v":0},"REnLBHw","W/m2"]
["Retail_Lighting_Internal_Parking_watts",{"$f":"'Lighting Energy Calculator'!G24","v":0},"REnLIPw","W/m2"]
["Retail_Lighting_External_Parking_watts",{"$f":"'Lighting Energy Calculator'!G25","v":0},"REnLEPw","W/m2"]
[]
["Retail_Energy_Points",{"$f":"'Energy Calculator'!I2","v":0},"REnP","kWh/yr"]
["Retail_Energy_Heating",{"$f":"'Energy Calculator'!F37","v":0},"REnH","kWh/yr"]
["Retail_Energy_Cooling",{"$f":"'Energy Calculator'!F38","v":0},"REnC","kWh/yr"]
["Retail_Energy_Pumps",{"$f":"'Energy Calculator'!F39","v":0},"REnP","kWh/yr"]
["Retail_Energy_Fans",{"$f":"'Energy Calculator'!F40","v":0},"REnF","kWh/yr"]
["Retail_Energy_Miscel_Fans",{"$f":"'Energy Calculator'!F41","v":0},"REnMF","kWh/yr"]
["Retail_Energy_Vertical_Transport",{"$f":"'Energy Calculator'!F47","v":0},"REnVT","kWh/yr"]
["Retail_Energy_Domestic_Hot_Water",{"$f":"'Energy Calculator'!F48","v":0},"REnDW","kWh/yr"]
["Retail_Energy_Renewable_Generation",{"$f":"'Energy Calculator'!F58","v":0},"REnRG","kWh/yr"]
["Retail_Energy_Elec_Generation",{"$f":"'Energy Calculator'!F62","v":0},"REnEG","kWh/yr"]
["Retail_Energy_Generation_Fuel_Used",{"$f":"'Energy Calculator'!F64","v":0},"REnEGF","kWh/yr"]
[]
["Retail_Energy_Use_Notional",{"$f":"'Energy Calculator'!H67","v":0},"REnNU","kWh/m²/year"]
["Retail_Energy_Use_Actual",{"$f":"'Energy Calculator'!H68","v":0},"REnAU","kWh/m²/year"]
["Retail_Energy_Carbon_Emission_Notional",{"$f":"'Energy Calculator'!H69","v":0},"REnNC","kgCO2/m²/year"]
["Retail_Energy_Carbon_Emission_Actual",{"$f":"'Energy Calculator'!H70","v":0},"REnAC","kgCO2/m²/year"]
["Retail_Energy_Percentage_Improvement",{"$f":"'Energy Calculator'!H71","v":0},"REnPI","%"]

{"sheet":"Transport","index":15,"n_rows":25,"n_cols":9,"rows_kept":25,"cut":false,"hidden":false,"merged":[[9,8,10,8],[9,4,10,4],[9,5,10,5],[9,6,10,6],[9,7,10,7],[6,0,7,0],[6,2,7,2],[6,1,7,1],[8,0,10,0],[8,1,10,1],[8,2,10,2]]}
[{"$f":"Management!A1","v":"Green Star SA - Retail Centre v1"},null,null,null,null,"Category Weighting:",{"$f":"'Credit Summary'!J49","v":0.12},"Category Weighted Score"]
["Transport",null,null,"Category Summary:  ",{"$f":"E15","v":15},{"$f":"F15","v":0},{"$f":"G15","v":0},{"$f":"'Credit Summary'!K49","v":0}]
["Credit Summary for:",null,{"$f":"IF('Building Input'!$C$5=0,\"\",'Building Input'!$C$5)","v":""},null,null,{"$f":"IF(OR((I3=Calculation1!$B$84),(I3=Calculation1!$B$85),((F2+G2)>E2)),Calculation1!$B$86,\"\")","v":""},null,null,{"$f":"T(I5:I14)","v":""}]
["Ref No.","Title","Aim of Credit","Credit Criteria","No. of Points Available","No. of Points Achieved","Points to be Confirmed","Comments"]
["Tra-1","Provision of Car Parking","To encourage and recognise developments that reduce the facilities provided for cars","Up to two points are awarded as follows: \n\nOne point is awarded where the number of car parking spaces is: \n- At least 25% lower than the maximum local planning allowances applicable to the project; OR\n- Not exceeding the minimum DOT guidelines or not exceeding the local planning minimum allowances, whichever is lower.\n\nTwo points are awarded where the number of car parking spaces is: \n- At least 50% lower than the maximum local planning allowances applicable to the project; OR\n- At least 25% lower than the minimum DOT guidelines or the minimum local planning allowances, whichever is lower.\n\nWhere car parking is not permitted in the local planning scheme, this credit is ‘Not Applicable’ and is excluded from the Points Available, used calculate the Transport Category Score. Type 'na' in the appropriate ‘No. of Points Achieved’ column of the rating tool.\n",{"$f":"IF(F5=\"na\",0,2)","v":2},null,null,null,{"$f":"IF(ISBLANK(F5),IF(G5>E5,Calculation1!$B$84,\"\"),IF(F5=\"na\",\"\",IF(OR(F5=\"na\",ISNUMBER(F5)),IF(F5+G5>E5,Calculation1!$B$84,\"\"),Calculation1!$B$85)))","v":""}]
["Tra-2","Fuel-Efficient Transport","To encourage and recognise developments that facilitate the use of more fuel efficient modes of transport.","One point is awarded where:\n\n- A minimum of 5% or 5 parking spaces (whichever is greater) are designed and labelled for mopeds, scooters and/or motorbikes, and all of these must be located in preferred parking locations.\n\nIf no parking spaces are to be provided, this credit this credit is ‘Not Applicable’ and is excluded from the points available, used to calculate the Transport category score. Type 'na' in the No. of Points Achieved column.",{"$f":"IF(F6=\"na\",0,1)","v":1},null,null,null,{"$f":"IF(ISBLANK(F6),IF(G6>E6,Calculation1!$B$84,\"\"),IF(F6=\"na\",\"\",IF(OR(F6=\"na\",ISNUMBER(F6)),IF(F6+G6>E6,Calculation1!$B$84,\"\"),Calculation1!$B$85)))","v":""}]
["Tra-3","Cyclist Facilities","To encourage and recognise developments that facilitate the use of bicycles by occupants and visitors.","Provided it can be demonstrated that safe, convenient cycling routes are provided between the retail centre development and the adjacent street network, up to three points are awarded as follows:\n• One point is awarded where cyclist facilities are provided for 3% of building staff; and \n• Two points are awarded where cyclist facilities are provided for 6% of the building staff.\n",2,null,null,null,{"$f":"IF(OR(ISTEXT(F7)=TRUE,ISTEXT(G7)=TRUE),Calculation1!$B$87,IF(F7+G7>E7,Calculation1!$B$84,\"\"))","v":""}]
[null,null,null,"An additional point is awarded where visitor bicycle storage is provided as outlined below. Bicycle storage must be provided in an accessible location, signposted and within 50m of, a major public entrance to the building. \n– One space per 500m2 of nominated area or part thereof for centres under 25,000m2; \nOR\n– One space per 750m2 of nominated area or part thereof for centres between 25,000m2 and 50,000m2; \nOR\n– One space per 1000m2 of nominated area or part thereof for centres between 50,000m2 and 100,000m2; \nOR\n– One space per 1250m2 of nominated area or part thereof for centres over 100,000m2.\nFor the purposes of this credit ‘nominated area’ is GLA.\n",1,null,null,null,{"$f":"IF(OR(ISTEXT(F8)=TRUE,ISTEXT(G8)=TRUE),Calculation1!$B$87,IF(F8+G8>E8,Calculation1!$B$84,\"\"))","v":""}]
["Tra-4","Commuting Mass Transport","To encourage and recognise developments that select a site near public transport and facilitate the use of mass transport for commuting.","Up to five points are awarded for the quality of mass transport options available to building users. The points are determined using the Green Star Mass Transport Calculator based on:\n\n• The type of mass transport services available within 1000m of the site;\n• The number of routes served; and \n• The average interval between services during weekday peak hours. \n• The average interval between services during Saturdays and on the evening when the facility is open for late night shopping. ",5,{"$f":"'Transport Calculator'!L2","v":0},null,null,{"$f":"IF(OR(ISTEXT(F9)=TRUE,ISTEXT(G9)=TRUE),Calculation1!$B$87,IF(F9+G9>E9,Calculation1!$B$84,\"\"))","v":""}]
[null,null,null,"Transit Facility \nOne point is awarded where a transit facility is located within the retail site development (or on the road directly adjacent to the development) and meets the following criteria:\n– One taxi space per 3,500m2 of nominated area or part thereof and one bus lay-by space for centres under 25,000m2; \nOR\n– One taxi space per 3,000m2 of nominated area or part thereof AND where bus routes exist adjacent to the site, two bus lay-by spaces for centres between 25,000m2 and 50,000m2; \nOR\n– One taxi space per 2,500m2 of nominated area or part thereof AND where bus routes exist adjacent to the site, four bus lay-by spaces for centres between 50,000m2 and 100,000m2; \nOR\n– One taxi space per 2,000m2 of nominated area or part thereof AND where bus routes exist adjacent to the site, six bus lay-by spaces for centres over 100,000m2.\n\nFor the purposes of this credit 'nominated area' is the Retail GFA.",1,null,null,null,{"$f":"IF(OR(ISTEXT(F10)=TRUE,ISTEXT(G10)=TRUE),Calculation1!$B$87,IF(F10+G10>E10,Calculation1!$B$84,\"\"))","v":""}]
[null,null,null,"The facility requirements are:\n• Security (good visibility and lighting);\n• Weather protection (user protection from sun, rain, wind);\n• User information (availability of information on routes, schedules, fares, connections etc);\n• Accessibility (distance from transport facility to retail centre, quality of walking conditions, signage, safety from cars); and\n• Structured lay-by built alongside the road.\n\nIf there is an existing facility adjacent to the site and the point is claimed, the same requirements need to be met for this existing facility."]
["Tra-5","Local Connectivity",null,"This credit is not relevant to the Green Star SA Retail Centre v1 tool","X","X","X"]
["Tra-6","Trip Reduction - Mixed-Use","To encourage and recognise retail centres that are built in mixed use areas in order to reduce the overall number of car trips taken by patrons.","One point is awarded for reducing the average number of vehicular trips generated by the development.  The point is detirmined using the Green Star SA Trip Reduction Calculator where:\n\n• A vehicle trip reduction of more than 15% is demonstrated; and\n• Dedicated pathways for pedestrians and cyclists are provided between the retail centre and the adjacent street network.\n\nCompliance with the credit is determined using the “Trip Reduction Calculator” based on the land uses within 400m walking distance from the retail centre entrance(s), other land uses include commercial office, hotel, residential, retail and warehouse. \n\nPoints are only awarded where it is demonstrated that safe, well-lit, dedicated pedestrian facilities are provided between the retail centre developement and the adjacent street network, conforming to SANS 10264.",1,{"$f":"'Trip Reduction Calculator'!F25","v":0},null,null,{"$f":"IF(OR(ISTEXT(F13)=TRUE,ISTEXT(G13)=TRUE),Calculation1!$B$87,IF(F13+G13>E13,Calculation1!$B$84,\"\"))","v":""}]
["Tra-7 ","Vehicle Operating Emissions","To encourage end recognise retail centres that improve the traffic infrastructure conditions around the centre in order to reduce harmful emissions resulting from traffic congestion","Two points are awarded where:\n\nIt is demonstrated that traffic infrastructure is improved over and above the minimum peak hour traffic flow service levels compared to pre-development baseline traffic flows. \n\nOne point where a 15% reduction in peak hour average CO2 emissions per vehicle is demonstrated as a result of improved infrastructure.\n\nTwo points where a 30% reduction in peak hour average CO2 emissions per vehicle is demonstrated as a result of improved infrastructure.\n\nCompliance must be proved via the traffic impact assessment (TIA) and the software that is used to undertake the TIA.",2,null,null,null,{"$f":"IF(OR(ISTEXT(F14)=TRUE,ISTEXT(G14)=TRUE),Calculation1!$B$87,IF(F14+G14>E14,Calculation1!$B$84,\"\"))","v":""}]
[null,null,null,"Total Points:",{"$f":"SUM(E5:E14)","v":15},{"$f":"SUM(F5:F14)","v":0},{"$f":"SUM(G5:G14)","v":0}]
[]
[]
[]
[{"$f":"Calculation1!$B$93","v":"Project Teams are to refer to the Green Star SA Retail Centre v1 Technical Manual for explicit credit criteria and documentation requirements."}]
[{"$f":"Calculation1!$B$94","v":"The Green Star Technical Clarifications (TC) and Credit Interpretation Request (CIR) rulings provide an essential source of information to all"}]
[{"$f":"Calculation1!$B$95","v":"projects undertaking Green Star assessment. They are available on the GBCSA website http://www.gbcsa.org.za . Technical Clarifications"}]
[{"$f":"Calculation1!$B$96","v":"often represent the GBCSA answers to technical queries and complement Green Star SA Technical Manuals. They do not amend but clarify "}]
[{"$f":"Calculation1!$B$97","v":"Credit Criteria or Compliance Requirements. They are an extension of the Technical Manual; it is the responsibility of the project teams to stay "}]
[{"$f":"Calculation1!$B$98","v":"up-to-date with this section of the GBCSA website. The CIR rulings offer alternative compliance options whenever those have been deemed "}]
[{"$f":"Calculation1!$B$99","v":"equivalent in meeting the Aim of Credit."}]

{"sheet":"Transport Calculator","index":16,"n_rows":33,"n_cols":30,"rows_kept":33,"cut":false,"hidden":false,"merged":[[16,22,16,23],[17,17,17,18],[42,1,42,12],[43,1,43,12],[22,2,22,3],[22,7,23,7],[22,8,22,9],[23,22,23,23],[41,1,41,12],[22,1,23,1],[35,1,35,12],[36,1,36,12],[30,1,30,2],[13,1,14,1],[13,7,14,7],[13,8,13,9],[13,10,13,11],[13,2,13,3],[13,4,13,5],[34,1,34,13],[44,1,44,12],[37,1,37,12],[40,1,40,12],[46,0,46,13],[45,1,45,12],[1,28,1,31],[11,1,11,5],[11,7,11,11],[12,8,12,9],[12,10,12,11],[12,4,12,5],[12,2,12,3],[1,8,1,10],[60,1,61,1],[60,2,60,3],[49,0,49,13],[47,0,47,13],[52,1,53,1],[52,2,52,3]]}
[null,{"$f":"'Building Input'!B1","v":"Green Star SA - Retail Centre v1"}]
[null,"Transport Calculator",null,null,null,null,null,null,"Points Achieved:",null,null,{"$f":"D31","v":0}]
[null,null,null,null,null,null,null,null,null,null,null,null,null,null,null,"THESE COLUMNS HIDDEN"]
[]
[null,null,null,null,null,null,null,null,null,null,null,null,null,null,null,null,null,null,null,null,null,null,null,null,null,null,null,null,null,false]
[null,"Notes & Instructions:"]
[null,"1. User must enter values into white cells ONLY."]
[null,"2. Refer to the comprehensive Green Star SA Transport Calculator Guide available on the GBCSA website www.gbcsa.org.za for additional instructions."]
[]
[]
[null,"WEEKDAY SERVICES",null,null,null,null,null,"SATURDAY SERVICES",null,null,null,null,null,null,null,"HIDDEN CELLS:"]
[null,"No. of Bus, Midibus or Minibus Routes",null,null,null,null,null,"No. of Bus, Midibus or Minibus Routes",null,null,null,null,null,null,null,"Mass Transport Calculator Engine:"]
[null,null,"Contracted",null,"Uncontracted",null,null,null,"Contracted",null,"Uncontracted"]
[null,"Walking Distance from Building Entrance to Public Transport","Frequency of Service During Peak Periods",null,"Frequency of Service During Peak Periods",null,null,"Walking Distance from Building Entrance to Public Transport","Frequency of Service During Peak Periods",null,"Frequency of Service During Peak Periods",null,null,null,null,"The weighting factors and score matrix to be calibrated using assessments of different retail centre locations"]
[null,null,"15 min","30 min","15 min","30 min",null,null,"15 min","30 min","15 min","30 min"]
[null,"0-250m",null,null,null,null,null,"0-250m",null,null,null,null,null,null,null,"Weighting factors",null,null,null,"Weekday Score","Saturday Score",null,"Score Matrix"]
[null,"250-500m",null,null,null,null,null,"250-500m",null,null,null,null,null,null,null,null,null,null,null,"Achieved","Achieved",null,"4 points available for weekday service"]
[null,"500-750m",null,null,null,null,null,"500-750m",null,null,null,null,null,null,null,"Bus & Minibus Contract",null,"Uncontracted Minibus",null,null,null,null,"Score","Points"]
[null,"750m-1km",null,null,null,null,null,"750m-1km",null,null,null,null,null,null,null,"15min","30min","15min","30min",null,null,null,10,1]
[null,null,null,null,null,null,null,null,null,null,null,null,null,null,null,6,4,3,1,{"$f":"C16*P20+D16*Q20 +E16*R20+F16*S20","v":0},{"$f":"I16*P20+J16*Q20 +K16*R20+L16*S20","v":0},null,20,2]
[null,"WEEKDAY SERVICES",null,null,null,null,null,"SATURDAY SERVICES",null,null,null,null,null,null,null,5,3,2,0,{"$f":"C17*P21+D17*Q21+E17*R21+F17*S21","v":0},{"$f":"I17*P21+J17*Q21 +K17*R21+L17*S21","v":0},null,40,3]
[null,"No. of Train Routes",null,null,null,null,null,"No. of Train Routes",null,null,null,null,null,null,null,4,2,1,0,{"$f":"C18*P22+D18*Q22+E18*R22+F18*S22","v":0},{"$f":"I18*P22+J18*Q22 +K18*R22+L18*S22","v":0},null,60,4]
[null,"Walking Distance from Building Entrance to Public Transport","Frequency of Service During Peak Periods",null,null,null,null,"Walking Distance from Building Entrance to Public Transport","Frequency of Service During Peak Periods",null,null,null,null,null,null,3,1,0,0,{"$f":"C19*P23+D19*Q23+E19*R23+F19*S23","v":0},{"$f":"I19*P23+J19*Q23 +K19*R23+L19*S23","v":0}]
[null,null,"15 min","30 min",null,null,null,null,"15 min","30 min",null,null,null,null,null,null,null,null,null,null,null,null,"1 point available for Saturday service"]
[null,"0-250m",null,null,null,null,null,"0-250m",null,null,null,null,null,null,null,null,null,null,null,null,null,null,"Score","Points"]
[null,"250-500m",null,null,null,null,null,"250-500m",null,null,null,null,null,null,null,null,null,null,null,null,null,null,20,1]
[null,"500-750m",null,null,null,null,null,"500-750m",null,null,null,null,null,null,null,"Train ",null,null,null,null,null,null,"point scored",{"$f":"IF(U33>=W26,X26,0)","v":0}]
[null,"750m-1km",null,null,null,null,null,"750m-1km",null,null,null,null,null,null,null,7,5,null,null,{"$f":"C25*P28+D25*Q28","v":0},{"$f":"I25*P28+J25*Q28","v":0}]
[null,null,null,null,null,null,null,null,null,null,null,null,null,null,null,6,4,null,null,{"$f":"C26*P29+D26*Q29","v":0},{"$f":"I26*P29+J26*Q29","v":0}]
[null,null,null,null,null,null,null,null,null,null,null,null,null,null,null,5,3,null,null,{"$f":"C27*P30+D27*Q30","v":0},{"$f":"I27*P30+J27*Q30","v":0}]
[null,"Points Achieved:",null,{"$f":"X33","v":0},null,null,null,null,null,null,null,null,null,null,null,4,2,null,null,{"$f":"C28*P31+D28*Q31","v":0},{"$f":"I28*P31+J28*Q31","v":0}]
[null,null,null,null,null,null,null,null,null,null,null,null,null,null,null,null,null,null,null,"weekday","weekend"]
[null,null,null,null,null,null,null,null,null,null,null,null,null,null,null,null,null,"Total for all services",null,{"$f":"SUM(T20:T31)","v":0},{"$f":"SUM(U20:U31)","v":0},null,"Points = ",{"$f":"IF(T33<W19,0,VLOOKUP(T33,W19:X22,2))+X27","v":0}]

{"sheet":"Trip Reduction Calculator","index":17,"n_rows":25,"n_cols":10,"rows_kept":25,"cut":false,"hidden":false,"merged":[]}
[null,{"$f":"'Building Input'!B1","v":"Green Star SA - Retail Centre v1"}]
[null,"Trip Reduction Calculator: Mixed Land Use",null,null,null,null,null,"Points Achieved:",{"$f":"F25","v":0}]
[]
[null,"Notes & Instructions"]
[null,"1. Only take developments within 400m walking distance from retail entrances into account"]
[null,"2. Complete the white cells where applicable to your development."]
[null,"3. Please refer to Technical Manual for further information."]
[]
[]
[]
[null,"Land Use","Unit","Extent","Std Trip Rate",null,"Trips Generated","Trip reduction factor","Revised Trip Rate","Revised Trips Generated"]
[null,"Retail - CBD","GFA m2",null,1.5,"/100m2",{"$f":"E12*D12/100","v":0},0.13,{"$f":"E12*(1-H12)","v":1.3049999999999999},{"$f":"I12*D12/100","v":0}]
[null,"Retail - Suburban","GFA m2",null,2.2999999999999998,"/100m2",{"$f":"E13*D13/100","v":0},0.13,2.0009999999999999,{"$f":"I13*D13/100","v":0}]
[null,"Retail - Medical","GFA m2",null,13.9,"/100m2",{"$f":"E14*D14/100","v":0},0.13,12.093,{"$f":"I14*D14/100","v":0}]
[null,"Residential -High Income","Living Units",null,1.5,"/unit",{"$f":"E15*D15","v":0},0.32,1.02,{"$f":"I15*D15","v":0}]
[null,"Residential -Middle Income","Living Units",null,1.1000000000000001,"/unit",{"$f":"E16*D16","v":0},0.32,0.748,{"$f":"I16*D16","v":0}]
[null,"Residential -Low Income","Living Units",null,0.6,"/unit",{"$f":"E17*D17","v":0},0.32,0.40799999999999997,{"$f":"I17*D17","v":0}]
[null,"Hotel","bedrooms",null,1.1000000000000001,"/unit",{"$f":"E18*D18","v":0},0.32,{"$f":"E18*(1-H18)","v":0.748},{"$f":"I18*D18","v":0}]
[null,"Commercial Office / Warehousing","GFA m2",null,0.8,"/100m2",{"$f":"E19*D19/100","v":0},0.32,0.54399999999999993,{"$f":"I19*D19/100","v":0}]
[null,null,null,null,null,null,{"$f":"SUM(G12:G19)","v":0},null,null,{"$f":"SUM(J12:J19)","v":0}]
[]
[null,"Retail only","GFA m2",{"$f":"'Building Input'!C33","v":0},{"$f":"IF(D22=0,0,224.5*D22^-0.34)","v":0},"/100m2",{"$f":"IF(D22=0,0,E22*D22/100)","v":0}]
[]
[null,null,null,"Trip Reduction",null,{"$f":"IF(D22=0,0,(1-((G22-(G20-J20))/G22)))","v":0}]
[null,null,null,"Points Achieved",null,{"$f":"IF(F24>15%,1,0)","v":0}]

{"sheet":"RET_TRA_DataExtract","index":18,"n_rows":3,"n_cols":4,"rows_kept":3,"cut":false,"hidden":true,"merged":[]}
["Dictionary","Value","Key","Notes"]
["Retail_TRA_4_Points",{"$f":"'Transport Calculator'!L2","v":0},"RTP"]
["Retail_TRA_6_TripReduction_Points",{"$f":"'[13]Trip Reduction Calculator'!I2","v":0},"RTTRP"]

{"sheet":"Water","index":19,"n_rows":22,"n_cols":9,"rows_kept":22,"cut":false,"hidden":false,"merged":[[5,0,6,0],[7,7,8,7],[5,2,6,2],[5,1,6,1]]}
[{"$f":"'Building Input'!B1","v":"Green Star SA - Retail Centre v1"},null,null,null,null,"Category Weighting:",{"$f":"'Credit Summary'!J57","v":0.15},"Category Weighted Score"]
["Water",null,null,"Category Summary:  ",{"$f":"E12","v":16},{"$f":"F12","v":0},{"$f":"G12","v":0},{"$f":"'Credit Summary'!K57","v":0}]
["Credit Summary for:",null,{"$f":"IF('Building Input'!$C$5=0,\"\",'Building Input'!$C$5)","v":""},null,null,{"$f":"IF(OR((I3=Calculation1!$B$84),(I3=Calculation1!$B$85),((F2+G2)>E2)),Calculation1!$B$86,\"\")","v":""},null,null,{"$f":"T(I5:I11)","v":""}]
["Ref No.","Title","Aim of Credit","Credit Criteria Summary","No. of Points Available","No. of Points Achieved","Points to be Confirmed","Comments"]
["Wat-1","Occupant Amenity Water","To encourage and recognise designs that reduce potable water consumption by building occupants.","Up to five points are awarded where the predicted potable water consumption for sanitary use within the building has been reduced against a ‘best practice’ benchmark.\n\nThe points are determined by the Green Star SA Potable Water Calculator.\n\n\n",5,{"$f":"'Potable Water Calculator'!H2","v":0},null,null,{"$f":"IF(OR(ISTEXT(F5)=TRUE,ISTEXT(G5)=TRUE),Calculation1!$B$87,IF(F5+G5>E5,Calculation1!$B$84,\"\"))","v":""}]
["Wat-2","Water Meters","To encourage and recognise the design of systems that both monitor and manage water consumption.","Three points are awarded as follows:\n\n• Two points are awarded where it is demonstrated that: \n – Water meters are installed for all major water uses in the development.\n \nAn additional point is awarded where it is demonstrated that:\n•  The above conditions are met; \n \n",2,null,null,null,{"$f":"IF(OR(ISTEXT(F6)=TRUE,ISTEXT(G6)=TRUE),Calculation1!$B$87,IF(F6+G6>E6,Calculation1!$B$84,\"\"))","v":""}]
[null,null,null,"•  There is an effective automated mechanism for monitoring water consumption data, which is able to perform as a leak detection system; AND\n •  A metering and verification strategy is developed for the project. \n",1,null,null,null,{"$f":"IF(OR(ISTEXT(F7)=TRUE,ISTEXT(G7)=TRUE),Calculation1!$B$87,IF(F7+G7>E7,Calculation1!$B$84,\"\"))","v":""}]
["Wat-3","Landscape Irrigation","To encourage and recognise the design of systems that aim to reduce the consumption of potable water for landscape irrigation.","Up to three points are awarded as follows:\nOne point is awarded where \n •  Potable water consumption for landscape irrigation has been reduced by 50%;\nTwo points are awarded where \n•  Potable water consumption for landscape irrigation has been reduced by 90%\nOR\n•  Plants chosen require no additional watering once established (i.e. xeriscaping).\n\nIf there is no landscaping, or the total landscaping represents less than 1% of the site area, these points are ‘Not Applicable’ and are excluded from the points available, used to calculate the Water Category Score. Type 'na' in the No. of Points Achieved column.",{"$f":"IF(F8=\"na\",0,2)","v":2},null,null,null,{"$f":"IF(ISBLANK(F8),IF(G8>E8,Calculation1!$B$84,\"\"),IF(F8=\"na\",\"\",IF(OR(F8=\"na\",ISNUMBER(F8)),IF(F8+G8>E8,Calculation1!$B$84,\"\"),Calculation1!$B$85)))","v":""}]
[null,null,null,"An additional point is awarded where 30% or more of the site is landscaped and the above criteria for 90% reduction of potable water consumption for landscape irrigation has been met.\n\nIf there is no landscaping, or the total landscaped area represents less than 30% of the site area, this point is ‘Not Applicable’ and is excluded from the points available, used to calculate the Water Category Score. Type 'na' in the No. of Points Achieved column.",{"$f":"IF(OR(F8=\"na\",F9=\"na\"),0,1)","v":1},null,null,null,{"$f":"IF(ISBLANK(F9),IF(G9>E9,Calculation1!$B$84,\"\"),IF(F9=\"na\",\"\",IF(OR(F9=\"na\",ISNUMBER(F9)),IF(F9+G9>E9,Calculation1!$B$84,\"\"),Calculation1!$B$85)))","v":""}]
["Wat-4","Heat Rejection Water","To encourage and recognise design that reduces potable water consumption from heat rejection systems.","Up to four points are awarded as follows:\n\nTwo points are awarded where:\n•  Potable water consumption of water consuming heat rejection systems is reduced by 50%. \n\nFour points are awarded where:\n•  Potable water consumption of water consuming heat rejection systems is reduced by 90%;\nOR \n•  No water consuming heat rejection systems are provided.",4,null,null,null,{"$f":"IF(OR(ISTEXT(F10)=TRUE,ISTEXT(G10)=TRUE),Calculation1!$B$87,IF(F10+G10>E10,Calculation1!$B$84,\"\"))","v":""}]
["Wat-5","Fire System Water Consumption","To encourage and recognise building design which reduces consumption of potable water for the building's fire protection and essential water storage systems.","One point is awarded where:\n•  There is sufficient temporary storage for a minimum of 80% of the routine fire protection system test water and maintenance drain-downs, for reuse on-site; and\n•  Each floor fitted with a sprinkler system has isolation valves or shut-off points for floor-by-floor/area by area (minimum of one per 10'000m2) drain down;\nOR\n•  The fire protection system does not expel water for testing or maintanance.\n\nIf the building does not have a fire protection and sprinkler system, this credit is ‘Not Applicable’ and is excluded from the points available, used to calculate the Water Category Score. Type 'na' in the No. of Points Achieved column.",{"$f":"IF(F11=\"na\",0,1)","v":1},null,null,null,{"$f":"IF(ISBLANK(F11),IF(G11>E11,Calculation1!$B$84,\"\"),IF(F11=\"na\",\"\",IF(OR(F11=\"na\",ISNUMBER(F11)),IF(F11+G11>E11,Calculation1!$B$84,\"\"),Calculation1!$B$85)))","v":""}]
[null,null,null,"Total Points:",{"$f":"SUM(E5:E11)","v":16},{"$f":"SUM(F5:F11)","v":0},{"$f":"SUM(G5:G11)","v":0}]
[]
[]
[]
[{"$f":"Calculation1!$B$93","v":"Project Teams are to refer to the Green Star SA Retail Centre v1 Technical Manual for explicit credit criteria and documentation requirements."}]
[{"$f":"Calculation1!$B$94","v":"The Green Star Technical Clarifications (TC) and Credit Interpretation Request (CIR) rulings provide an essential source of information to all"}]
[{"$f":"Calculation1!$B$95","v":"projects undertaking Green Star assessment. They are available on the GBCSA website http://www.gbcsa.org.za . Technical Clarifications"}]
[{"$f":"Calculation1!$B$96","v":"often represent the GBCSA answers to technical queries and complement Green Star SA Technical Manuals. They do not amend but clarify "}]
[{"$f":"Calculation1!$B$97","v":"Credit Criteria or Compliance Requirements. They are an extension of the Technical Manual; it is the responsibility of the project teams to stay "}]
[{"$f":"Calculation1!$B$98","v":"up-to-date with this section of the GBCSA website. The CIR rulings offer alternative compliance options whenever those have been deemed "}]
[{"$f":"Calculation1!$B$99","v":"equivalent in meeting the Aim of Credit."}]

{"sheet":"Potable Water Calculator","index":20,"n_rows":193,"n_cols":51,"rows_kept":193,"cut":false,"hidden":false,"merged":[[187,34,192,34],[113,11,113,12],[113,13,113,14],[147,14,148,14],[115,18,115,24],[166,34,171,34],[160,34,165,34],[132,34,132,49],[140,34,145,34],[175,34,180,34],[181,34,186,34],[159,34,159,49],[125,34,131,34],[134,34,139,34],[153,49,158,49],[160,49,165,49],[134,49,139,49],[147,34,152,34],[153,34,158,34],[75,34,75,35],[74,34,74,49],[101,49,103,49],[92,49,99,49],[103,34,103,35],[87,34,87,35],[88,34,88,35],[89,34,89,35],[92,34,92,35],[91,34,91,49],[97,34,97,35],[98,34,98,35],[81,34,81,35],[99,34,99,35],[86,34,86,35],[90,34,90,49],[105,34,105,35],[133,34,133,35],[106,34,112,34],[104,34,104,49],[125,49,131,49],[106,49,112,49],[113,34,118,34],[119,34,124,34],[76,34,76,35],[77,34,77,35],[79,34,79,35],[80,34,80,35],[78,34,78,49],[100,34,100,49],[82,34,82,35],[83,34,83,35],[85,34,85,35],[84,34,84,49],[101,34,101,35],[102,34,102,35],[93,34,93,35],[94,34,94,35],[95,34,95,35],[96,34,96,35],[97,11,97,12],[97,13,97,14],[77,11,77,12],[77,13,77,14],[41,6,41,7],[37,1,37,2],[67,6,67,7],[83,8,85,9],[83,1,85,1],[83,2,85,2],[39,6,39,7],[39,4,39,5],[37,4,37,5],[50,1,50,3],[50,4,50,5],[50,6,50,7],[42,6,42,7],[44,1,44,5],[41,1,41,2],[48,4,48,5],[78,15,79,27],[77,15,77,27],[77,1,77,7],[47,1,47,3],[51,6,51,7],[70,1,70,5],[39,1,39,2],[28,6,28,7],[33,6,33,7],[33,1,33,5],[30,6,30,7],[32,1,32,5],[49,4,49,5],[37,6,37,7],[38,1,38,2],[41,4,41,5],[40,1,40,2],[40,4,40,5],[40,6,40,7],[36,1,36,7],[34,1,34,5],[38,4,38,5],[38,6,38,7],[30,4,30,5],[32,6,32,7],[34,6,34,7],[5,4,5,6],[19,1,19,5],[24,1,24,3],[22,6,22,7],[23,6,23,7],[24,6,24,7],[21,1,21,7],[14,6,14,7],[13,4,13,5],[14,4,14,5],[13,6,13,7],[3,1,3,2],[3,4,3,6],[10,1,10,7],[12,1,12,3],[8,1,8,7],[12,4,12,5],[26,1,26,3],[13,1,13,3],[15,1,15,3],[17,6,17,7],[18,6,18,7],[19,6,19,7],[17,1,17,3],[17,4,17,5],[14,1,14,3],[15,6,15,7],[15,4,15,5],[16,1,16,3],[16,4,16,5],[16,6,16,7],[22,1,22,3],[12,6,12,7],[4,4,4,6],[11,1,11,7],[18,8,18,9],[22,4,22,5],[24,4,24,5],[26,4,26,5],[29,6,29,7],[31,4,31,5],[31,6,31,7],[74,0,136,0],[119,1,119,5],[121,1,121,5],[124,1,124,5],[125,1,125,5],[117,1,117,5],[105,1,105,5],[132,1,132,8],[94,1,94,7],[92,1,92,5],[91,2,91,6],[112,6,112,7],[131,6,131,7],[123,1,123,5],[124,6,124,7],[130,1,130,8],[109,6,109,7],[42,4,42,5],[53,8,53,9],[49,6,49,7],[53,6,53,7],[47,6,47,7],[48,6,48,7],[49,1,49,3],[43,8,43,9],[108,1,108,7],[42,1,42,2],[96,1,96,7],[102,6,102,7],[68,6,68,7],[70,6,70,7],[101,1,101,5],[100,1,100,5],[71,6,71,7],[81,6,81,7],[74,1,74,8],[69,6,69,7],[61,1,61,3],[92,6,92,7],[81,1,81,5],[59,1,59,3],[66,0,71,0],[67,1,67,5],[61,6,61,7],[43,6,43,7],[59,6,59,7],[48,1,48,3],[51,4,51,5],[57,6,57,7],[47,4,47,5],[66,1,66,8],[52,6,52,7],[62,1,62,3],[62,6,62,7],[60,1,60,3],[57,1,57,5],[52,4,52,5],[58,1,58,8],[54,6,54,7],[44,6,44,7],[56,1,56,8],[51,1,51,3],[52,1,52,3],[54,1,54,5],[60,6,60,7],[68,1,68,5],[75,1,75,7],[71,1,71,5],[106,1,106,5],[103,1,103,5],[106,6,106,7],[101,6,101,7],[105,6,105,7],[104,1,104,5],[103,6,103,7],[69,1,69,5],[104,6,104,7],[86,1,86,7],[95,6,95,7],[102,1,102,5],[83,3,83,5],[84,3,84,5],[95,1,95,5],[82,6,82,7],[125,6,125,7],[118,6,118,7],[121,6,121,7],[113,1,113,7],[126,6,126,7],[100,6,100,7],[76,1,76,5],[82,1,82,5],[76,6,76,7],[85,3,85,5],[112,1,112,5],[109,1,109,5],[120,6,120,7],[107,1,107,5],[107,6,107,7],[150,1,150,5],[149,6,149,7],[157,1,157,3],[155,4,155,7],[153,1,153,7],[111,1,111,7],[118,1,118,5],[120,1,120,5],[141,1,141,5],[141,6,141,7],[131,1,131,5],[117,6,117,7],[119,6,119,7],[135,6,135,7],[122,1,122,5],[140,1,140,5],[140,6,140,7],[133,1,133,5],[133,6,133,7],[138,1,138,8],[123,6,123,7],[122,6,122,7],[135,1,135,5],[134,6,134,7],[128,6,128,7],[139,1,139,8],[142,1,142,5],[145,1,145,8],[126,1,126,5],[128,1,128,5],[127,1,127,7],[142,6,142,7],[134,1,134,5],[146,1,146,8],[148,6,148,7],[148,1,148,5],[147,6,147,7],[154,4,154,7],[159,4,159,7],[156,4,156,7],[276,15,277,15],[268,11,268,12],[276,12,277,12],[276,13,277,13],[276,14,277,14],[157,4,157,7],[157,13,157,15],[159,1,159,3],[147,12,147,13],[149,1,149,5],[147,1,147,5],[158,1,158,3],[158,4,158,7],[155,1,155,3],[154,1,154,3],[150,6,150,7],[156,1,156,3],[35,18,36,18],[35,19,36,19],[27,4,27,5],[23,4,23,5],[28,1,28,5],[27,1,27,3],[26,6,26,7],[27,6,27,7],[29,4,29,5],[28,8,28,9],[25,1,25,3],[25,4,25,5],[25,6,25,7],[23,1,23,3],[30,8,30,9],[33,8,33,9]]}
[null,{"$f":"'Building Input'!B1","v":"Green Star SA - Retail Centre v1"}]
[null,"Potable Water Calculator",null,null,"Points Achieved:",null,null,{"$f":"G151","v":0},null,null,null,"Selections","Factors","Calculation","Unit or description"]
[]
[null,null,null,null,"Usable Area (m2):",null,null,{"$f":"'Building Input'!C34","v":0},null,null,null,1,"Hours of operation",{"$f":"VLOOKUP($L4,$Z14:$AB18,3)","v":1},"Potable water factor"]
[null,null,null,null,"Assumed No. Staff:",null,null,{"$f":"ROUNDUP(H4/60,0)","v":0},null,null,null,null,null,{"$f":"ROUNDUP(H4/60,0)","v":0},"Assumed number of staff"]
[null,"Notes & Instructions",null,null,"Assumed No. Customers:",null,null,{"$f":"ROUNDUP(H4*0.3,0)","v":0},null,null,null,null,null,{"$f":"ROUNDUP(H4*0.3,0)","v":0},"Assumed number of visitors"]
[null,"1. Enter data into white fields only."]
[null,"2. All base-building fixtures and fittings must be included."]
[null,"3. The Potable Water Calculator is strictly NOT to be used as a design tool."]
[]
[null,"PREDICTED POTABLE WATER CONSUMPTION"]
[null,"WCs"]
[null,"Type",null,null,"Avg L/flush",null,"% of WCs",null,null,null,null,"Ave. L/flush","Total Ave.F/Day","Total Ave.F/Day","Total Con. (Staff)","Total Con. (Visitors)",null,null,"Parameters and Assumptions of the PWC",null,null,null,null,null,null,"Potable water factor (hours of operation)"]
[null,"<enter description here>",null,null,null,null,0,null,null,null,null,{"$f":"E14","v":0},{"$f":"IF($I$34=\"No Urinals\",($N$5*$T$20*$G14),($N$5*0.5*($T$16+$T$18)*$G14))","v":0},{"$f":"IF($I$34=\"No Urinals\",($N$6*$U$20*$G14),($N$6*0.5*($U$16+$U$18)*$G14))","v":0},{"$f":"L14*M14","v":0},{"$f":"L14*N14","v":0},"L/day for this unit",null,"Name","Staff","Visitors/Customers",null,null,null,null,1,"Standard",1]
[null,"<enter description here>",null,null,null,null,0,null,null,null,null,{"$f":"E15","v":0},{"$f":"IF($I$34=\"No Urinals\",($N$5*$T$20*$G15),($N$5*0.5*($T$16+$T$18)*$G15))","v":0},{"$f":"IF($I$34=\"No Urinals\",($N$6*$U$20*$G15),($N$6*0.5*($U$16+$U$18)*$G15))","v":0},{"$f":"L15*M15","v":0},{"$f":"L15*N15","v":0},"L/day for this unit",null,"General",null,null,null,null,null,null,2,"7 days a week",1.4]
[null,"<enter description here>",null,null,null,null,0,null,null,null,null,{"$f":"E16","v":0},{"$f":"IF($I$34=\"No Urinals\",($N$5*$T$20*$G16),($N$5*0.5*($T$16+$T$18)*$G16))","v":0},{"$f":"IF($I$34=\"No Urinals\",($N$6*$U$20*$G16),($N$6*0.5*($U$16+$U$18)*$G16))","v":0},{"$f":"L16*M16","v":0},{"$f":"L16*N16","v":0},"L/day for this unit",null,"WC uses male",0.3,3.5999999999999997E-2,"Average per  person (50% of occupation)",null,null,null,3,"24 hours / 5 days",2]
[null,"<enter description here>",null,null,null,null,0]
[null,"<enter description here>",null,null,null,null,0,null,null,null,null,{"$f":"E18","v":0},{"$f":"IF($I$34=\"No Urinals\",($N$5*$T$20*$G18),($N$5*0.5*($T$16+$T$18)*$G18))","v":0},{"$f":"IF($I$34=\"No Urinals\",($N$6*$U$20*$G18),($N$6*0.5*($U$16+$U$18)*$G18))","v":0},{"$f":"L18*M18","v":0},{"$f":"L18*N18","v":0},"L/day for this unit",null,"WC uses female",2.2999999999999998,0.27400000000000002,"Average per  person (50% of occupation)",null,null,null,4,"24 hours / 7 days",2.8]
[null,null,null,null,null,null,{"$f":"SUM(G14:G18)","v":0},null,{"$f":"IF(SUM(G14:H18)=1,\"\",IF(OR(AND(ISBLANK(G14),ISBLANK(G15),ISBLANK(G16),ISBLANK(G18))=TRUE,G14+G15+G16+G18=0=TRUE),\"No WCs\",\"ERROR: 100% required\"))","v":"No WCs"},null,null,"TOTALS:",{"$f":"SUM(M14:M18)","v":0},{"$f":"SUM(N14:N18)","v":0},{"$f":"SUM(O14:O18)","v":0},{"$f":"SUM(P14:P18)","v":0},null,null,"Urinal uses ",2,0.23799999999999999,"Average per  person (50% of occupation)"]
[null,"Predicted Normalised WC Water Consumption Sub-Total (L/day/m2)",null,null,null,null,{"$f":"IF(TYPE(P21)=16,0,P21)","v":0},null,{"$f":"IF(I19=\"No WCs\",\"\",IF(TYPE(O19/$H$4)=16,\"Error\",\"\"))","v":""},null,null,null,null,null,"TOTAL:",{"$f":"O19+P19","v":0},"Total L/day for WC",null,"No urinals installed",2.2999999999999998,0.27400000000000002,"WC uses per day per person.",null,null,null,"  Tap Controls tables"]
[null,null,null,null,null,null,null,null,null,null,null,null,null,null,null,{"$f":"($O$19+$P$19)/$H$4","v":{"$error":"#DIV/0!"}},"L/day/m2",null,"Urinal auto timer","input by project",48,"times flushing per day based on flushing ",null,null,null,"Type","Description"]
[null,"Urinals",null,null,null,null,null,null,null,null,null,null,null,null,null,null,null,null,"Tap running time","varies",0.15,"minutes",null,null,null,1,"PIR"]
[null,"a) Urinals flushed after each use (manual & sensor)",null,null,"L/flush",null,"% of Urinals",null,null,null,null,"L/flush","Total Flushes/Day","Total Flushes/Day","Total Cons. (Staff)","Total Cons. (Visitors)",null,null,"Duration of showers",5,0,"minutes per person per business day. ",null,null,null,2,"Timed"]
[null,"<enter description here>",null,null,null,null,0,null,null,null,null,{"$f":"E24","v":0},{"$f":"($N$5*0.5)*$T$19*$G24","v":0},{"$f":"($N$6*0.5)*$U$19*$G24","v":0},{"$f":"L24*M24","v":0},{"$f":"L24*N24","v":0},"L/day for this unit",null,"Shower use",0.03,0,"of all occupants",null,null,null,3,"Manual"]
[null,"<enter description here>",null,null,null,null,0,null,null,null,null,{"$f":"E25","v":0},{"$f":"($N$5*0.5)*$T$19*$G25","v":0},{"$f":"($N$6*0.5)*$U$19*$G25","v":0},{"$f":"L25*M25","v":0},{"$f":"L25*N25","v":0},"L/day for this unit",null,"Female Occupancy",0.5,0.5,null,null,null,null,4,"Select Type"]
[null,"<enter description here>",null,null,null,null,0]
[null,"<enter description here>",null,null,null,null,0,null,null,null,null,{"$f":"E27","v":0},{"$f":"($N$5*0.5)*$T$19*$G27","v":0},{"$f":"($N$6*0.5)*$U$19*$G27","v":0},{"$f":"L27*M27","v":0},{"$f":"L27*N27","v":0},"L/day for this unit",null,"Male Occupancy",0.5,0.5]
[null,"<enter description here>",null,null,null,null,0,null,null,null,null,{"$f":"E28","v":0},{"$f":"($N$5*0.5)*$T$19*$G28","v":0},{"$f":"($N$6*0.5)*$U$19*$G28","v":0},{"$f":"L28*M28","v":0},{"$f":"L28*N28","v":0},"L/day for this unit",null,"Tap usage",2.5,0.3,"per day for male and female",null,null,null,"Description","PIR","Timed","Manual","Select Type"]
[null,"Sub-Total %",null,null,null,null,{"$f":"SUM(G24:G28)","v":0},null,null,null,null,null,null,null,{"$f":"SUM(O24:O28)","v":0},{"$f":"SUM(P24:P28)","v":0},"Total L/day for Urinals (man. & sens.)",null,"Rainwater tank",null,null,null,null,null,null,"Type",1,2,3,4]
[null,"b) Urinals on Auto-Timer Flush","No. of Cisterns","Flushes per day","L/flush",null,"% of Urinals",null,null,null,null,null,null,null,null,null,null,null,"Rainwater tank first flush volume",20,"litres per 100m2"]
[null,"<enter description here>",null,null,null,null,0,null,{"$f":"IF(G31>1,\"ERROR\",\"\")","v":""},null,null,{"$f":"E31","v":0},{"$f":"D31*C31","v":0},{"$f":"C31*D31","v":0},{"$f":"IF(G31=0,0,L31*M31)","v":0},{"$f":"IF(G31=0,0,L31*N31)","v":0},"Total L/day for auto-timer flush Urinals",null,null,null,null,null,null,null,null,"Flow time(minutes)",{"$f":"AA33/60","v":0.1},{"$f":"AB33/60","v":0.11666666666666667},{"$f":"AC33/60","v":0.15},{"$f":"AD33/60","v":0.15}]
[null,"<enter description here>",null,null,null,null,0]
[null,"Sub-Total %",null,null,null,null,{"$f":"SUM(G31:H32)","v":0},null,null,null,null,null,null,null,null,null,null,null,null,null,null,null,null,null,null,"Flow time(seconds)",6,7,9,9]
[null,"Total % Urinals (flushed after use AND timer flushed)",null,null,null,null,{"$f":"G29+G33","v":0},null,{"$f":"IF(SUM($G$24:$H$28)+$G$31=1,\"\",IF(OR(AND(ISBLANK($G$24),ISBLANK($G$25),ISBLANK($G$27),ISBLANK($G$28))=TRUE,$G$24+$G$25+$G$27+$G$28+$G$31=0=TRUE),\"No Urinals\",\"ERROR: 100% required\"))","v":"No Urinals"},null,null,null,null,null,"TOTAL:",{"$f":"(O29+O31)+(P29+P31)","v":0},"Total L/day for ALL Urinals"]
[null," Predicted Normalised Urinal Water Consumption Sub-Total (L/day/m2)",null,null,null,null,{"$f":"IF(TYPE(P35)=16,0,P35)","v":0},null,{"$f":"IF(I34=\"No Urinals\",\"\",IF(TYPE(P34/$H$4)=16,\"Error\",\"\"))","v":""},null,null,{"$f":"IF(G34=0,\"No Urinals\",IF((G29+G31)>0,1,\"ERROR\"))","v":"No Urinals"},"Auto ERROR message",null,null,{"$f":"$P$34/$H$4","v":{"$error":"#DIV/0!"}},"L/day/m2",null,"WELS Fixture Flow Rates (Averaged where a range is permitted) NOT USED IN SA TOOL!!!!",null,null,null,null,null,null,null,"Rainfall Runoff Co-efficients"]
[null,null,null,null,null,null,null,null,null,null,null,null,null,null,null,null,null,null,null,"Fittings selection","WC (Avg. l/flush)","Urinal (Avg. l/flush)","Taps (Avg. L/min)","Showers (Avg. L/min)","Urinal (Avg. l/flush) in group of 2",null,1]
[null,"Indoor Taps (Office & Non-Office Areas)",null,null,null,null,null,null,null,null,null,null,null,null,null,null,null,null,null,null,null,null,null,null,null,null,2,"Steel roof (> 30 pitch)",null,0.9]
[null,"Type",null,"Control"," L/minute",null,"% of taps",null,null,null,null,"Tap type","Total Minutes/Day","Total Minutes/Day","Total Cons. (Staff)","Total Cons. (Visitors)",null,null,1,null,null,0,null,null,null,null,3,"Non-absorbent roof (> 30 pitch)",null,0.9]
[null,"<enter description here>",null,null,null,null,0,null,null,null,null,4,{"$f":"$N$5*VLOOKUP($L39,$AA$29:$AD$31,$L39)*$T$28*$G39","v":0},{"$f":"$N$6*VLOOKUP($L39,$AA$29:$AD$31,$L39)*$U$28*$G39","v":0},{"$f":"$M39*$E39","v":0},{"$f":"$N39*$E39","v":0},"L/day for this unit",null,2,"0 Star","Warning",2.5,"Warning",16,4,null,4,"Flat non-absorbent roof (<30 Pitch)",null,0.8]
[null,"<enter description here>",null,null,null,null,0,null,null,null,null,4,{"$f":"$N$5*VLOOKUP($L40,$AA$29:$AD$31,$L40)*$T$28*$G40","v":0},{"$f":"$N$6*VLOOKUP($L40,$AA$29:$AD$31,$L40)*$U$28*$G40","v":0},{"$f":"$M40*$E40","v":0},{"$f":"$N40*$E40","v":0},"L/day for this unit",null,3,"1 Star",5.5,2.5,16,16,4,null,5,"Flat gravel or turf roof (<30 pitch)",null,0.65]
[null,null,null,null,null,null,0]
[null,"<enter description here>",null,null,null,null,0,null,null,null,null,4,{"$f":"$N$5*VLOOKUP($L42,$AA$29:$AD$31,$L42)*$T$28*$G42","v":0},{"$f":"$N$6*VLOOKUP($L42,$AA$29:$AD$31,$L42)*$U$28*$G42","v":0},{"$f":"$M42*$E42","v":0},{"$f":"$N42*$E42","v":0},"L/day for this unit",null,4,"2 Star",4.5,2.5,12,12,2.5]
[null,"<enter description here>",null,null,null,null,0,null,null,null,null,4,{"$f":"$N$5*VLOOKUP($L43,$AA$29:$AD$31,$L43)*$T$28*$G43","v":0},{"$f":"$N$6*VLOOKUP($L43,$AA$29:$AD$31,$L43)*$U$28*$G43","v":0},{"$f":"$M43*$E43","v":0},{"$f":"$N43*$E43","v":0},"L/day for this unit",null,5,"3 Star",4,2,9,9,2]
[null,null,null,null,null,null,{"$f":"SUM(G39:G43)","v":0},null,{"$f":"IF(SUM(G39:H43)=1,\"\",IF(OR(AND(ISBLANK(G39),ISBLANK(G40),ISBLANK(G42),ISBLANK(G43))=TRUE,G39+G40+G42+G43=0=TRUE),\"No Indoor Taps\",\"ERROR: 100% required\"))","v":"No Indoor Taps"},null,null,null,null,null,null,null,null,null,6,"4 Star",3.5,1.5,7.5,9,1.5,null,"RW GW BW Decision"]
[null,"Predicted Normalised Indoor Tap Water Consumption Sub-Total (L/day/m2)",null,null,null,null,{"$f":"IF(TYPE(P46)=16,0,P46)","v":0},null,{"$f":"IF(I44=\"No Indoor Taps\",\"\",IF(TYPE(P45/$H$4)=16,\"Error\",\"\"))","v":""},null,null,null,null,null,"TOTAL:",{"$f":"SUM(O39:O43)+SUM(P39:P43)","v":0},"Total L/day for Indoor taps",null,7,"5 Star",3,1,6,9,1,null,1,"No"]
[null,null,null,null,null,null,null,null,null,null,null,null,null,null,null,{"$f":"$P$45/$H$4","v":{"$error":"#DIV/0!"}},"L/day/m2",null,8,"6 Star",2.5,1,4.5,9,0.75,null,2,"Yes"]
[null,"Showerheads",null,null,null,null,null,null,null,null,null,null,null,null,null,null,null,null,9,"Unknown","To be entered","To be entered","To be entered","To be entered","To be entered"]
[null,"Type",null,null,"L/minute",null,"% of showers",null,null,null,null,"L/minute","Total Minutes/Day","Total Minutes/Day","Total Cons. (Staff)","Total Cons. (Staff)",null,null,10,"Waterless","N/A",0,"N/A","N/A","N/A"]
[null,"<enter description here>",null,null,null,null,0,null,null,null,null,{"$f":"E49","v":0},{"$f":"$N$5*$T$24*$T$23*$G49","v":0},{"$f":"$N$6*$U$24*$U$23*$G49","v":0},{"$f":"M49*L49","v":0},null,"L/day for this unit"]
[null,"<enter description here>",null,null,null,null,0,null,null,null,null,{"$f":"E50","v":0},{"$f":"$N$5*$T$24*$T$23*$G50","v":0},{"$f":"$N$6*$U$24*$U$23*$G50","v":0},{"$f":"M50*L50","v":0},null,"L/day for this unit"]
[null,"<enter description here>",null,null,null,null,0]
[null,"<enter description here>",null,null,null,null,0,null,null,null,null,{"$f":"E52","v":0},{"$f":"$N$5*$T$24*$T$23*$G52","v":0},{"$f":"$N$6*$U$24*$U$23*$G52","v":0},{"$f":"M52*L52","v":0},null,"L/day for this unit"]
[null,"<enter description here>",null,null,null,null,0,null,null,null,null,{"$f":"E53","v":0},{"$f":"$N$5*$T$24*$T$23*$G53","v":0},{"$f":"$N$6*$U$24*$U$23*$G53","v":0},{"$f":"M53*L53","v":0},null,"L/day for this unit"]
[null,null,null,null,null,null,{"$f":"SUM(G49:G53)","v":0},null,{"$f":"IF(SUM(G49:H53)=1,\"\",IF(OR(AND(ISBLANK(G49),ISBLANK(G50),ISBLANK(G52),ISBLANK(G53))=TRUE,G49+G50+G52+G53=0=TRUE),\"No Showerheads\",\"ERROR: 100% required\"))","v":"No Showerheads"},null,null,null,null,null,null,{"$f":"SUM(O49:O53)","v":0},"Total L/day for Showers"]
[null,"Predicted Normalised Showerhead Water Consumption Sub-Total (L/day/m2)",null,null,null,null,{"$f":"IF(TYPE(P55)=16,0,P55)","v":0},null,{"$f":"IF(I54=\"No Showerheads\",\"\",IF(TYPE(P54/$H$4)=16,\"Error\",\"\"))","v":""},null,null,{"$f":"IF(G54=0,0,1)","v":0},"Shower check (benchmarks)",null,null,{"$f":"$P$54/$H$4","v":{"$error":"#DIV/0!"}},"L/day/m2"]
[]
[null,"The following estimated total potable water consumption is based on the data entered above. The water consumption of the fittings per m2 is based on assumptions of typical office usage and does not represent actual water consumption in the building. ",null,null,null,null,null,null,null,null,null,null,null,null,null,{"$f":"P20+P34+P45+P54","v":0},"TOTAL AMENITY DEMAND (STAFF & VISITORS)"]
[null,"Predicted Normalised Amenity Water Consumption Total",null,null,null,null,{"$f":"SUM(G60:H63)","v":0},null,"L/day/m2",null,null,null,null,null,null,{"$f":"P57/$H$4","v":{"$error":"#DIV/0!"}},"L/day/m2"]
[]
[null,"WCs:",null,null,{"$f":"IF(G58=0,0,G60/$G$58)","v":0},"of total.",{"$f":"G20","v":0},null,"L/day/m2"]
[null,"Urinals:",null,null,{"$f":"IF(G58=0,0,G61/$G$58)","v":0},"of total.",{"$f":"G35","v":0},null,"L/day/m2"]
[null,"Indoor Taps:",null,null,{"$f":"IF(G58=0,0,G62/$G$58)","v":0},"of total.",{"$f":"G45","v":0},null,"L/day/m2"]
[null,"Showerheads:",null,null,{"$f":"IF(G58=0,0,G63/$G$58)","v":0},"of total.",{"$f":"G55","v":0},null,"L/day/m2"]
[]
[]
[]
[null,"OTHER PREDICTED RECYCLED/HARVESTED WATER DEMANDS/CONSUMPTION"]
[null,"Are there any other recycled/harvested water demands in the project?\nEnter recycled water demand only, disregard potable water use. This is to determine the availability of recycled/reused/harvested water for occupant amenity (i.e. fixtures and fittings) ",null,null,null,null,null,null,null,null,null,2,"Annual Demand"]
[null,"RECYCLED/HARVESTED WATER DEMAND FOR IRRIGATION (L/day)",null,null,null,null,0,null,null,null,null,{"$f":"IF($L$68=1,\"-\",G69)","v":0},{"$f":"IF(L68=1,0,(G69*AD91)/1000)","v":0},{"$f":"(M69/$AD$94)","v":0}]
[null,"RECYCLED/HARVESTED WATER DEMAND FOR COOLING TOWERS (L/day)",null,null,null,null,0,null,null,null,null,{"$f":"IF($L$68=1,\"-\",G70)","v":0},{"$f":"IF(L68=1,0,(G70*$AD$94)/1000)","v":0},{"$f":"(M70/$AD$94)","v":0}]
[null,"RECYCLED/HARVESTED WATER DEMAND FOR FIRE SYSTEM TESTING (L/day)",null,null,null,null,0,null,null,null,null,{"$f":"IF($L$68=1,\"-\",G71)","v":0},{"$f":"IF(L68=1,0,(G71*$AD$94)/1000)","v":0},{"$f":"(M71/$AD$94)","v":0}]
[null,"RECYCLED/HARVESTED WATER DEMAND FOR OTHER (L/day)",null,null,null,null,0,null,null,null,null,{"$f":"IF($L$68=1,\"-\",G72)","v":0},{"$f":"IF(L68=1,0,(G72*$AD$94)/1000)","v":0},{"$f":"(M72/$AD$94)","v":0}]
[null,null,null,null,null,null,null,null,null,null,null,null,{"$f":"SUM(M69:M71)","v":0},"All predicted recycled water consumption"]
[null,null,null,null,null,null,null,null,null,null,null,null,{"$f":"((M73/$AD$94)/$H$4)*1000","v":{"$error":"#DIV/0!"}},"L/day/m2"]
[null,"PREDICTED REDUCTION IN POTABLE WATER CONSUMPTION",null,null,null,null,null,null,null,null,null,null,null,null,null,null,null,null,null,null,null,null,null,null,null,null,null,null,null,null,null,null,null,null,"WATER BALANCE DEMAND ANALYSIS"]
[null,"RAINWATER/STORMWATER HARVESTING",null,null,null,null,null,null,null,null,null,null,null,null,null,null,"M76*P83",null,null,null,null,null,null,null,null,null,null,null,null,null,null,null,null,null,null,null,"Jan","Feb","Mar","Apr","May","Jun","Jul","Aug","Sep","Oct","Nov","Dec",null,"ANNUAL TOTAL"]
[null,"Are there any rainwater/stormwater harvesting systems, and if so, do they comply with Local Authority requirements?",null,null,null,null,null,null,null,null,null,2,"Drop-down outputs",null,null,null,null,null,null,null,null,null,null,null,null,null,null,null,null,null,null,null,null,null,"Total Days",null,31,28,31,30,31,30,31,31,30,31,30,31,null,{"$f":"SUM(AK77:AV77)","v":365}]
[null,"Harvested water collected is used for (please tick appropriate box(es) ): ",null,null,null,null,null,null,null,null,null,"Results of tick boxes at left",null,"Demands from tick boxes at left (kL/day)",null,"RAINWATER TANK BALANCE CALCULATIONS",null,null,null,null,null,null,null,null,null,null,null,null,null,null,null,null,null,null,"Work Days",null,21,20,23,22,21,22,22,22,22,21,22,23,null,{"$f":"SUM(AK78:AV78)","v":261}]
[null,null,"Irrigation",null,"     WC & Urinal Flushing",null,null,null,null,null,null,false,false,{"$f":"IF(L77=1,0,IF(L79,(T118/AX78)/1000,0))","v":0},{"$f":"IF(L77=1,0,IF(M79,(W118/AX78)/1000,0))","v":0},"This is a very basic and crude assessment of the inflows and outflows of a water storage and reuse system. Projects may use a single tank to store rainwater, stormwater(surface runoff), condensate, fire system test water. This scenario is significantly co",null,null,null,null,null,null,null,null,null,null,null,null,null,null,null,null,null,null,"AMENITY CONSUMPTION/DEMAND"]
[null,null,"Cooling Tower",null,"     Shower & Taps (treated to potable)",null,null,null,null,null,null,false,false,{"$f":"IF(L77=1,0,IF(L80,(U118/AX78)/1000,0))","v":0},{"$f":"IF(L77=1,0,IF(M80,(X118/AX78)/1000,0))","v":0},null,null,null,null,null,null,null,null,null,null,null,null,null,null,null,null,null,null,null,"WC Consumption",null,{"$f":"AK78*$O$19","v":0},0,0,0,0,0,0,0,0,0,0,0,null,{"$f":"SUM(AK80:AV80)","v":0},{"$f":"AX80/$AX$84","v":{"$error":"#DIV/0!"}}]
[null,null,"Fire System Testing",null,"     Other",null,null,null,null,null,null,false,false,{"$f":"IF(L77=1,0,IF(L81,(V118/AX78)/1000,0))","v":0},{"$f":"IF(L77=1,0,IF(M81,(Y118/AX78)/1000,0))","v":0},null,null,null,null,null,null,null,null,null,null,null,null,null,null,null,null,null,null,null,"Urinal Consumption",null,{"$f":"AK78*$P$34","v":0},0,0,0,0,0,0,0,0,0,0,0,null,{"$f":"SUM(AK81:AV81)","v":0},{"$f":"AX81/$AX$84","v":{"$error":"#DIV/0!"}}]
[null,"Total water harvesting collection area (drained to storage tank(s))",null,null,null,null,0,null,null,null,null,null,null,"Total Rain/Stormwater Demand",{"$f":"SUM(N79:O81)","v":0},"Month","Jan","Feb","Mar","Apr","May","Jun","Jul","Aug","Sep","Oct","Nov","Dec",null,"Annual Totals","L/m2/day",null,null,null,"Indoor Tap Consumption",null,{"$f":"AK78*$P$45","v":0},0,0,0,0,0,0,0,0,0,0,0,null,{"$f":"SUM(AK82:AV82)","v":0},{"$f":"AX82/$AX$84","v":{"$error":"#DIV/0!"}}]
[null,"Total storage capacity of harvested water tank(s) (kL)",null,null,null,null,0,null,null,null,null,"Coefficient Selection","Effective Area (m2)","Output/Entered Data",null,"Avg monthly rainfall (mm)",{"$f":"C89","v":0},0,0,0,0,0,{"$f":"C91","v":0},0,0,0,0,0,null,{"$f":"SUM(Q83:AB83)","v":0},null,null,null,null,"Shower Consumption",null,{"$f":"AK78*$P$54","v":0},0,0,0,0,0,0,0,0,0,0,0,null,{"$f":"SUM(AK83:AV83)","v":0},{"$f":"AX83/$AX$84","v":{"$error":"#DIV/0!"}}]
[null,"Collection Area Types","Rainwater Run-off Coefficient",null,null,null,{"$f":"VLOOKUP($L84,$AA$36:$AD$40,4)","v":0},0,{"$f":"IF(G82=0,\"\",IF(SUM(H84:H86)=G82,\"\",\"Error. Check area!\"))","v":""},null,null,1,{"$f":"G84*H84","v":0},{"$f":"O82","v":0},"Rainwater demand kL/day","Total Harvest + Exist Tank Vol",{"$f":"IF((($M$87*Q83)-($M$87/100*$T$30*$N$87))<0,0,(((($M$87*Q83)-($M$87/100*$T$30*$N$87)))/1000)+(0.25*$N$86))","v":0},{"$f":"IF((($M$87*R83)-($M$87/100*$T$30*$N$87))<0,0,(((($M$87*R83)-($M$87/100*$T$30*$N$87)))/1000)+Q87)","v":0},0,0,0,0,0,0,0,0,0,0,null,{"$f":"SUM(P84:AB84)","v":0},{"$f":"AD84/$AD$91/$H$4*1000","v":{"$error":"#DIV/0!"}},null,null,null,"TOTAL Amenity Consumption",null,{"$f":"SUM(AK80:AK83)","v":0},0,0,0,0,0,0,0,0,0,0,0,null,{"$f":"SUM(AK84:AV84)","v":0},{"$f":"AX84","v":0}]
[null,null,null,null,null,null,{"$f":"VLOOKUP($L85,$AA$36:$AD$40,4)","v":0},0,null,null,null,1,{"$f":"G85*H85","v":0},{"$f":"G82","v":0},"Roof area into tank m2","Monthly Demand",{"$f":"AK173/1000","v":0},0,0,0,0,0,0,0,0,0,0,0,null,{"$f":"SUM(Q85:AB85)","v":0},{"$f":"AD85/$AD$91/$H$4*1000","v":{"$error":"#DIV/0!"}},null,null,null,"NON-AMENITY RECYCLED WATER DEMAND"]
[null,null,null,null,null,null,{"$f":"VLOOKUP($L86,$AA$36:$AD$40,4)","v":0},0,null,null,null,1,{"$f":"G86*H86","v":0},{"$f":"G83","v":0},"Storage capacity kL","Overflow to drain",{"$f":"IF(Q84>Q85,Q84-Q85,0)","v":0},0,0,0,0,0,0,0,0,0,0,0,null,{"$f":"SUM(Q86:AB86)","v":0},{"$f":"AD86/$AD$91/$H$4*1000","v":{"$error":"#DIV/0!"}},null,null,null,"Irrigation Consumption",null,{"$f":"AK77*$G$69","v":0},0,0,0,0,0,0,0,0,0,0,0,null,{"$f":"SUM(AK86:AV86)","v":0},{"$f":"AX86/$AX$90","v":{"$error":"#DIV/0!"}}]
[null,"Average monthly rainfall for the building location (mm):",null,null,null,null,null,null,null,null,null,"TOTAL:",{"$f":"SUM(M84:M86)","v":0},{"$f":"H92/12","v":0},"month no. of rain days","Volume at month end",{"$f":"IF(Q86>$N$86,$N$86,Q86)","v":0},{"$f":"MIN($N$86,(Q86+IF(R86>$N$86,$N$86,R86)))","v":0},0,0,0,0,0,0,0,0,0,0,null,null,null,null,null,null,"Cooling Tower Consumption",null,{"$f":"AK78*$G$70","v":0},0,0,0,0,0,0,0,0,0,0,0,null,{"$f":"SUM(AK87:AV87)","v":0},{"$f":"AX87/$AX$90","v":{"$error":"#DIV/0!"}}]
[null,"Location","Jan.","Feb.","March","April","May","June",null,null,null,null,null,null,null,"Top up water ",{"$f":"IF(Q84<Q85,(Q85-Q84),0)","v":0},0,0,0,0,0,0,0,0,0,0,0,null,{"$f":"SUM(Q88:AB88)","v":0},{"$f":"AD88/$AD$91/$H$4*1000","v":{"$error":"#DIV/0!"}},null,null,null,"Fire System Test Consumption",null,{"$f":"$G$71*AK78","v":0},0,0,0,0,0,0,0,0,0,0,0,null,{"$f":"SUM(AK88:AV88)","v":0},{"$f":"AX88/$AX$90","v":{"$error":"#DIV/0!"}}]
[null,1,{"$f":"VLOOKUP($B$89,'Rainfall data'!$A$3:$N$33,3,FALSE)","v":0},{"$f":"VLOOKUP($B$89,'Rainfall data'!$A$3:$N$33,4,FALSE)","v":0},{"$f":"VLOOKUP($B$89,'Rainfall data'!$A$3:$N$33,5,FALSE)","v":0},{"$f":"VLOOKUP($B$89,'Rainfall data'!$A$3:$N$33,6,FALSE)","v":0},{"$f":"VLOOKUP($B$89,'Rainfall data'!$A$3:$N$33,7,FALSE)","v":0},{"$f":"VLOOKUP($B$89,'Rainfall data'!$A$3:$N$33,8,FALSE)","v":0},null,null,null,null,null,null,null,null,null,null,null,null,null,null,null,null,null,null,null,null,null,null,null,null,null,null,"Other Consumption",null,{"$f":"AK78*$G$72","v":0},0,0,0,0,0,0,0,0,0,0,0,null,{"$f":"SUM(AK89:AV89)","v":0},{"$f":"AX89/$AX$90","v":{"$error":"#DIV/0!"}}]
[null,null,"July","August","Sept.","Oct.","Nov.","Dec.",null,null,null,null,null,null,null,"Monthly effective use",{"$f":"IF(Q85<Q84,Q85,Q84)","v":0},0,0,0,0,0,0,0,0,0,0,0,null,{"$f":"SUM(Q90:AB90)","v":0},{"$f":"((AD90-(N79*AD94))/$AD$91/$H$4*1000)","v":{"$error":"#DIV/0!"}},null,null,null,"TOTAL Non-Amenity Consumption",null,{"$f":"SUM(AK86:AK89)","v":0},0,0,0,0,0,0,0,0,0,0,0,null,{"$f":"SUM(AK90:AV90)","v":0},{"$f":"AX90","v":0}]
[null,null,{"$f":"VLOOKUP($B$89,'Rainfall data'!$A$3:$N$33,9,FALSE)","v":0},{"$f":"VLOOKUP($B$89,'Rainfall data'!$A$3:$N$33,10,FALSE)","v":0},{"$f":"VLOOKUP($B$89,'Rainfall data'!$A$3:$N$33,11,FALSE)","v":0},{"$f":"VLOOKUP($B$89,'Rainfall data'!$A$3:$N$33,12,FALSE)","v":0},{"$f":"VLOOKUP($B$89,'Rainfall data'!$A$3:$N$33,13,FALSE)","v":0},{"$f":"VLOOKUP($B$89,'Rainfall data'!$A$3:$N$33,14,FALSE)","v":0},null,null,null,null,null,{"$f":"(SUM(O79:O80))*1000","v":0},"Amenity Potable(Mains) Water Reduction (L/day)","days",31,28,31,30,31,30,31,31,30,31,30,31,null,{"$f":"SUM(Q91:AB91)","v":365},null,null,null,null,"POTENTIAL RECYCLED WATER DEMAND BREAKDOWN"]
[null,null,"Annual number of rain days > 1mm:",null,null,null,null,{"$f":"VLOOKUP($B$89,'Rainfall data'!$A$3:$P$33,16,FALSE)","v":0},null,null,null,null,null,null,null,"Tank Efficiency",null,null,null,null,null,null,null,null,null,null,null,null,null,{"$f":"1/AD84*AD90","v":{"$error":"#DIV/0!"}},{"$f":"AD85-AD88","v":0},null,null,null,"ALL Potential Consumption Breakdown"]
[null,"Predicted amenity potable(mains) water reduction due to rainwater harvesting (L/day/m2)",null,null,null,null,{"$f":"IF(TYPE(N91/$H$4)=16,0,(N91/$H$4))","v":0},null,null,null,null,null,null,null,null,null,null,null,null,null,null,null,null,null,null,null,null,null,null,null,null,null,null,null,"WC Consumption",null,{"$f":"(AK80)/(AK$84+AK$90)","v":{"$error":"#DIV/0!"}},{"$error":"#DIV/0!"},{"$error":"#DIV/0!"},{"$error":"#DIV/0!"},{"$error":"#DIV/0!"},{"$error":"#DIV/0!"},{"$error":"#DIV/0!"},{"$error":"#DIV/0!"},{"$error":"#DIV/0!"},{"$error":"#DIV/0!"},{"$error":"#DIV/0!"},{"$error":"#DIV/0!"}]
[null,null,null,null,null,null,null,null,null,null,null,null,null,null,null,"WORK DAYS",21,20,23,22,21,22,22,22,22,21,22,23,null,{"$f":"SUM(Q94:AB94)","v":261},null,null,null,null,"Urinal Consumption",null,{"$f":"(AK81)/(AK$84+AK$90)","v":{"$error":"#DIV/0!"}},{"$error":"#DIV/0!"},{"$error":"#DIV/0!"},{"$error":"#DIV/0!"},{"$error":"#DIV/0!"},{"$error":"#DIV/0!"},{"$error":"#DIV/0!"},{"$error":"#DIV/0!"},{"$error":"#DIV/0!"},{"$error":"#DIV/0!"},{"$error":"#DIV/0!"},{"$error":"#DIV/0!"}]
[null,"GREYWATER HARVESTING",null,null,null,null,null,null,null,null,null,null,null,null,null,null,{"$f":"Q91/Q94","v":1.4761904761904763},1.4,1.3478260869565217,1.3636363636363635,1.4761904761904763,1.3636363636363635,1.4090909090909092,1.4090909090909092,1.3636363636363635,1.4761904761904763,1.3636363636363635,1.3478260869565217,null,{"$f":"AD91/AD94","v":1.3984674329501916},null,null,null,null,"Indoor Tap Consumption",null,{"$f":"(AK82)/(AK$84+AK$90)","v":{"$error":"#DIV/0!"}},{"$error":"#DIV/0!"},{"$error":"#DIV/0!"},{"$error":"#DIV/0!"},{"$error":"#DIV/0!"},{"$error":"#DIV/0!"},{"$error":"#DIV/0!"},{"$error":"#DIV/0!"},{"$error":"#DIV/0!"},{"$error":"#DIV/0!"},{"$error":"#DIV/0!"},{"$error":"#DIV/0!"}]
[null,"Are there any greywater harvesting systems, and if so, do they comply with Local Authority requirements?",null,null,null,null,null,null,null,null,null,2,"Drop-down output",null,null,null,null,null,null,null,null,null,null,null,null,null,null,null,null,null,null,null,null,null,"Shower Consumption",null,{"$f":"(AK83)/(AK$84+AK$90)","v":{"$error":"#DIV/0!"}},{"$error":"#DIV/0!"},{"$error":"#DIV/0!"},{"$error":"#DIV/0!"},{"$error":"#DIV/0!"},{"$error":"#DIV/0!"},{"$error":"#DIV/0!"},{"$error":"#DIV/0!"},{"$error":"#DIV/0!"},{"$error":"#DIV/0!"},{"$error":"#DIV/0!"},{"$error":"#DIV/0!"}]
[null,"Greywater harvested is used for (please tick appropriate box(es)): ",null,null,null,null,null,null,null,null,null,null,null,null,null,null,null,null,null,null,null,null,null,null,null,null,null,null,null,"TOTALS",null,null,null,null,"Irrigation Consumption",null,{"$f":"(AK86)/(AK$84+AK$90)","v":{"$error":"#DIV/0!"}},{"$error":"#DIV/0!"},{"$error":"#DIV/0!"},{"$error":"#DIV/0!"},{"$error":"#DIV/0!"},{"$error":"#DIV/0!"},{"$error":"#DIV/0!"},{"$error":"#DIV/0!"},{"$error":"#DIV/0!"},{"$error":"#DIV/0!"},{"$error":"#DIV/0!"},{"$error":"#DIV/0!"}]
[null,null,"Irrigation",null,"  WC & Urinal Flushing",null,null,null,null,null,null,"Results of tick box at left",null,"Reused GW Supply (kL/day)",null,"Month","Jan","Feb","Mar","Apr","May","Jun","Jul","Aug","Sep","Oct","Nov","Dec",null,null,null,null,null,null,"Cooling Tower Consumption",null,{"$f":"(AK87)/(AK$84+AK$90)","v":{"$error":"#DIV/0!"}},{"$error":"#DIV/0!"},{"$error":"#DIV/0!"},{"$error":"#DIV/0!"},{"$error":"#DIV/0!"},{"$error":"#DIV/0!"},{"$error":"#DIV/0!"},{"$error":"#DIV/0!"},{"$error":"#DIV/0!"},{"$error":"#DIV/0!"},{"$error":"#DIV/0!"},{"$error":"#DIV/0!"}]
[null,null,"Cooling Tower",null,"  Shower & Taps (treated to potable)",null,null,null,null,null,null,false,false,{"$f":"IF(L96=1,0,IF(L99,(T119/AX78)/1000,0))","v":0},{"$f":"IF(L96=1,0,IF(M99,(W119/AX78)/1000,0))","v":0},"Greywater Inflow (Taps)",{"$f":"($N$103*Q94)/1000","v":0},0,0,0,0,0,0,0,0,0,0,0,null,{"$f":"SUM(Q99:AB99)","v":0},null,null,null,null,"Fire System Test Consumption",null,{"$f":"(AK88)/(AK$84+AK$90)","v":{"$error":"#DIV/0!"}},{"$error":"#DIV/0!"},{"$error":"#DIV/0!"},{"$error":"#DIV/0!"},{"$error":"#DIV/0!"},{"$error":"#DIV/0!"},{"$error":"#DIV/0!"},{"$error":"#DIV/0!"},{"$error":"#DIV/0!"},{"$error":"#DIV/0!"},{"$error":"#DIV/0!"},{"$error":"#DIV/0!"}]
[null,null,"Fire System Testing",null,"  Other",null,null,null,null,null,null,false,false,{"$f":"IF(L96=1,0,IF(L100,(U119/AX78)/1000,0))","v":0},{"$f":"IF(L96=1,0,IF(M100,(X119/AX78)/1000,0))","v":0},"Greywater Inflow (Showers)",{"$f":"($N$104*Q94)/1000","v":0},0,0,0,0,0,0,0,0,0,0,0,null,{"$f":"SUM(Q100:AB100)","v":0},null,null,null,null,"Other Consumption",null,{"$f":"(AK89)/(AK$84+AK$90)","v":{"$error":"#DIV/0!"}},{"$error":"#DIV/0!"},{"$error":"#DIV/0!"},{"$error":"#DIV/0!"},{"$error":"#DIV/0!"},{"$error":"#DIV/0!"},{"$error":"#DIV/0!"},{"$error":"#DIV/0!"},{"$error":"#DIV/0!"},{"$error":"#DIV/0!"},{"$error":"#DIV/0!"},{"$error":"#DIV/0!"}]
[null,"Percentage of indoor taps used for greywater collection",null,null,null,null,0,null,null,null,null,false,false,{"$f":"IF(L96=1,0,IF(L101,(V119/AX78)/1000,0))","v":0},{"$f":"IF(L96=1,0,IF(M101,(Y119/AX78)/1000,0))","v":0},"Greywater Inflow (Other)",{"$f":"($N$105*Q94)/1000","v":0},0,0,0,0,0,0,0,0,0,0,0,null,{"$f":"SUM(Q101:AB101)","v":0},null,null,null,null,"AMENITY/NON-AMENITY Consumption Breakdown"]
[null,"Percentage of showers used for greywater collection ",null,null,null,null,0,null,null,null,null,null,null,"sum of all recycled water demand:",{"$f":"SUM(N99:O101)","v":0},"Greywater TOTAL",{"$f":"SUM(Q99:Q101)","v":0},0,0,0,0,0,0,0,0,0,0,0,null,{"$f":"SUM(Q102:AB102)","v":0},null,null,null,null,"Non-Amenity",null,{"$f":"(AK90)/(AK90+AK84)","v":{"$error":"#DIV/0!"}},{"$error":"#DIV/0!"},{"$error":"#DIV/0!"},{"$error":"#DIV/0!"},{"$error":"#DIV/0!"},{"$error":"#DIV/0!"},{"$error":"#DIV/0!"},{"$error":"#DIV/0!"},{"$error":"#DIV/0!"},{"$error":"#DIV/0!"},{"$error":"#DIV/0!"},{"$error":"#DIV/0!"}]
[null,"Storage capacity of greywater tank(s) (kL)",null,null,null,null,0,null,null,null,null,null,null,{"$f":"G101*P45","v":0},"L/day supply from taps",null,null,null,null,null,null,null,null,null,null,null,null,null,null,null,null,null,null,null,"Amenity (Non-potable; WC & U)",null,{"$f":"(AK80+AK81)/(AK84+AK90)","v":{"$error":"#DIV/0!"}},{"$error":"#DIV/0!"},{"$error":"#DIV/0!"},{"$error":"#DIV/0!"},{"$error":"#DIV/0!"},{"$error":"#DIV/0!"},{"$error":"#DIV/0!"},{"$error":"#DIV/0!"},{"$error":"#DIV/0!"},{"$error":"#DIV/0!"},{"$error":"#DIV/0!"},{"$error":"#DIV/0!"}]
[null,"Other greywater Collection Sources",null,null,null,null,"L/day",null,null,null,null,null,null,{"$f":"G102*P54","v":0},"L/day supply from showers","Recycled Greywater Demand (Amenity)",{"$f":"($O$99+$O$100)*Q94","v":0},0,0,0,0,0,0,0,0,0,0,0,null,{"$f":"SUM(Q104:AB104)","v":0},"This is potable water offset",null,null,null,"Amenity (Potable; S&T)",null,{"$f":"(AK82+AK83)/(AK84+AK90)","v":{"$error":"#DIV/0!"}},{"$error":"#DIV/0!"},{"$error":"#DIV/0!"},{"$error":"#DIV/0!"},{"$error":"#DIV/0!"},{"$error":"#DIV/0!"},{"$error":"#DIV/0!"},{"$error":"#DIV/0!"},{"$error":"#DIV/0!"},{"$error":"#DIV/0!"},{"$error":"#DIV/0!"},{"$error":"#DIV/0!"}]
[null,"<enter description here>",null,null,null,null,0,null,null,null,null,null,null,{"$f":"SUM(G105:H108)","v":0},"L/day from all other sources","Recycled Greywater Demand (Non-Amenity)",{"$f":"($N$99*Q91)+($N$100*Q94)+($N$101*Q94)+($O$101*Q94)","v":0},0,0,0,0,0,0,0,0,0,0,0,null,{"$f":"SUM(Q105:AB105)","v":0},null,null,null,null,"RECYCLED WATER REUSE 1st PRIORITY - BLACKWATER"]
[null,"<enter description here>",null,null,null,null,0,null,null,null,null,null,null,{"$f":"IF(SUM(N103:N105)<(G103*1000),SUM(N103:N105),(G103*1000))","v":0},"Maximum L/day harvested (treated supply)",null,null,null,null,null,null,null,null,null,null,null,null,null,null,null,null,null,null,null,"Total Blackwater Inflow/Resource (L)",null,{"$f":"$N$124*AK78","v":0},0,0,0,0,0,0,0,0,0,0,0,null,{"$f":"SUM(AK106:AV106)","v":0}]
[null,"<enter description here>",null,null,null,null,0,null,null,null,null,null,null,{"$f":"SUM(O99:O100)*1000","v":0},"Amenity Potable(Mains) Water Reduction (L/day)",null,null,null,null,null,null,null,null,null,null,null,null,null,null,null,null,null,null,null,"Selected Demands (Check Boxes)","WCs & Urinals",{"$f":"IF($M$115,(AK93+AK94),0)","v":0},0,0,0,0,0,0,0,0,0,0,0]
[null,"<enter description here>",null,null,null,null,0,null,null,null,null,null,null,null,null,null,null,null,null,null,null,null,null,null,null,null,null,null,null,null,null,null,null,null,null,"Showers & Taps",{"$f":"IF($M$116,(AK96+AK95),0)","v":0},0,0,0,0,0,0,0,0,0,0,0]
[]
[null,"Predicted amenity potable(mains) water replacement due to greywater harvesting (L/day/m2): ",null,null,null,null,{"$f":"IF(TYPE(N107/$H$4)=16,0,(N107/$H$4))","v":0},null,null,null,null,null,null,null,null,null,null,null,null,null,null,null,null,null,null,null,null,null,null,null,null,null,null,null,null,"Cooling Towers",{"$f":"IF($L$116,AK98,0)","v":0},0,0,0,0,0,0,0,0,0,0,0]
[null,null,null,null,null,null,null,null,null,null,null,null,null,{"$f":"IF(AND(L96=2,H4>0),IF(O102=0,0,IF(N106<=N107,(N103+N104+N105)/H4,((N107/N106)*(N103+N104))/H4)),0)","v":0},"L/day/m2 greywater from fittings for sewage calculator",null,null,null,null,null,null,null,null,null,null,null,null,null,null,null,null,null,null,null,null,"Irrigation",{"$f":"IF($L$115,AK97,0)","v":0},0,0,0,0,0,0,0,0,0,0,0]
[null,"BLACKWATER HARVESTING",null,null,null,null,null,null,null,null,null,null,null,null,null,null,null,null,null,null,null,null,null,null,null,null,null,null,null,null,null,null,null,null,null,"Fire System",{"$f":"IF($L$117,AK99,0)","v":0},0,0,0,0,0,0,0,0,0,0,0]
[null,"Are there any blackwater harvesting systems, and if so, do they comply with Local Authority requirements?",null,null,null,null,null,null,null,null,null,2,"Drop-down Output",null,null,null,null,null,null,null,null,null,null,null,null,null,null,null,null,null,null,null,null,null,null,"Other",{"$f":"IF($M$117,AK100,0)","v":0},0,0,0,0,0,0,0,0,0,0,0]
[null,"Blackwater harvested is used for (please tick appropriate box(es)): ",null,null,null,null,null,null,null,null,null,"Results of tick box at left",null,"Reused BW Supply (kL/day)",null,null,null,null,null,null,null,null,null,null,null,null,null,null,null,null,null,null,null,null,"Maximum BW Supply Quantities","WCs & Urinals",{"$f":"IF(SUM($AK$107:$AK$113)=0,0,IF(AK$106*(AK107/SUM($AK$107:$AK$113))<(AK80+AK81),AK$106*(AK107/SUM($AK$107:$AK$113)),(AK80+AK81)))","v":0},0,0,0,0,0,0,0,0,0,0,0,null,{"$f":"SUM(AK114:AV114)","v":0},{"$f":"AX114/($AX$80+$AX$81)","v":{"$error":"#DIV/0!"}}]
[null,null,"Irrigation",null,"   WC & Urinal Flushing",null,null,null,null,null,null,false,false,{"$f":"IF(L113=1,0,IF(L115,((T120/AX78)/1000),0))","v":0},{"$f":"IF(L113=1,0,IF(M115,(W120/AX78)/1000,0))","v":0},null,null,null,null,null,null,null,null,null,null,null,null,null,null,null,null,null,null,null,null,"Showers & Taps",{"$f":"IF(SUM($AK$107:$AK$113)=0,0,IF(AK$106*(AK108/SUM($AK$107:$AK$113))<(AK82+AK83),AK$106*(AK108/SUM($AK$107:$AK$113)),(AK82+AK83)))","v":0},0,0,0,0,0,0,0,0,0,0,0,null,0,{"$f":"AX115/($AX$82+$AX$83)","v":{"$error":"#DIV/0!"}}]
[null,null,"Cooling Tower",null,"   Shower & Taps (treated to potable)",null,null,null,null,null,null,false,false,{"$f":"IF(L113=1,0,IF(L116,(U120/AX78)/1000,0))","v":0},{"$f":"IF(L113=1,0,IF(M116,(X120/AX78)/1000,0))","v":0},null,null,null,"Annual Maximum Non-Potable Demands & Supply Breakdown",null,null,null,null,null,null,null,null,null,null,null,null,null,null,null,null,"Cooling Towers",{"$f":"IF(SUM($AK$107:$AK$113)=0,0,IF(AK$106*(AK110/SUM($AK$107:$AK$113))<(AK87),AK$106*(AK110/SUM($AK$107:$AK$113)),(AK87)))","v":0},0,0,0,0,0,0,0,0,0,0,0,null,0,{"$f":"SUM(AX114:AX115)","v":0}]
[null,null,"Fire System Testing",null,"   Other",null,null,null,null,null,null,false,false,{"$f":"IF(L113=1,0,IF(L117,(V120/AX78)/1000,0))","v":0},{"$f":"IF(L113=1,0,IF(M117,(Y120/AX78)/1000,0))","v":0},null,null,null,"Harvesting for ","Irrigation","Cooling T","FS Testing","WC & Us","S & T","Other",null,null,null,null,null,null,null,null,null,null,"Irrigation",{"$f":"IF(SUM($AK$107:$AK$113)=0,0,IF(AK$106*(AK111/SUM($AK$107:$AK$113))<(AK86),AK$106*(AK111/SUM($AK$107:$AK$113)),(AK86)))","v":0},0,0,0,0,0,0,0,0,0,0,0,null,0]
[null,"Percentage of WC's used for blackwater collection ",null,null,null,null,0,null,null,null,null,null,null,"sum of all recycled water demand:",{"$f":"SUM(N115:O117)","v":0},null,null,null,"Rainwater",{"$f":"AX179","v":{"$error":"#DIV/0!"}},{"$f":"AX178","v":{"$error":"#DIV/0!"}},{"$f":"AX180","v":{"$error":"#DIV/0!"}},{"$f":"AX176","v":{"$error":"#DIV/0!"}},{"$f":"AX177","v":{"$error":"#DIV/0!"}},{"$f":"AX181","v":{"$error":"#DIV/0!"}},null,null,null,null,null,null,null,null,null,null,"Fire System",{"$f":"IF(SUM($AK$107:$AK$113)=0,0,IF(AK$106*(AK112/SUM($AK$107:$AK$113))<(AK88),AK$106*(AK112/SUM($AK$107:$AK$113)),(AK88)))","v":0},0,0,0,0,0,0,0,0,0,0,0,null,0]
[null,"Percentage of urinals used for blackwater collection ",null,null,null,null,0,null,null,null,null,null,null,{"$f":"G118*O19","v":0},"L/day supply from WCs",null,null,null,"Greywater",{"$f":"AX144","v":0},{"$f":"AX143","v":0},{"$f":"AX145","v":0},{"$f":"AX141","v":0},{"$f":"AX142","v":0},{"$f":"AX146","v":0},null,null,null,null,null,null,null,null,null,null,"Other",{"$f":"IF(SUM($AK$107:$AK$113)=0,0,IF(AK$106*(AK113/SUM($AK$107:$AK$113))<(AK89),AK$106*(AK113/SUM($AK$107:$AK$113)),(AK89)))","v":0},0,0,0,0,0,0,0,0,0,0,0,null,0,{"$f":"SUM(AX116:AX119)","v":0}]
[null,"Percentage of indoor taps used for blackwater collection",null,null,null,null,0,null,null,null,null,null,null,{"$f":"G119*P34","v":0},"L/day supply from urinals",null,null,null,"Blackwater",{"$f":"AX117","v":0},{"$f":"AX116","v":0},{"$f":"AX118","v":0},{"$f":"AX114","v":0},{"$f":"AX115","v":0},{"$f":"AX119","v":0},null,null,null,null,null,null,null,null,null,"Make-up or Supply Required from Alternative Sources (Greywater, Rainwater &/or Stormwater)","WCs & Urinals",{"$f":"(AK80+AK81)-AK114","v":0},0,0,0,0,0,0,0,0,0,0,0,null,0,{"$f":"AX120/($AX$80+$AX$81)","v":{"$error":"#DIV/0!"}}]
[null,"Percentage of showers used for blackwater collection ",null,null,null,null,0,null,null,null,null,null,null,{"$f":"G120*P45","v":0},"L/day supply from taps",null,null,null,"Total Recycled Use",{"$f":"SUM(T118:T120)","v":{"$error":"#DIV/0!"}},{"$error":"#DIV/0!"},{"$error":"#DIV/0!"},{"$error":"#DIV/0!"},{"$error":"#DIV/0!"},{"$error":"#DIV/0!"},null,null,null,null,null,null,null,null,null,null,"Showers & Taps",{"$f":"(AK82+AK83)-AK115","v":0},0,0,0,0,0,0,0,0,0,0,0,null,0,{"$f":"AX121/($AX$82+$AX$83)","v":{"$error":"#DIV/0!"}}]
[null,"Storage capacity of Blackwater tank (kL)",null,null,null,null,0,null,null,null,null,null,null,{"$f":"G121*P54","v":0},"L/day supply from showers",null,null,null,"Total Actual Demand",{"$f":"AX86","v":0},{"$f":"AX87","v":0},{"$f":"AX88","v":0},{"$f":"AX80+AX81","v":0},{"$f":"AX82+AX83","v":0},{"$f":"AX89","v":0},null,null,null,null,null,null,null,null,null,null,"Cooling Towers",{"$f":"AK87-AK116","v":0},0,0,0,0,0,0,0,0,0,0,0,null,0,{"$f":"SUM(AX120:AX121)","v":0}]
[null,"Other blackwater collection sources",null,null,null,null,"L/day",null,null,null,null,null,null,{"$f":"SUM(G124:H127)","v":0},"L/day from all other sources",null,null,null,"% Supplied by Reused",{"$f":"IF(SUM(T118:T120)=0,0,(SUM(T118:T120))/T122)","v":{"$error":"#DIV/0!"}},{"$error":"#DIV/0!"},{"$error":"#DIV/0!"},{"$error":"#DIV/0!"},{"$error":"#DIV/0!"},{"$error":"#DIV/0!"},null,null,null,null,null,null,null,null,null,null,"Irrigation",{"$f":"AK86-AK117","v":0},0,0,0,0,0,0,0,0,0,0,0,null,0]
[null,"<enter description here>",null,null,null,null,0,null,null,null,null,null,null,{"$f":"IF(SUM(N119:N123)<(G122*1000),SUM(N119:N123),G122*1000)","v":0},"Maximum L/day harvested (treated supply)",null,null,null,"Supp. Potable Mains",{"$f":"AX191","v":{"$error":"#DIV/0!"}},{"$f":"AX190","v":{"$error":"#DIV/0!"}},{"$f":"AX192","v":{"$error":"#DIV/0!"}},{"$f":"AX188","v":{"$error":"#DIV/0!"}},{"$f":"AX189","v":{"$error":"#DIV/0!"}},{"$f":"AX193","v":{"$error":"#DIV/0!"}},null,null,null,null,null,null,null,null,null,null,"Fire System",{"$f":"AK88-AK118","v":0},0,0,0,0,0,0,0,0,0,0,0,null,0]
[null,"<enter description here>",null,null,null,null,0,null,null,null,null,null,null,{"$f":"(SUM(O115:O116)*1000)","v":0},"Amenity Potable(Mains) Water Reduction (L/day)",null,null,null,null,null,null,null,null,null,null,null,null,null,null,null,null,null,null,null,null,"Other",{"$f":"AK89-AK119","v":0},0,0,0,0,0,0,0,0,0,0,0,null,0,{"$f":"SUM(AX122:AX125)","v":0}]
[null,"<enter description here>",null,null,null,null,0,null,null,null,null,null,null,null,null,null,null,null,null,null,null,null,null,null,null,null,null,null,null,null,null,null,null,null,"Alternative Supply Demand Breakdown (Greywater, Rainwater &/or Stormwater)","WCs & Urinals",{"$f":"AK120/(SUM(AK$120:AK$125))","v":{"$error":"#DIV/0!"}},{"$error":"#DIV/0!"},{"$error":"#DIV/0!"},{"$error":"#DIV/0!"},{"$error":"#DIV/0!"},{"$error":"#DIV/0!"},{"$error":"#DIV/0!"},{"$error":"#DIV/0!"},{"$error":"#DIV/0!"},{"$error":"#DIV/0!"},{"$error":"#DIV/0!"},{"$error":"#DIV/0!"}]
[null,"<enter description here>",null,null,null,null,0,null,null,null,null,null,null,{"$f":"IF(AND($L$113=2,$H$4>0),IF(O118=0,0,(IF(N124<N125,(N119+N120+N121+N122+N123)/$H$4,((N125/N124)*(N119+N120+N121+N122))/$H$4))),0)","v":0},"L/day/m2 blackwater from WCs, urinals, taps & showers for sewage calculator",null,null,null,null,null,null,null,null,null,null,null,null,null,null,null,null,null,null,null,null,"Showers & Taps",{"$f":"AK121/(SUM(AK$120:AK$125))","v":{"$error":"#DIV/0!"}},{"$error":"#DIV/0!"},{"$error":"#DIV/0!"},{"$error":"#DIV/0!"},{"$error":"#DIV/0!"},{"$error":"#DIV/0!"},{"$error":"#DIV/0!"},{"$error":"#DIV/0!"},{"$error":"#DIV/0!"},{"$error":"#DIV/0!"},{"$error":"#DIV/0!"},{"$error":"#DIV/0!"}]
[null,null,null,null,null,null,null,null,null,null,null,null,null,null,null,null,null,null,null,null,null,null,null,null,null,null,null,null,null,null,null,null,null,null,null,"Cooling Towers",{"$f":"AK122/(SUM(AK$120:AK$125))","v":{"$error":"#DIV/0!"}},{"$error":"#DIV/0!"},{"$error":"#DIV/0!"},{"$error":"#DIV/0!"},{"$error":"#DIV/0!"},{"$error":"#DIV/0!"},{"$error":"#DIV/0!"},{"$error":"#DIV/0!"},{"$error":"#DIV/0!"},{"$error":"#DIV/0!"},{"$error":"#DIV/0!"},{"$error":"#DIV/0!"}]
[null,"Predicted amenity potable(mains) water replacement due to blackwater harvesting (L/day/m2): ",null,null,null,null,{"$f":"IF(TYPE(N125/$H$4)=16,0,N125/$H$4)","v":0},null,null,null,null,null,null,null,null,null,null,null,null,null,null,null,null,null,null,null,null,null,null,null,null,null,null,null,null,"Cooling Towers",{"$f":"AK122/(SUM(AK$120:AK$125))","v":{"$error":"#DIV/0!"}},{"$error":"#DIV/0!"},{"$error":"#DIV/0!"},{"$error":"#DIV/0!"},{"$error":"#DIV/0!"},{"$error":"#DIV/0!"},{"$error":"#DIV/0!"},{"$error":"#DIV/0!"},{"$error":"#DIV/0!"},{"$error":"#DIV/0!"},{"$error":"#DIV/0!"},{"$error":"#DIV/0!"}]
[null,null,null,null,null,null,null,null,null,null,null,null,null,null,null,null,null,null,null,null,null,null,null,null,null,null,null,null,null,null,null,null,null,null,null,"Irrigation",{"$f":"AK123/(SUM(AK$120:AK$125))","v":{"$error":"#DIV/0!"}},{"$error":"#DIV/0!"},{"$error":"#DIV/0!"},{"$error":"#DIV/0!"},{"$error":"#DIV/0!"},{"$error":"#DIV/0!"},{"$error":"#DIV/0!"},{"$error":"#DIV/0!"},{"$error":"#DIV/0!"},{"$error":"#DIV/0!"},{"$error":"#DIV/0!"},{"$error":"#DIV/0!"}]
[null,"The following estimated total reductions in potable water consumption is based on the data entered above and does not represent actual reduction of water consumption in the building. ",null,null,null,null,null,null,null,null,null,null,null,null,null,null,null,null,null,null,null,null,null,null,null,null,null,null,null,null,null,null,null,null,null,"Fire System",{"$f":"AK124/(SUM(AK$120:AK$125))","v":{"$error":"#DIV/0!"}},{"$error":"#DIV/0!"},{"$error":"#DIV/0!"},{"$error":"#DIV/0!"},{"$error":"#DIV/0!"},{"$error":"#DIV/0!"},{"$error":"#DIV/0!"},{"$error":"#DIV/0!"},{"$error":"#DIV/0!"},{"$error":"#DIV/0!"},{"$error":"#DIV/0!"},{"$error":"#DIV/0!"}]
[null,"Total Predicted Reduction in Amenity Potable(Mains) Water Consumption",null,null,null,null,{"$f":"SUM(G134:H136)","v":0},null,"L/day/m2",null,null,null,null,null,null,null,null,null,null,null,null,null,null,null,null,null,null,null,null,null,null,null,null,null,null,"Other",{"$f":"AK125/(SUM(AK$120:AK$125))","v":{"$error":"#DIV/0!"}},{"$error":"#DIV/0!"},{"$error":"#DIV/0!"},{"$error":"#DIV/0!"},{"$error":"#DIV/0!"},{"$error":"#DIV/0!"},{"$error":"#DIV/0!"},{"$error":"#DIV/0!"},{"$error":"#DIV/0!"},{"$error":"#DIV/0!"},{"$error":"#DIV/0!"},{"$error":"#DIV/0!"}]
[null,null,null,null,null,null,null,null,null,null,null,null,null,null,null,null,null,null,null,null,null,null,null,null,null,null,null,null,null,null,null,null,null,null,"RECYCLED WATER REUSE 2nd PRIORITY - GREYWATER"]
[null,"Rainwater",null,null,null,null,{"$f":"G93","v":0},null,"L/day/m2",null,null,null,null,null,null,null,null,null,null,null,null,null,null,null,null,null,null,null,null,null,null,null,null,null,"Total Greywater Inflow/Resource (L)",null,{"$f":"AK78*$N$106","v":0},0,0,0,0,0,0,0,0,0,0,0,null,{"$f":"SUM(AK134:AV134)","v":0}]
[null,"Greywater",null,null,null,null,{"$f":"G110","v":0},null,"L/day/m2",null,null,null,null,null,null,null,null,null,null,null,null,null,null,null,null,null,null,null,null,null,null,null,null,null,"Selected Demands (Check Boxes)","WCs & Urinals",{"$f":"IF($M$99,AK126,0)","v":0},0,0,0,0,0,0,0,0,0,0,0]
[null,"Blackwater",null,null,null,null,{"$f":"G129","v":0},null,"L/day/m2",null,null,null,null,null,null,null,null,null,null,null,null,null,null,null,null,null,null,null,null,null,null,null,null,null,null,"Showers & Taps",{"$f":"IF($M$100,AK127,0)","v":0},0,0,0,0,0,0,0,0,0,0,0]
[null,null,null,null,null,null,null,null,null,null,null,null,null,null,null,null,null,null,null,null,null,null,null,null,null,null,null,null,null,null,null,null,null,null,null,"Cooling Towers",{"$f":"IF($L$100,AK129,0)","v":0},0,0,0,0,0,0,0,0,0,0,0]
[null,null,null,null,null,null,null,null,null,null,null,null,null,null,null,null,null,null,null,null,null,null,null,null,null,null,null,null,null,null,null,null,null,null,null,"Irrigation",{"$f":"IF($L$99,AK130,0)","v":0},0,0,0,0,0,0,0,0,0,0,0]
[null,"PREDICTED RECYCLED WATER AVAILABLE",null,null,null,null,null,null,null,null,null,null,null,null,null,null,null,null,null,null,null,null,null,null,null,null,null,null,null,null,null,null,null,null,null,"Fire System",{"$f":"IF($L$101,AK131,0)","v":0},0,0,0,0,0,0,0,0,0,0,0]
[null,"The following estimated total predicted availability of water to fixtures is based on the data entered above and does not represent actual available water for consumption by fixtures within the building. ",null,null,null,null,null,null,null,null,null,null,null,null,null,null,null,null,null,null,null,null,null,null,null,null,null,null,null,null,null,null,null,null,null,"Other",{"$f":"IF($M$101,AK132,0)","v":0},0,0,0,0,0,0,0,0,0,0,0]
[null,"Total Predicted Recycled Water Available",null,null,null,null,{"$f":"G132+G142","v":0},null,"L/day/m2",null,null,null,null,null,null,null,null,null,null,null,null,null,null,null,null,null,null,null,null,null,null,null,null,null,"Maximum GW Supply Quantities","WCs & Urinals",{"$f":"IF(SUM(AK$135:AK$140)=0,0,IF(AK$134*(AK135/(SUM(AK$135:AK$140)))<AK120,AK$134*(AK135/(SUM(AK$135:AK$140))),AK120))","v":0},0,0,0,0,0,0,0,0,0,0,0,null,{"$f":"SUM(AK141:AV141)","v":0},{"$f":"AX141/($AX$80+$AX$81)","v":{"$error":"#DIV/0!"}}]
[null,"Recycled Water used for other purposes (irrigation, cooling towers, fire system testing & 'other')",null,null,null,null,{"$f":"IF(TYPE(((T121+U121+V121+Y121)/AX78)/$H$4)=16,0,((T121+U121+V121+Y121)/AX78)/$H$4)","v":0},null,"L/day/m2",null,null,null,null,null,null,null,null,null,null,null,null,null,null,null,null,null,null,null,null,null,null,null,null,null,null,"Showers & Taps",{"$f":"IF(SUM(AK$135:AK$140)=0,0,IF(AK$134*(AK136/(SUM(AK$135:AK$140)))<AK121,AK$134*(AK136/(SUM(AK$135:AK$140))),AK121))","v":0},0,0,0,0,0,0,0,0,0,0,0,null,0,{"$f":"AX142/($AX$82+$AX$83)","v":{"$error":"#DIV/0!"}}]
[null,"Total Predicted Recycled Water available to Fixtures",null,null,null,null,{"$f":"G132","v":0},null,"L/day/m2",null,null,null,null,null,null,null,null,null,null,null,null,null,null,null,null,null,null,null,null,null,null,null,null,null,null,"Cooling Towers",{"$f":"IF(SUM(AK$135:AK$140)=0,0,IF(AK$134*(AK137/(SUM(AK$135:AK$140)))<AK122,AK$134*(AK137/(SUM(AK$135:AK$140))),AK122))","v":0},0,0,0,0,0,0,0,0,0,0,0,null,0,{"$f":"SUM(AX141:AX142)","v":0}]
[null,null,null,null,null,null,null,null,null,null,null,null,null,null,null,null,null,null,null,null,null,null,null,null,null,null,null,null,null,null,null,null,null,null,null,"Irrigation",{"$f":"IF(SUM(AK$135:AK$140)=0,0,IF(AK$134*(AK138/(SUM(AK$135:AK$140)))<AK123,AK$134*(AK138/(SUM(AK$135:AK$140))),AK123))","v":0},0,0,0,0,0,0,0,0,0,0,0,null,0]
[null,null,null,null,null,null,null,null,null,null,null,null,null,null,null,null,null,null,null,null,null,null,null,null,null,null,null,null,null,null,null,null,null,null,null,"Fire System",{"$f":"IF(SUM(AK$135:AK$140)=0,0,IF(AK$134*(AK139/(SUM(AK$135:AK$140)))<AK124,AK$134*(AK139/(SUM(AK$135:AK$140))),AK124))","v":0},0,0,0,0,0,0,0,0,0,0,0,null,0]
[null,"TOTAL REDUCED POTABLE WATER USE",null,null,null,null,null,null,null,null,null,null,"Changed to Retailm Centre benchmarks",null,null,null,null,null,null,null,null,null,null,null,null,null,null,null,null,null,null,null,null,null,null,"Other",{"$f":"IF(SUM(AK$135:AK$140)=0,0,IF(AK$134*(AK140/(SUM(AK$135:AK$140)))<AK125,AK$134*(AK140/(SUM(AK$135:AK$140))),AK125))","v":0},0,0,0,0,0,0,0,0,0,0,0,null,0,{"$f":"SUM(AX143:AX146)","v":0}]
[null,"TOTAL REDUCED POTABLE WATER USE"]
[null,"Predicted Water Consumption from Fixtures",null,null,null,null,{"$f":"G58","v":0},null,"L/day/m2",null,null,null,"L/day/m2 benchmark ",null,"Credits",null,null,null,null,null,null,null,null,null,null,null,null,null,null,null,null,null,null,null,"Make-up or Supply Required from Alternative Sources (Rainwater/Stormwater)","WCs & Urinals",{"$f":"AK120-AK141","v":0},0,0,0,0,0,0,0,0,0,0,0,null,{"$f":"SUM(AK148:AV148)","v":0},{"$f":"AX148/($AX$80+$AX$81)","v":{"$error":"#DIV/0!"}}]
[null,"Predicted Recycled/Harvested Water available to Fixtures",null,null,null,null,{"$f":"G143","v":0},null,"L/day/m2",null,null,null,"No showers installed","Showers for 3% of staff ",null,null,null,null,null,null,null,null,null,null,null,null,null,null,null,null,null,null,null,null,null,"Showers & Taps",{"$f":"AK121-AK142","v":0},0,0,0,0,0,0,0,0,0,0,0,null,0,{"$f":"AX149/($AX$82+$AX$83)","v":{"$error":"#DIV/0!"}}]
[null,"NET POTABLE (MAINS) WATER CONSUMPTION",null,null,null,null,{"$f":"ROUND(G148-G149,2)","v":0},null,"L/day/m2",null,null,null,0,1,null,null,null,null,null,null,null,null,null,null,null,null,null,null,null,null,null,null,null,null,null,"Cooling Towers",{"$f":"AK122-AK143","v":0},0,0,0,0,0,0,0,0,0,0,0,null,0,{"$f":"SUM(AX148:AX149)","v":0}]
[null,"POINTS ACHIEVED:",null,null,null,null,{"$f":"IF(OR(G20=0,G45=0),0,IF(TYPE(128/H4)=16,0,IF(G150>B160,0,IF(AND(G150>B159,G150<=B160),E160,IF(AND(G150>B158,G150<=B159),E159,IF(AND(G150>B157,G150<=B158),E158,IF(AND(G150>B156,G150<=B157),E157,E156)))))))","v":0},null,null,null,null,null,0.14000000000000001,0.16,5,null,null,null,null,null,null,null,null,null,null,null,null,null,null,null,null,null,null,null,null,"Irrigation",{"$f":"AK123-AK144","v":0},0,0,0,0,0,0,0,0,0,0,0,null,0]
[null,null,null,null,null,null,null,null,null,null,null,null,0.28000000000000003,0.3,4,null,null,null,null,null,null,null,null,null,null,null,null,null,null,null,null,null,null,null,null,"Fire System",{"$f":"AK124-AK145","v":0},0,0,0,0,0,0,0,0,0,0,0,null,0]
[null,null,null,null,null,null,null,null,null,null,null,null,0.41,0.43,3,null,null,null,null,null,null,null,null,null,null,null,null,null,null,null,null,null,null,null,null,"Other",{"$f":"AK125-AK146","v":0},0,0,0,0,0,0,0,0,0,0,0,null,0,{"$f":"SUM(AX150:AX153)","v":0}]
[null,"Wat-1 Occupant Amenity Water \nPredicted Potable Water Rating Benchmark",null,null,null,null,null,null,null,null,null,null,0.53,0.56000000000000005,2,null,null,null,null,null,null,null,null,null,null,null,null,null,null,null,null,null,null,null,"Alternative Supply Demand Breakdown (Rainwater/Stormwater)","WCs & Urinals",{"$f":"(AK148/SUM(AK$148:AK$153))","v":{"$error":"#DIV/0!"}},{"$error":"#DIV/0!"},{"$error":"#DIV/0!"},{"$error":"#DIV/0!"},{"$error":"#DIV/0!"},{"$error":"#DIV/0!"},{"$error":"#DIV/0!"},{"$error":"#DIV/0!"},{"$error":"#DIV/0!"},{"$error":"#DIV/0!"},{"$error":"#DIV/0!"},{"$error":"#DIV/0!"}]
[null,"L/day/m2",null,null,"Points achieved",null,null,null,null,null,null,null,0.65,0.68,1,null,null,null,null,null,null,null,null,null,null,null,null,null,null,null,null,null,null,null,null,"Showers & Taps",{"$f":"(AK149/SUM(AK$148:AK$153))","v":{"$error":"#DIV/0!"}},{"$error":"#DIV/0!"},{"$error":"#DIV/0!"},{"$error":"#DIV/0!"},{"$error":"#DIV/0!"},{"$error":"#DIV/0!"},{"$error":"#DIV/0!"},{"$error":"#DIV/0!"},{"$error":"#DIV/0!"},{"$error":"#DIV/0!"},{"$error":"#DIV/0!"},{"$error":"#DIV/0!"}]
[null,{"$f":"HLOOKUP(L55,M150:N155,2)","v":0.14000000000000001},null,null,5,null,null,null,null,null,null,null,null,null,null,null,null,null,null,null,null,null,null,null,null,null,null,null,null,null,null,null,null,null,null,"Cooling Towers",{"$f":"(AK150/SUM(AK$148:AK$153))","v":{"$error":"#DIV/0!"}},{"$error":"#DIV/0!"},{"$error":"#DIV/0!"},{"$error":"#DIV/0!"},{"$error":"#DIV/0!"},{"$error":"#DIV/0!"},{"$error":"#DIV/0!"},{"$error":"#DIV/0!"},{"$error":"#DIV/0!"},{"$error":"#DIV/0!"},{"$error":"#DIV/0!"},{"$error":"#DIV/0!"}]
[null,{"$f":"HLOOKUP(L55,M150:O155,3)","v":0.28000000000000003},null,null,4,null,null,null,null,null,null,null,null,null,null,null,null,null,null,null,null,null,null,null,null,null,null,null,null,null,null,null,null,null,null,"Irrigation",{"$f":"(AK151/SUM(AK$148:AK$153))","v":{"$error":"#DIV/0!"}},{"$error":"#DIV/0!"},{"$error":"#DIV/0!"},{"$error":"#DIV/0!"},{"$error":"#DIV/0!"},{"$error":"#DIV/0!"},{"$error":"#DIV/0!"},{"$error":"#DIV/0!"},{"$error":"#DIV/0!"},{"$error":"#DIV/0!"},{"$error":"#DIV/0!"},{"$error":"#DIV/0!"}]
[null,{"$f":"HLOOKUP(L55,M150:O155,4)","v":0.41},null,null,3,null,null,null,null,null,null,null,"% sewer reduction","L/day/m2 benchmark ((L/day/person)/(m2/person))",null,null,"Credits","Calc \n(0%)","Calc \n(3%)",null,null,null,null,null,null,null,null,null,null,null,null,null,null,null,null,"Fire System",{"$f":"(AK152/SUM(AK$148:AK$153))","v":{"$error":"#DIV/0!"}},{"$error":"#DIV/0!"},{"$error":"#DIV/0!"},{"$error":"#DIV/0!"},{"$error":"#DIV/0!"},{"$error":"#DIV/0!"},{"$error":"#DIV/0!"},{"$error":"#DIV/0!"},{"$error":"#DIV/0!"},{"$error":"#DIV/0!"},{"$error":"#DIV/0!"},{"$error":"#DIV/0!"}]
[null,{"$f":"HLOOKUP(L55,M150:O155,5)","v":0.53},null,null,2,null,null,null,null,null,null,null,null,"No showers installed","Shower Demand\n(3%)",null,null,null,null,null,null,null,null,null,null,null,null,null,null,null,null,null,null,null,null,"Other",{"$f":"(AK153/SUM(AK$148:AK$153))","v":{"$error":"#DIV/0!"}},{"$error":"#DIV/0!"},{"$error":"#DIV/0!"},{"$error":"#DIV/0!"},{"$error":"#DIV/0!"},{"$error":"#DIV/0!"},{"$error":"#DIV/0!"},{"$error":"#DIV/0!"},{"$error":"#DIV/0!"},{"$error":"#DIV/0!"},{"$error":"#DIV/0!"},{"$error":"#DIV/0!"}]
[null,{"$f":"HLOOKUP(L55,M150:O155,6)","v":0.65},null,null,1,null,null,null,null,null,null,null,null,null,null,null,null,null,null,null,null,null,null,null,null,null,null,null,null,null,null,null,null,null,"RECYCLED WATER REUSE 3rd PRIORITY - RAINWATER & STORMWATER"]
[null,null,null,null,null,null,null,null,null,null,null,null,0.9,0.1,0.14000000000000001,null,4,{"$f":"IF($G$150<N161,1,0)","v":1},1,null,null,null,null,null,null,null,null,null,null,null,null,null,null,null,"Selected Demands (Check Boxes)","WCs & Urinals",{"$f":"IF($M$79,AK154,0)","v":0},0,0,0,0,0,0,0,0,0,0,0]
[null,null,null,null,null,null,null,null,null,null,null,null,0.7,0.3,0.42,null,3,1,1,null,null,null,null,null,null,null,null,null,null,null,null,null,null,null,null,"Showers & Taps",{"$f":"IF($M$80,AK155,0)","v":0},0,0,0,0,0,0,0,0,0,0,0]
[null,null,null,null,null,null,null,null,null,null,null,null,0.5,0.5,0.7,null,2,1,1,null,null,null,null,null,null,null,null,null,null,null,null,null,null,null,null,"Cooling Towers",{"$f":"IF($L$80,AK156,0)","v":0},0,0,0,0,0,0,0,0,0,0,0]
[null,null,null,null,null,null,null,null,null,null,null,null,0.3,0.7,0.98,null,1,1,1,null,null,null,null,null,null,null,null,null,null,null,null,null,null,null,null,"Irrigation",{"$f":"IF($L$79,AK157,0)","v":0},0,0,0,0,0,0,0,0,0,0,0]
[null,null,null,null,null,null,null,null,null,null,null,null,0,1,1.4,null,null,null,null,null,null,null,null,null,null,null,null,null,null,null,null,null,null,null,null,"Fire System",{"$f":"IF($L$81,AK158,0)","v":0},0,0,0,0,0,0,0,0,0,0,0]
[null,null,null,null,null,null,null,null,null,null,null,null,null,null,null,null,null,{"$f":"SUM(R160:R165)","v":4},{"$f":"SUM(S160:S165)","v":4},null,null,null,null,null,null,null,null,null,null,null,null,null,null,null,null,"Other",{"$f":"IF($M$81,AK159,0)","v":0},0,0,0,0,0,0,0,0,0,0,0]
[null,null,null,null,null,null,null,null,null,null,null,null,null,null,null,null,null,null,null,null,null,null,null,null,null,null,null,null,null,null,null,null,null,null,"Maximum RW & SW Demand Quantity","WCs & Urinals",{"$f":"(SUM(AK$148:AK$153)*AK161)","v":0},0,0,0,0,0,0,0,0,0,0,0,null,{"$f":"SUM(AK167:AV167)","v":0},{"$f":"AX167/($AX$80+$AX$81)","v":{"$error":"#DIV/0!"}}]
[null,null,null,null,null,null,null,null,null,null,null,null,null,null,null,null,null,null,null,null,null,null,null,null,null,null,null,null,null,null,null,null,null,null,null,"Showers & Taps",{"$f":"(SUM(AK$148:AK$153)*AK162)","v":0},0,0,0,0,0,0,0,0,0,0,0,null,0,{"$f":"AX168/($AX$82+$AX$83)","v":{"$error":"#DIV/0!"}}]
[null,null,null,null,null,null,null,null,null,null,null,null,null,null,null,null,null,null,null,null,null,null,null,null,null,null,null,null,null,null,null,null,null,null,null,"Cooling Towers",{"$f":"(SUM(AK$148:AK$153)*AK163)","v":0},0,0,0,0,0,0,0,0,0,0,0,null,0,{"$f":"SUM(AX167:AX168)","v":0}]
[null,null,null,null,null,null,null,null,null,null,null,null,null,null,null,null,null,null,null,null,null,null,null,null,null,null,null,null,null,null,null,null,null,null,null,"Irrigation",{"$f":"(SUM(AK$148:AK$153)*AK164)","v":0},0,0,0,0,0,0,0,0,0,0,0,null,0]
[null,null,null,null,null,null,null,null,null,null,null,null,null,null,null,null,null,null,null,null,null,null,null,null,null,null,null,null,null,null,null,null,null,null,null,"Fire System",{"$f":"(SUM(AK$148:AK$153)*AK165)","v":0},0,0,0,0,0,0,0,0,0,0,0,null,0]
[null,null,null,null,null,null,null,null,null,null,null,null,null,null,null,null,null,null,null,null,null,null,null,null,null,null,null,null,null,null,null,null,null,null,null,"Other",{"$f":"(SUM(AK$148:AK$153)*AK166)","v":0},0,0,0,0,0,0,0,0,0,0,0,null,0,{"$f":"SUM(AX169:AX172)","v":0}]
[null,null,null,null,null,null,null,null,null,null,null,null,null,null,null,null,null,null,null,null,null,null,null,null,null,null,null,null,null,null,null,null,null,null,"Total Monthly Rainwater/Stormwater Demand (L)",null,{"$f":"SUM(AK167:AK172)","v":0},0,0,0,0,0,0,0,0,0,0,0,null,0]
[null,null,null,null,null,null,null,null,null,null,null,null,null,null,null,null,null,null,null,null,null,null,null,null,null,null,null,null,null,null,null,null,null,null,"Total Monthly Effective use of Harvest Water",null,{"$f":"Q90*1000","v":0},0,0,0,0,0,0,0,0,0,0,0,null,0]
[null,null,null,null,null,null,null,null,null,null,null,null,null,null,null,null,null,null,null,null,null,null,null,null,null,null,null,null,null,null,null,null,null,null,"% Utilisation",null,{"$f":"AK174/AK173","v":{"$error":"#DIV/0!"}},{"$error":"#DIV/0!"},{"$error":"#DIV/0!"},{"$error":"#DIV/0!"},{"$error":"#DIV/0!"},{"$error":"#DIV/0!"},{"$error":"#DIV/0!"},{"$error":"#DIV/0!"},{"$error":"#DIV/0!"},{"$error":"#DIV/0!"},{"$error":"#DIV/0!"},{"$error":"#DIV/0!"},null,{"$f":"AX174/AX173","v":{"$error":"#DIV/0!"}}]
[null,null,null,null,null,null,null,null,null,null,null,null,null,null,null,null,null,null,null,null,null,null,null,null,null,null,null,null,null,null,null,null,null,null,"Supply of Effective Use to Demands","WCs & Urinals",{"$f":"(AK161/(SUM(AK$161:AK$166)))*AK$174","v":{"$error":"#DIV/0!"}},{"$error":"#DIV/0!"},{"$error":"#DIV/0!"},{"$error":"#DIV/0!"},{"$error":"#DIV/0!"},{"$error":"#DIV/0!"},{"$error":"#DIV/0!"},{"$error":"#DIV/0!"},{"$error":"#DIV/0!"},{"$error":"#DIV/0!"},{"$error":"#DIV/0!"},{"$error":"#DIV/0!"},null,{"$f":"SUM(AK176:AV176)","v":{"$error":"#DIV/0!"}}]
[null,null,null,null,null,null,null,null,null,null,null,null,null,null,null,null,null,null,null,null,null,null,null,null,null,null,null,null,null,null,null,null,null,null,null,"Showers & Taps",{"$f":"(AK162/(SUM(AK$161:AK$166)))*AK$174","v":{"$error":"#DIV/0!"}},{"$error":"#DIV/0!"},{"$error":"#DIV/0!"},{"$error":"#DIV/0!"},{"$error":"#DIV/0!"},{"$error":"#DIV/0!"},{"$error":"#DIV/0!"},{"$error":"#DIV/0!"},{"$error":"#DIV/0!"},{"$error":"#DIV/0!"},{"$error":"#DIV/0!"},{"$error":"#DIV/0!"},null,{"$error":"#DIV/0!"}]
[null,null,null,null,null,null,null,null,null,null,null,null,null,null,null,null,null,null,null,null,null,null,null,null,null,null,null,null,null,null,null,null,null,null,null,"Cooling Towers",{"$f":"(AK163/(SUM(AK$161:AK$166)))*AK$174","v":{"$error":"#DIV/0!"}},{"$error":"#DIV/0!"},{"$error":"#DIV/0!"},{"$error":"#DIV/0!"},{"$error":"#DIV/0!"},{"$error":"#DIV/0!"},{"$error":"#DIV/0!"},{"$error":"#DIV/0!"},{"$error":"#DIV/0!"},{"$error":"#DIV/0!"},{"$error":"#DIV/0!"},{"$error":"#DIV/0!"},null,{"$error":"#DIV/0!"}]
[null,null,null,null,null,null,null,null,null,null,null,null,null,null,null,null,null,null,null,null,null,null,null,null,null,null,null,null,null,null,null,null,null,null,null,"Irrigation",{"$f":"(AK164/(SUM(AK$161:AK$166)))*AK$174","v":{"$error":"#DIV/0!"}},{"$error":"#DIV/0!"},{"$error":"#DIV/0!"},{"$error":"#DIV/0!"},{"$error":"#DIV/0!"},{"$error":"#DIV/0!"},{"$error":"#DIV/0!"},{"$error":"#DIV/0!"},{"$error":"#DIV/0!"},{"$error":"#DIV/0!"},{"$error":"#DIV/0!"},{"$error":"#DIV/0!"},null,{"$error":"#DIV/0!"}]
[null,null,null,null,null,null,null,null,null,null,null,null,null,null,null,null,null,null,null,null,null,null,null,null,null,null,null,null,null,null,null,null,null,null,null,"Fire System",{"$f":"(AK165/(SUM(AK$161:AK$166)))*AK$174","v":{"$error":"#DIV/0!"}},{"$error":"#DIV/0!"},{"$error":"#DIV/0!"},{"$error":"#DIV/0!"},{"$error":"#DIV/0!"},{"$error":"#DIV/0!"},{"$error":"#DIV/0!"},{"$error":"#DIV/0!"},{"$error":"#DIV/0!"},{"$error":"#DIV/0!"},{"$error":"#DIV/0!"},{"$error":"#DIV/0!"},null,{"$error":"#DIV/0!"}]
[null,null,null,null,null,null,null,null,null,null,null,null,null,null,null,null,null,null,null,null,null,null,null,null,null,null,null,null,null,null,null,null,null,null,null,"Other",{"$f":"(AK166/(SUM(AK$161:AK$166)))*AK$174","v":{"$error":"#DIV/0!"}},{"$error":"#DIV/0!"},{"$error":"#DIV/0!"},{"$error":"#DIV/0!"},{"$error":"#DIV/0!"},{"$error":"#DIV/0!"},{"$error":"#DIV/0!"},{"$error":"#DIV/0!"},{"$error":"#DIV/0!"},{"$error":"#DIV/0!"},{"$error":"#DIV/0!"},{"$error":"#DIV/0!"},null,{"$error":"#DIV/0!"}]
[null,null,null,null,null,null,null,null,null,null,null,null,null,null,null,null,null,null,null,null,null,null,null,null,null,null,null,null,null,null,null,null,null,null,"% of required demand met by effective Rainwater/Stormwater harvest","WCs & Urinals",{"$f":"IF(AK167>0,AK176/AK167,0)","v":0},0,0,0,0,0,0,0,0,0,0,0,null,{"$f":"IF(AX167>0,AX176/AX167,0)","v":0}]
[null,null,null,null,null,null,null,null,null,null,null,null,null,null,null,null,null,null,null,null,null,null,null,null,null,null,null,null,null,null,null,null,null,null,null,"Showers & Taps",{"$f":"IF(AK168>0,AK177/AK168,0)","v":0},0,0,0,0,0,0,0,0,0,0,0,null,0]
[null,null,null,null,null,null,null,null,null,null,null,null,null,null,null,null,null,null,null,null,null,null,null,null,null,null,null,null,null,null,null,null,null,null,null,"Cooling Towers",{"$f":"IF(AK169>0,AK178/AK169,0)","v":0},0,0,0,0,0,0,0,0,0,0,0,null,0]
[null,null,null,null,null,null,null,null,null,null,null,null,null,null,null,null,null,null,null,null,null,null,null,null,null,null,null,null,null,null,null,null,null,null,null,"Irrigation",{"$f":"IF(AK170>0,AK179/AK170,0)","v":0},0,0,0,0,0,0,0,0,0,0,0,null,0]
[null,null,null,null,null,null,null,null,null,null,null,null,null,null,null,null,null,null,null,null,null,null,null,null,null,null,null,null,null,null,null,null,null,null,null,"Fire System",{"$f":"IF(AK171>0,AK180/AK171,0)","v":0},0,0,0,0,0,0,0,0,0,0,0,null,0]
[null,null,null,null,null,null,null,null,null,null,null,null,null,null,null,null,null,null,null,null,null,null,null,null,null,null,null,null,null,null,null,null,null,null,null,"Other",{"$f":"IF(AK172>0,AK181/AK172,0)","v":0},0,0,0,0,0,0,0,0,0,0,0,null,0]
[null,null,null,null,null,null,null,null,null,null,null,null,null,null,null,null,null,null,null,null,null,null,null,null,null,null,null,null,null,null,null,null,null,null,"Supplementary Potable (Mains) Water Required to Meet Demands","WCs & Urinals",{"$f":"AK148-AK176","v":{"$error":"#DIV/0!"}},{"$error":"#DIV/0!"},{"$error":"#DIV/0!"},{"$error":"#DIV/0!"},{"$error":"#DIV/0!"},{"$error":"#DIV/0!"},{"$error":"#DIV/0!"},{"$error":"#DIV/0!"},{"$error":"#DIV/0!"},{"$error":"#DIV/0!"},{"$error":"#DIV/0!"},{"$error":"#DIV/0!"},null,{"$f":"AX148-AX176","v":{"$error":"#DIV/0!"}}]
[null,null,null,null,null,null,null,null,null,null,null,null,null,null,null,null,null,null,null,null,null,null,null,null,null,null,null,null,null,null,null,null,null,null,null,"Showers & Taps",{"$f":"AK149-AK177","v":{"$error":"#DIV/0!"}},{"$error":"#DIV/0!"},{"$error":"#DIV/0!"},{"$error":"#DIV/0!"},{"$error":"#DIV/0!"},{"$error":"#DIV/0!"},{"$error":"#DIV/0!"},{"$error":"#DIV/0!"},{"$error":"#DIV/0!"},{"$error":"#DIV/0!"},{"$error":"#DIV/0!"},{"$error":"#DIV/0!"},null,{"$error":"#DIV/0!"}]
[null,null,null,null,null,null,null,null,null,null,null,null,null,null,null,null,null,null,null,null,null,null,null,null,null,null,null,null,null,null,null,null,null,null,null,"Cooling Towers",{"$f":"AK150-AK178","v":{"$error":"#DIV/0!"}},{"$error":"#DIV/0!"},{"$error":"#DIV/0!"},{"$error":"#DIV/0!"},{"$error":"#DIV/0!"},{"$error":"#DIV/0!"},{"$error":"#DIV/0!"},{"$error":"#DIV/0!"},{"$error":"#DIV/0!"},{"$error":"#DIV/0!"},{"$error":"#DIV/0!"},{"$error":"#DIV/0!"},null,{"$error":"#DIV/0!"}]
[null,null,null,null,null,null,null,null,null,null,null,null,null,null,null,null,null,null,null,null,null,null,null,null,null,null,null,null,null,null,null,null,null,null,null,"Irrigation",{"$f":"AK151-AK179","v":{"$error":"#DIV/0!"}},{"$error":"#DIV/0!"},{"$error":"#DIV/0!"},{"$error":"#DIV/0!"},{"$error":"#DIV/0!"},{"$error":"#DIV/0!"},{"$error":"#DIV/0!"},{"$error":"#DIV/0!"},{"$error":"#DIV/0!"},{"$error":"#DIV/0!"},{"$error":"#DIV/0!"},{"$error":"#DIV/0!"},null,{"$error":"#DIV/0!"}]
[null,null,null,null,null,null,null,null,null,null,null,null,null,null,null,null,null,null,null,null,null,null,null,null,null,null,null,null,null,null,null,null,null,null,null,"Fire System",{"$f":"AK152-AK180","v":{"$error":"#DIV/0!"}},{"$error":"#DIV/0!"},{"$error":"#DIV/0!"},{"$error":"#DIV/0!"},{"$error":"#DIV/0!"},{"$error":"#DIV/0!"},{"$error":"#DIV/0!"},{"$error":"#DIV/0!"},{"$error":"#DIV/0!"},{"$error":"#DIV/0!"},{"$error":"#DIV/0!"},{"$error":"#DIV/0!"},null,{"$error":"#DIV/0!"}]
[null,null,null,null,null,null,null,null,null,null,null,null,null,null,null,null,null,null,null,null,null,null,null,null,null,null,null,null,null,null,null,null,null,null,null,"Other",{"$f":"AK153-AK181","v":{"$error":"#DIV/0!"}},{"$error":"#DIV/0!"},{"$error":"#DIV/0!"},{"$error":"#DIV/0!"},{"$error":"#DIV/0!"},{"$error":"#DIV/0!"},{"$error":"#DIV/0!"},{"$error":"#DIV/0!"},{"$error":"#DIV/0!"},{"$error":"#DIV/0!"},{"$error":"#DIV/0!"},{"$error":"#DIV/0!"},null,{"$error":"#DIV/0!"}]

{"sheet":"RET_WAT_DataExtract","index":21,"n_rows":17,"n_cols":4,"rows_kept":17,"cut":false,"hidden":true,"merged":[]}
["Dictionary","Value","Key","Note: "]
["Retail_Potable_Water_Normalised_WC_Consume",{"$f":"'Potable Water Calculator'!G20","v":0},"RPWNCWC","L/day/m2"]
["Retail_Potable_Water_Normalised_Urinal_Consume",{"$f":"'Potable Water Calculator'!G35","v":0},"RPWNCU","L/day/m2"]
["Retail_Potable_Water_Normalised_Tap_Consume",{"$f":"'Potable Water Calculator'!G45","v":0},"RPWNCT","L/day/m2"]
["Retail_Potable_Water_Normalised_Shower_Consume",{"$f":"'Potable Water Calculator'!G55","v":0},"RPWNCS","L/day/m2"]
["Retail_Potable_Water_Amenity_Consume",{"$f":"'Potable Water Calculator'!G58","v":0},"RPWNCA","L/day/m2"]
["Retail_Potable_Water_Harvesting_Area",{"$f":"'Potable Water Calculator'!G82","v":0},"RPWHA","m2"]
["Retail_Potable_Water_Harvesting_Storage",{"$f":"'Potable Water Calculator'!G83","v":0},"RPWHS","kL"]
["Retail_Potable_Water_Replacement_Rainwater",{"$f":"'Potable Water Calculator'!G93","v":0},"RPWRR","L/day/m2"]
["Retail_Potable_Water_Replacement_Greywater",{"$f":"'Potable Water Calculator'!G110","v":0},"RPWRG","L/day/m2"]
["Retail_Potable_Water_Replacement_Blackwater",{"$f":"'Potable Water Calculator'!G129","v":0},"RPWRB","L/day/m2"]
["Retail_Potable_Water_Amenity_Reduce",{"$f":"'Potable Water Calculator'!G132","v":0},"RPWAR","L/day/m2"]
["Retail_Potable_Water_Predicted_Recycled",{"$f":"'Potable Water Calculator'!G141","v":0},"RPWPR","L/day/m2"]
["Retail_Potable_Water_Predicted_Recycled_for_Fixtures",{"$f":"'Potable Water Calculator'!G143","v":0},"RPWPF","L/day/m2"]
["Retail_Potable_Water_Predicted_Recycled_for_Other",{"$f":"'Potable Water Calculator'!G142","v":0},"RPWPO","L/day/m2"]
["Retail_Potable_Water_Nett_Mains_Consumption",{"$f":"'Potable Water Calculator'!G151","v":0},"RPWNMC","L/day/m2"]
["Retail_Potable_Water_1_Points",{"$f":"'Potable Water Calculator'!G151","v":0}]

{"sheet":"Materials","index":22,"n_rows":39,"n_cols":9,"rows_kept":39,"cut":false,"hidden":false,"merged":[[16,0,26,0],[9,0,10,0],[16,6,26,6],[16,2,26,2],[9,2,10,2],[16,8,22,8],[9,7,10,7],[16,4,26,4],[9,1,10,1],[11,7,12,7],[16,5,26,5],[16,1,26,1],[16,7,26,7]]}
[{"$f":"'Building Input'!B1","v":"Green Star SA - Retail Centre v1"},null,null,null,null,"Category Weighting:",{"$f":"'Credit Summary'!J70","v":0.13},"Category Weighted Score"]
["Materials",null,null,"Category Summary:  ",{"$f":"E29","v":23},{"$f":"F29","v":0},{"$f":"G29","v":0},{"$f":"'Credit Summary'!K70","v":0}]
["Credit Summary for:",null,{"$f":"IF('Building Input'!$C$5=0,\"\",'Building Input'!$C$5)","v":""},null,null,{"$f":"IF(OR((I3=Calculation1!$B$84),(I3=Calculation1!$B$85),((F2+G2)>E2)),Calculation1!$B$86,\"\")","v":""},null,null,{"$f":"T(I5:I28)","v":""}]
["Ref No.","Title","Aim of Credit","Credit Criteria Summary","No. of Points Available","No. of Points Achieved","Points to be Confirmed","Comments"]
["Mat-1","Recycling Waste Storage","To encourage and recognise the inclusion of storage space that facilitates the recycling of resources used within buildings to reduce waste going to disposal.","Two points are awarded where a dedicated storage area for the separation and collection of recyclables from tenancies and common areas is provided and it:  \n\n• Is adequately sized to handle the collection and sorting of all waste streams specified in the Basic List, and a minimum of two items selected from the Additional List.\n     Basic List - paper, cardboard, plastic, glass, metal; \n     Additional List - cooking oils, compostable organic material, fluorescent & CFLs,\n     batteries, motor oil.\n• Meets the access requirements under additional guidance in the Green Star SA - Retail Centre v1 Technical Manual.\n• Includes a holding area for items of re-use. \n• Is separate from, but adjacent to, general waste facilities. \n• Is located in the same level as the loading dock with a clearly marked, sign-posted, convenient and guaranteed access route which allows level access from tenancies (or goods lifts are provided) and avoids the need for manual handling of the waste. \n\n",2,null,null,null,{"$f":"IF(OR(ISTEXT(F5)=TRUE,ISTEXT(G5)=TRUE),Calculation1!$B$87,IF(F5+G5>E5,Calculation1!$B$84,\"\"))","v":""}]
["Mat-2","Building Reuse ","To encourage and recognise developments that reuse existing buildings to minimise materials consumption.","Five points are available as follows:\n\n• Two points are awarded where it is demonstrated that at least 50% of the total façade of the building by area, comprises re-used building façade. \n\n• Up to three points are awarded where a proportion of the existing major structure, by gross building volume, is re-used:\n – One point for 30% re-use;\n – Two points for 60% re-use; \n – Three points for 90% re-use.\n\nWhere the site contained no buildings at the time of purchase, or the total GFA of the original building(s) is less than 20% of the GFA of the new building that replaces it, this credit is ‘Not Applicable’ and is excluded from the Points Available used to calculate the Materials Category Score.Type ‘na’ in the appropriate 'No. of Points Achieved' column of the rating tool.",{"$f":"IF(F6=\"na\",0,5)","v":5},null,null,null,{"$f":"IF(ISBLANK(F6),IF(G6>E6,Calculation1!$B$84,\"\"),IF(F6=\"na\",\"\",IF(OR(F6=\"na\",ISNUMBER(F6)),IF(F6+G6>E6,Calculation1!$B$84,\"\"),Calculation1!$B$85)))","v":""}]
["Mat-3","Recycled Content & Re-Used Materials","To encourage and recognise designs that prolong the useful life of existing products and materials and encourage uptake of products with recycling content.\n","Up to three points are awarded as follows:\n\nOne point where at least 1% of the project’s total contract value is represented by re-used products/materials.\n\nUp to two points are awarded for use of material with recycled content as follows: \n\nOne point where the total value of recycled material content represents 1% of the total contract value. \nTwo points where the total value of recycled material content represents 2% of the total contract value.",1,null,null,null,{"$f":"IF(OR(ISTEXT(F7)=TRUE,ISTEXT(G7)=TRUE),Calculation1!$B$87,IF(F7+G7>E7,Calculation1!$B$84,\"\"))","v":""}]
[null,null,null,"The value of recycled material content is calculated by multiplying the material cost of products containing recycled content by the percentage of recycled content (both post-consumer and pre-consumer) and summing all the results.\n\nThis credit excludes materials specifically addressed by other credits (i.e. steel, concrete, and timber); neither does it address the reuse of the original building(s) on the site (addressed in Mat-2 ‘Building Reuse’).\n\nOnly materials or products permanently installed on the project site are eligible. Mechanical, electrical, plumbing components and specialty items such as elevators and equipment must be excluded from the compliant materials total.",2,null,null,null,{"$f":"IF(OR(ISTEXT(F8)=TRUE,ISTEXT(G8)=TRUE),Calculation1!$B$87,IF(F8+G8>E8,Calculation1!$B$84,\"\"))","v":""}]
["Mat-4","Shell and Core or Integrated Fitout",null,"This credit is not relevant to the Green Star SA Retail Centre v1 tool","X","X","X"]
["Mat-5","Concrete","To encourage and recognise the reduction of embodied energy and resource depletion occurring through use of concrete.","Three points are available as follows: \nUp to two points are available where the project has reduced the absolute quantity of Portland cement, as an average across all concrete mixes, by substituting it with industrial waste product(s) or oversized aggregate as follows: \n• For 1 point, 30% for in-situ concrete, 20% for precast concrete and 15% for stressed concrete;\n OR\n• For 2 points, 60% for in-situ concrete, 40% for precast concrete and 30% for stressed concrete.\n",{"$f":"IF(OR(F10=\"na\",F11=\"na\"),0,2)","v":2},null,null,null,{"$f":"IF(ISBLANK(F10),IF(G10>E10,Calculation1!$B$84,\"\"),IF(F10=\"na\",\"\",IF(OR(F10=\"na\",ISNUMBER(F10)),IF(F10+G10>E10,Calculation1!$B$84,\"\"),Calculation1!$B$85)))","v":""}]
[null,null,null,"An additional point is awarded where:\n• At least one of the above points is achieved; \n AND\n• 10% of all aggregate used for structural purposes is recycled (Class 1 RCA in accordance with Australian standard HB155-2002) or slag aggregate; \n AND\n• No natural aggregates are used in non-structural uses (e.g. building base course, sub-grade to any car parks and footpaths, backfilling to service trenches, kerb and gutter).\n\nIf the material cost of new concrete represents less than 1% of the project’s contract value, this credit is ‘Not Applicable’ and is excluded from the Points Available, used to calculate the Materials Category Score. Type ‘na’ in the appropriate 'No. of Points Achieved' column of the rating tool.\n",{"$f":"IF(OR(F10=\"na\",F11=\"na\"),0,1)","v":1},null,null,null,{"$f":"IF(ISBLANK(F11),IF(G11>E11,Calculation1!$B$84,\"\"),IF(F11=\"na\",\"\",IF(OR(F11=\"na\",ISNUMBER(F11)),IF(F11+G11>E11,Calculation1!$B$84,\"\"),Calculation1!$B$85)))","v":""}]
["Mat-6","Steel","To encourage and recognise the reduction in embodied energy and resource depletion associated with reduced use of virgin steel.","Up to three points are awarded as follows:\n\nOne point is awarded where:\n• In a predominantly structural steel building, the average post-consumer recycled content of the structural steel, by mass, is at least 24% (i.e. 60% of the structural steel has a recycled content of 40%) or at least 60% of the structural steel by mass, is reused.\nOR\n• In a predominantly reinforced concrete building, the average post-consumer recycled content of the steel reinforcing, by mass, is at least 54% (i.e. 60% of the steel reinforcing by mass has a recycled content of 90%), or at least 60% of the steel reinforcing by mass, is reused. \n",{"$f":"IF(OR(F12=\"na\",F13=\"na\"),0,1)","v":1},null,null,null,{"$f":"IF(ISBLANK(F12),IF(G12>E12,Calculation1!$B$84,\"\"),IF(F12=\"na\",\"\",IF(OR(F12=\"na\",ISNUMBER(F12)),IF(F12+G12>E12,Calculation1!$B$84,\"\"),Calculation1!$B$85)))","v":""}]
[null,null,null,"Two additional points are awarded where\n• the average post-consumer recycled content of all steel (total of structural steel, steel reinforcing and steel products), by mass is at least 54% (i.e. 60% of the total steel has a recycled content of 90%), or at least 90% of all the steel by mass on the project is reused.\n\nIf the material cost of steel represents less than 1% of the project’s  contract value, this credit is ‘Not Applicable’ and is excluded from the Points Available, used to calculate the Materials Category Score. Type ‘na’ in the appropriate 'No. of Points Achieved' column of the rating tool.\n",{"$f":"IF(OR(F12=\"na\",F13=\"na\"),0,2)","v":2},null,null,null,{"$f":"IF(ISBLANK(F13),IF(G13>E13,Calculation1!$B$84,\"\"),IF(F13=\"na\",\"\",IF(OR(F13=\"na\",ISNUMBER(F13)),IF(F13+G13>E13,Calculation1!$B$84,\"\"),Calculation1!$B$85)))","v":""}]
["Mat-7","PVC Minimisation","To encourage and recognise the reduction in use of Poly Vinyl Chloride (PVC) products in South African buildings.","One point is awarded where:  \n30% of the total cost of PVC content is reduced through replacement with alternative materials.\n",1,null,null,null,{"$f":"IF(OR(ISTEXT(F14)=TRUE,ISTEXT(G14)=TRUE),Calculation1!$B$87,IF(F14+G14>E14,Calculation1!$B$84,\"\"))","v":""}]
["Mat-8","Sustainable Timber","To encourage and recognise the specification of reused timber products or timber that has certified environmentally-responsible forest management practices.","Two points are available as follows:\n\nOne point is awarded where 50% (by cost) of all timber products used in the building and construction works have been sourced from any combination of the following:\n- Reused timber;\n- Post-consumer recycled timber; or\n- Forest Stewardship Council (FSC) Certified Timber.\n\nAn additional point is awarded where 95% (by cost) of all timber products used in the building and construction works satisfy the abovementioned sourcing criteria.\n\nIf the material cost of timber represents less than 0.1% of the project’s total contract value then this credit is ‘Not Applicable’ and is excluded from the Points Available, used to calculate the Materials Category Score. Type 'na' in the No. of Points Achieved column.",{"$f":"IF(F15=\"na\",0,2)","v":2},null,null,null,{"$f":"IF(ISBLANK(F15),IF(G15>E15,Calculation1!$B$84,\"\"),IF(F15=\"na\",\"\",IF(OR(F15=\"na\",ISNUMBER(F15)),IF(F15+G15>E15,Calculation1!$B$84,\"\"),Calculation1!$B$85)))","v":""}]
["Mat-9","Design for Disassembly","To encourage and recognise designs that minimise the embodied energy and resources associated with demolition.","One point is awarded where:\n- 50% (by area) of the structural framing, roofing, and façade cladding systems are designed for disassembly. \nOR \n- 95% of the total façade is designed for disassembly.\n\nIf the material cost of the structural framing, roofing, and façade cladding systems represent less than 1% of the project’s total contract value, this credit is ‘Not Applicable’ and is excluded from the Points Available, used to calculate the Materials Category Score. Type 'na' in the No. of Points Achieved column.",{"$f":"IF(F16=\"na\",0,1)","v":1},null,null,null,{"$f":"IF(ISBLANK(F16),IF(G16>E16,Calculation1!$B$84,\"\"),IF(F16=\"na\",\"\",IF(OR(F16=\"na\",ISNUMBER(F16)),IF(F16+G16>E16,Calculation1!$B$84,\"\"),Calculation1!$B$85)))","v":""}]
["Mat-10","Dematerialisation","To encourage and recognise designs that produce a net reduction in the total amount of material used.","One point is available where a substantial reduction in materials consumption occurs as follows:\nWhere it is demonstrated that the building’s structural requirements and integrity have been achieved using 20% less structural steel (by mass) OR 20% less concrete and reinforcing/stressing steel (by mass), OR 20% less timber (by volume) than in a structure with conventional steel, concrete or timber framing, without changing the load path to other structural components. \nOR",1,null,null,null,{"$f":"IF(OR(ISTEXT(F17)=TRUE,ISTEXT(G17)=TRUE),Calculation1!$B$87,IF(F17+G17>E17,Calculation1!$B$84,\"\"))","v":""}]
[null,null,null,"Where any two of the initiatives below are demonstrated:\nStructure\nWhere it is demonstrated that the building’s structural requirements and integrity have been achieved using 10% less structural steel (by mass) OR 10% less concrete and reinforcing/stressing steel (by mass), OR 10% less timber (by volume) than in a structure with conventional steel, concrete or timber framing, without changing the load path to other structural components."]
[null,null,null,"Ductwork (related to the nominated area as per IEQ credits)\nThe building is fully naturally ventilated; OR\nThe requirement for ductwork has been reduced by 95%."]
[null,null,null,"Building Efficiency\nFor new buildings, where it is demonstrated that Building Efficiency, defined as the ratio of the total UA over the total GFA, is at least 85%. "]
[null,null,null,"Finishes\n95% of all base building floor material is exposed structure with no covering (e.g. exposed sealed concrete floor); OR\n95% of all base building ceiling is exposed structure (and services, where relevant) with no cladding (e.g. exposed concrete ceiling). "]
[null,null,null,"Cladding\n25% of the roof cladding area has a dual function (e.g. roof garden substrate or photovoltaic shingles serve as cladding); OR\n25% of the façade cladding area has a dual function (e.g. photovoltaic panels serve as cladding)."]
[null,null,null,"Piping\nNo supply piping is used for urinals (i.e. all urinals are waterfree); OR \nNo supply piping is used for toilets (i.e. all toilets are waterfree); OR\nMass of underground piping is reduced by 25% for the same functional requirement and material."]
[null,null,null,"Building Efficiency\nFor new buildings, where it is demonstrated that Building Efficiency, defined as the ratio of the total UA over the total GFA, is at least 85%. "]
[null,null,null,"Finishes\n95% of all base building floor material is exposed structure with no covering (e.g. exposed sealed concrete floor); OR\n95% of all base building ceiling is exposed structure (and services, where relevant) with no cladding (e.g. exposed concrete ceiling). "]
[null,null,null,"Cladding\n25% of the roof cladding area has a dual function (e.g. roof garden substrate or photovoltaic shingles serve as cladding); OR\n25% of the façade cladding area has a dual function (e.g. photovoltaic panels serve as cladding)."]
[null,null,null,"Piping\nNo supply piping is used for urinals (i.e. all urinals are waterfree); OR \nNo supply piping is used for toilets (i.e. all toilets are waterfree); OR\nMass of underground piping is reduced by 25% for the same functional requirement and material."]
["Mat-11","Local Sourcing","To encourage and recognise the environmental advantages gained, in the form of reduced transportation emissions, by using materials and products that are sourced within close proximity to the site.","Up to two points are awarded as follows:\nOne point is awarded where:  \n- 20% of the total contract value is represented by materials or products (used in the construction of the project) that have been sourced from within 400 km of the site. \n\nOne point is awarded where:  \n- 10% of the total contract value is represented by materials or products (used in the construction of the project) that have been sourced from within 50 km of the site.\n\nOnly materials or products permanently installed on the project site are eligible and must have been extracted, harvested, recovered, as well as manufactured within the above noted radii of the site in order to qualify for the credit.\n\nMechanical, electrical and plumbing components and specialty items such as elevators and equipment must be excluded from the local materials total.",2,null,null,null,{"$f":"IF(OR(ISTEXT(F28)=TRUE,ISTEXT(G28)=TRUE),Calculation1!$B$87,IF(F28+G28>E28,Calculation1!$B$84,\"\"))","v":""}]
[null,null,null,null,{"$f":"SUM(E5:E28)","v":23},{"$f":"SUM(F5:F28)","v":0},{"$f":"SUM(G5:G28)","v":0}]
[]
[]
[]
[{"$f":"Calculation1!$B$93","v":"Project Teams are to refer to the Green Star SA Retail Centre v1 Technical Manual for explicit credit criteria and documentation requirements."}]
[{"$f":"Calculation1!$B$94","v":"The Green Star Technical Clarifications (TC) and Credit Interpretation Request (CIR) rulings provide an essential source of information to all"}]
[{"$f":"Calculation1!$B$95","v":"projects undertaking Green Star assessment. They are available on the GBCSA website http://www.gbcsa.org.za . Technical Clarifications"}]
[{"$f":"Calculation1!$B$96","v":"often represent the GBCSA answers to technical queries and complement Green Star SA Technical Manuals. They do not amend but clarify "}]
[{"$f":"Calculation1!$B$97","v":"Credit Criteria or Compliance Requirements. They are an extension of the Technical Manual; it is the responsibility of the project teams to stay "}]
[{"$f":"Calculation1!$B$98","v":"up-to-date with this section of the GBCSA website. The CIR rulings offer alternative compliance options whenever those have been deemed "}]
[{"$f":"Calculation1!$B$99","v":"equivalent in meeting the Aim of Credit."}]

{"sheet":"Land Use & Ecology","index":23,"n_rows":29,"n_cols":17,"rows_kept":29,"cut":false,"hidden":false,"merged":[[4,8,6,8],[4,4,6,4],[4,5,6,5],[4,6,6,6],[4,7,6,7]]}
[{"$f":"Management!A1","v":"Green Star SA - Retail Centre v1"},null,null,null,null,"Category Weighting:",{"$f":"'Credit Summary'!J79","v":7.0000000000000007E-2},"Category Weighted Score"]
["Land Use & Ecology",null,null,"Category Summary:  ",{"$f":"E13","v":11},{"$f":"F13","v":0},{"$f":"G13","v":0},{"$f":"'Credit Summary'!K79","v":0},null,null,null,null,null,null,"No"]
["Credit Summary for:",null,{"$f":"IF('Building Input'!$C$5=0,\"\",'Building Input'!$C$5)","v":""},null,null,{"$f":"IF(OR((I3=Calculation1!$B$84),(I3=Calculation1!$B$85),((F2+G2)>E2)),Calculation1!$B$86,\"\")","v":""},null,null,{"$f":"T(I8:I12)","v":""}]
["Ref No.","Title","Aim of Credit","Credit Criteria Summary","No. of Points Available","No. of Points Achieved","Points to be Confirmed","Comments"]
["Eco- ","Conditional Requirement","To encourage and recognise development on land that has limited ecological value and to discourage development on ecologically valuable sites.","The Eco-Conditional Requirement is met where the project development footprint\n\n• Is not located on prime agricultural land. Refurbishments/redevelopments that remain within the existing development footprint are exempt from this criterion;\n\n• Is not located on vegetation of high ecological value or within a 100 metre buffer of vegetation of high ecological value. Refurbishments/redevelopments that remain within the existing development footprint are exempt from this criterion;\n\n• Is not located on land with confirmed presence or high probability of threatened red listed species, or within a defined buffer relevant to the specific threatened red listed species or habitat found. Refurbishments/redevelopments that remain within the existing development footprint are exempt from this criterion; and","Conditional Requirement Achieved?",null,{"$f":"IF(O2=\"Yes\",O25,O26)","v":"Eco- Conditional Requirement NOT met"},{"$f":"IF(O2=\"Yes\",O28,O29)","v":"The project team acknowledges that the design does NOT meet the conditional requirements as stipulated in the Green Star SA Retail Centre v1 Technical Manual. This Green Star SA project is therefore NOT eligible for formal certification by the GBCSA. Please refer to the Technical Manual for further information."}]
[null,null,null,"• Is not located within the required buffer zones of watercourses:\n- The project development footprint must not fall within the 100 year floodplain.\n- Watercourses of ‘high ecological value’: A project’s development footprint can be located on land within a 100 metre buffer of a watercourse of ‘high ecological value’ only if the building is a refurbishment that remains within the existing development footprint and the Watercourse Protection Measures (outlined below) have been completed.; or\n - Watercourses NOT of ‘high ecological value’: A project’s development footprint can be located on land within 100 metres of a watercourse that is NOT of ‘high ecological value’ only if the Watercourse Protection Measures (outlined below) have been completed"]
[null,null,null,"Watercourse Protection Measures\n• A site-specific Watercourse Management Plan has been produced, exhibited and, for an As Built submission, implemented; and\n• All points are achieved in Emi-5 ‘Watercourse Pollution’ and in Emi-7 ‘Light Pollution’.\n\nThe project must abide by all measures in the Environmental Impact Assessment for the project if one is required, and the GBCSA reserves the right to provide the final ruling on a project’s compliance with this Conditional Requirement."]
["Eco-1","Topsoil","To encourage and recognise construction practices that preserve the ecological integrity of topsoil.","One point is awarded where:\n- All topsoil impacted by the construction works is separated and protected from degradation, erosion or mixing with fill or waste;\n\nAND where at project completion:\n- Protected topsoil is spread over impacted areas to a minimum depth of 200mm and a maximum depth of 600mm and any remaining protected topsoil  is transported to the nearest land holding of the same soil classification that requires rehabillitation and is  deposited under the supervision of an ecologist. \n\nAND where protected topsoil remaining on site is productive.\n\nWhere no topsoil was impacted by the construction works, this credit is ‘Not Applicable’ and is excluded from the points available, used to calculate the Land Use & Ecology Category Score. Type 'na' in the No. of Points Achieved column.",{"$f":"IF(F8=\"na\",0,1)","v":1},null,null,null,{"$f":"IF(ISBLANK(F8),IF(G8>E8,Calculation1!$B$84,\"\"),IF(F8=\"na\",\"\",IF(OR(F8=\"na\",ISNUMBER(F8)),IF(F8+G8>E8,Calculation1!$B$84,\"\"),Calculation1!$B$85)))","v":""}]
["Eco-2","Reuse of Land","To encourage and recognise the reuse of land that has previously been developed and where the site is within an existing municipally approved urban edge.","Two points are available as follows:\n\nOne point is awarded where:\n- The project is a refurbishment or a building extension; \nOR\n- At the time of the site purchase, 75% of the site had been previously built on.\n\nAn additional point is awarded if the site is located within a municipally approved urban edge.\n",2,null,null,null,{"$f":"IF(OR(ISTEXT(F9)=TRUE,ISTEXT(G9)=TRUE),Calculation1!$B$87,IF(F9+G9>E9,Calculation1!$B$84,\"\"))","v":""}]
["Eco-3","Reclaimed Contaminated Land","To encourage and recognise developments that reclaim contaminated land that otherwise would not have been developed.","Two points are awarded where:\n- The site was contaminated at the time of purchase; AND \n- The developer has undertaken full remedial steps to decontaminate the site prior to construction.\n\nThis credit is ‘Not Applicable’ for projects that are refurbishments or building extensions, and is excluded from the points available, used to calculate the Land Use & Ecology Category Score. Type 'na' in the No. of Points Achieved column.",{"$f":"IF(F10=\"na\",0,2)","v":2},null,null,null,{"$f":"IF(ISBLANK(F10),IF(G10>E10,Calculation1!$B$84,\"\"),IF(F10=\"na\",\"\",IF(OR(F10=\"na\",ISNUMBER(F10)),IF(F10+G10>E10,Calculation1!$B$84,\"\"),Calculation1!$B$85)))","v":""}]
["Eco-4","Change of Ecological Value","To encourage and recognise developments that maintain or enhance the ecological value of their sites.","Up to four points are awarded where:\n- For greenfield sites, the site has no threatened or vulnerable species or sensitive ecological units and for reused sites (e.g. refurbishments), such species and ecological units are adequately protected if present; AND\n- There is no net reduction of native vegetation; AND\n- There is no change in sensitivity class through transformation of, or reduction in extent of, threatened vegetation types; AND\n- The ecological value of the site is either not diminished, or is enhanced beyond its previously existing state.\n\nThe points are determined by the Green Star SA Change of Ecological Value Calculator.",4,{"$f":"'Ecology Calculator'!J3","v":0},null,null,{"$f":"IF(OR(ISTEXT(F11)=TRUE,ISTEXT(G11)=TRUE),Calculation1!$B$87,IF(F11+G11>E11,Calculation1!$B$84,\"\"))","v":""}]
["Eco-5 ","Urban Heat Island","To reduce 'urban' heat islands to subsequently minimise impacts on microclimates and human and wildlife habitats. ","Two points are available as follows:\nOne point is awarded where:\nThe project uses any combination of the following strategies for 50% of the site hardscape (including roads, sidewalks, courtyards and parking lots, but excluding roofs):\n• Provide shade by using vegetation, \n• Provide shade using structures with a solar reflectance index (SRI) of at least 29 or covered by solar energy systems.\n• Use hardscape materials with an SRI of at least 29.\n• Use an open-grid pavement system (at least 50% pervious).\n \nOne point is awarded where: \nThe project uses roofing materials with a solar reflectance index (SRI) equal to or greater than 78 for low-sloped roofs (<10 degree pitch) or 29 for steep-sloped roofs (>=10 degree pitch) for a minimum of 75% of the roof surface. \nOR\nThe project installs a vegetated roof that covers at least 50% of the roof area.\nOR\nThe project installs roofing meeting the SRI requirements and vegetated roof surfaces that, in combination, meet the following criteria: \n\n(roof area meeting minimum SRI)/0.75 + (area of vegetative roof)/0.5 >= Total roof area\n Roof area meeting minimum SRI + Area of vegetated roof > Total roof area\n 0.75  0.5  \n",2,null,null,null,{"$f":"IF(OR(ISTEXT(F12)=TRUE,ISTEXT(G12)=TRUE),Calculation1!$B$87,IF(F12+G12>E12,Calculation1!$B$84,\"\"))","v":""}]
[null,null,null,"Total Points:",{"$f":"SUM(E8:E12)","v":11},{"$f":"SUM(F8:F12)","v":0},{"$f":"SUM(G8:G12)","v":0}]
[]
[]
[]
[{"$f":"Calculation1!$B$93","v":"Project Teams are to refer to the Green Star SA Retail Centre v1 Technical Manual for explicit credit criteria and documentation requirements."}]
[{"$f":"Calculation1!$B$94","v":"The Green Star Technical Clarifications (TC) and Credit Interpretation Request (CIR) rulings provide an essential source of information to all"}]
[{"$f":"Calculation1!$B$95","v":"projects undertaking Green Star assessment. They are available on the GBCSA website http://www.gbcsa.org.za . Technical Clarifications"}]
[{"$f":"Calculation1!$B$96","v":"often represent the GBCSA answers to technical queries and complement Green Star SA Technical Manuals. They do not amend but clarify "}]
[{"$f":"Calculation1!$B$97","v":"Credit Criteria or Compliance Requirements. They are an extension of the Technical Manual; it is the responsibility of the project teams to stay "},null,null,null,null,null,null,null,null,null,null,null,null,null,"Options",null,"Result"]
[{"$f":"Calculation1!$B$98","v":"up-to-date with this section of the GBCSA website. The CIR rulings offer alternative compliance options whenever those have been deemed "},null,null,null,null,null,null,null,null,null,null,null,null,null,"Yes",null,false]
[{"$f":"Calculation1!$B$99","v":"equivalent in meeting the Aim of Credit."},null,null,null,null,null,null,null,null,null,null,null,null,null,"No",null,true]
[]
[null,null,null,null,null,null,null,null,null,null,null,null,null,null,"Eco- Conditional Requirement met"]
[null,null,null,null,null,null,null,null,null,null,null,null,null,null,"Eco- Conditional Requirement NOT met"]
[]
[null,null,null,null,null,null,null,null,null,null,null,null,null,null,"The project team acknowledges that the design meets the conditional requirements as stipulated in the Green Star SA Retail Centre v1 Technical Manual. Green Star SA projects are only eligible for formal certification by the GBCSA when ALL Eligibility Criterion (and Conditional Requirements) are met. Please refer to the Technical Manual for further information. "]
[null,null,null,null,null,null,null,null,null,null,null,null,null,null,"The project team acknowledges that the design does NOT meet the conditional requirements as stipulated in the Green Star SA Retail Centre v1 Technical Manual. This Green Star SA project is therefore NOT eligible for formal certification by the GBCSA. Please refer to the Technical Manual for further information."]

{"sheet":"Ecology Calculator","index":24,"n_rows":573,"n_cols":21,"rows_kept":573,"cut":false,"hidden":false,"merged":[[2,5,2,7],[45,19,45,20],[47,19,47,20],[43,19,43,20],[21,5,21,6],[21,7,21,9],[6,5,6,7]]}
[]
[null,{"$f":"'Building Input'!B1","v":"Green Star SA - Retail Centre v1"}]
[null,"Change In Ecology Calculator",null,null,null,"Points Achieved:",null,null,null,{"$f":"F45","v":0},null,"THESE COLUMNS ARE HIDDEN"]
[]
[]
[null,"Notes & Instructions:"]
[null,"1. User must enter values into white cells ONLY.",null,null,null,null,null,null,{"$f":"'Building Input'!C36","v":0},null,1,"Hours of operation",{"$f":"VLOOKUP($K7,$K178:$M181,3)","v":{"$error":"#N/A"}},"Potable water factor"]
[null,"2. Refer to the Technical Manual for additional instructions.",null,null,null,null,null,null,{"$f":"I7/60","v":0}]
[null,null,null,null,null,null,null,null,{"$f":"I7*0.3","v":0}]
[]
[null,"Does the site contain any rare, threatened or vulnerable flora or fauna?",null,null,null,null,{"$f":"IF(M19=2,\"If yes then no credits awarded\",\"\")","v":""}]
[]
[null,null,null,null,null,null,null,null,null,null,null,{"$f":"VLOOKUP(O14,M55:N106,2)","v":"Western Gariep"}]
[null,"In which bio-region is the site located?",null,null,null,null,null,null,null,null,null,{"$f":"INDEX(INDIRECT(SUBSTITUTE(L13,\" \",\"_\")),O16,0)","v":"West Gariep Hills Desert "},null,null,48]
[]
[null,"In which vegetation type is the site located?",null,null,null,null,null,null,null,null,null,null,null,null,3]
[]
[]
[null,null,null,null,null,null,null,null,null,null,null,null,1,null,1,"No"]
[null,null,null,null,null,null,null,null,null,null,null,null,null,null,2,"Yes"]
[]
[null,null,"Hidden","Hidden","Hidden","BEFORE",null,"AFTER"]
[null,"Land Type","Greenfields/ Brownfields","Before Sensitivity weighting","Ecological Value","Land Types Before Construction / m2","Ecological Score","Land Types After Construction / m2","After Sensitivity weighting","Ecological Score",null,null,null,null,null,"Sensitivity Category","Importance Factor",null,"Change in ecological diversity index","Credit calculation limits","Credits"]
[null,"Building",{"$f":"IF(AND($L$13=\"Urban Area and Unallocated\",$L$14=\"Brownfield Site\"),2,1)","v":1},1,0,null,{"$f":"C24*E24*F24*D24","v":0},null,1,{"$f":"H24*E24*C24*I24","v":0},null,null,null,null,null,"CE",2,null,"less than 5",-200,0]
[null,"Impermeable/concreted Area",{"$f":"IF(AND($L$13=\"Urban Area and Unallocated\",$L$14=\"Brownfield Site\"),2,1)","v":1},1,0,null,0,null,1,0,null,null,null,null,null,"EN",1,null,"5 to 10",1,1]
[null,"Bare Ground",1,1,1,null,0,null,1,0,null,null,null,null,null,"LT",0.25,null,"10 to 15",5,2]
[null,"Weed Infestations",1,1,2,null,0,null,1,0,null,null,null,null,null,"VU",0.5,null,"15 to 25",15,3]
[null,"Exotic Garden",1,1,5,null,0,null,1,0,null,null,null,null,null,null,null,null,"above 25",25,4]
[null,"Indigenous Garden",1,1,10,null,0,null,1,0]
[null,"Indigenous Roof Garden",1,1,10,null,0,null,1,0]
[null,"Exotic Grazing",1,1,5,null,0,null,1,0,null,null,null,null,null,"Bioregion ID = ",2]
[null,"Existing Natural Grazing*",{"$f":"IF(AND($L$13=\"Urban Area and Unallocated\",$L$14=\"Brownfield Site\"),0,1)","v":1},{"$f":"IF($L$14 =\"<Don't know>\",$Q$34,1)","v":1},25,null,0,null,1,{"$f":"IF(H32>F32,G32,H32*E32*I32*C32)","v":0},null,null,null,null,null,"Category = ",{"$f":"VLOOKUP(L14,B52:E573,4,FALSE)","v":"LT "}]
[null,"Crop Farming",{"$f":"IF(AND($L$13=\"Urban Area and Unallocated\",$L$14=\"Brownfield Site\"),0,1)","v":1},1,5,null,0,null,1,{"$f":"H33*E33*C33*I33","v":0},null,null,null,null,null,null,null,null,"Base credits = ",{"$f":"VLOOKUP(F44,T24:U28,2)","v":0}]
[null,"Existing Natural Waterway/Riparian Zone*",{"$f":"IF(AND($L$13=\"Urban Area and Unallocated\",$L$14=\"Brownfield Site\"),0,1)","v":1},{"$f":"IF($L$14 =\"<Don't know>\",$Q$34,1)","v":1},75,null,0,null,1,{"$f":"IF(H34>F34,G34,H34*E34*I34*C34)","v":0},null,null,null,null,null,"Factor = ",{"$f":"VLOOKUP(Q32,P24:Q27,2)","v":0.25},null,"Threatened species = ",{"$f":"M19","v":1},"if threatened species then no credits awarded"]
[null,"Existing Natural Wetland*",{"$f":"IF(AND($L$13=\"Urban Area and Unallocated\",$L$14=\"Brownfield Site\"),0,1)","v":1},{"$f":"IF($L$14 =\"<Don't know>\",$Q$34,1)","v":1},100,null,0,null,1,{"$f":"IF(H35>F35,G35,H35*E35*I35*C35)","v":0},null,null,null,null,null,null,null,null,"Final credit = ",{"$f":"IF(T34=2,0,T33)","v":0}]
[null,"Rehabilitation/Creation of Wetland/Riparian",1,1,50,null,0,null,{"$f":"IF($L$14 =\"<Don't know>\",0,1)","v":1},{"$f":"H36*E36*C36*I36","v":0}]
[null,"Exotic Plantation Forest",1,1,5,null,0,null,1,{"$f":"H37*E37*C37*I37","v":0},null,null,null,null,null,null,null,null,"ERROR Check on Area"]
[null,"Indigenous Plantation Forest",1,1,20,null,0,null,1,{"$f":"H38*E38*C38*I38","v":0},null,null,null,null,null,null,null,null,"If areas don't match then zero credits (default)"]
[null,"Regenerated Endemic Habitat (< 10 years old)*",{"$f":"IF(AND($L$13=\"Urban Area and Unallocated\",$L$14=\"Brownfield Site\"),0,1)","v":1},{"$f":"IF($L$14 =\"<Don't know>\",$Q$34,1)","v":1},50,null,0,null,{"$f":"IF($L$14 =\"<Don't know>\",0,1)","v":1},{"$f":"H39*E39*C39*I39","v":0},null,null,null,null,null,null,null,null,"CREDIT = ",{"$f":"IF(H42=F42,T35,0)","v":0}]
[null,"Indigenous Endemic Habitat (> 10 years old)*",{"$f":"IF(AND($L$13=\"Urban Area and Unallocated\",$L$14=\"Brownfield Site\"),0,1)","v":1},{"$f":"IF($L$14 =\"<Don't know>\",$Q$34,1)","v":1},75,null,0,null,1,{"$f":"IF(H40>F40,G40,H40*E40*I40*C40)","v":0}]
[null,"Indigenous Endemic Habitat (> 20 years old)*",{"$f":"IF(AND($L$13=\"Urban Area and Unallocated\",$L$14=\"Brownfield Site\"),0,1)","v":1},{"$f":"IF($L$14 =\"<Don't know>\",$Q$34,1)","v":1},100,null,0,null,1,{"$f":"IF(H41>F41,G41,H41*E41*I41*C41)","v":0}]
[null,"TOTAL",null,null,null,{"$f":"SUM(F24:F41)","v":0},{"$f":"SUM(G24:G41)","v":0},{"$f":"SUM(H24:H41)","v":0},null,{"$f":"SUM(J24:J41)","v":0}]
[null,"ECOLOGICAL DIVERSITY INDEX:",null,null,null,null,{"$f":"IF(F42=0,0,G42/F42)","v":0},null,null,{"$f":"IF(H42=0,0,J42/H42)","v":0}]
[null,"CHANGE IN ECOLOGICAL DIVERSITY INDEX",null,null,null,{"$f":"J43-G43","v":0},null,null,null,null,null,null,null,null,null,null,null,null,"Bioregion Category","Description"]
[null,"Points Achieved",null,null,null,{"$f":"IF(F42=0,0,T39)","v":0},null,{"$f":"IF(H42=F42,\"\",\"Error - Check Areas\")","v":""},null,null,null,null,null,null,null,null,null,null,"CE","Critically Endangered"]
[null,"* = affected by Bioregion Reservation Importance Factor",null,null,null,null,null,null,null,null,null,null,null,null,null,null,null,null,"EN","Endangered"]
[null,null,null,null,null,null,null,null,null,null,null,null,null,null,null,null,null,null,"LT","Least Threatened"]
[null,null,null,null,null,null,null,null,null,null,null,null,null,null,null,null,null,null,"VU","Vulnerable"]
[]
[null,"THESE ROWS BELOW ARE HIDDEN"]
[null,"Bioregion","Bioregion code","Bio-Region ID Number","Ecological Significance Category"]
[null,"Urban Area and Unallocated"]
[1,"<Don't know>","none",1,"CE","Default to highest significance"]
[2,"Brownfield Site","none",2,"CE","Brownfields",null,null,null,null,null,null,"ID","Bioregion"]
[null,"Albany Thickets",null,null,null,null,null,null,null,null,null,null,1,"Albany Thickets"]
[1,"<Don't know>","none",1,"CE",null,null,null,null,null,null,null,2,"Albany Thickets Alluvial Vegetation"]
[2,"Albany Coastal Belt ",833,2,"LT ",326915,263815,81,1,19,"poorly protected ",null,3,"Albany Thickets Strandveld"]
[3,"Buffels Thicket ",8060,3,"VU ",113220,89394,79,1,19,"hardly protected ",null,4,"Bushmanland and West Griqualand"]
[4,"Camdebo Escarpment Thicket ",851,4,"LT ",197622,194933,99,5,19,"poorly protected ",null,5,"Central Bushveld"]
[5,"Coega Bontveld ",304,5,"LT ",24622,22989,93,9,19,"poorly protected ",null,6,"Central Succulent Karoo"]
[6,"Eastern Cape Escarpment Thicket ",8061,6,"LT ",129232,123138,95,5,19,"poorly protected ",null,7,"Coastal Grassland"]
[7,"Gamka Thicket ",8064,7,"LT ",168298,153521,91,8,19,"poorly protected ",null,8,"Desert Alluvial Vegetation"]
[8,"Gamtoos Thicket ",8068,8,"LT ",88298,75907,86,6,19,"poorly protected ",null,9,"Drakensburg Grassland"]
[9,"Great Fish Noorsveld ",9273,9,"LT ",67393,64417,96,3,19,"poorly protected ",null,10,"Eastern Gariep"]
[10,"Great Fish Thicket ",8062,10,"LT ",676337,648575,96,6,19,"poorly protected ",null,11,"Estuarine Salt Marshes"]
[11,"Groot Thicket ",8063,11,"LT ",248438,244784,99,11,19,"moderately protected ",null,12,"Freshwater Wetlands"]
[12,"Kowie Thicket ",8066,12,"LT ",224866,205961,92,5,19,"poorly protected ",null,13,"Fynbos Alluvial Vegetation"]
[13,"Sundays Noorsveld ",8069,13,"LT ",127114,123568,97,13,19,"moderately protected ",null,14,"Fynbos Kamiesberg Centre"]
[14,"Sundays Thicket ",8067,14,"LT ",523565,494258,94,9,19,"poorly protected ",null,15,"Fynbos Karoo Mountain Centre"]
[null,"Albany Thicket Alluvial Vegetation",null,null,null,null,null,null,null,null,null,null,16,"Fynbos Northwest Centre"]
[1,"<Don't know>","none",1,"CE",null,null,null,null,null,null,null,17,"Fynbos South Coast Centre"]
[2,"Albany Alluvial Vegetation ",866,2,"EN ",58399,30006,51,6,31,"poorly protected ",null,18,"Fynbos Southeast Centre"]
[null,"Albany Thickets Strandveld",null,null,null,null,null,null,null,null,null,null,19,"Fynbos Southwest Centre"]
[1,"<Don't know>","none",1,"CE",null,null,null,null,null,null,null,20,"Fynbos Strandveld"]
[2,"Albany Dune Strandveld ",9239,2,"LT ",17038,15542,91,27,20,"well protected ",null,21,"Grassland Alluvial Vegetation"]
[3,"Algoa Dune Strandveld ",846,3,"LT ",28154,25035,89,4,20,"poorly protected ",null,22,"Grassland Biome Shrublands"]
[4,"Subtropical Dune Thicket ",8070,4,"LT ",1983,1946,98,36,20,"well protected ",null,23,"Highveld Grassland"]
[5,"Subtropical Seashore Vegetation ",937,5,"LT ",4147,3755,91,42,20,"well protected ",null,24,"Inland Saline Vegetation"]
[null,"Desert Alluvial Vegetation",null,null,null,null,null,null,null,null,null,null,25,"Kalahari Dry Savanna"]
[1,"<Don't know>","none",1,"CE",null,null,null,null,null,null,null,26,"Lower Karoo"]
[2,"Lower Gariep Alluvial Vegetation ",910,2,"EN ",75154,24742,33,4,31,"poorly protected ",null,27,"Lowland Forest"]
[null,"Eastern Gariep",null,null,null,null,null,null,null,null,null,null,28,"Lowveld"]
[1,"<Don't know>","none",1,"CE",null,null,null,null,null,null,null,29,"Macroalgal Sea Beds"]
[2,"Bushmanland Inselberg Shrubland ",270,2,"LT ",63753,63620,100,0,34,"not protected ",null,30,"Mountain Bushveld"]
[3,"Einiqua Plains Desert ",269,3,"LT ",157801,156502,99,0,34,"not protected ",null,31,"Nama Karoo Alluvial Vegetation"]
[4,"Einiqua Rocky Desert ",271,4,"LT ",256852,255544,99,0,34,"not protected ",null,32,"Renosterveld Eastern Centre"]
[5,"Hellskloof Canyon Desert ",774,5,"LT ",826,821,99,0,34,"not protected ",null,33,"Renosterveld Karoo Centre"]
[6,"Noams Mountain Desert ",778,6,"LT ",33646,33496,100,100,34,"well protected ",null,34,"Renosterveld Mountain Centre"]
[7,"Northern Nababiepsberge Mountain Desert ",777,7,"LT ",24586,24229,99,0,34,"not protected ",null,35,"Renosterveld South Coast Centre"]
[8,"Richtersberg Mountain Desert ",779,8,"LT ",39781,39649,100,100,34,"well protected ",null,36,"Renosterveld West Coast Centre"]
[9,"Southeastern Richtersveld Mountain Desert ",791,9,"LT ",59448,59271,100,8,34,"poorly protected ",null,37,"Savanna Alluvial Vegetation"]
[10,"Southern Nababiepsberge Mountain Desert ",793,10,"LT ",34320,34299,100,0,34,"not protected ",null,38,"South Strandveld"]
[11,"Springbokvlakte Mountain Desert ",803,11,"LT ",10831,10831,100,100,34,"well protected ",null,39,"Southern Karoo"]
[12,"Springbokvlakte Plain Desert ",802,12,"LT ",11271,11162,99,100,34,"well protected ",null,40,"Sub Escarpment Grassland"]
[13,"Tatasberg Mountain Desert ",806,13,"LT ",328,328,100,100,34,"well protected ",null,41,"Sub Escarpment Savanna"]
[null,"Western Gariep",null,null,null,null,null,null,null,null,null,null,42,"Trans Escarpment Succulent Karoo"]
[1,"<Don't know>","none",1,"CE",null,null,null,null,null,null,null,43,"Urban Area and Unallocated"]
[2,"Alexander Bay Coastal Duneveld ",3146,2,"LT ",1700,1482,87,0,28,"not protected ",null,44,"Upland Forest"]
[3,"West Gariep Hills Desert ",812,3,"LT ",41361,40621,98,11,28,"poorly protected ",null,45,"Upper Karoo"]
[4,"West Gariep Lowlands Desert ",813,4,"LT ",23947,23132,97,0,28,"not protected ",null,46,"West Coast Sandveld"]
[5,"West Gariep Plains Desert ",811,5,"LT ",19224,18550,96,0,28,"not protected ",null,47,"West Strandveld"]
[null,"Lowland Forest",null,null,null,null,null,null,null,null,null,null,48,"Western Gariep"]
[1,"<Don't know>","none",1,"CE",null,null,null,null,null,null,null,49,"Western Lowland Karoo"]
[2,"Ironwood Dry Forest ",8051,2,"CE ",5913,5904,100,100,100,"well protected ",null,50,"Western Mountain Shrubland"]
[3,"Northern Coastal Forest ",4175,3,"LT ",46705,45205,97,100,43,"well protected ",null,51,"Western Upland Karoo"]
[4,"Sand Forest ",4184,4,"CE ",24276,23906,98,100,100,"well protected ",null,52,"Wetland Forest"]
[5,"Southern Coastal Forest ",8031,5,"LT ",16530,15573,94,89,40,"well protected "]
[null,"Upland Forest"]
[1,"<Don't know>","none",1,"CE"]
[2,"Northern Afrotemperate Forest ",4187,2,"LT ",16974,16725,99,37,31,"well protected "]
[3,"Northern Mistbelt Forest ",8000,3,"LT ",61338,51341,84,11,30,"poorly protected "]
[4,"Scarp Forest ",4181,4,"LT ",86718,83054,96,34,40,"moderately protected "]
[5,"Southern Afrotemperate Forest",4190,5,"LT ",81521,79405,97,26,34,"moderately protected "]
[6,"Southern Mistbelt Forest ",8002,6,"LT ",110016,104415,95,10,30,"poorly protected "]
[null,"Wetland Forest"]
[1,"<Don't know>","none",1,"CE"]
[2,"Lowveld Riverine Forest ",4191,2,"CE ",15837,15423,97,100,100,"well protected "]
[3,"Mangrove Forest ",4185,3,"CE ",3340,3222,96,47,100,"poorly protected "]
[4,"Swamp Forest",4192,4,"CE ",3803,3615,95,100,100,"well protected "]
[null,"Fynbos Alluvial Vegetation "]
[1,"<Don't know>","none",1,"CE"]
[2,"Cape Lowland Alluvial Vegetation ",8090,2,"CE ",28406,8931,31,1,31,"hardly protected "]
[null,"Fynbos Kamiesberg Centre "]
[1,"<Don't know>","none",1,"CE"]
[2,"Kamiesberg Granite Fynbos ",2875,2,"LT ",3637,3556,98,0,27,"not protected "]
[null,"Fynbos Karoo Mountain Centre "]
[1,"<Don't know>","none",1,"CE"]
[2,"Cango Conglomerate Fynbos ",5579,2,"LT ",40580,39678,98,4,27,"poorly protected "]
[3,"Eastern Shale Band Vegetation ",5551,3,"LT ",10888,10153,93,32,27,"well protected "]
[4,"Matjiesfontein Quartzite Fynbos ",92,4,"LT ",126816,125132,99,4,27,"poorly protected "]
[5,"Matjiesfontein Shale Fynbos ",8021,5,"LT ",10653,10348,97,24,27,"moderately protected "]
[6,"North Kammanassie Sandstone Fynbos ",9227,6,"LT ",33259,33103,100,60,27,"well protected "]
[7,"North Rooiberg Sandstone Fynbos ",9222,7,"LT ",31873,31861,100,28,27,"well protected "]
[8,"North Swartberg Sandstone Fynbos ",134,8,"LT ",86434,84831,98,57,27,"well protected "]
[9,"South Kammanassie Sandstone Fynbos ",9243,9,"LT ",30418,29195,96,11,27,"poorly protected "]
[10,"South Rooiberg Sandstone Fynbos ",9219,10,"LT ",38834,38654,100,29,27,"well protected "]
[11,"South Swartberg Sandstone Fynbos ",9224,11,"LT ",108481,108221,100,40,27,"well protected "]
[12,"Swartberg Shale Fynbos ",9201,12,"LT ",7513,6608,88,7,27,"poorly protected "]
[null,"Fynbos Northwest Centre "]
[1,"<Don't know>","none",1,"CE"]
[2,"Altimontane Sandstone Fynbos ",8030,2,"LT ",5083,5080,100,84,29,"well protected "]
[3,"Bokkeveld Sandstone Fynbos ",3139,3,"LT ",136130,111742,82,3,29,"poorly protected "]
[4,"Cederberg Sandstone Fynbos ",34,4,"LT ",244857,207709,85,17,29,"moderately protected "]
[5,"Ceres Alluvium Fynbos ",35,5,"EN ",18005,8692,48,0,29,"not protected "]
[6,"Graafwater Sandstone Fynbos ",8013,6,"VU ",125367,89727,72,0,29,"not protected "]
[7,"Klawer Sandy Shrubland ",9288,7,"LT ",12569,11858,94,0,29,"not protected "]
[8,"Kouebokkeveld Shale Fynbos ",2327,8,"EN ",42800,24167,56,0,29,"not protected "]
[9,"Leipoldtville Sand Fynbos ",87,9,"EN ",275539,123336,45,0,29,"hardly protected "]
[10,"Namaqualand Sand Fynbos ",2869,10,"LT ",93938,92078,98,1,29,"hardly protected "]
[11,"North Hex Sandstone Fynbos ",5555,11,"LT ",39414,36866,94,33,29,"well protected "]
[12,"Northern Shale Band Vegetation ",9231,12,"LT ",26435,25501,96,17,29,"moderately protected "]
[13,"Olifants Sandstone Fynbos ",1,13,"LT ",105854,97588,92,23,29,"moderately protected "]
[14,"Piketberg Sandstone Fynbos ",8024,14,"LT ",46035,37936,82,0,29,"not protected "]
[15,"South Hex Sandstone Fynbos ",9220,15,"LT ",32071,31905,99,16,29,"moderately protected "]
[16,"Swartruggens Quartzite Fynbos ",152,16,"LT ",164619,162056,98,4,29,"poorly protected "]
[17,"Winterhoek Sandstone Fynbos ",5552,17,"LT ",119002,112297,94,24,29,"moderately protected "]
[null,"Fynbos South Coast Centre "]
[1,"<Don't know>","none",1,"CE"]
[2,"Agulhas Limestone Fynbos ",6,2,"LT ",29450,28014,95,8,32,"poorly protected "]
[3,"Agulhas Sand Fynbos ",7,3,"VU ",23059,16781,73,6,32,"poorly protected "]
[4,"Albertinia Sand Fynbos ",10,4,"VU ",70932,52326,74,5,32,"poorly protected "]
[5,"Canca Limestone Fynbos ",9249,5,"LT ",110464,95867,87,0,32,"hardly protected "]
[6,"De Hoop Limestone Fynbos ",9250,6,"LT ",68654,66955,98,26,32,"moderately protected "]
[null,"Fynbos Southeast Centre "]
[1,"<Don't know>","none",1,"CE"]
[2,"Algoa Sandstone Fynbos ",9211,2,"EN ",34097,16199,48,2,23,"poorly protected "]
[3,"Garden Route Granite Fynbos ",8016,3,"EN ",43178,12552,29,0,23,"hardly protected "]
[4,"Garden Route Shale Fynbos ",8017,4,"EN ",56852,25290,44,1,23,"hardly protected "]
[5,"Grootrivier Quartzite Fynbos ",8014,5,"LT ",56478,56426,100,0,23,"not protected "]
[6,"Knysna Sand Fynbos ",72,6,"EN ",15370,4561,30,0,23,"hardly protected "]
[7,"Kouga Sandstone Fynbos ",878,7,"LT ",240260,221444,92,34,23,"well protected "]
[8,"Kouga Sandstone Grassy Fynbos ",9264,8,"LT ",413666,375050,91,16,23,"moderately protected "]
[9,"Loerie Conglomerate Fynbos ",9210,9,"LT ",21866,19811,91,12,23,"moderately protected "]
[10,"North Outeniqua Sandstone Fynbos ",9226,10,"LT ",87881,75567,86,8,23,"poorly protected "]
[11,"South Outeniqua Sandstone Fynbos ",8023,11,"VU ",157412,113671,72,17,23,"moderately protected "]
[12,"Suurberg Quartzite Fynbos ",9207,12,"LT ",88543,87300,99,19,23,"moderately protected "]
[13,"Suurberg Shale Fynbos ",9208,13,"LT ",51501,50745,99,59,23,"well protected "]
[14,"Tsitsikamma Sandstone Fynbos ",9204,14,"VU ",227916,151434,66,3,23,"poorly protected "]
[null,"Fynbos Southwest Centre "]
[1,"<Don't know>","none",1,"CE"]
[2,"North Sonderend Sandstone Fynbos ",8027,2,"LT ",51324,50320,98,21,30,"moderately protected "]
[3,"Overberg Sandstone Fynbos ",8006,3,"LT ",116947,109406,94,6,30,"poorly protected "]
[4,"Peninsula Granite Fynbos ",30,4,"EN ",8986,4052,45,33,30,"well protected "]
[5,"Peninsula Sandstone Fynbos ",114,5,"LT ",23235,21592,93,100,30,"well protected "]
[6,"Potberg Ferricrete Fynbos ",9217,6,"EN ",4049,2443,60,5,30,"poorly protected "]
[7,"Potberg Sandstone Fynbos ",9230,7,"LT ",10736,10207,95,46,30,"well protected "]
[8,"Robertson Granite Fynbos ",5563,8,"LT ",1700,1504,88,2,30,"poorly protected "]
[9,"South Langeberg Sandstone Fynbos ",9221,9,"LT ",122365,119125,97,21,30,"moderately protected "]
[10,"South Sonderend Sandstone Fynbos ",9223,10,"LT ",38080,35510,93,39,30,"well protected "]
[11,"Swartland Alluvium Fynbos ",140,11,"CE ",46985,11806,25,2,30,"poorly protected "]
[12,"Swellendam Silcrete Fynbos ",153,12,"EN ",86850,49925,57,4,30,"poorly protected "]
[13,"Western Shale Band Vegetation ",9232,13,"LT ",13467,12634,94,48,30,"well protected "]
[null,"Renosterveld Eastern Centre "]
[1,"<Don't know>","none",1,"CE"]
[2,"Baviaanskloof Shale Renosterveld ",9206,2,"LT ",11878,11875,100,22,29,"moderately protected "]
[3,"Humansdorp Shale Renosterveld ",185,3,"EN ",36662,13537,37,0,29,"hardly protected "]
[4,"Kango Renosterveld ",5580,4,"LT ",50202,43133,86,2,29,"poorly protected "]
[5,"Langkloof Shale Renosterveld ",86,5,"EN ",20708,7700,37,0,29,"not protected "]
[6,"Swartberg Shale Renosterveld ",138,6,"LT ",27639,26877,97,7,29,"poorly protected "]
[7,"Uniondale Shale Renosterveld ",8003,7,"LT ",134091,113648,85,0,29,"hardly protected "]
[null,"Renosterveld Karoo Centre "]
[1,"<Don't know>","none",1,"CE"]
[2,"Central Mountain Shale Renosterveld ",266,2,"LT ",123651,122433,99,0,27,"not protected "]
[3,"Hantam Plateau Dolerite Bulb Veld ",273,3,"LT ",78670,78251,99,1,27,"hardly protected "]
[4,"Namaqualand Granite Renosterveld ",2874,4,"LT ",70612,66766,95,0,27,"not protected "]
[5,"Roggeveld Shale Renosterveld ",290,5,"LT ",291690,288563,99,0,27,"not protected "]
[null,"Renosterveld Mountain Centre "]
[1,"<Don't know>","none",1,"CE"]
[2,"Ceres Shale Renosterveld ",8012,2,"VU ",49176,30341,62,0,27,"hardly protected "]
[3,"Matjiesfontein Shale Renosterveld ",5556,3,"LT ",212596,192956,91,4,27,"poorly protected "]
[4,"Montagu Shale Renosterveld ",102,4,"LT ",163775,138141,84,2,27,"poorly protected "]
[5,"Nieuwoudtville Shale Renosterveld ",158,5,"EN ",15923,8169,51,0,27,"not protected "]
[6,"Nieuwoudtville-Roggeveld Dolerite Bulb Veld ",315,6,"LT ",22077,21269,96,0,27,"not protected "]
[7,"Robertson Granite Renosterveld ",5564,7,"LT ",1923,1917,100,0,27,"not protected "]
[8,"Vanrhynsdorp Shale Renosterveld ",9242,8,"LT ",23978,23466,98,4,27,"poorly protected "]
[null,"Renosterveld South Coast Centre "]
[1,"<Don't know>","none",1,"CE"]
[2,"Breede Alluvium Renosterveld ",23,2,"EN ",49834,20482,41,0,27,"hardly protected "]
[3,"Breede Shale Renosterveld ",25,3,"VU ",104636,71998,69,2,27,"poorly protected "]
[4,"Central Ruens Shale Renosterveld ",9229,4,"CE ",201178,26881,13,0,27,"hardly protected "]
[5,"Eastern Ruens Shale Renosterveld ",9228,5,"EN ",7816,2640,34,2,27,"poorly protected "]
[6,"Eastern Ruens Shale Renosterveld ",9228,6,"CE ",277112,53229,19,0,27,"hardly protected "]
[7,"Mossel Bay Shale Renosterveld ",103,7,"EN ",79645,33146,42,0,27,"hardly protected "]
[8,"Ruens Silcrete Renosterveld ",5558,8,"CE ",20986,4624,22,0,27,"hardly protected "]
[9,"Western Ruens Shale Renosterveld ",8025,9,"CE ",119034,16150,14,0,27,"hardly protected "]
[null,"Renosterveld West Coast Centre "]
[1,"<Don't know>","none",1,"CE"]
[2,"Peninsula Shale Renosterveld ",32,2,"CE ",2970,691,23,19,26,"moderately protected "]
[3,"Piketberg Quartz Succulent Shrubland ",9289,3,"CE ",240,0,"<1 ",0,26,"not protected "]
[4,"Swartland Alluvium Renosterveld ",142,4,"EN ",6250,3771,60,0,26,"not protected "]
[5,"Swartland Granite Bulb Veld ",2328,5,"CE ",94745,19400,20,1,26,"hardly protected "]
[6,"Swartland Shale Renosterveld ",8009,6,"CE ",494577,45587,9,0,26,"hardly protected "]
[7,"Swartland Silcrete Renosterveld ",9233,7,"CE ",9985,984,10,1,26,"hardly protected "]
[null,"South Strandveld "]
[1,"<Don't know>","none",1,"CE"]
[2,"Blombos Sand Strandveld ",18,2,"LT ",5901,5864,99,24,36,"moderately protected "]
[3,"Groot Brak Dune Strandveld ",2334,3,"EN ",26342,12976,49,0,36,"not protected "]
[4,"Overberg Dune Strandveld ",8,4,"LT ",39393,37257,95,36,36,"well protected "]
[5,"Southern Cape Dune Fynbos ",845,5,"LT ",18627,15033,81,15,36,"poorly protected "]
[null,"Fynbos Strandveld"]
[1,"<Don't know>","none",1,"CE"]
[2,"Cape Seashore Vegetation ",9238,2,"LT ",22719,22292,98,96,20,"well protected "]
[null,"West Strandveld "]
[1,"<Don't know>","none",1,"CE"]
[2,"Cape Flats Dune Strandveld ",27,2,"EN ",42419,25460,60,5,24,"poorly protected "]
[3,"Lamberts Bay Strandveld ",77,3,"VU ",45124,34094,76,1,24,"poorly protected "]
[4,"Langebaan Dune Strandveld ",78,4,"VU ",43768,28607,65,27,24,"well protected "]
[5,"Saldanha Flats Strandveld ",128,5,"EN ",76023,34311,45,10,24,"poorly protected "]
[6,"Saldanha Granite Strandveld ",2326,6,"EN ",23476,7210,31,7,24,"poorly protected "]
[7,"Saldanha Limestone Strandveld ",130,7,"EN ",3565,2104,59,0,24,"not protected "]
[null,"Grassland Alluvial Vegetation"]
[1,"<Don't know>","none",1,"CE"]
[2,"Highveld Alluvial Vegetation",849,2,"VU ",465685,364723,78,7,31,"poorly protected "]
[null,"Coastal Grassland"]
[1,"<Don't know>","none",1,"CE"]
[2,"KwaZulu-Natal Coastal Belt ",227,2,"EN ",632201,313313,50,1,25,"hardly protected "]
[3,"Maputaland Coastal Belt ",952,3,"VU ",402486,276812,69,11,25,"poorly protected "]
[4,"Maputaland Wooded Grassland ",9212,4,"EN ",99118,53784,54,12,25,"poorly protected "]
[5,"Pondoland-Natal Sandstone Coastal Sourveld ",204,5,"VU ",130819,92523,71,6,25,"poorly protected "]
[6,"Transkei Coastal Belt ",587,6,"VU ",163625,130713,80,1,25,"hardly protected "]
[null,"Drakensburg Grassland"]
[1,"<Don't know>","none",1,"CE"]
[2,"Amatole Mistbelt Grassland ",9234,2,"LT ",15827,15380,97,0,27,"not protected "]
[3,"Amatole Montane Grassland ",826,3,"LT ",441955,393160,89,2,27,"poorly protected "]
[4,"Barberton Montane Grassland ",8094,4,"VU ",131522,81686,62,26,27,"moderately protected "]
[5,"Drakensberg Afroalpine Heathland ",2829,5,"LT ",281166,280502,100,2,27,"poorly protected "]
[6,"Drakensberg-Amatole Afromontane Fynbos ",8077,6,"LT ",2391,2387,100,53,27,"well protected "]
[7,"Ithala Quartzite Sourveld ",9247,7,"LT ",169464,150594,89,10,27,"poorly protected "]
[8,"Lesotho Highland Basalt Grassland ",184,8,"LT ",2015483,1859495,92,1,27,"hardly protected "]
[9,"Northern Drakensberg Highland Grassland ",903,9,"LT ",120881,112763,93,38,27,"well protected "]
[10,"Northern Escarpment Afromontane Fynbos ",8097,10,"LT ",987,980,99,56,27,"well protected "]
[11,"Northern Escarpment Dolomite Grassland ",8096,11,"EN ",93876,44823,48,2,27,"poorly protected "]
[12,"Northern Escarpment Quartzite Sourveld ",856,12,"VU ",136528,84096,62,15,27,"moderately protected "]
[13,"Southern Drakensberg Highland Grassland ",929,13,"LT ",647766,614319,95,8,27,"poorly protected "]
[14,"Stormberg Plateau Grassland ",208,14,"LT ",296434,270119,91,0,27,"not protected "]
[15,"uKhahlamba Basalt Grassland ",928,15,"LT ",150327,150156,100,76,27,"well protected "]
[16,"Wolkberg Dolomite Grassland ",9281,16,"LT ",26084,25235,97,48,27,"well protected "]
[17,"Woodbush Granite Grassland ",9282,17,"CE ",33986,8991,26,0,27,"not protected "]
[null,"Grassland Biome Shrublands"]
[1,"<Don't know>","none",1,"CE"]
[2,"Besemkaree Koppies Shrubland ",830,2,"LT ",967773,940254,97,4,28,"poorly protected "]
[3,"Bloemfontein Karroid Shrubland ",9267,3,"LT ",9452,8561,91,0,28,"hardly protected "]
[4,"Drakensberg Montane Shrubland ",896,4,"VU ",348329,236352,68,2,28,"poorly protected "]
[5,"Northern Free State Shrubland ",9268,5,"LT ",3003,2828,94,0,28,"not protected "]
[6,"Senqu Montane Shrubland ",9266,6,"LT ",373687,321154,86,0,28,"not protected "]
[7,"Tarkastad Montane Shrubland ",943,7,"LT ",423967,416959,98,1,28,"hardly protected "]
[8,"Western Lesotho Basalt Shrubland ",3149,8,"LT ",220832,185961,84,0,28,"not protected "]
[9,"Winburg Grassy Shrubland ",916,9,"LT ",157198,139520,89,1,28,"hardly protected "]
[null,"Highveld Grassland"]
[1,"<Don't know>","none",1,"CE"]
[2,"Aliwal North Dry Grassland ",842,2,"LT ",716207,630636,88,0,24,"hardly protected "]
[3,"Amersfoort Highveld Clay Grassland ",947,3,"VU ",389655,293637,75,0,24,"not protected "]
[4,"Bloemfontein Dry Grassland ",951,4,"EN ",491705,290459,59,0,24,"hardly protected "]
[5,"Carletonville Dolomite Grassland ",839,5,"VU ",911780,693463,76,2,24,"poorly protected "]
[6,"Central Free State Grassland ",2329,6,"VU ",1598226,1219588,76,1,24,"hardly protected "]
[7,"Eastern Free State Clay Grassland ",9265,7,"EN ",1504352,665391,44,0,24,"hardly protected "]
[8,"Eastern Free State Sandy Grassland ",861,8,"EN ",1423816,786216,55,1,24,"poorly protected "]
[9,"Eastern Highveld Grassland ",949,9,"EN ",1266904,702248,55,0,24,"hardly protected "]
[10,"Egoli Granite Grassland ",873,10,"EN ",109319,34523,32,1,24,"hardly protected "]
[11,"Frankfort Highveld Grassland ",893,11,"VU ",987636,655750,66,0,24,"hardly protected "]
[12,"KaNgwane Montane Grassland ",924,12,"VU ",965488,609090,63,0,24,"hardly protected "]
[13,"Karoo Escarpment Grassland ",888,13,"LT ",837830,827863,99,3,24,"poorly protected "]
[14,"Klerksdorp Thornveld ",818,14,"VU ",392811,277913,71,1,24,"poorly protected "]
[15,"Lebombo Summit Sourveld ",220,15,"EN ",13570,7798,57,3,24,"poorly protected "]
[16,"Leolo Summit Sourveld ",883,16,"VU ",2034,1333,66,0,24,"not protected "]
[17,"Lydenburg Montane Grassland ",901,17,"VU ",492128,381544,78,2,24,"poorly protected "]
[18,"Lydenburg Thornveld ",911,18,"VU ",155192,121683,78,2,24,"poorly protected "]
[19,"Northern KwaZulu-Natal Moist Grassland ",906,19,"VU ",596337,436797,73,1,24,"hardly protected "]
[20,"Paulpietersburg Moist Grassland ",9214,20,"VU ",332989,222800,67,0,24,"hardly protected "]
[21,"Rand Highveld Grassland ",827,21,"EN ",1026129,599136,58,1,24,"hardly protected "]
[22,"Sekhukhune Montane Grassland ",919,22,"VU ",138119,99218,72,0,24,"not protected "]
[23,"Soutpansberg Summit Sourveld ",8032,23,"LT ",8620,8510,99,17,24,"moderately protected "]
[24,"Soweto Highveld Grassland ",973,24,"EN ",1451033,761968,53,0,24,"hardly protected "]
[25,"Strydpoort Summit Sourveld ",8037,25,"LT ",26808,26660,99,17,24,"moderately protected "]
[26,"Tsakane Clay Grassland ",9280,26,"EN ",128381,71429,56,1,24,"hardly protected "]
[27,"Vaal Reefs Dolomite Sinkhole Woodland ",9283,27,"VU ",34694,26651,77,0,24,"not protected "]
[28,"Vaal-Vet Sandy Grassland ",844,28,"EN ",2274316,833982,37,0,24,"hardly protected "]
[29,"Vredefort Dome Granite Grassland ",857,29,"EN ",92158,54741,59,0,24,"not protected "]
[30,"Wakkerstroom Montane Grassland ",9255,30,"LT ",385309,358731,93,0,24,"hardly protected "]
[31,"Waterberg-Magaliesberg Summit Sourveld ",8033,31,"LT ",52586,52420,100,26,24,"well protected "]
[32,"Western Free State Clay Grassland ",8088,32,"LT ",667057,539073,81,0,24,"not protected "]
[33,"Western Highveld Sandy Grassland ",950,33,"EN ",858127,335613,39,0,24,"hardly protected "]
[34,"Xhariep Karroid Grassland ",860,34,"LT ",1339190,1286681,96,1,24,"poorly protected "]
[35,"Zastron Moist Grassland",892,35,"VU ",426814,292023,68,0,24,"not protected "]
[null,"Sub Escarpment Grassland"]
[1,"<Don't know>","none",1,"CE"]
[2,"Bedford Dry Grassland ",8089,2,"LT ",205087,198417,97,0,23,"not protected "]
[3,"Drakensberg Foothill Moist Grassland ",243,3,"LT ",1289199,1054791,82,3,23,"poorly protected "]
[4,"East Griqualand Dry Grassland ",217,4,"VU ",866746,643745,74,0,23,"hardly protected "]
[5,"Mabela Sandy Grassland ",307,5,"VU ",47706,37263,78,0,23,"hardly protected "]
[6,"Income Sandy Grassland ",313,6,"VU ",604106,439731,73,0,23,"hardly protected "]
[7,"KwaZulu-Natal Dry Highland Grassland ",229,7,"LT ",516966,432847,84,1,23,"poorly protected "]
[8,"KwaZulu-Natal Sandstone Coastal Sourveld ",9290,8,"EN ",31891,7983,25,0,23,"hardly protected "]
[9,"Low Escarpment Moist Grassland ",9213,9,"LT ",178304,168106,94,1,23,"poorly protected "]
[10,"Midlands Mistbelt Grassland ",894,10,"EN ",657658,310203,47,0,23,"hardly protected "]
[11,"Mooirivier Highland Dry Grassland ",230,11,"VU ",100403,76006,76,0,23,"hardly protected "]
[12,"Northern KwaZulu-Natal Shrubland ",9272,12,"LT ",29207,28124,96,1,23,"hardly protected "]
[13,"Northern Zululand Mistbelt Grassland ",907,13,"VU ",80773,61762,76,3,23,"poorly protected "]
[14,"Queenstown Thornveld ",8050,14,"LT ",360630,323440,90,1,23,"hardly protected "]
[15,"Southern KwaZulu-Natal Moist Grassland ",244,15,"VU ",227662,151209,66,4,23,"poorly protected "]
[16,"Tsomo Grassland ",890,16,"VU ",613687,447947,73,0,23,"not protected "]
[17,"Umtata Moist Grassland ",891,17,"EN ",528250,313779,59,0,23,"hardly protected "]
[null,"Nama Karoo Alluvial Vegetation"]
[1,"<Don't know>","none",1,"CE"]
[2,"Upper Gariep Alluvial Vegetation ",909,2,"VU",178529,131606,74,3,31,"poorly protected"]
[null,"Bushmanland and West Griqualand"]
[1,"<Don't know>","none",1,"CE"]
[2,"Blouputs Karroid Thornveld ",9286,2,"LT",60762,60568,100,23,21,"well protected"]
[3,"Bushmanland Arid Grassland ",260,3,"LT",4547895,4521743,99,0,21,"hardly protected"]
[4,"Bushmanland Basin Shrubland ",261,4,"LT",3469068,3447899,99,0,21,"not protected"]
[5,"Bushmanland Sandy Grassland ",274,5,"LT",228299,227208,100,0,21,"not protected"]
[6,"Kalahari Karroid Shrubland ",309,6,"LT",828389,821569,99,0,21,"hardly protected"]
[7,"Lower Gariep Broken Veld ",277,7,"LT",453817,449675,99,3,21,"poorly protected"]
[null,"Lower Karoo"]
[1,"<Don't know>","none",1,"CE"]
[2,"Albany Broken Veld ",875,2,"LT",165279,160228,97,0,16,"hardly protected"]
[3,"Eastern Lower Karoo ",854,3,"LT",832106,819265,98,0,16,"hardly protected"]
[4,"Gamka Karoo ",306,4,"LT",2032491,2021441,99,2,16,"poorly protected"]
[5,"Lower Karoo Gwarrieveld ",7100,5,"LT",156959,155712,99,0,16,"not protected"]
[null,"Upper Karoo "]
[1,"<Don't know>","none",1,"CE"]
[2,"Eastern Upper Karoo ",858,2,"LT",4982132,4882819,98,1,21,"hardly protected"]
[3,"Northern Upper Karoo ",284,3,"LT",4182772,4040930,97,0,21,"hardly protected"]
[4,"Upper Karoo Hardeveld ",958,4,"LT",1173428,1170326,100,3,21,"poorly protected"]
[5,"Western Upper Karoo ",959,5,"LT",1714951,1703443,99,0,21,"hardly protected"]
[null,"Savanna Alluvial Vegetation "]
[1,"<Don't know>","none",1,"CE"]
[2,"Subtropical Alluvial Vegetation ",880,2,"LT ",66346,55862,84,71,31,"well protected "]
[null,"Central Bushveld "]
[1,"<Don't know>","none",1,"CE"]
[2,"Central Sandy Bushveld ",834,2,"VU ",1724249,1307782,76,3,19,"poorly protected "]
[3,"Dwaalboom Thornveld ",8041,3,"LT ",966895,830306,86,6,19,"poorly protected "]
[4,"Limpopo Sweet Bushveld ",941,4,"LT ",1202307,1140985,95,1,19,"hardly protected "]
[5,"Loskopdam Thornveld ",9258,5,"VU ",75991,57753,76,9,19,"poorly protected "]
[6,"Madikwe Dolomite Bushveld ",8043,6,"LT ",97430,96400,99,18,19,"moderately protected "]
[7,"Makhado Sweet Bushveld ",922,7,"VU ",1010722,735463,73,1,19,"hardly protected "]
[8,"Marikana Thornveld ",9271,8,"EN ",252870,131540,52,0,19,"hardly protected "]
[9,"Moot Plains Bushveld ",917,9,"VU ",290082,210130,72,6,19,"poorly protected "]
[10,"Polokwane Plateau Bushveld ",913,10,"LT ",444440,369274,83,1,19,"poorly protected "]
[11,"Roodeberg Bushveld ",942,11,"LT ",649646,533890,82,6,19,"poorly protected "]
[12,"Sekhukhune Plains Bushveld ",921,12,"VU ",252224,187784,74,1,19,"hardly protected "]
[13,"Springbokvlakte Thornveld ",955,13,"EN ",879704,445700,51,1,19,"hardly protected "]
[14,"Western Sandy Bushveld ",8044,14,"LT ",649418,626001,96,6,19,"poorly protected "]
[15,"Zeerust Thornveld ",8040,15,"LT ",412895,348232,84,3,19,"poorly protected "]
[null,"Kalahari Dry Savanna "]
[1,"<Don't know>","none",1,"CE"]
[2,"Aoub Duneveld ",1653,2,"LT ",288230,287767,100,61,16,"well protected "]
[3,"Ghaap Plateau Vaalbosveld ",1669,3,"LT ",1542415,1523007,99,0,16,"not protected "]
[4,"Gordonia Duneveld ",1654,4,"LT ",3597045,3588604,100,15,16,"moderately protected "]
[5,"Gordonia Kameeldoring Bushveld ",1652,5,"LT ",222772,222360,100,40,16,"well protected "]
[6,"Gordonia Plains Shrubveld ",1655,6,"LT ",788362,785458,100,9,16,"moderately protected "]
[7,"Kathu Bushveld ",1661,7,"LT ",744327,735104,99,0,16,"not protected "]
[8,"Kimberley Thornveld ",1649,8,"LT ",1951249,1606867,82,2,16,"poorly protected "]
[9,"Koranna-Langeberg Mountain Bushveld ",9248,9,"LT ",162089,161873,100,0,16,"not protected "]
[10,"Kuruman Mountain Bushveld ",310,10,"LT ",436052,431920,99,0,16,"not protected "]
[11,"Kuruman Thornveld ",1647,11,"LT ",579438,568374,98,0,16,"not protected "]
[12,"Kuruman Vaalbosveld ",1651,12,"LT ",393252,386557,98,0,16,"not protected "]
[13,"Mafikeng Bushveld ",731,13,"VU ",1438721,1079939,75,0,16,"not protected "]
[14,"Molopo Bushveld ",1662,14,"LT ",2274904,2245013,99,1,16,"poorly protected "]
[15,"Molopo River Duneveld ",1656,15,"LT ",80128,79900,100,0,16,"not protected "]
[16,"Nossob Bushveld ",1657,16,"LT ",74714,74642,100,100,16,"well protected "]
[17,"Olifantshoek Plains Thornveld ",1659,17,"LT ",849661,842203,99,0,16,"hardly protected "]
[18,"Postmasburg Thornveld ",1665,18,"LT ",92790,91941,99,0,16,"not protected "]
[19,"Schmidtsdrif Thornveld ",9284,19,"LT ",503275,438746,87,0,16,"hardly protected "]
[20,"Schweizer-Reineke Bushveld ",8038,20,"EN ",202725,117693,58,0,16,"not protected "]
[21,"Stella Bushveld ",657,21,"VU ",321865,253543,79,0,16,"not protected "]
[22,"Vaalbos Rocky Shrubland ",9285,22,"LT ",145136,142968,99,2,16,"poorly protected "]
[null,"Lowveld "]
[1,"<Don't know>","none",1,"CE"]
[2,"Basalt Sweet Arid Lowveld ",940,2,"LT ",357068,297984,83,60,19,"well protected "]
[3,"Cathedral Mopane Bushveld ",9275,3,"LT ",27559,27461,100,95,19,"well protected "]
[4,"Delagoa Lowveld ",816,4,"VU ",272205,180868,66,17,19,"moderately protected "]
[5,"Gabbro Grassy Bushveld ",867,5,"LT ",107055,106619,100,92,19,"well protected "]
[6,"Granite Lowveld Bushveld ",695,6,"VU ",1983918,1570844,79,17,19,"moderately protected "]
[7,"Gravelotte Rocky Bushveld ",9277,7,"LT ",32350,27652,85,0,19,"not protected "]
[8,"Legogote Sour Bushveld ",900,8,"EN ",353814,178073,50,1,19,"poorly protected "]
[9,"Limpopo Ridge Bushveld ",9259,9,"LT ",278287,275947,99,17,19,"moderately protected "]
[10,"Lowveld Rugged Mopaneveld ",9260,10,"VU ",315419,252367,80,32,19,"well protected "]
[11,"Makatini Clay Thicket ",9252,11,"LT ",33885,31585,93,40,19,"well protected "]
[12,"Makuleke Sandy Bushveld ",877,12,"VU ",207537,151513,73,30,19,"well protected "]
[13,"Mopane Shrubveld ",923,13,"LT ",280478,279334,100,95,19,"well protected "]
[14,"Musina Mopane Bushveld ",962,14,"LT ",879899,857420,97,2,19,"poorly protected "]
[15,"Northern Zululand Sourveld ",926,15,"VU ",617462,484502,78,4,19,"poorly protected "]
[16,"Nwambyia-Pumbe Sandy Bushveld ",9263,16,"LT ",16978,16915,100,92,19,"well protected "]
[17,"Phalaborwa Sandy Mopaneveld ",9262,17,"LT ",139646,128956,92,27,19,"well protected "]
[18,"Pretoriuskop Sour Bushveld ",915,18,"LT ",94291,78944,84,37,19,"well protected "]
[19,"Swaziland Sour Bushveld ",925,19,"VU ",430665,340059,79,5,19,"poorly protected "]
[20,"Tembe Sandy Bushveld ",326,20,"LT ",118943,109380,92,16,19,"moderately protected "]
[21,"Tsende Mopaneveld ",9261,21,"LT ",614593,552011,90,61,19,"well protected "]
[22,"Tzaneen Sour Lowveld ",904,22,"EN ",342613,203384,59,1,19,"poorly protected "]
[23,"Western Maputaland Sandy Bushveld ",223,23,"LT ",14938,14639,98,17,19,"moderately protected "]
[24,"Western Maputuland Clay Bushveld ",9254,24,"VU ",125105,81635,65,10,19,"moderately protected "]
[25,"Zululand Coastal Thornveld ",9278,25,"EN ",69362,29181,42,0,19,"not protected "]
[26,"Zululand Lowveld ",8049,26,"VU",881795,653957,74,9,19,"poorly protected"]
[null,"Mountain Bushveld "]
[1,"<Don't know>","none",1,"CE"]
[2,"Andesite Mountain Bushveld ",863,2,"LT ",199530,169605,85,6,24,"poorly protected "]
[3,"Barberton Serpentine Sourveld ",8098,3,"VU ",10962,8146,74,6,24,"poorly protected "]
[4,"Gauteng Shale Mountain Bushveld ",9279,4,"VU ",102501,81370,79,0,24,"hardly protected "]
[5,"Gold Reef Mountain Bushveld ",859,5,"LT ",203098,171727,85,21,24,"moderately protected "]
[6,"Kaalrug Mountain Bushveld ",918,6,"LT ",47845,42169,88,16,24,"moderately protected "]
[7,"Loskopdam Mountain Bushveld ",884,7,"LT ",206630,201836,98,14,24,"moderately protected "]
[8,"Malelane Mountain Bushveld ",693,8,"LT ",116701,111526,96,39,24,"well protected "]
[9,"Mmabolo Mountain Bushveld ",9276,9,"LT ",68295,64108,94,8,24,"poorly protected "]
[10,"Norite Koppies Bushveld ",835,10,"LT ",26009,23257,89,0,24,"not protected "]
[11,"Northern Lebombo Bushveld ",882,11,"LT ",133827,133433,100,98,24,"well protected "]
[12,"Ohrigstad Mountain Bushveld ",825,12,"LT ",199813,181269,91,8,24,"poorly protected "]
[13,"Pilanesberg Mountain Bushveld ",914,13,"LT ",43499,42782,98,95,24,"well protected "]
[14,"Poung Dolomite Mountain Bushveld ",8095,14,"LT ",89203,83952,94,10,24,"poorly protected "]
[15,"Sekhukhune Mountain Bushveld ",920,15,"LT ",231612,199640,86,0,24,"not protected "]
[16,"Southern Lebombo Bushveld ",881,16,"LT ",256559,233945,91,5,24,"poorly protected "]
[17,"Soutpansberg Mountain Bushveld ",961,17,"VU ",412127,326323,79,2,24,"poorly protected "]
[18,"Swartruggens Mountain Bushveld ",8036,18,"LT ",264720,246059,93,1,24,"poorly protected "]
[19,"VhaVenda Miombo ",9241,19,"LT ",33,33,100,0,24,"not protected "]
[20,"Waterberg Mountain Bushveld ",956,20,"LT ",882092,852719,97,9,24,"poorly protected "]
[null,"Sub Escarpment Savanna "]
[1,"<Don't know>","none",1,"CE"]
[2,"Eastern Cape Thornveld ",186,2,"VU ",800105,641456,80,0,25,"hardly protected "]
[3,"Eastern Valley Bushveld ",245,3,"LT ",995572,841923,85,0,25,"hardly protected "]
[4,"KwaZulu Natal Hinterland Thornveld ",231,4,"VU ",114580,88952,78,0,25,"not protected "]
[5,"KwaZulu-Natal Sandstone Inland Sourveld ",9287,5,"EN ",102757,34995,34,0,25,"not protected "]
[6,"Ngongoni Veld ",2324,6,"VU ",1005115,618058,61,0,25,"hardly protected "]
[7,"Thukela Thornveld ",248,7,"LT ",231178,218496,95,1,25,"hardly protected "]
[8,"Thukela Valley Bushveld ",249,8,"LT ",270676,249974,92,0,25,"hardly protected "]
[null,"Central Succulent Karoo "]
[1,"<Don't know>","none",1,"CE"]
[2,"Agter-Sederberg Succulent Shrubland ",3140,2,"LT ",90597,88309,97,1,19,"poorly protected "]
[3,"Doringrivier Succulent Karoo ",3142,3,"LT ",47195,40146,85,0,19,"not protected "]
[4,"Koedoesberge-Moordenaars Succulent Karoo ",879,4,"LT ",471450,468123,99,0,19,"hardly protected "]
[5,"Swartruggens Sandstone Karoo ",3141,5,"LT ",55937,55146,99,5,19,"poorly protected "]
[6,"Tanqua Escarpment Succulent Shrubland ",9256,6,"LT ",132133,131844,100,1,19,"hardly protected "]
[7,"Tanqua Karoo ",946,7,"LT ",698831,693898,99,7,19,"poorly protected "]
[8,"Tanqua Sheet Wash Plains Vygieveld ",945,8,"LT ",213008,206300,97,10,19,"moderately protected "]
[null,"Southern Karoo "]
[1,"<Don't know>","none",1,"CE"]
[2,"Eastern Gwarrieveld ",9245,2,"LT ",231075,228319,99,0,16,"hardly protected "]
[3,"Eastern Little Karoo ",8020,3,"LT ",155554,136150,88,0,16,"hardly protected "]
[4,"Little Karoo Quartz Vygieveld ",9236,4,"LT ",11493,10607,92,1,16,"poorly protected "]
[5,"Muscadel Alluvial Vegetation ",898,5,"EN ",42262,17240,41,0,16,"not protected "]
[6,"Prince Albert Succulent Karoo ",908,6,"LT ",258288,254654,99,2,16,"poorly protected "]
[7,"Robertson Karoo ",5562,7,"LT ",61300,51230,84,0,16,"hardly protected "]
[8,"Steytlerville Karoo ",935,8,"LT ",79341,77971,98,0,16,"not protected "]
[9,"Western Gwarrieveld ",8074,9,"LT ",75964,74367,98,2,16,"poorly protected "]
[10,"Western Little Karoo ",298,10,"LT ",420134,404006,96,3,16,"poorly protected "]
[null,"Trans Escarpment Succulent Karoo "]
[1,"<Don't know>","none",1,"CE"]
[2,"Aggeneys Gravel Vygieveld ",9235,2,"LT ",6222,6169,99,0,18,"not protected "]
[3,"Hantam Karoo ",272,3,"LT ",746356,735643,99,0,18,"hardly protected "]
[4,"Roggeveld Karoo ",289,4,"LT ",565554,556037,98,0,18,"not protected "]
[5,"West Bushmanland Klipveld ",4199,5,"LT ",229721,228784,100,0,18,"not protected "]
[null,"West Coast Sandveld "]
[1,"<Don't know>","none",1,"CE"]
[2,"Aughrabies Sandy Grassland ",768,2,"LT ",12330,12226,99,0,26,"not protected "]
[3,"Namaqualand Arid Grassland ",2864,3,"LT ",70396,67233,96,20,26,"moderately protected "]
[4,"Namaqualand Coastal Duneveld ",2871,4,"LT ",98345,90176,92,0,26,"not protected "]
[5,"Namaqualand Inland Duneveld ",2859,5,"LT ",31205,30969,99,0,26,"not protected "]
[6,"Namaqualand Seashore Vegetation ",2873,6,"LT ",6757,6338,94,0,26,"not protected "]
[7,"Namaqualand Spinescent Grassland ",2866,7,"LT ",52227,50122,96,4,26,"poorly protected "]
[8,"Namaqualand Strandveld ",2861,8,"LT ",391642,358617,92,0,26,"hardly protected "]
[9,"Namib Seashore Vegetation ",2877,9,"LT ",1286,1106,86,0,26,"not protected "]
[10,"Northern Richtersveld Red Duneveld ",781,10,"LT ",31030,31010,100,0,26,"not protected "]
[11,"Northern Richtersveld Sandveld ",786,11,"LT ",10938,10929,100,0,26,"not protected "]
[12,"Northern Richtersveld Yellow Duneveld ",785,12,"LT ",54747,54337,99,0,26,"not protected "]
[13,"Richtersveld Coastal Duneveld ",797,13,"LT ",36707,33279,91,0,26,"not protected "]
[14,"Richtersveld White Duneveld ",784,14,"LT ",11625,10621,91,0,26,"not protected "]
[15,"Southern Richtersveld Red Duneveld ",796,15,"LT ",22634,22621,100,0,26,"not protected "]
[16,"Southern Richtersveld Sandveld ",799,16,"LT ",17020,16944,100,0,26,"not protected "]
[17,"Southern Richtersveld Yellow Duneveld ",798,17,"LT ",33343,32262,97,0,26,"not protected "]
[null,"Western Lowland Karoo "]
[1,"<Don't know>","none",1,"CE"]
[2,"Central Knersvlakte Vygieveld ",2867,2,"LT ",29236,28989,99,0,28,"not protected "]
[3,"Citrusdal Vygieveld ",64,3,"VU ",12663,8334,66,0,28,"not protected "]
[4,"Knersvlakte Dolomite Vygieveld ",2863,4,"LT ",5796,5673,98,0,28,"not protected "]
[5,"Knersvlakte Quartz Vygieveld ",2865,5,"LT ",121150,118402,98,5,28,"poorly protected "]
[6,"Knersvlakte Shale Vygieveld ",2868,6,"LT ",88507,88072,100,0,28,"not protected "]
[7,"Namaqualand Heuweltjieveld ",2858,7,"LT ",255656,246887,97,9,28,"poorly protected "]
[8,"Northern Knersvlakte Vygieveld ",2860,8,"LT ",151390,150636,100,0,28,"not protected "]
[9,"Northern Richtersveld Scorpionstailveld ",3145,9,"LT ",34326,34212,100,15,28,"moderately protected "]
[10,"Richtersveld Western Foothill Shrubland ",783,10,"LT ",91185,90971,100,0,28,"not protected "]
[11,"Riethuis Quartz Vygieveld ",2857,11,"LT ",11183,11131,100,28,28,"well protected "]
[12,"Southeastern Richtersveld Succulent Shrubland ",792,12,"LT ",61215,61185,100,0,28,"not protected "]
[13,"Southern Richtersveld Scorpionstailveld ",795,13,"LT ",72139,71736,99,0,28,"not protected "]
[14,"Vanrhynsdorp Gannabosveld ",2862,14,"VU ",97126,77158,79,0,28,"not protected "]
[null,"Western Mountain Shrubland "]
[1,"<Don't know>","none",1,"CE"]
[2,"Namaqualand Shale Shrubland ",804,2,"LT ",66828,66570,100,0,24,"not protected "]
[null,"Western Upland Karoo "]
[1,"<Don't know>","none",1,"CE"]
[2,"Anenous Plateau Shrubland ",766,2,"LT ",23428,23345,100,0,28,"not protected "]
[3,"Aughrabies Mountains Succulent Shrubland ",767,3,"LT ",1837,1837,100,0,28,"not protected "]
[4,"Central Richtersveld Montane Shrubland ",769,4,"LT ",104137,104041,100,37,28,"well protected "]
[5,"Die Plate Succulent Shrubland ",770,5,"LT ",12756,12703,100,0,28,"not protected "]
[6,"Eenriet Plains Succulent Shrubland ",789,6,"LT ",26075,25935,99,0,28,"not protected "]
[7,"Goariep Mountain Succulent Shrubland ",772,7,"LT ",17078,17069,100,0,28,"not protected "]
[8,"Kamiesberg Mountains Shrubland ",2876,8,"LT ",42532,41868,98,2,28,"poorly protected "]
[9,"Namaqualand Blomveld ",2855,9,"LT ",380919,357909,94,1,28,"hardly protected "]
[10,"Namaqualand Klipkoppe Shrubland ",2854,10,"LT ",1093611,1039202,95,5,28,"poorly protected "]
[11,"Platbakkies Succulent Shrubland ",4198,11,"LT ",97793,97144,99,0,28,"not protected "]
[12,"Rooiberg Quartz Vygieveld ",787,12,"LT ",12928,12862,99,0,28,"not protected "]
[13,"Rosyntjieberge Mountain Succulent Shrubland ",788,13,"LT ",5055,5055,100,97,28,"well protected "]
[14,"Southern Richtersveld Inselberg Shrubland ",794,14,"LT ",36558,36433,100,0,28,"not protected "]
[15,"Southwestern Richtersveld Mountain Shrubland ",801,15,"LT ",18989,18976,100,0,28,"not protected "]
[16,"Stinkfonteinberge Eastern Footplain Shrubland ",805,16,"LT ",6587,6587,100,2,28,"poorly protected "]
[17,"Umdaus Mountains Succulent Shrubland ",808,17,"LT ",43285,43232,100,0,28,"not protected "]
[18,"Upper Annisvlakte Succulent Shrubland ",809,18,"LT ",19181,19126,100,0,28,"not protected "]
[19,"Van der Sterberg Summit Shrubland ",780,19,"LT ",4903,4903,100,49,28,"well protected "]
[null,"Estuarine Salt Marshes"]
[1,"<Don't know>","none",1,"CE"]
[2,"Arid Estuarine Salt Marshes ",2870,2,"VU ",5667,4558,80,0,24,"not protected "]
[3,"Cape Estuarine Salt Marshes ",829,3,"VU ",9868,7126,72,2,24,"poorly protected "]
[4,"Subtropical Estuarine Salt Marshes ",862,4,"LT ",376,350,93,0,24,"not protected "]
[null,"Freshwater Wetlands "]
[1,"<Don't know>","none",1,"CE"]
[2,"Cape Lowland Freshwater Wetlands ",8047,2,"VU ",7488,5573,74,9,24,"poorly protected "]
[3,"Cape Vernal Pools ",9244,3,"CE ",20,2,12,0,24,"not protected "]
[4,"Drakensberg Wetlands ",8079,4,"LT ",1387,1351,97,0,24,"not protected "]
[5,"Eastern Temperate Freshwater Wetlands ",960,5,"VU ",55677,40440,73,4,24,"poorly protected "]
[6,"Lesotho Mires ",9237,6,"LT ",2662,2655,100,4,24,"poorly protected "]
[7,"Subtropical Freshwater Wetlands ",8081,7,"LT ",65646,61891,94,40,24,"well protected "]
[null,"Inland Saline Vegetation "]
[1,"<Don't know>","none",1,"CE"]
[2,"Bushmanland Vloere ",264,2,"LT ",470690,451942,96,0,24,"not protected "]
[3,"Cape Inland Salt Pans ",8084,3,"EN ",8171,4838,59,7,24,"poorly protected "]
[4,"Highveld Salt Pans ",869,4,"LT ",116231,111887,96,0,24,"hardly protected "]
[5,"Namaqualand Riviere ",899,5,"LT ",85472,71156,83,0,24,"hardly protected "]
[6,"Namaqualand Salt Pans ",2856,6,"LT ",9954,9747,98,0,24,"not protected "]
[7,"Southern Kalahari Mekgacha ",870,7,"LT ",218123,214549,98,16,24,"moderately protected "]
[8,"Southern Kalahari Salt Pans ",1670,8,"LT ",88278,87223,99,7,24,"poorly protected "]
[9,"Southern Karoo Riviere ",885,9,"LT ",529865,469129,89,1,24,"hardly protected "]
[10,"Subtropical Salt Pans ",9274,10,"VU ",3273,2265,69,20,24,"moderately protected "]
[null,"Macroalgal Sea Beds "]
[1,"<Don't know>","none",1,"CE"]
[2,"Cape Kelp Sea Beds ",9246,2,"LT ",176,176,100,0,24,"not protected "]

{"sheet":"RET_ECO_DataExtract","index":25,"n_rows":3,"n_cols":4,"rows_kept":3,"cut":false,"hidden":true,"merged":[]}
["Dictionary","Value","Key","Note: "]
["Retail_ECO_4_Ecology_Points",{"$f":"'Ecology Calculator'!J3","v":0},"REcP"]
["Retail_Ecology_Change_in_Diversity",{"$f":"'Ecology Calculator'!F44","v":0},"REcC"]

{"sheet":"Emissions","index":26,"n_rows":29,"n_cols":9,"rows_kept":29,"cut":false,"hidden":false,"merged":[[12,7,13,7],[9,7,11,7],[6,7,7,7],[12,0,13,0],[12,1,13,1],[12,2,13,2],[6,0,7,0],[9,0,11,0],[9,1,11,1],[9,2,11,2],[6,1,7,1],[6,2,7,2]]}
[{"$f":"'Building Input'!B1","v":"Green Star SA - Retail Centre v1"},null,null,null,null,"Category Weighting:",{"$f":"'Credit Summary'!J92","v":0.08},"Category Weighted Score"]
["Emissions",null,null,"Category Summary:  ",{"$f":"E19","v":18},{"$f":"F19","v":0},{"$f":"G19","v":0},{"$f":"'Credit Summary'!K92","v":0}]
["Credit Summary for:",null,{"$f":"IF('Building Input'!$C$5=0,\"\",'Building Input'!$C$5)","v":""},null,null,{"$f":"IF(OR((I3=Calculation1!$B$84),(I3=Calculation1!$B$85),((F2+G2)>E2)),Calculation1!$B$86,\"\")","v":""},null,null,{"$f":"T(I5:I18)","v":""}]
["Ref No.","Title","Aim of Credit","Credit Criteria Summary","No. of Points Available","No. of Points Achieved","Points to be Confirmed","Comments"]
["Emi-1","Refrigerant / Gaseous ODP","To encourage and recognise the selection of refrigerants and other gases that do not contribute to long-term damage to the Earth’s stratospheric ozone layer.","One point is awarded where \nAll HVAC refrigerants and gaseous fire suppression systems used have an Ozone Depletion Potential (ODP) of zero;\nOR \nNo refrigerants or gaseous fire suppression systems are used.",1,null,null,null,{"$f":"IF(OR(ISTEXT(F5)=TRUE,ISTEXT(G5)=TRUE),Calculation1!$B$87,IF(F5+G5>E5,Calculation1!$B$84,\"\"))","v":""}]
["Emi-2","Refrigerant GWP","To encourage and recognise the selection of refrigerants that reduce the potential for increased global warming from the emission of refrigerants to the atmosphere.","Up to two points are awarded as follows:\n- One point where 50% of the fluorocarbon refrigerant charge has been replaced with refrigerant(s) that have a Global Warming Potential (GWP) of 10 or less; or\n- Two points where all refrigerants have a GWP of 10 or less OR where no refrigerants are used at all.",2,null,null,null,{"$f":"IF(OR(ISTEXT(F6)=TRUE,ISTEXT(G6)=TRUE),Calculation1!$B$87,IF(F6+G6>E6,Calculation1!$B$84,\"\"))","v":""}]
["Emi-3","Refrigerant Leaks","To encourage and recognise building systems design that minimises environmental damage from refrigerant leaks.","Up to two points are awarded as follows:\n\nOne point is awarded where: \n- HVAC Systems containing refrigerants are contained in a moderately air tight enclosure and a refrigerant leak detection system is installed to cover high-risk parts of the plant;\nOR\n- an automatic permanent refrigerant leak detection system is specified, which is NOT based on the principle of detecting or measuring the concentration of refrigerant in air.",{"$f":"IF(OR(F7=\"na\",F8=\"na\"),0,1)","v":1},null,null,null,{"$f":"IF(ISBLANK(F7),IF(G7>E7,Calculation1!$B$84,\"\"),IF(F7=\"na\",\"\",IF(OR(F7=\"na\",ISNUMBER(F7)),IF(F7+G7>E7,Calculation1!$B$84,\"\"),Calculation1!$B$85)))","v":""}]
[null,null,null,"An additional point is awarded where:\n- The point above is achieved; AND\n- The project has installed a refrigerant recovery system that is:\n   > Equipped with an automated pump-down system; and\n   > Sized to effectively and safely capture, isolate, and store 95% (by weight) of the maximum refrigerant charge.\n\nWhere no refrigerants are used in the project OR if all points in Emi-1 ‘Refrigerant ODP’ and Emi-2 ‘Refrigerant GWP’ are achieved, this credit is ‘Not Applicable’ and is excluded from the points available, used to calculate the Emissions Category Score. Type 'na' in the No. of Points Achieved column.",{"$f":"IF(OR(F7=\"na\",F8=\"na\"),0,1)","v":1},null,null,null,{"$f":"IF(ISBLANK(F8),IF(G8>E8,Calculation1!$B$84,\"\"),IF(F8=\"na\",\"\",IF(OR(F8=\"na\",ISNUMBER(F8)),IF(F8+G8>E8,Calculation1!$B$84,\"\"),Calculation1!$B$85)))","v":""}]
["Emi-4","Insulant ODP","To encourage and recognise the selection of insulants that do not contribute to long-term damage to the Earth’s stratospheric ozone layer.","One point is awarded where no ozone-depleting substances are associated with either the manufacture or the composition of all thermal and acoustic insulants in the project.",1,null,null,null,{"$f":"IF(OR(ISTEXT(F9)=TRUE,ISTEXT(G9)=TRUE),Calculation1!$B$87,IF(F9+G9>E9,Calculation1!$B$84,\"\"))","v":""}]
["Emi-5","Watercourse Pollution","To encourage and recognise developments that minimise stormwater run-off to, and the pollution of, the natural watercourses.","Up to three points are awarded as follows:\n\nOne point is awarded where the development does not increase peak stormwater flows for rainfall events of up to a 1-in-2 year storm.\n",1,null,null,null,{"$f":"IF(ISBLANK(F10),IF(G10>E10,Calculation1!$B$84,\"\"),IF(F10=\"na\",\"\",IF(OR(F10=\"na\",ISNUMBER(F10)),IF(F10+G10>E10,Calculation1!$B$84,\"\"),Calculation1!$B$85)))","v":""}]
[null,null,null,"One point is awarded where all stormwater leaving the site, at any time up to a 1-in-20 year storm event, is treated or filtered in accordance with either:\n    > CSIRO Urban Stormwater: Best Practice Environmental Management Guidelines\n    OR\n    > Australian and New Zealand Environment Conservation Council (ANZECC)’s Guidelines for Urban Stormwater Management.",1,null,null,null,{"$f":"IF(ISBLANK(F11),IF(G11>E11,Calculation1!$B$84,\"\"),IF(F11=\"na\",\"\",IF(OR(F11=\"na\",ISNUMBER(F11)),IF(F11+G11>E11,Calculation1!$B$84,\"\"),Calculation1!$B$85)))","v":""}]
[null,null,null,"An additional point is awarded where:\n- Both of the above points are achieved; AND\n- A riparian buffer zone that has three separate zones of pollution buffering is installed within 9 meters of a waterway or natural watercourse and the development. \n\nWhere the project site does not contain or is not immediately adjacent to a waterway, the additional point is ‘Not Applicable’ and is excluded from the points available, used to calculate the Emissions Category Score. Type 'na' in the No. of Points Achieved column.",{"$f":"IF(F12=\"na\",0,1)","v":1},null,null,null,{"$f":"IF(ISBLANK(F12),IF(G12>E12,Calculation1!$B$84,\"\"),IF(F12=\"na\",\"\",IF(OR(F12=\"na\",ISNUMBER(F12)),IF(F12+G12>E12,Calculation1!$B$84,\"\"),Calculation1!$B$85)))","v":""}]
["Emi-6","Discharge to Sewer","To encourage and recognise developments that minimise discharge to the municipal sewerage system.","Up to five points are available as follows:\n\nUp to four points are awarded where the building outflows to the sewerage system due to building occupants’ usage have been reduced against an average-practice benchmark as follows:\n- One point for a 30% reduction;\n- Two points for a 50% reduction;\n- Three points for a 70% reduction; or\n- Four points for a 90% reduction.\n\nThe points are determined by the Green Star SA Sewage Calculator.",4,{"$f":"'Sewage Calculator'!F2","v":0},null,null,{"$f":"IF(OR(ISTEXT(F13)=TRUE,ISTEXT(G13)=TRUE),Calculation1!$B$87,IF(F13+G13>E13,Calculation1!$B$84,\"\"))","v":""}]
[null,null,null,"An additional point is awarded where:\n- At least one point above is achieved; AND\n- There is a Blackwater Treatment Maintenance Plan; AND\n- There is a maintenance contract for a minimum of five years to ensure that the blackwater treatment system operates as intended by the design.\n\nWhere no blackwater treatment system is installed, the additional point is ‘Not Applicable’ and is excluded from the points available, used to calculate the Emissions Category Score. Type 'na' in the No. of Points Achieved column.",{"$f":"IF(F14=\"na\",0,1)","v":1},null,null,null,{"$f":"IF(ISBLANK(F14),IF(G14>E14,Calculation1!$B$84,\"\"),IF(F14=\"na\",\"\",IF(OR(F14=\"na\",ISNUMBER(F14)),IF(F14+G14>E14,Calculation1!$B$84,\"\"),Calculation1!$B$85)))","v":""}]
["Emi-7","Light Pollution","To encourage and recognise developments that minimise light pollution into the night sky.","One point is awarded where:\n- No light beam, generated from within the building or outside of the building boundary, is directed at any point in the sky hemisphere without falling directly onto a non-transparent surface; AND\n- Facade lighting produces an average building Luminance of no more than 10 candelas/m²; AND\n- 95% of outdoor spaces do not exceed the minimum requirements of CIBSE Lighting Guide:1992, The Outdoor Environment for maintained illuminance levels; AND\n- The lighting design complies with the additional guidance given in the Green Star SA - Retail Centre v1 Technical Manual.",1,null,null,null,{"$f":"IF(OR(ISTEXT(F15)=TRUE,ISTEXT(G15)=TRUE),Calculation1!$B$87,IF(F15+G15>E15,Calculation1!$B$84,\"\"))","v":""}]
["Emi-8","Legionella","To encourage and recognise building systems design that eliminates the risk of Legionnaires’ disease (Legionellosis).","One point is awarded where:\n• There are no water based heat rejection system(s) serving the building; \nOR\n• Water-based heat rejection system(s) serving the building's nominated area meet all of the following: \n   - Do not contain water that is kept at a temperature between 20ºC and 50ºC; \n   - Do not release an aerosol spray during operation;\n   - Are designed and built to maintain constant movement of the water in the system, when in operation, to prevent stagnation; \n   - Are designed and built for routine and periodic flushing to remove bio-film buildup and stagnant water from the system(s) whenever it is not in operation; and\n   - Are designed, located and built in accordance with AS/NZS 3666.1:2002; AND\n• A Legionella Risk Management plan has been prepared in accordance with AS/NZS 3666.2:2002 or AS/NZS 3666.3:2000 and has been included in the O&M manual provided to the building owner; AND\n• All water storage system(s) must be designed in accordance with SANS 10252-1:2004\n\nFor the purposes of this credit 'nominated area' is defined as the GLA and common areas (excluding parking and tenancies that provide their own air).",1,null,null,null,{"$f":"IF(OR(ISTEXT(F16)=TRUE,ISTEXT(G16)=TRUE),Calculation1!$B$87,IF(F16+G16>E16,Calculation1!$B$84,\"\"))","v":""}]
["Emi-9","Boiler and Generator Emissions","To encourage and recognise the use of boilers and generators that minimise harmful emissions.","One point is awarded where: \n- All gas boilers have NOx emissions of < 100 mg/kWh (at 0% excess O2); AND\n- All generators comply with the Tier 3 emissions standards as defined by the United States Environmental Protection Agency (EPA) or the equivalent European Stage IIIA standard.\n\nWhere no boilers or generators are installed, this credit is 'Not Applicable' and is excluded from the points available, used to calculate the Emissions Category Score. Type 'na' in the No. of Points Achieved column.",{"$f":"IF(F17=\"na\",0,1)","v":1},null,null,null,{"$f":"IF(ISBLANK(F17),IF(G17>E17,Calculation1!$B$84,\"\"),IF(F17=\"na\",\"\",IF(OR(F17=\"na\",ISNUMBER(F17)),IF(F17+G17>E17,Calculation1!$B$84,\"\"),Calculation1!$B$85)))","v":""}]
["Emi-10 ","Kitchen Exhaust Emissions","To encourage and reward designs that avoid kitchen exhaust fumes being expelled directly into adjacent spaces that people occupy.","Demonstrate that the building mechanical system meets the following requirements: \n• Exhaust points are located not closer than 10m to a neighbouring usable space or walkway, or a fresh air intake (of that development or another development)\n\nIf the developer is not in control of the design of any kitchen exhaust ducting or exhaust risers, then this credit is 'Not Applicable' and is excluded from the Points Available, used to calculate the Emissions Category Score. Type 'na' in the No. of Points Achieved column.",{"$f":"IF(F18=\"na\",0,1)","v":1},null,null,null,{"$f":"IF(ISBLANK(F18),IF(G18>E18,Calculation1!$B$84,\"\"),IF(F18=\"na\",\"\",IF(OR(F18=\"na\",ISNUMBER(F18)),IF(F18+G18>E18,Calculation1!$B$84,\"\"),Calculation1!$B$85)))","v":""}]
[null,null,null,"Total Points:",{"$f":"SUM(E5:E18)","v":18},{"$f":"SUM(F5:F18)","v":0},{"$f":"SUM(G5:G18)","v":0}]
[]
[]
[]
[{"$f":"Calculation1!$B$93","v":"Project Teams are to refer to the Green Star SA Retail Centre v1 Technical Manual for explicit credit criteria and documentation requirements."}]
[{"$f":"Calculation1!$B$94","v":"The Green Star Technical Clarifications (TC) and Credit Interpretation Request (CIR) rulings provide an essential source of information to all"}]
[{"$f":"Calculation1!$B$95","v":"projects undertaking Green Star assessment. They are available on the GBCSA website http://www.gbcsa.org.za . Technical Clarifications"}]
[{"$f":"Calculation1!$B$96","v":"often represent the GBCSA answers to technical queries and complement Green Star SA Technical Manuals. They do not amend but clarify "}]
[{"$f":"Calculation1!$B$97","v":"Credit Criteria or Compliance Requirements. They are an extension of the Technical Manual; it is the responsibility of the project teams to stay "}]
[{"$f":"Calculation1!$B$98","v":"up-to-date with this section of the GBCSA website. The CIR rulings offer alternative compliance options whenever those have been deemed "}]
[{"$f":"Calculation1!$B$99","v":"equivalent in meeting the Aim of Credit."}]

{"sheet":"Sewage Calculator","index":27,"n_rows":52,"n_cols":17,"rows_kept":52,"cut":false,"hidden":false,"merged":[[72,8,72,9],[73,8,73,9],[19,2,19,3],[20,2,20,3],[49,9,49,10],[26,2,26,3],[33,2,33,3],[25,2,25,3],[34,2,34,3],[28,2,28,3],[71,8,71,9],[37,2,37,3],[50,9,50,10],[51,9,51,10],[52,9,52,10],[40,8,41,8],[39,9,39,11],[39,2,40,2],[39,3,40,3],[39,4,40,4],[7,8,7,9],[35,2,35,3],[36,2,36,3],[15,2,15,4],[16,2,16,3],[17,2,17,3],[18,2,18,3],[21,2,21,3],[32,2,32,4],[27,2,27,3],[0,1,0,5],[2,1,2,5],[13,2,13,4],[3,2,3,3],[5,2,5,3],[10,5,10,7]]}
[null,{"$f":"'Building Input'!B1","v":"Green Star SA - Retail Centre v1"}]
[null,"Sewage Calculator",null,null,"Points Achieved:",{"$f":"E38","v":0}]
[]
[]
[]
[]
[]
[]
[]
[null,"Notes & Instructions:"]
[null,"1. Ensure 'Water Calculator' data is correct.",null,null,null,null,null,null,{"$f":"'Building Input'!C42","v":0},null,1,"Hours of operation",{"$f":"VLOOKUP($K11,$K182:$M185,3)","v":{"$error":"#N/A"}},"Potable water factor"]
[null,"2. No further data input required.",null,null,null,null,null,null,{"$f":"I11/60","v":0}]
[]
[null,null,"WATER CONSUMPTION DUE TO FITTINGS"]
[null,null,"(from Potable Water Calculator)"]
[null,null,"The following estimated water consumption is based on the data entered in the calculator. The water consumption of the fittings per m2 is based on assumptions of typical retail centre usage and does not represent actual water consumption in the building. "]
[null,null,null,null,"L/day/m2"]
[null,null,"WCs",null,{"$f":"'Potable Water Calculator'!G20","v":0}]
[null,null,"Urinals",{"$f":"#REF!","v":{"$error":"#REF!"}},{"$f":"'Potable Water Calculator'!G35","v":0}]
[null,null,"Taps",{"$f":"#REF!","v":{"$error":"#REF!"}},{"$f":"'Potable Water Calculator'!G45","v":0}]
[null,null,"Showerheads",{"$f":"#REF!","v":{"$error":"#REF!"}},{"$f":"'Potable Water Calculator'!G55","v":0}]
[null,null,"Predicted Water Consumption",null,{"$f":"'Potable Water Calculator'!G58","v":0}]
[]
[]
[null,null,"SEWAGE REDUCTION DUE TO RECYCLING"]
[null,null,null,null,"L/day/m2"]
[null,null,"Greywater collected from showers/taps",null,{"$f":"'Potable Water Calculator'!N111","v":0}]
[null,null,"Blackwater collected from showers/taps/WCs/urinals",null,{"$f":"'Potable Water Calculator'!N127","v":0}]
[null,null,"Sewage reduction due to treatment",null,{"$f":"E27+E28","v":0},null,null,null,"Shower Demand",{"$f":"'Potable Water Calculator'!L55","v":0},"<--From Potable Water Calculator"]
[]
[]
[null,null,"REDUCED SEWER DISCHARGE"]
[null,null,"The following estimated discharge to sewer is based on the data entered above and does not represent actual discharge to the sewer in the building. "]
[null,null,null,null,"L/day/m2"]
[null,null,"Predicted Water \nConsumption by Fixtures",null,{"$f":"E22","v":0}]
[null,null,"Less predicted Greywater and Blackwater treated",null,{"$f":"E29","v":0}]
[null,null,"Estimated discharge to sewer (L/day/m2)",null,{"$f":"ROUND(E35-E36,2)","v":0}]
[null,null,"Points Achieved",null,{"$f":"IF(E35>0,VLOOKUP(J29,I51:L52,4),0)","v":0}]
[]
[null,null,"% sewer reduction","Points","L/day/m2 benchmark",null,null,null,"% sewer reduction","L/day/m2 benchmark ((L/day/person)/(m2/person))",null,null,"Points","Calc (0%)","Calc (3%)"]
[null,null,null,null,null,null,null,null,null,"No showers installed","3% Occupants shower",null,null,"No showers installed","Shower"]
[null,null,0.9,4,{"$f":"HLOOKUP(J29,J42:K47,2)","v":9.9999999999999978E-2},null,null,null,null,0,1]
[null,null,0.7,3,{"$f":"HLOOKUP(J29,J42:L47,3)","v":0.30000000000000004},null,null,null,0.9,{"$f":"(1-I43)*$J$47","v":9.9999999999999978E-2},{"$f":"(1-I43)*$K$47","v":0.13999999999999996},null,4,{"$f":"IF($E$37<=J43,1,0)","v":1},1,null,{"$f":"K43-J43","v":3.999999999999998E-2}]
[null,null,0.5,2,{"$f":"HLOOKUP(J29,J42:L47,4)","v":0.5},null,null,null,0.7,{"$f":"(1-I44)*$J$47","v":0.30000000000000004},{"$f":"(1-I44)*$K$47","v":0.42000000000000004},null,3,1,1,null,{"$f":"K44-J44","v":0.12}]
[null,null,0.3,1,{"$f":"HLOOKUP(J29,J42:L47,5)","v":0.7},null,null,null,0.5,{"$f":"(1-I45)*$J$47","v":0.5},{"$f":"(1-I45)*$K$47","v":0.7},null,2,1,1,null,{"$f":"K45-J45","v":0.19999999999999996}]
[null,null,null,null,null,null,null,null,0.3,{"$f":"(1-I46)*$J$47","v":0.7},{"$f":"(1-I46)*$K$47","v":0.97999999999999987},null,1,1,1,null,{"$f":"K46-J46","v":0.27999999999999992}]
[null,null,null,null,null,null,null,null,"Benchmark",{"$f":"15/15","v":1},1.4,null,0,0,0]
[null,null,null,null,null,null,null,null,null,null,null,null,null,{"$f":"SUM(N43:N47)","v":4},{"$f":"SUM(O43:O47)","v":4}]
[]
[null,null,null,null,null,null,null,null,"Shower Demand","Description",null,"Points Achieved"]
[null,null,null,null,null,null,null,null,0,"No showers installed",null,{"$f":"N48","v":4}]
[null,null,null,null,null,null,null,null,1,"3% Occupants shower",null,{"$f":"O48","v":4}]

{"sheet":"RET_EMI_DataExtract","index":28,"n_rows":10,"n_cols":4,"rows_kept":10,"cut":false,"hidden":true,"merged":[]}
["Key","Value","Dictionary","Note: "]
["Retail_EMI_5_Sewage_Points ",{"$f":"'Sewage Calculator'!F2","v":0},"RSP"]
["Retail_Sewage_Consumpt_WC",{"$f":"'Sewage Calculator'!E18","v":0},"RSCW","L/day/m2"]
["Retail_Sewage_Consumpt_Urinals",{"$f":"'Sewage Calculator'!E19","v":0},"RSCU","L/day/m2"]
["Retail_Sewage_Consumpt_Taps",{"$f":"'Sewage Calculator'!E20","v":0},"RSCT","L/day/m2"]
["Retail_Sewage_Consumpt_Shower",{"$f":"'Sewage Calculator'!E21","v":0},"RSCS","L/day/m2"]
["Retail_Sewage_Consumpt_Predicted_Water",{"$f":"'Sewage Calculator'!E22","v":0},"RSCP","L/day/m2"]
["Retail_Sewage_Reduction_Treated_Water",{"$f":"'Sewage Calculator'!E29","v":0},"RSRP","L/day/m2"]
["Retail_Sewage_Predicted_Grey_Water",{"$f":"'Sewage Calculator'!E27","v":0},"RSPGW","L/day/m2"]
["Retail_Sewage_Predicted_Black_Water",{"$f":"'Sewage Calculator'!E28","v":0},"RSPBW","L/day/m2"]

{"sheet":"Innovation","index":29,"n_rows":18,"n_cols":9,"rows_kept":18,"cut":false,"hidden":false,"merged":[[4,4,6,4]]}
[{"$f":"'Building Input'!B1","v":"Green Star SA - Retail Centre v1"},null,null,null,null,"Category Weighting:","na","Category Score"]
["Innovation",null,null,"Category Summary:  ",{"$f":"E8","v":5},{"$f":"F8","v":0},{"$f":"G8","v":0},{"$f":"'Credit Summary'!K98","v":0}]
["Credit Summary for:",null,{"$f":"IF('Building Input'!$C$5=0,\"\",'Building Input'!$C$5)","v":""}]
["Ref No.","Title","Aim of Credit","Credit Criteria Summary","No. of Points Available","No. of Points Achieved","Points to be Confirmed","Comments"]
["Inn-1","Innovative Strategies & Technologies","To encourage and recognise pioneering initiatives in sustainable design, process or advocacy.","Up to two points can be awarded for an innovation initiative where:\n- The initiative is a technology or process that is considered a ‘first’ in South Africa or in the world; \nOR \n- The project substantially contributes to the broader market transformation towards sustainable development in South Africa or in the world.\n\nPoints for this credit are allocated as follows:\n- One point is awarded when either of the above is true for the South African market; and\n- Two points are awarded when either of the above is true for the global market.\n\nUp to five innovation initiatives can be awarded points under this credit, but no individual initiative can achieve more than two points in this credit. Qualifying initiatives may achieve additional points in other Innovation credits; however, the maximum points available for any one building assessment under Inn-1, Inn-2 and Inn-3 is five (in total). ",5,null,null,null,{"$f":"IF(OR(ISTEXT(F5)=TRUE,ISTEXT(G5)=TRUE),Calculation1!$B$87,IF(F5+G5>E5,Calculation1!$B$84,\"\"))","v":""}]
["Inn-2","Exceeding Green Star SA Benchmarks","To encourage and recognise projects that achieve environmental benefits in excess of the current Green Star SA benchmarks.","Up to two points can be awarded for an innovation initiative where there has been a substantial improvement on an existing Green Star SA credit, as follows:\n- One point for a solution that results in the elimination of the specific negative environmental impact of the project targeted by an existing credit; and\n- Two points for a solution that results in a substantial (e.g. 5% or greater above ‘neutral’) restorative environmental impact targeted by an existing credit.\n\nUp to five innovation initiatives can be awarded points under this credit, but no individual initiative can achieve more than two points in this credit. Qualifying initiatives may achieve additional points in other Innovation credits; however, the maximum points available for any one building assessment under Inn-1, Inn-2 and Inn-3 is five (in total). ",null,null,null,null,{"$f":"IF(OR(ISTEXT(F6)=TRUE,ISTEXT(G6)=TRUE),Calculation1!$B$87,IF(F6+G6>E5,Calculation1!$B$84,\"\"))","v":""}]
["Inn-3","Environmental Design Initiatives ","To encourage and recognise sustainable building initiatives that are currently outside of the scope of this Green Star SA rating tool but which have a substantial or significant environmental benefit.","One point can be awarded where:\n- An initiative in the project viably addresses a valid environmental concern outside of the current scope of this Green Star SA tool.\n\nUp to five innovation initiatives can be awarded points under this credit, but no individual initiative can achieve more than one point in this credit. Qualifying initiatives may achieve additional points in other Innovation credits; however, the maximum points available for any one building assessment under Inn-1, Inn-2 and Inn-3 is five (in total). ",null,null,null,null,{"$f":"IF(OR(ISTEXT(F7)=TRUE,ISTEXT(G7)=TRUE),Calculation1!$B$87,IF(F7+G7>E5,Calculation1!$B$84,\"\"))","v":""}]
[null,null,null,"Total Points:",{"$f":"SUM(E5:E7)","v":5},{"$f":"SUM(F5:F7)","v":0},{"$f":"SUM(G5:G7)","v":0}]
[]
[]
[]
[{"$f":"Calculation1!$B$93","v":"Project Teams are to refer to the Green Star SA Retail Centre v1 Technical Manual for explicit credit criteria and documentation requirements."}]
[{"$f":"Calculation1!$B$94","v":"The Green Star Technical Clarifications (TC) and Credit Interpretation Request (CIR) rulings provide an essential source of information to all"}]
[{"$f":"Calculation1!$B$95","v":"projects undertaking Green Star assessment. They are available on the GBCSA website http://www.gbcsa.org.za . Technical Clarifications"}]
[{"$f":"Calculation1!$B$96","v":"often represent the GBCSA answers to technical queries and complement Green Star SA Technical Manuals. They do not amend but clarify "}]
[{"$f":"Calculation1!$B$97","v":"Credit Criteria or Compliance Requirements. They are an extension of the Technical Manual; it is the responsibility of the project teams to stay "}]
[{"$f":"Calculation1!$B$98","v":"up-to-date with this section of the GBCSA website. The CIR rulings offer alternative compliance options whenever those have been deemed "}]
[{"$f":"Calculation1!$B$99","v":"equivalent in meeting the Aim of Credit."}]

{"sheet":"Credit Summary","index":30,"n_rows":109,"n_cols":11,"rows_kept":109,"cut":false,"hidden":false,"merged":[[104,9,105,9],[104,0,111,6],[104,8,105,8],[1,3,2,10]]}
[{"$f":"'Building Input'!B1","v":"Green Star SA - Retail Centre v1"},null,null,"Comments:"]
["Credit Summary",null,null,"Enter description of project aspects etc."]
[{"$f":"'Building Input'!C5","v":0}]
[]
["Category","Title","Credit No.","Points Available","Points Achieved",null,"Points to be Confirmed",null,"Percent of Available Points Achieved","Weighting","Weighted Score"]
[]
["Management"]
[null,{"$f":"Management!B5","v":"Green Star SA Accredited Professional"},"Man - 1",{"$f":"IF(Management!E5=0,\"na\",Management!E5)","v":2},{"$f":"IF(D8=\"na\",\"na\",Management!F5)","v":0},null,{"$f":"IF(D8=\"na\",\"-\",Management!G5)","v":0}]
[null,{"$f":"Management!B6","v":"Commissioning  Clauses"},"Man - 2",{"$f":"SUM(Management!E6:E7)","v":2},{"$f":"SUM(Management!F6:F7)","v":0},null,{"$f":"SUM(Management!G6:G7)","v":0}]
[null,{"$f":"Management!B8","v":"Building Tuning"},"Man - 3",{"$f":"Management!E8","v":2},{"$f":"Management!F8","v":0},null,{"$f":"Management!G8","v":0}]
[null,{"$f":"Management!B9","v":"Independent Commissioning Agent"},"Man - 4",{"$f":"Management!E9","v":1},{"$f":"Management!F9","v":0},null,{"$f":"Management!G9","v":0}]
[null,{"$f":"Management!B10","v":"Building Guides"},"Man - 5",{"$f":"Management!E10","v":2},{"$f":"Management!F10","v":0},null,{"$f":"Management!G10","v":0}]
[null,{"$f":"Management!B11","v":"Environmental Management"},"Man - 6",{"$f":"Management!E11+Management!E12","v":2},{"$f":"Management!F11+Management!F12","v":0},null,{"$f":"Management!G11+Management!G12","v":0}]
[null,{"$f":"Management!B13","v":"Waste Management"},"Man - 7",{"$f":"Management!E13","v":3},{"$f":"Management!F13","v":0},null,{"$f":"Management!G13","v":0}]
[null,{"$f":"Management!B15","v":"Waste and Recycling Management Plan"},"Man - 9",{"$f":"Management!E15","v":1},{"$f":"Management!F15","v":0},null,{"$f":"Management!G15","v":0}]
[null,{"$f":"Management!B16","v":"Building Management Systems"},"Man - 10",{"$f":"Management!E16","v":1},{"$f":"Management!F16","v":0},null,{"$f":"Management!G16","v":0}]
[null,{"$f":"Management!B17","v":"Green Lease"},"Man - 11",{"$f":"Management!E17","v":1},{"$f":"Management!F17","v":0},null,{"$f":"Management!G17","v":0}]
[null,null,"TOTAL",{"$f":"Management!E18","v":17},{"$f":"SUM(E8:E17)","v":0},null,{"$f":"SUM(G8:G17)","v":0},null,{"$f":"E18/D18","v":0},0.1,{"$f":"I18*J18*100","v":0}]
[]
["Indoor Environment Quality"]
[null,{"$f":"IEQ!B5","v":"Ventilation Rates"},"IEQ - 1",{"$f":"IF(IEQ!E5=0,\"na\",IEQ!E5)","v":3},{"$f":"IF(D21=\"na\",\"na\",IEQ!F5)","v":0},null,{"$f":"IF(D21=\"na\",\"-\",IEQ!G5)","v":0}]
[null,{"$f":"IEQ!B7","v":"Air Change Effectiveness"},"IEQ - 2",{"$f":"IF(IEQ!E7=0,\"na\",IEQ!E7)","v":2},{"$f":"IF(D22=\"na\",\"na\",IEQ!F7)","v":0},null,{"$f":"IF(D22=\"na\",\"-\",IEQ!G7)","v":0}]
[null,{"$f":"IEQ!B9","v":"Carbon Dioxide Monitoring and Control"},"IEQ - 3",{"$f":"IF(IEQ!E9=0,\"na\",IEQ!E9)","v":1},{"$f":"IF(D23=\"na\",\"na\",IEQ!F9)","v":0},null,{"$f":"IF(D23=\"na\",\"-\",IEQ!G9)","v":0}]
[null,{"$f":"IEQ!B11","v":"Daylight"},"IEQ - 4",{"$f":"IEQ!E11","v":2},{"$f":"IEQ!F11","v":0},null,{"$f":"IEQ!G11","v":0}]
[null,{"$f":"IEQ!B16","v":"Thermal Comfort"},"IEQ - 9",{"$f":"IF((SUM(IEQ!E16:E17))=0,\"na\",(SUM(IEQ!E16:E17)))","v":2},{"$f":"IF(D25=\"na\",\"na\",(SUM(IEQ!F16:F17)))","v":0},null,{"$f":"IF(D25=\"na\",\"-\",(IEQ!G16+IEQ!G17))","v":0}]
[null,{"$f":"IEQ!B19","v":"Hazardous Materials"},"IEQ - 11",{"$f":"IF(IEQ!E19=0,\"na\",IEQ!E19)","v":1},{"$f":"IF(D26=\"na\",\"na\",IEQ!F19)","v":0},null,{"$f":"IF(D26=\"na\",\"-\",IEQ!G19)","v":0}]
[null,{"$f":"IEQ!B20","v":"Internal Noise Levels"},"IEQ - 12",{"$f":"IF(IEQ!E20=0,\"na\",IEQ!E20)","v":1},{"$f":"IF(D27=\"na\",\"na\",IEQ!F20)","v":0},null,{"$f":"IF(D27=\"na\",\"-\",IEQ!G20)","v":0}]
[null,{"$f":"IEQ!B21","v":"Volatile Organic Compounds "},"IEQ - 13",{"$f":"SUM(IEQ!E21:E22)","v":2},{"$f":"SUM(IEQ!F21:F22)","v":0},null,{"$f":"SUM(IEQ!G21:G22)","v":0}]
[null,{"$f":"IEQ!B23","v":"Formaldehyde Minimisation"},"IEQ - 14",{"$f":"IF(IEQ!E23=0,\"na\",IEQ!E23)","v":1},{"$f":"IF(D29=\"na\",\"na\",IEQ!F23)","v":0},null,{"$f":"IF(D29=\"na\",\"-\",IEQ!G23)","v":0}]
[null,{"$f":"IEQ!B24","v":"Mould Prevention"},"IEQ - 15",{"$f":"IF(IEQ!E24=0,\"na\",IEQ!E24)","v":1},{"$f":"IF(D30=\"na\",\"na\",IEQ!F24)","v":0},null,{"$f":"IF(D30=\"na\",\"-\",IEQ!G24)","v":0}]
[null,{"$f":"IEQ!B27","v":"Places of Respite and Connection to Nature"},"IEQ - 18",{"$f":"IEQ!E27","v":1},{"$f":"IEQ!F27","v":0},null,{"$f":"IEQ!G27","v":0}]
[null,null,"TOTAL",{"$f":"IEQ!E28","v":17},{"$f":"SUM(E21:E31)","v":0},null,{"$f":"SUM(G21:G31)","v":0},null,{"$f":"E32/D32","v":0},0.1,{"$f":"I32*J32*100","v":0}]
[]
["Energy"]
[null,{"$f":"Energy!B5","v":"Conditional Requirement"},"Ene - 0",{"$f":"\"0\"","v":"0"},{"$f":"IF('Energy Calculator'!U121=\"No\",\"Not Achieved\",\"Achieved\")","v":"Achieved"},null,{"$f":"\"-\"","v":"-"}]
[null,{"$f":"Energy!B6","v":"Greenhouse Gas Emissions"},"Ene - 1",{"$f":"Energy!E6","v":20},{"$f":"Energy!F6","v":0},null,{"$f":"Energy!G6","v":0}]
[null,{"$f":"Energy!B7","v":"Electrical Energy Sub-metering"},"Ene - 2",{"$f":"Energy!E7","v":2},{"$f":"Energy!F7","v":0},null,{"$f":"Energy!G7","v":0}]
[null,{"$f":"Energy!B10","v":"Maximum Electrical Demand Reduction "},"Ene - 5",{"$f":"Energy!E10","v":3},{"$f":"Energy!F10","v":0},null,{"$f":"Energy!G10","v":0}]
[null,{"$f":"Energy!B11","v":"Thermal Energy Sub-metering"},"Ene - 6",{"$f":"IF(Energy!E11=0,\"na\",Energy!E11)","v":1},{"$f":"IF(D39=\"na\",\"na\",Energy!F11)","v":0},null,{"$f":"IF(D39=\"na\",\"-\",Energy!G11)","v":0}]
[null,null,"TOTAL",{"$f":"Energy!E12","v":26},{"$f":"SUM(E36:E39)","v":0},null,{"$f":"SUM(G36:G39)","v":0},null,{"$f":"E40/D40","v":0},0.25,{"$f":"I40*J40*100","v":0}]
[]
["Transport"]
[null,{"$f":"Transport!B5","v":"Provision of Car Parking"},"Tra - 1",{"$f":"IF(Transport!E5=0,\"na\",Transport!E5)","v":2},{"$f":"IF(D43=\"na\",\"na\",Transport!F5)","v":0},null,{"$f":"IF(D43=\"na\",\"-\",Transport!G5)","v":0}]
[null,{"$f":"Transport!B6","v":"Fuel-Efficient Transport"},"Tra - 2",{"$f":"IF(Transport!E6=0,\"na\",Transport!E6)","v":1},{"$f":"IF(D44=\"na\",\"na\",Transport!F6)","v":0},null,{"$f":"IF(D44=\"na\",\"-\",Transport!G6)","v":0}]
[null,{"$f":"Transport!B7","v":"Cyclist Facilities"},"Tra - 3",{"$f":"SUM(Transport!E7:E8)","v":3},{"$f":"SUM(Transport!F7:F8)","v":0},null,{"$f":"SUM(Transport!G7:G8)","v":0}]
[null,{"$f":"Transport!B9","v":"Commuting Mass Transport"},"Tra - 4",{"$f":"SUM(Transport!E9:E10)","v":6},{"$f":"SUM(Transport!F9:F10)","v":0},null,{"$f":"SUM(Transport!G9:G10)","v":0}]
[null,{"$f":"Transport!B13","v":"Trip Reduction - Mixed-Use"},"Tra - 6",{"$f":"Transport!E13","v":1},{"$f":"Transport!F13","v":0},null,{"$f":"Transport!G13","v":0}]
[null,{"$f":"Transport!B14","v":"Vehicle Operating Emissions"},"Tra - 7",{"$f":"Transport!E14","v":2},{"$f":"Transport!F14","v":0},null,{"$f":"Transport!G14","v":0}]
[null,null,"TOTAL",{"$f":"Transport!E15","v":15},{"$f":"SUM(E43:E48)","v":0},null,{"$f":"SUM(G43:G48)","v":0},null,{"$f":"E49/D49","v":0},0.12,{"$f":"I49*J49*100","v":0}]
[]
["Water"]
[null,{"$f":"Water!B5","v":"Occupant Amenity Water"},"Wat - 1",{"$f":"Water!E5","v":5},{"$f":"Water!F5","v":0},null,{"$f":"Water!G5","v":0}]
[null,{"$f":"Water!B6","v":"Water Meters"},"Wat - 2",{"$f":"SUM(Water!E6:E7)","v":3},{"$f":"SUM(Water!F6:F7)","v":0},null,{"$f":"SUM(Water!G6:G7)","v":0}]
[null,{"$f":"Water!B8","v":"Landscape Irrigation"},"Wat - 3",{"$f":"IF((SUM(Water!E8:E9))=0,\"na\",(SUM(Water!E8:E9)))","v":3},{"$f":"IF(D54=\"na\",\"na\",SUM(Water!F8:F9))","v":0},null,{"$f":"IF(D54=\"na\",\"-\",SUM(Water!G8:G9))","v":0}]
[null,{"$f":"Water!B10","v":"Heat Rejection Water"},"Wat - 4",{"$f":"Water!E10","v":4},{"$f":"Water!F10","v":0},null,{"$f":"Water!G10","v":0}]
[null,{"$f":"Water!B11","v":"Fire System Water Consumption"},"Wat - 5",{"$f":"IF(Water!E11=0,\"na\",Water!E11)","v":1},{"$f":"IF(D56=\"na\",\"na\",Water!F11)","v":0},null,{"$f":"IF(D56=\"na\",\"na\",Water!G11)","v":0}]
[null,null,"TOTAL",{"$f":"Water!E12","v":16},{"$f":"SUM(E52:E56)","v":0},null,{"$f":"SUM(G52:G56)","v":0},null,{"$f":"E57/D57","v":0},0.15,{"$f":"I57*J57*100","v":0}]
[]
["Materials"]
[null,{"$f":"Materials!B5","v":"Recycling Waste Storage"},"Mat - 1",{"$f":"Materials!E5","v":2},{"$f":"Materials!F5","v":0},null,{"$f":"Materials!G5","v":0}]
[null,{"$f":"Materials!B6","v":"Building Reuse "},"Mat - 2",{"$f":"IF(Materials!E6=0,\"na\",Materials!E6)","v":5},{"$f":"IF(D61=\"na\",\"na\",Materials!F6)","v":0},null,{"$f":"IF(D61=\"na\",\"-\",Materials!G6)","v":0}]
[null,{"$f":"Materials!B7","v":"Recycled Content & Re-Used Materials"},"Mat - 3",{"$f":"SUM(Materials!E7:E8)","v":3},{"$f":"SUM(Materials!F7:F8)","v":0},null,{"$f":"SUM(Materials!G7:G8)","v":0}]
[null,{"$f":"Materials!B10","v":"Concrete"},"Mat - 5",{"$f":"IF((SUM(Materials!E10:E11))=0,\"na\",(SUM(Materials!E10:E11)))","v":3},{"$f":"IF(D63=\"na\",\"na\",SUM(Materials!F10:F11))","v":0},null,{"$f":"IF(D63=\"na\",\"-\",SUM(Materials!G10:G11))","v":0}]
[null,{"$f":"Materials!B12","v":"Steel"},"Mat - 6",{"$f":"IF(SUM(Materials!E12:E13)=0,\"na\",SUM(Materials!E12:E13))","v":3},{"$f":"IF(D64=\"na\",\"na\",SUM(Materials!F12:F13))","v":0},null,{"$f":"IF(D64=\"na\",\"-\",(SUM(Materials!G12:G13)))","v":0}]
[null,{"$f":"Materials!B14","v":"PVC Minimisation"},"Mat - 7",{"$f":"Materials!E14","v":1},{"$f":"Materials!F14","v":0},null,{"$f":"Materials!G14","v":0}]
[null,{"$f":"Materials!B15","v":"Sustainable Timber"},"Mat - 8",{"$f":"IF(Materials!E15=0,\"na\",Materials!E15)","v":2},{"$f":"IF(D66=\"na\",\"na\",Materials!F15)","v":0},null,{"$f":"IF(D66=\"na\",\"-\",Materials!G15)","v":0}]
[null,{"$f":"Materials!B16","v":"Design for Disassembly"},"Mat - 9",{"$f":"IF(Materials!E16=0,\"na\",Materials!E16)","v":1},{"$f":"IF(D67=\"na\",\"na\",Materials!F16)","v":0},null,{"$f":"IF(D67=\"na\",\"-\",Materials!G16)","v":0}]
[null,{"$f":"Materials!B17","v":"Dematerialisation"},"Mat - 10",{"$f":"Materials!E17","v":1},{"$f":"Materials!F17","v":0},null,{"$f":"Materials!G17","v":0}]
[null,{"$f":"Materials!B28","v":"Local Sourcing"},"Mat - 11",{"$f":"Materials!E28","v":2},{"$f":"Materials!F28","v":0},null,{"$f":"Materials!G28","v":0}]
[null,null,"TOTAL",{"$f":"Materials!E29","v":23},{"$f":"SUM(E60:E69)","v":0},null,{"$f":"SUM(G60:G69)","v":0},null,{"$f":"E70/D70","v":0},0.13,{"$f":"I70*J70*100","v":0}]
[]
["Land Use & Ecology"]
[null,{"$f":"'Land Use & Ecology'!B5","v":"Conditional Requirement"},"Eco - 0",{"$f":"\"0\"","v":"0"},{"$f":"IF('Land Use & Ecology'!Q22=TRUE,\"Achieved\",\"Not Achieved\")","v":"Not Achieved"},null,{"$f":"\"-\"","v":"-"}]
[null,{"$f":"'Land Use & Ecology'!B8","v":"Topsoil"},"Eco - 1",{"$f":"IF('Land Use & Ecology'!E8=0,\"na\",'Land Use & Ecology'!E8)","v":1},{"$f":"IF(D74=\"na\",\"na\",'Land Use & Ecology'!F8)","v":0},null,{"$f":"IF(D74=\"na\",\"-\",'Land Use & Ecology'!G8)","v":0}]
[null,{"$f":"'Land Use & Ecology'!B9","v":"Reuse of Land"},"Eco - 2",{"$f":"'Land Use & Ecology'!E9","v":2},{"$f":"'Land Use & Ecology'!F9","v":0},null,{"$f":"'Land Use & Ecology'!G9","v":0}]
[null,{"$f":"'Land Use & Ecology'!B10","v":"Reclaimed Contaminated Land"},"Eco - 3",{"$f":"IF('Land Use & Ecology'!E10=0,\"na\",'Land Use & Ecology'!E10)","v":2},{"$f":"IF(D76=0,\"na\",'Land Use & Ecology'!F10)","v":0},null,{"$f":"IF(D76=\"na\",\"-\",'Land Use & Ecology'!G10)","v":0}]
[null,{"$f":"'Land Use & Ecology'!B11","v":"Change of Ecological Value"},"Eco - 4",{"$f":"'Land Use & Ecology'!E11","v":4},{"$f":"'Land Use & Ecology'!F11","v":0},null,{"$f":"'Land Use & Ecology'!G11","v":0}]
[null,{"$f":"'Land Use & Ecology'!B12","v":"Urban Heat Island"},"Eco - 5",{"$f":"'Land Use & Ecology'!E12","v":2},{"$f":"'Land Use & Ecology'!F12","v":0},null,{"$f":"'Land Use & Ecology'!G12","v":0}]
[null,null,"TOTAL",{"$f":"'Land Use & Ecology'!E13","v":11},{"$f":"SUM(E73:E78)","v":0},null,{"$f":"SUM(G73:G78)","v":0},null,{"$f":"E79/D79","v":0},7.0000000000000007E-2,{"$f":"I79*J79*100","v":0}]
[]
["Emissions"]
[null,{"$f":"Emissions!B5","v":"Refrigerant / Gaseous ODP"},"Emi - 1",{"$f":"Emissions!E5","v":1},{"$f":"Emissions!F5","v":0},null,{"$f":"Emissions!G5","v":0}]
[null,{"$f":"Emissions!B6","v":"Refrigerant GWP"},"Emi - 2",{"$f":"Emissions!E6","v":2},{"$f":"Emissions!F6","v":0},null,{"$f":"Emissions!G6","v":0}]
[null,{"$f":"Emissions!B7","v":"Refrigerant Leaks"},"Emi - 3",{"$f":"IF(SUM(Emissions!E7:E8)=0,\"na\",SUM(Emissions!E7:E8))","v":2},{"$f":"IF(D84=\"na\",\"na\",SUM(Emissions!F7:F8))","v":0},null,{"$f":"IF(D84=\"na\",\"-\",Emissions!G7+Emissions!G8)","v":0}]
[null,{"$f":"Emissions!B9","v":"Insulant ODP"},"Emi - 4",{"$f":"Emissions!E9","v":1},{"$f":"Emissions!F9","v":0},null,{"$f":"Emissions!G9","v":0}]
[null,{"$f":"Emissions!B10","v":"Watercourse Pollution"},"Emi - 5",{"$f":"IF(SUM(Emissions!E10:E12)=0,\"na\",SUM(Emissions!E10:E12))","v":3},{"$f":"IF(D86=\"na\",\"na\",SUM(Emissions!F10:F12))","v":0},null,{"$f":"IF(D86=\"na\",\"-\",(SUM(Emissions!G10:G12)))","v":0}]
[null,{"$f":"Emissions!B13","v":"Discharge to Sewer"},"Emi - 6",{"$f":"SUM(Emissions!E13:E14)","v":5},{"$f":"SUM(Emissions!F13:F14)","v":0},null,{"$f":"SUM(Emissions!G13:G14)","v":0}]
[null,{"$f":"Emissions!B15","v":"Light Pollution"},"Emi - 7",{"$f":"Emissions!E15","v":1},{"$f":"Emissions!F15","v":0},null,{"$f":"Emissions!G15","v":0}]
[null,{"$f":"Emissions!B16","v":"Legionella"},"Emi - 8",{"$f":"Emissions!E16","v":1},{"$f":"Emissions!F16","v":0},null,{"$f":"Emissions!G16","v":0}]
[null,{"$f":"Emissions!B17","v":"Boiler and Generator Emissions"},"Emi - 9",{"$f":"IF(Emissions!E17=0,\"na\",Emissions!E17)","v":1},{"$f":"IF(D90=\"na\",\"na\",Emissions!F17)","v":0},null,{"$f":"IF(D90=\"na\",\"-\",Emissions!G17)","v":0}]
[null,{"$f":"Emissions!B18","v":"Kitchen Exhaust Emissions"},"Emi - 10",{"$f":"IF(Emissions!E18=0,\"na\",Emissions!E18)","v":1},{"$f":"IF(D91=\"na\",\"na\",Emissions!F18)","v":0},null,{"$f":"IF(D91=\"na\",\"-\",Emissions!G18)","v":0}]
[null,null,"TOTAL",{"$f":"Emissions!E19","v":18},{"$f":"SUM(E82:E91)","v":0},null,{"$f":"SUM(G82:G91)","v":0},null,{"$f":"E92/D92","v":0},0.08,{"$f":"I92*J92*100","v":0}]
[null,null,null,null,null,null,null,null,null,"Sub-total weighted points achieved:",{"$f":"K18+K32+K40+K49+K57+K70+K79+K92","v":0}]
["Innovation"]
[null,{"$f":"Innovation!B5","v":"Innovative Strategies & Technologies"},"Inn - 1",5,{"$f":"Innovation!F5","v":0},null,{"$f":"Innovation!G5","v":0}]
[null,{"$f":"Innovation!B6","v":"Exceeding Green Star SA Benchmarks"},"Inn - 2",5,{"$f":"Innovation!F6","v":0},null,{"$f":"Innovation!G6","v":0}]
[null,{"$f":"Innovation!B7","v":"Environmental Design Initiatives "},"Inn - 3",5,{"$f":"Innovation!F7","v":0},null,{"$f":"Innovation!G7","v":0}]
[null,null,"TOTAL",{"$f":"Innovation!E8","v":5},{"$f":"SUM(E95:E97)","v":0},null,{"$f":"SUM(G95:G97)","v":0},null,"(Innovation is not weighted)",null,{"$f":"E98","v":0}]
[]
[null,null,null,null,null,null,null,null,null,"Total weighted points achieved:",{"$f":"K93+K98","v":0}]
[]
[]
[]
[]
["The GBCSA does not endorse any self-assessed rating achieved by the use of Green Star SA - Retail Centre v1. The GBCSA offers a formal certification process for ratings of Four Stars and above; this service provides for independent third party review of points claimed to ensure all points can be demonstrated to be achieved by the provision of the necessary documentary evidence.  The use of Green Star SA - Retail Centre v1 without formal certification by the GBCSA does not entitle the user or any other party to promote the Green Star SA rating achieved.",null,null,null,null,null,null,null,"Weighted Score","Rating"]
[]
[null,null,null,null,null,null,null,null,"45-59","Four Star"]
[null,null,null,null,null,null,null,null,"60-74","Five Star"]
[null,null,null,null,null,null,null,null,"75+","Six Star"]

{"sheet":"Graphical Summary","index":31,"n_rows":5,"n_cols":4,"rows_kept":5,"cut":false,"hidden":false,"merged":[[4,1,4,8]]}
[null,{"$f":"'Building Input'!B1","v":"Green Star SA - Retail Centre v1"}]
[null,"Graphical Summary"]
[null,"Summary for:",null,{"$f":"IF('Building Input'!$C$5=0,\"\",'Building Input'!$C$5)","v":""}]
[]
[null,{"$f":"IF('Credit Summary'!K100<45,\"Official GBCSA certification NOT permitted. The Project must achieve a minimum final point score of 45 weighted points for certification\",\"The number of points inputted would equate to a \"&Calculation1!C61&\" rating, once certified.\")","v":"Official GBCSA certification NOT permitted. The Project must achieve a minimum final point score of 45 weighted points for certification"}]

{"sheet":"Rainfall data","index":32,"n_rows":36,"n_cols":16,"rows_kept":36,"cut":false,"hidden":true,"merged":[]}
[null,"Precipitation Average Monthly (mm)"]
[null,null,"January","February","March","April","May","June","July","August","September","October","November","December ","TOTAL","annual number of rain days"]
[1]
[2,"Beaufort West",35,30,30,20,11,8,9,14,12,21,27,19,{"$f":"SUM(C4:N4)","v":236},43]
[3,"Bela-Bela",120,84,74,37,7,6,2,5,16,58,101,124,634,74]
[4,"Belfast",170,101,83,53,16,7,5,9,33,93,156,152,878,83]
[5,"Bethal",146,75,61,48,14,7,6,13,28,78,129,106,711,90]
[6,"Bethlehem",96,77,94,58,9,12,7,27,35,83,96,86,680,98]
[7,"Bloemfontein",83,111,72,56,17,12,8,15,24,43,58,60,559,84]
[8,"Calvinia",14,12,26,27,22,34,23,24,13,11,13,9,228,50]
[9,"Cape Town",15,17,20,41,69,93,82,77,40,30,14,17,515,103]
[10,"De Aar",36,60,52,41,16,13,13,15,11,26,30,23,336,55]
[11,"Durban",134,113,120,73,59,28,39,62,73,98,108,102,1009,130]
[12,"East London",69,92,105,83,52,40,47,78,80,102,110,63,921,121]
[13,"George",63,59,69,71,53,45,43,68,60,64,61,59,715,121]
[14,"Johannesburg",125,90,91,54,13,9,4,6,27,72,117,105,713,99]
[15,"Kimberley",57,76,65,49,16,7,7,7,12,30,42,46,414,71]
[16,"Ladysmith",145,106,90,39,14,6,5,26,38,77,91,112,749,93]
[17,"Langebaan",8,4,11,24,40,41,47,45,24,12,12,10,278,76]
[18,"Musina",58,57,39,27,10,4,1,1,12,24,49,57,339,42]
[19,"Nelspruit",127,108,90,51,15,9,10,10,26,75,115,131,767,100]
[20,"Nmmabatho",117,83,74,57,14,5,3,5,13,37,64,67,539,72]
[21,"Pietermaritzburg",141,117,113,48,24,13,11,31,60,74,104,108,844,138]
[22,"Pilansberg",78,71,58,38,6,12,3,5,25,57,61,105,519,69]
[23,"Polokwane",82,60,52,33,11,5,3,6,17,43,85,81,478,65]
[24,"Port Elizabeth",36,40,54,58,59,62,47,64,62,59,49,34,{"$f":"SUM(C26:N26)","v":624},112]
[25,"Pretoria",136,75,82,51,13,7,3,6,22,71,98,110,{"$f":"SUM(C27:N27)","v":674},87]
[26,"Richards Bay",172,167,107,109,109,57,60,65,77,105,114,86,1228,113]
[27,"Skukuza",94,96,66,38,14,11,11,8,28,40,63,92,561,71]
[28,"Thohoyandou",74,108,75,47,15,17,14,11,39,93,76,128,697,94]
[29,"Tstsikama",77,70,81,80,86,75,78,111,66,83,78,60,945,91]
[30,"Umtata",87,89,83,58,18,11,18,15,35,73,75,88,650,113]
[31,"Upington",24,35,37,26,10,4,2,4,4,9,17,17,189,37]
[]
[null,null,"January","February","March","April","May","June","July","August","September","October","November","December ","total","annual number of rain days >1mm"]
[null,"Bloemfontein",{"$f":"VLOOKUP($B$36,$B$4:$N$33,2,FALSE)","v":83},{"$f":"VLOOKUP(B36,B4:N33,3,FALSE)","v":111},{"$f":"VLOOKUP($B$36,$B$4:$N$33,4,FALSE)","v":72},{"$f":"VLOOKUP($B$36,$B$4:$N$33,5,FALSE)","v":56},{"$f":"VLOOKUP($B$36,$B$4:$N$33,6,FALSE)","v":17},{"$f":"VLOOKUP($B$36,$B$4:$N$33,7,FALSE)","v":12},{"$f":"VLOOKUP($B$36,$B$4:$N$33,8,FALSE)","v":8},{"$f":"VLOOKUP($B$36,$B$4:$N$33,9,FALSE)","v":15},{"$f":"VLOOKUP($B$36,$B$4:$N$33,10,FALSE)","v":24},{"$f":"VLOOKUP($B$36,$B$4:$N$33,11,FALSE)","v":43},{"$f":"VLOOKUP($B$36,$B$4:$N$33,12,FALSE)","v":58},{"$f":"VLOOKUP($B$36,$B$4:$N$33,13,FALSE)","v":60},{"$f":"VLOOKUP($B$36,$B$4:$P$33,14,FALSE)","v":559},{"$f":"VLOOKUP($B$36,$B$4:$P$33,15,FALSE)","v":84}]

{"sheet":"Calculation","index":33,"n_rows":81,"n_cols":18,"rows_kept":81,"cut":false,"hidden":true,"merged":[[26,11,26,12],[30,10,30,11]]}
[null,"Green Star SA - Office v1",null,null,null,null,{"$f":"N25","v":"New Building"}]
[null,"Credit Summary for:",{"$f":"IF(#REF!=0,\"\",#REF!)","v":{"$error":"#REF!"}}]
[]
[]
[]
["Category Weightings"]
[null,null,"STATE BASED WEIGHTING FACTORS"]
[null,"Baseline","Gauteng","W Cape","E Cape","N Cape","KZN","Limpopo","N West","Free State","Mpumalanga","State list"]
["Management",0.09,0.09,0.09,0.09,0.09,0.09,0.09,0.09,0.09,0.09,1,"Gauteng"]
["Indoor Environment Quality",0.15,0.15,0.15,0.15,0.15,0.15,0.15,0.15,0.15,0.15,2,"W Cape"]
["Energy",0.25,0.25,0.25,0.25,0.25,0.25,0.25,0.25,0.25,0.25,3,"E Cape"]
["Transport",0.09,0.09,0.09,0.09,0.09,0.09,0.09,0.09,0.09,0.09,4,"N Cape"]
["Water",0.14000000000000001,0.14000000000000001,0.14000000000000001,0.14000000000000001,0.14000000000000001,0.14000000000000001,0.14000000000000001,0.14000000000000001,0.14000000000000001,0.14000000000000001,5,"KZN"]
["Materials",0.13,0.13,0.13,0.13,0.13,0.13,0.13,0.13,0.13,0.13,6,"Limpopo"]
["Land use & Ecology",7.0000000000000007E-2,7.0000000000000007E-2,7.0000000000000007E-2,7.0000000000000007E-2,7.0000000000000007E-2,7.0000000000000007E-2,7.0000000000000007E-2,7.0000000000000007E-2,7.0000000000000007E-2,7.0000000000000007E-2,7,"N West"]
["Emissions",0.08,0.08,0.08,0.08,0.08,0.08,0.08,0.08,0.08,0.08,8,"Free State"]
[null,null,null,null,null,null,null,null,null,null,null,9,"Mpumalanga"]
[null,{"$f":"SUM(B9:B16)","v":0.99999999999999989},{"$f":"SUM(C9:C16)","v":0.99999999999999989},0.99999999999999989,0.99999999999999989,0.99999999999999989,0.99999999999999989,0.99999999999999989,0.99999999999999989,0.99999999999999989,{"$f":"SUM(K9:K16)","v":0.99999999999999989},"State selected = ",1,{"$f":"VLOOKUP(M18,L9:M17,2)","v":"Gauteng"}]
[]
[null,null,null,null,null,null,null,null,null,null,null,null,null,null,"note:"]
[null,null,null,null,null,null,null,null,null,null,null,"Type of assessment",null,null,"Green cells update with changes to Building Input Sheet"]
[null,null,null,null,null,null,null,null,null,null,null,1,"New Building"]
[null,null,null,null,null,null,null,null,null,null,null,2,"Refurbished Building"]
[]
[null,null,null,null,null,null,null,null,null,null,null,"Type selected = ",1,{"$f":"VLOOKUP(M25,L22:M23,2)","v":"New Building"}]
[null,"Mandatory requirements"]
[null,null,null,null,null,null,null,null,null,null,null,"Type of Rating",null,null,null,null,null,1]
[null,null,null,null,null,null,null,null,null,null,null,1,null,"Green Star SA - Office Design v1"]
[null,null,null,null,null,null,null,null,null,null,null,2,"Green Star SA - Office Design v1","Green Star SA - Office Design v1"]
[null,"Yes","If there are mandatory requirements then this cell to the left",null,null,null,null,null,null,null,null,3,"Green Star SA - Office As Built v1","Green Star SA - Office As Built v1"]
[null,null,"needs to read yes ONLY if they have been met.",null,null,null,null,null,null,null,"Type Selected =",null,1,{"$f":"VLOOKUP(M31,L28:N30,3,)","v":"Green Star SA - Office Design v1"}]
["Points Calculation"]
[null,"Category","Weighting","Max Score per category","Total of credits available","Points achieved","% of points achieved","Weighted Score (achieved)","Credits tbc","% of credits tbc","Weighted Score \ntbc","Achieved + tbc credits","% of achieved + tbc","Potential weighted score","Error check"]
[null,"Management",{"$f":"VLOOKUP(B34,A9:K9,$M$18+2)","v":0.09},{"$f":"C34*100","v":9},{"$f":"#REF!","v":{"$error":"#REF!"}},{"$f":"#REF!","v":{"$error":"#REF!"}},{"$f":"F34/E34","v":{"$error":"#REF!"}},{"$f":"C34*G34*100","v":{"$error":"#REF!"}},{"$f":"#REF!","v":{"$error":"#REF!"}},{"$f":"I34/E34","v":{"$error":"#REF!"}},{"$f":"C34*J34*100","v":{"$error":"#REF!"}},{"$f":"F34+I34","v":{"$error":"#REF!"}},{"$f":"L34/E34","v":{"$error":"#REF!"}},{"$f":"C34*M34*100","v":{"$error":"#REF!"}},{"$f":"#REF!","v":{"$error":"#REF!"}}]
[null,"Indoor Environment Quality",0.15,15,{"$f":"IEQ!E28","v":17},{"$f":"IEQ!F28","v":0},0,0,{"$f":"IEQ!G28","v":0},0,0,0,0,0,{"$f":"IEQ!I28","v":0}]
[null,"Energy",0.25,25,{"$f":"Energy!E12","v":26},{"$f":"Energy!F12","v":0},0,0,{"$f":"Energy!G12","v":0},0,0,0,0,0,{"$f":"Energy!I12","v":0}]
[null,"Transport",0.09,9,{"$f":"#REF!","v":{"$error":"#REF!"}},{"$f":"#REF!","v":{"$error":"#REF!"}},{"$error":"#REF!"},{"$error":"#REF!"},{"$f":"#REF!","v":{"$error":"#REF!"}},{"$error":"#REF!"},{"$error":"#REF!"},{"$error":"#REF!"},{"$error":"#REF!"},{"$error":"#REF!"},{"$f":"#REF!","v":{"$error":"#REF!"}}]
[null,"Water",0.14000000000000001,14.000000000000002,{"$f":"Water!E12","v":16},{"$f":"Water!F12","v":0},0,0,{"$f":"Water!G12","v":0},0,0,0,0,0,{"$f":"Water!I12","v":0}]
[null,"Materials",0.13,13,{"$f":"#REF!","v":{"$error":"#REF!"}},{"$f":"#REF!","v":{"$error":"#REF!"}},{"$error":"#REF!"},{"$error":"#REF!"},{"$f":"#REF!","v":{"$error":"#REF!"}},{"$error":"#REF!"},{"$error":"#REF!"},{"$error":"#REF!"},{"$error":"#REF!"},{"$error":"#REF!"},{"$f":"#REF!","v":{"$error":"#REF!"}}]
[null,"Land use & Ecology",7.0000000000000007E-2,7.0000000000000009,{"$f":"'Land Use & Ecology'!E13","v":11},{"$f":"'Land Use & Ecology'!F13","v":0},0,0,{"$f":"'Land Use & Ecology'!G13","v":0},0,0,0,0,0,{"$f":"'Land Use & Ecology'!I13","v":0}]
[null,"Emissions",0.08,8,{"$f":"Emissions!E19","v":18},{"$f":"Emissions!F19","v":0},0,0,{"$f":"Emissions!G19","v":0},0,0,0,0,0,{"$f":"Emissions!I19","v":0}]
[null,"Total",{"$f":"SUM(C34:C41)","v":0.99999999999999989},{"$f":"SUM(D34:D41)","v":100},{"$f":"SUM(E34:E41)","v":{"$error":"#REF!"}},{"$f":"SUM(F34:F41)","v":{"$error":"#REF!"}},null,{"$f":"SUM(H34:H41)","v":{"$error":"#REF!"}},{"$f":"SUM(I34:I41)","v":{"$error":"#REF!"}},null,{"$f":"SUM(K34:K41)","v":{"$error":"#REF!"}},{"$f":"SUM(L34:L41)","v":{"$error":"#REF!"}},null,{"$f":"SUM(N34:N41)","v":{"$error":"#REF!"}}]
[null,"Innovation",null,null,{"$f":"Innovation!E8","v":5},{"$f":"Innovation!F8","v":0},null,{"$f":"F43","v":0},{"$f":"Innovation!G8","v":0},null,{"$f":"I43","v":0},{"$f":"F43+I43","v":0},null,{"$f":"L43","v":0},{"$f":"Innovation!I7","v":""}]
[null,"Overall Score",null,null,null,null,null,{"$f":"H42+H43","v":{"$error":"#REF!"}},null,null,{"$f":"K42+K43","v":{"$error":"#REF!"}},{"$f":"L42+L43","v":{"$error":"#REF!"}},null,{"$f":"N42+N43","v":{"$error":"#REF!"}},{"$f":"SUM(O34:O43)","v":{"$error":"#REF!"}}]
[]
[null,null,"Scores required for GBRT Ratings",null,null,"data for graphical summary page",null,null,null,null,"data for graphical summary page"]
[null,null,0,"No Rating",null,"Category Score Data",null,null,null,null,null,"Rating Chart","Green Star","Achieved"]
[null,null,10,"One Star",null,null,null,null,null,null,null,"No Rating",{"$f":"C48-C47","v":10},{"$f":"MAX(0,MIN($M48,$H$44-$C47))","v":{"$error":"#REF!"}}]
[null,null,20,"Two Star",null,null,null,"Available","Achieved","tbc",null,"One Star",10,{"$error":"#REF!"}]
[null,null,30,"Three Star",null,null,{"$f":"B34","v":"Management"},1,{"$f":"G34","v":{"$error":"#REF!"}},{"$f":"J34","v":{"$error":"#REF!"}},null,"Two Star",10,{"$error":"#REF!"}]
[null,null,45,"Four Star",null,null,"Indoor Environment Quality",1,0,0,null,"Three Star",15,{"$error":"#REF!"}]
[null,null,60,"Five Star",null,null,"Energy",1,0,0,null,"Four Star",15,{"$error":"#REF!"}]
[null,null,75,"Six Star",null,null,"Transport",1,{"$error":"#REF!"},{"$error":"#REF!"},null,"Five Star",15,{"$error":"#REF!"}]
[null,"Warning text",null,null,null,null,"Water",1,0,0,null,"Six Stars",{"$f":"100-C53","v":25},{"$error":"#REF!"}]
[null,"Error Message = ",{"$f":"IF(O44>0,\"ERROR - Check category sheets\",\"\")","v":{"$error":"#REF!"}},null,null,null,"Materials",1,{"$error":"#REF!"},{"$error":"#REF!"}]
[null,null,null,null,null,null,"Land use & Ecology",1,0,0,null,"Potential",null,{"$f":"$K$44","v":{"$error":"#REF!"}}]
[null,"Mandatory Requirements Message",null,null,null,null,"Emissions",1,0,0]
[null,{"$f":"IF(B30=\"Yes\",\"\",\"Mandatory Requirements not met, Green Star Certified Rating not possible\")","v":""}]
[]
[null,"Rating"]
[null,"Achieved Rating",{"$f":"VLOOKUP($H$44,$C$47:$D$53,2)","v":{"$error":"#REF!"}},null,null,"data for graphical summary page",null,null,null,null,null,"data for graphical summary page"]
[null,"Potential Rating",{"$f":"VLOOKUP($N$44,$C$47:$D$53,2)","v":{"$error":"#REF!"}},null,null,"Credit Graph Data",null,null,null,null,null,"Weighted Score Graph Data"]
[]
[null,"Rating message",null,null,null,null,null,"Available","Achieved","tbc",null,null,null,"Available","Achieved","tbc"]
[null,{"$f":"IF(OR(ISBLANK(Energy!F5), ISBLANK('Land Use & Ecology'!F5)),\"Conditional requirements not met.\",IF(H44<C51,\"Minimal standards for Green Star SA certification not met.\",\"Once certified, this score would equate to a \" & C61 & \" rating.\"))","v":"Conditional requirements not met."},null,null,null,null,{"$f":"B34","v":"Management"},{"$f":"E34","v":{"$error":"#REF!"}},null,null,null,null,{"$f":"B34","v":"Management"}]
[null,null,null,null,null,null,null,null,{"$f":"F34","v":{"$error":"#REF!"}},{"$f":"I34","v":{"$error":"#REF!"}},null,null,null,{"$f":"D34","v":9},{"$f":"H34","v":{"$error":"#REF!"}},{"$f":"K34","v":{"$error":"#REF!"}}]
[null,null,null,null,null,null,"IEQ",{"$f":"E35","v":17},null,null,null,null,"IEQ"]
[null,null,null,null,null,null,null,null,{"$f":"F35","v":0},{"$f":"I35","v":0},null,null,null,{"$f":"D35","v":15},{"$f":"H35","v":0},{"$f":"K35","v":0}]
[null,null,null,null,null,null,{"$f":"B36","v":"Energy"},{"$f":"E36","v":26},null,null,null,null,{"$f":"B36","v":"Energy"}]
[null,"Conditional Requirements",null,null,null,null,null,null,{"$f":"F36","v":0},{"$f":"I36","v":0},null,null,null,{"$f":"D36","v":25},{"$f":"H36","v":0},{"$f":"K36","v":0}]
[null,"Ene",{"$f":"IF(ISBLANK(Energy!F5),\"Not met\",\"Met\")","v":"Met"},null,null,null,{"$f":"B37","v":"Transport"},{"$f":"E37","v":{"$error":"#REF!"}},null,null,null,null,{"$f":"B37","v":"Transport"}]
[null,"Eco",{"$f":"IF(ISBLANK('Land Use & Ecology'!F5),\"Not met\",\"Met\")","v":"Not met"},null,null,null,null,null,{"$f":"F37","v":{"$error":"#REF!"}},{"$f":"I37","v":{"$error":"#REF!"}},null,null,null,{"$f":"D37","v":9},{"$f":"H37","v":{"$error":"#REF!"}},{"$f":"K37","v":{"$error":"#REF!"}}]
[null,null,null,null,null,null,{"$f":"B38","v":"Water"},{"$f":"E38","v":16},null,null,null,null,{"$f":"B38","v":"Water"}]
[null,null,null,null,null,null,null,null,{"$f":"F38","v":0},{"$f":"I38","v":0},null,null,null,{"$f":"D38","v":14.000000000000002},{"$f":"H38","v":0},{"$f":"K38","v":0}]
[null,null,null,null,null,null,{"$f":"B39","v":"Materials"},{"$f":"E39","v":{"$error":"#REF!"}},null,null,null,null,{"$f":"B39","v":"Materials"}]
[null,null,null,null,null,null,null,null,{"$f":"F39","v":{"$error":"#REF!"}},{"$f":"I39","v":{"$error":"#REF!"}},null,null,null,{"$f":"D39","v":13},{"$f":"H39","v":{"$error":"#REF!"}},{"$f":"K39","v":{"$error":"#REF!"}}]
[null,null,null,null,null,null,{"$f":"B40","v":"Land use & Ecology"},{"$f":"E40","v":11},null,null,null,null,{"$f":"B40","v":"Land use & Ecology"}]
[null,null,null,null,null,null,null,null,{"$f":"F40","v":0},{"$f":"I40","v":0},null,null,null,{"$f":"D40","v":7.0000000000000009},{"$f":"H40","v":0},{"$f":"K40","v":0}]
[null,"Please Confirm",null,null,null,null,{"$f":"B41","v":"Emissions"},{"$f":"E41","v":18},null,null,null,null,{"$f":"B41","v":"Emissions"}]
[null,"Yes",null,null,null,null,null,null,{"$f":"F41","v":0},{"$f":"I41","v":0},null,null,null,{"$f":"D41","v":8},{"$f":"H41","v":0},{"$f":"K41","v":0}]
[null,"No"]

{"sheet":"Calculation1","index":34,"n_rows":99,"n_cols":18,"rows_kept":99,"cut":false,"hidden":true,"merged":[[26,11,26,12],[30,10,30,11]]}
[{"$f":"'Building Input'!B1","v":"Green Star SA - Retail Centre v1"},null,null,null,null,null,{"$f":"N25","v":"New Building"}]
["Credit Summary for:",null,{"$f":"IF('Building Input'!C5=0,\"\",'Building Input'!C5)","v":""}]
[]
[]
[]
["Category Weightings"]
[null,null,"STATE BASED WEIGHTING FACTORS"]
[null,"Baseline","Gauteng","W Cape","E Cape","N Cape","KZN","Limpopo","N West","Free State","Mpumalanga","State list"]
["Management",{"$f":"'Credit Summary'!J18","v":0.1},{"$f":"B9","v":0.1},0.1,0.1,0.1,0.1,0.1,0.1,0.1,0.1,1,"Gauteng"]
["Indoor Environment Quality",{"$f":"'Credit Summary'!J32","v":0.1},{"$f":"B10","v":0.1},0.1,0.1,0.1,0.1,0.1,0.1,0.1,0.1,2,"W Cape"]
["Energy",{"$f":"'Credit Summary'!J40","v":0.25},{"$f":"B11","v":0.25},0.25,{"$f":"D11","v":0.25},0.25,0.25,0.25,0.25,0.25,0.25,3,"E Cape"]
["Transport",{"$f":"'Credit Summary'!J49","v":0.12},0.12,0.12,{"$f":"D12","v":0.12},0.12,0.12,0.12,0.12,0.12,0.12,4,"N Cape"]
["Water",{"$f":"'Credit Summary'!J57","v":0.15},0.15,0.15,{"$f":"D13","v":0.15},0.15,0.15,0.15,0.15,0.15,0.15,5,"KZN"]
["Materials",{"$f":"'Credit Summary'!J70","v":0.13},0.13,0.13,{"$f":"D14","v":0.13},0.13,0.13,0.13,0.13,0.13,0.13,6,"Limpopo"]
["Land use & Ecology",{"$f":"'Credit Summary'!J79","v":7.0000000000000007E-2},7.0000000000000007E-2,7.0000000000000007E-2,{"$f":"D15","v":7.0000000000000007E-2},7.0000000000000007E-2,7.0000000000000007E-2,7.0000000000000007E-2,7.0000000000000007E-2,7.0000000000000007E-2,7.0000000000000007E-2,7,"N West"]
["Emissions",{"$f":"'Credit Summary'!J92","v":0.08},0.08,0.08,{"$f":"D16","v":0.08},0.08,0.08,0.08,0.08,0.08,0.08,8,"Free State"]
[null,null,null,null,null,null,null,null,null,null,null,9,"Mpumalanga"]
[null,{"$f":"SUM(B9:B16)","v":1.0000000000000002},1.0000000000000002,1.0000000000000002,1.0000000000000002,1.0000000000000002,1.0000000000000002,1.0000000000000002,1.0000000000000002,1.0000000000000002,1.0000000000000002,"State selected = ",1,{"$f":"VLOOKUP(M18,L9:M17,2)","v":"Gauteng"}]
[]
[null,null,null,null,null,null,null,null,null,null,null,null,null,null,"note:"]
[null,null,null,null,null,null,null,null,null,null,null,"Type of assessment",null,null,"Green cells update with changes to Building Input Sheet"]
[null,null,null,null,null,null,null,null,null,null,null,1,"New Building"]
[null,null,null,null,null,null,null,null,null,null,null,2,"Refurbished Building"]
[]
[null,null,null,null,null,null,null,null,null,null,null,"Type selected = ",1,{"$f":"VLOOKUP(M25,L22:M23,2)","v":"New Building"}]
[null,"Mandatory requirements"]
[null,null,null,null,null,null,null,null,null,null,null,"Type of Rating",null,null,null,null,null,1]
[null,null,null,null,null,null,null,null,null,null,null,1,null,"Green Star SA - Retail Centre Design v1"]
[null,null,null,null,null,null,null,null,null,null,null,2,"Green Star SA - Retail Centre Design v1","Green Star SA - Retail Centre Design v1"]
[null,"Yes","If there are mandatory requirements then this cell to the left",null,null,null,null,null,null,null,null,3,"Green Star SA - Retail Centre As Built v1","Green Star SA - Retail Centre As Built v1"]
[null,null,"needs to read yes ONLY if they have been met.",null,null,null,null,null,null,null,"Type Selected =",null,1,{"$f":"VLOOKUP(M31,L28:N30,3,)","v":"Green Star SA - Retail Centre Design v1"}]
["Points Calculation"]
[null,"Category","Weighting","Max Score per category","Total of credits available","Points achieved","% of points achieved","Weighted Score (achieved)","Credits tbc","% of credits tbc","Weighted Score \ntbc","Achieved + tbc credits","% of achieved + tbc","Potential weighted score","Error check"]
[null,"Management",{"$f":"VLOOKUP(B34,A9:K9,$M$18+2)","v":0.1},{"$f":"C34*100","v":10},{"$f":"Management!E18","v":17},{"$f":"'Credit Summary'!E18","v":0},{"$f":"F34/E34","v":0},{"$f":"C34*G34*100","v":0},{"$f":"'Credit Summary'!G18","v":0},{"$f":"I34/E34","v":0},{"$f":"C34*J34*100","v":0},{"$f":"F34+I34","v":0},{"$f":"L34/E34","v":0},{"$f":"C34*M34*100","v":0},{"$f":"Management!I18","v":0}]
[null,"Indoor Environment Quality",{"$f":"VLOOKUP(B35,A10:K10,$M$18+2)","v":0.1},10,{"$f":"'Credit Summary'!D32","v":17},{"$f":"'Credit Summary'!E32","v":0},0,0,{"$f":"'Credit Summary'!G32","v":0},0,0,0,0,0,{"$f":"IEQ!I28","v":0}]
[null,"Energy",0.25,25,{"$f":"'Credit Summary'!D40","v":26},{"$f":"'Credit Summary'!E40","v":0},0,0,{"$f":"'Credit Summary'!G40","v":0},0,0,0,0,0,{"$f":"Energy!I12","v":0}]
[null,"Transport",0.12,12,{"$f":"'Credit Summary'!D49","v":15},{"$f":"'Credit Summary'!E49","v":0},0,0,{"$f":"'Credit Summary'!G49","v":0},0,0,0,0,0,{"$f":"Transport!I15","v":0}]
[null,"Water",0.15,15,{"$f":"'Credit Summary'!D57","v":16},{"$f":"'Credit Summary'!E57","v":0},0,0,{"$f":"'Credit Summary'!G57","v":0},0,0,0,0,0,{"$f":"Water!I12","v":0}]
[null,"Materials",0.13,13,{"$f":"'Credit Summary'!D70","v":23},{"$f":"'Credit Summary'!E70","v":0},0,0,{"$f":"'Credit Summary'!G70","v":0},0,0,0,0,0,{"$f":"Materials!I29","v":0}]
[null,"Land use & Ecology",7.0000000000000007E-2,7.0000000000000009,{"$f":"'Credit Summary'!D79","v":11},{"$f":"'Credit Summary'!E79","v":0},0,0,{"$f":"'Credit Summary'!G79","v":0},0,0,0,0,0,{"$f":"'Land Use & Ecology'!I13","v":0}]
[null,"Emissions",0.08,8,{"$f":"'Credit Summary'!D92","v":18},{"$f":"'Credit Summary'!E92","v":0},0,0,{"$f":"'Credit Summary'!G92","v":0},0,0,0,0,0,{"$f":"Emissions!I19","v":0}]
[null,"Total",{"$f":"SUM(C34:C41)","v":1.0000000000000002},{"$f":"SUM(D34:D41)","v":100},{"$f":"SUM(E34:E41)","v":143},{"$f":"SUM(F34:F41)","v":0},null,{"$f":"SUM(H34:H41)","v":0},{"$f":"SUM(I34:I41)","v":0},null,{"$f":"SUM(K34:K41)","v":0},{"$f":"SUM(L34:L41)","v":0},null,{"$f":"SUM(N34:N41)","v":0}]
[null,"Innovation",null,null,{"$f":"Innovation!E8","v":5},{"$f":"Innovation!F8","v":0},null,{"$f":"F43","v":0},{"$f":"Innovation!G8","v":0},null,{"$f":"I43","v":0},{"$f":"F43+I43","v":0},null,{"$f":"L43","v":0},{"$f":"Innovation!I8","v":0}]
[null,"Overall Score",null,null,null,null,null,{"$f":"H42+H43","v":0},null,null,{"$f":"K42+K43","v":0},{"$f":"L42+L43","v":0},null,{"$f":"N42+N43","v":0},{"$f":"SUM(O34:O43)","v":0}]
[]
[null,null,"Scores required for GBRT Ratings",null,null,"data for graphical summary page",null,null,null,null,"data for graphical summary page"]
[null,null,0,"No Rating",null,"Category Score Data",null,null,null,null,null,"Rating Chart","Green Star","Achieved"]
[null,null,10,"One Star",null,null,null,null,null,null,null,"No Rating",{"$f":"C48-C47","v":10},{"$f":"MAX(0,MIN($M48,$H$44-$C47))","v":0}]
[null,null,20,"Two Star",null,null,null,"Available","Achieved","tbc",null,"One Star",10,0]
[null,null,30,"Three Star",null,null,{"$f":"B34","v":"Management"},1,{"$f":"G34","v":0},{"$f":"J34","v":0},null,"Two Star",10,0]
[null,null,45,"Four Star",null,null,"Indoor Environment Quality",1,0,0,null,"Three Star",15,0]
[null,null,60,"Five Star",null,null,"Energy",1,0,0,null,"Four Star",15,0]
[null,null,75,"Six Star",null,null,"Transport",1,0,0,null,"Five Star",15,0]
[null,"Warning text",null,null,null,null,"Water",1,0,0,null,"Six Stars",{"$f":"100-C53","v":25},0]
[null,"Error Message = ",{"$f":"IF(O44>0,\"ERROR - Check category sheets\",\"\")","v":""},null,null,null,"Materials",1,0,0]
[null,null,null,null,null,null,"Land use & Ecology",1,0,0,null,"Potential",null,{"$f":"$K$44","v":0}]
[null,"Mandatory Requirements Message",null,null,null,null,"Emissions",1,0,0]
[null,{"$f":"IF(B30=\"Yes\",\"\",\"Mandatory Requirements not met, Green Star SA Certified Rating not possible\")","v":""}]
[]
[null,"Rating"]
[null,"Achieved Rating",{"$f":"VLOOKUP($H$44,$C$47:$D$53,2)","v":"No Rating"},null,null,"data for graphical summary page",null,null,null,null,null,"data for graphical summary page"]
[null,"Potential Rating",{"$f":"VLOOKUP($N$44,$C$47:$D$53,2)","v":"No Rating"},null,null,"Credit Graph Data",null,null,null,null,null,"Weighted Score Graph Data"]
[]
[null,"Rating message",null,null,null,null,null,"Available","Achieved","tbc",null,null,null,"Available","Achieved","tbc"]
[null,{"$f":"IF(OR(ISBLANK(Energy!F5), ISBLANK('Land Use & Ecology'!F5)),\"Conditional requirements not met.\",IF(H44<C51,\"Minimal standards for Green Star SA certification not met.\",\"Once certified, this score would equate to a \" & C61 & \" rating.\"))","v":"Conditional requirements not met."},null,null,null,null,{"$f":"B34","v":"Management"},{"$f":"E34","v":17},null,null,null,null,{"$f":"B34","v":"Management"}]
[null,null,null,null,null,null,null,null,{"$f":"F34","v":0},{"$f":"I34","v":0},null,null,null,{"$f":"D34","v":10},{"$f":"H34","v":0},{"$f":"K34","v":0}]
[null,null,null,null,null,null,"IEQ",{"$f":"E35","v":17},null,null,null,null,"IEQ"]
[null,null,null,null,null,null,null,null,{"$f":"F35","v":0},{"$f":"I35","v":0},null,null,null,{"$f":"D35","v":10},{"$f":"H35","v":0},{"$f":"K35","v":0}]
[null,null,null,null,null,null,{"$f":"B36","v":"Energy"},{"$f":"E36","v":26},null,null,null,null,{"$f":"B36","v":"Energy"}]
[null,"Conditional Requirements",null,null,null,null,null,null,{"$f":"F36","v":0},{"$f":"I36","v":0},null,null,null,{"$f":"D36","v":25},{"$f":"H36","v":0},{"$f":"K36","v":0}]
[null,"Ene",{"$f":"IF(ISBLANK(Energy!F5),\"Not met\",\"Met\")","v":"Met"},null,null,null,{"$f":"B37","v":"Transport"},{"$f":"E37","v":15},null,null,null,null,{"$f":"B37","v":"Transport"}]
[null,"Eco",{"$f":"IF(ISBLANK('Land Use & Ecology'!F5),\"Not met\",\"Met\")","v":"Not met"},null,null,null,null,null,{"$f":"F37","v":0},{"$f":"I37","v":0},null,null,null,{"$f":"D37","v":12},{"$f":"H37","v":0},{"$f":"K37","v":0}]
[null,null,null,null,null,null,{"$f":"B38","v":"Water"},{"$f":"E38","v":16},null,null,null,null,{"$f":"B38","v":"Water"}]
[null,null,null,null,null,null,null,null,{"$f":"F38","v":0},{"$f":"I38","v":0},null,null,null,{"$f":"D38","v":15},{"$f":"H38","v":0},{"$f":"K38","v":0}]
[null,"Ene-0 Conditional Requirement",null,null,null,null,{"$f":"B39","v":"Materials"},{"$f":"E39","v":23},null,null,null,null,{"$f":"B39","v":"Materials"}]
[null,"Yes- Compliance Route 1",null,null,null,null,null,null,{"$f":"F39","v":0},{"$f":"I39","v":0},null,null,null,{"$f":"D39","v":13},{"$f":"H39","v":0},{"$f":"K39","v":0}]
[null,"Yes- Compliance Route 2",null,null,null,null,{"$f":"B40","v":"Land use & Ecology"},{"$f":"E40","v":11},null,null,null,null,{"$f":"B40","v":"Land use & Ecology"}]
[null,"No- Not Met",null,null,null,null,null,null,{"$f":"F40","v":0},{"$f":"I40","v":0},null,null,null,{"$f":"D40","v":7.0000000000000009},{"$f":"H40","v":0},{"$f":"K40","v":0}]
[null,null,null,null,null,null,{"$f":"B41","v":"Emissions"},{"$f":"E41","v":18},null,null,null,null,{"$f":"B41","v":"Emissions"}]
[null,null,null,null,null,null,null,null,{"$f":"F41","v":0},{"$f":"I41","v":0},null,null,null,{"$f":"D41","v":8},{"$f":"H41","v":0},{"$f":"K41","v":0}]
[]
[]
[null,"ERROR MESSAGES"]
[1,"ERROR, sum of no. of points achieved and points to be confirmed exceeds the total no. of available points"]
[2,"ERROR, Value entered in 'No. of points achieved' must be a number or 'na'"]
[3,"[ERROR: Please check for error message in worksheet]"]
[4,"ERROR, text not valid!"]
[]
[null,"Reminder Note for TCs & CIRs"]
[]
[]
[]
[1,"Project Teams are to refer to the Green Star SA Retail Centre v1 Technical Manual for explicit credit criteria and documentation requirements."]
[2,"The Green Star Technical Clarifications (TC) and Credit Interpretation Request (CIR) rulings provide an essential source of information to all"]
[3,"projects undertaking Green Star assessment. They are available on the GBCSA website http://www.gbcsa.org.za . Technical Clarifications"]
[4,"often represent the GBCSA answers to technical queries and complement Green Star SA Technical Manuals. They do not amend but clarify "]
[5,"Credit Criteria or Compliance Requirements. They are an extension of the Technical Manual; it is the responsibility of the project teams to stay "]
[6,"up-to-date with this section of the GBCSA website. The CIR rulings offer alternative compliance options whenever those have been deemed "]
[7,"equivalent in meeting the Aim of Credit."]